Workbook

Sheet Inhalt
C1: Statistisches Bundesamt (2016): Personal an Hochschulen, Sonderauswertung, Wiesbaden
B3: 1. | C3: Hauptberufliches wissenschaftliches und künstlerisches Personal nach dem Beschäftigungsverhältnis, Geschlecht und der Finanzierung aus Grund- und Drittmitteln 2000,'05, '10, '14 | L3: zur Auswertung
B4: 2. | C4: Habilitationen nach Alter und Geschlecht 2009, '10, '11, '12, '13, '14 | L4: zur Auswertung
B5: 3. | C5: Hauptberufliches wissenschaftliches und künstlerisches Personal (ohne Professoren) im Alter bis 44 Jahren an Universitäten und gleichgestellten Hochschulen nach Beschäftigungsumfang und Befristung 2014 | L5: zur Auswertung
B6: 4. | C6: Wissenschaftliches und künstlerisches Personal nach Hochschularten, Fächergruppen und Lehr- und Forschungsbereichen, der fachlichen Zugehörigkeit, Beschäftigungsverhältnissen und Personalgruppen 2014 | L6: zur Auswertung
B7: 5. | C7: Personal insgesamt an Hochschulkliniken nach Land, Institution und Personalkategorie 2014 | L7: zur Auswertung
B8: 6. | C8: Neuberufene Professoren | L8: zur Auswertung
B9: 7. | C9: Professoren auf Dauer und auf Zeit | L9: zur Auswertung

Sheet 1.Hauptberufl. WiKue

Sheet 1.1
A1: Statistisches Bundesamt
A2: H201 - Hochschulstatistik
A5: Hauptberufliches wissenschaftliches und künstlerisches Personal (ohne Professoren) nach ausgewählten Hochschularten, Fächer- und Personalgruppen
A6: im Berichtsjahr 2014
H8: Hauptber. wiss. und | K8: Hauptber. wiss. und | N8: Hauptber. wiss. und
H9: künstler. Personal | K9: künstler. Personal | N9: künstler. Personal
B10: Hochschulart | D10: Fächergruppe | F10: Personalgruppe | G10: Ge- | H10: (ohne Professoren) | K10: (ohne Professoren) | N10: (ohne Professoren)
D11: der fachl. Zugehörigkeit | G11: schlecht | K11: im Alter bis einschl. 34 Jahren | N11: im Alter bis einschl. 44 Jahren
H12: insgesamt | I12: auf Dauer | J12: auf Zeit | K12: insgesamt | L12: auf Dauer | M12: auf Zeit | N12: insgesamt | O12: auf Dauer | P12: auf Zeit
A14: 1 | B14: Wiss. Hochschulen | C14: 1 | D14: Sprach- und Kulturwissenschaften | E14: 3 | F14: Wiss. u. künstl. Mitarbeiter | G14: m | H14: 7358 | I14: 1208 | J14: 6150 | K14: 3576 | L14: 62 | M14: 3514 | N14: 5772 | O14: 327 | P14: 5445
A15: 1 | B15: Wiss. Hochschulen | C15: 1 | D15: Sprach- und Kulturwissenschaften | E15: 3 | F15: Wiss. u. künstl. Mitarbeiter | G15: w | H15: 10367 | I15: 1182 | J15: 9185 | K15: 6257 | L15: 102 | M15: 6155 | N15: 8809 | O15: 369 | P15: 8440
A16: 1 | B16: Wiss. Hochschulen | C16: 1 | D16: Sprach- und Kulturwissenschaften | E16: 3 | F16: Wiss. u. künstl. Mitarbeiter | G16: i | H16: 17725 | I16: 2390 | J16: 15335 | K16: 9833 | L16: 164 | M16: 9669 | N16: 14581 | O16: 696 | P16: 13885
A17: 1 | B17: Wiss. Hochschulen | C17: 1 | D17: Sprach- und Kulturwissenschaften | E17: 4 | F17: Lehrkr. f. bes. Aufgaben + Doz. u. Assistenten | G17: m | H17: 1374 | I17: 634 | J17: 740 | K17: 262 | L17: 19 | M17: 243 | N17: 711 | O17: 174 | P17: 537
A18: 1 | B18: Wiss. Hochschulen | C18: 1 | D18: Sprach- und Kulturwissenschaften | E18: 4 | F18: Lehrkr. f. bes. Aufgaben + Doz. u. Assistenten | G18: w | H18: 2030 | I18: 868 | J18: 1162 | K18: 479 | L18: 42 | M18: 437 | N18: 1173 | O18: 295 | P18: 878
A19: 1 | B19: Wiss. Hochschulen | C19: 1 | D19: Sprach- und Kulturwissenschaften | E19: 4 | F19: Lehrkr. f. bes. Aufgaben + Doz. u. Assistenten | G19: i | H19: 3404 | I19: 1502 | J19: 1902 | K19: 741 | L19: 61 | M19: 680 | N19: 1884 | O19: 469 | P19: 1415
A20: 1 | B20: Wiss. Hochschulen | C20: 1 | D20: Sprach- und Kulturwissenschaften | E20: ~~ | F20: zusammen | G20: m | H20: 8732 | I20: 1842 | J20: 6890 | K20: 3838 | L20: 81 | M20: 3757 | N20: 6483 | O20: 501 | P20: 5982
A21: 1 | B21: Wiss. Hochschulen | C21: 1 | D21: Sprach- und Kulturwissenschaften | E21: ~~ | F21: zusammen | G21: w | H21: 12397 | I21: 2050 | J21: 10347 | K21: 6736 | L21: 144 | M21: 6592 | N21: 9982 | O21: 664 | P21: 9318
A22: 1 | B22: Wiss. Hochschulen | C22: 1 | D22: Sprach- und Kulturwissenschaften | E22: ~~ | F22: zusammen | G22: i | H22: 21129 | I22: 3892 | J22: 17237 | K22: 10574 | L22: 225 | M22: 10349 | N22: 16465 | O22: 1165 | P22: 15300
A23: 1 | B23: Wiss. Hochschulen | C23: 3 | D23: Rechts-, Wirtschafts- und Sozialwissenschaften | E23: 3 | F23: Wiss. u. künstl. Mitarbeiter | G23: m | H23: 8310 | I23: 445 | J23: 7865 | K23: 6546 | L23: 31 | M23: 6515 | N23: 7802 | O23: 151 | P23: 7651
A24: 1 | B24: Wiss. Hochschulen | C24: 3 | D24: Rechts-, Wirtschafts- und Sozialwissenschaften | E24: 3 | F24: Wiss. u. künstl. Mitarbeiter | G24: w | H24: 6143 | I24: 273 | J24: 5870 | K24: 4870 | L24: 32 | M24: 4838 | N24: 5758 | O24: 99 | P24: 5659
A25: 1 | B25: Wiss. Hochschulen | C25: 3 | D25: Rechts-, Wirtschafts- und Sozialwissenschaften | E25: 3 | F25: Wiss. u. künstl. Mitarbeiter | G25: i | H25: 14453 | I25: 718 | J25: 13735 | K25: 11416 | L25: 63 | M25: 11353 | N25: 13560 | O25: 250 | P25: 13310
A26: 1 | B26: Wiss. Hochschulen | C26: 3 | D26: Rechts-, Wirtschafts- und Sozialwissenschaften | E26: 4 | F26: Lehrkr. f. bes. Aufgaben + Doz. u. Assistenten | G26: m | H26: 586 | I26: 132 | J26: 454 | K26: 249 | L26: 9 | M26: 240 | N26: 456 | O26: 44 | P26: 412
A27: 1 | B27: Wiss. Hochschulen | C27: 3 | D27: Rechts-, Wirtschafts- und Sozialwissenschaften | E27: 4 | F27: Lehrkr. f. bes. Aufgaben + Doz. u. Assistenten | G27: w | H27: 328 | I27: 76 | J27: 252 | K27: 149 | L27: 6 | M27: 143 | N27: 246 | O27: 28 | P27: 218
A28: 1 | B28: Wiss. Hochschulen | C28: 3 | D28: Rechts-, Wirtschafts- und Sozialwissenschaften | E28: 4 | F28: Lehrkr. f. bes. Aufgaben + Doz. u. Assistenten | G28: i | H28: 914 | I28: 208 | J28: 706 | K28: 398 | L28: 15 | M28: 383 | N28: 702 | O28: 72 | P28: 630
A29: 1 | B29: Wiss. Hochschulen | C29: 3 | D29: Rechts-, Wirtschafts- und Sozialwissenschaften | E29: ~~ | F29: zusammen | G29: m | H29: 8896 | I29: 577 | J29: 8319 | K29: 6795 | L29: 40 | M29: 6755 | N29: 8258 | O29: 195 | P29: 8063
A30: 1 | B30: Wiss. Hochschulen | C30: 3 | D30: Rechts-, Wirtschafts- und Sozialwissenschaften | E30: ~~ | F30: zusammen | G30: w | H30: 6471 | I30: 349 | J30: 6122 | K30: 5019 | L30: 38 | M30: 4981 | N30: 6004 | O30: 127 | P30: 5877
A31: 1 | B31: Wiss. Hochschulen | C31: 3 | D31: Rechts-, Wirtschafts- und Sozialwissenschaften | E31: ~~ | F31: zusammen | G31: i | H31: 15367 | I31: 926 | J31: 14441 | K31: 11814 | L31: 78 | M31: 11736 | N31: 14262 | O31: 322 | P31: 13940
A32: 1 | B32: Wiss. Hochschulen | C32: 4 | D32: Mathematik, Naturwissenschaften | E32: 3 | F32: Wiss. u. künstl. Mitarbeiter | G32: m | H32: 28611 | I32: 3430 | J32: 25181 | K32: 20611 | L32: 143 | M32: 20468 | N32: 25124 | O32: 935 | P32: 24189
A33: 1 | B33: Wiss. Hochschulen | C33: 4 | D33: Mathematik, Naturwissenschaften | E33: 3 | F33: Wiss. u. künstl. Mitarbeiter | G33: w | H33: 12533 | I33: 879 | J33: 11654 | K33: 9693 | L33: 73 | M33: 9620 | N33: 11487 | O33: 322 | P33: 11165
A34: 1 | B34: Wiss. Hochschulen | C34: 4 | D34: Mathematik, Naturwissenschaften | E34: 3 | F34: Wiss. u. künstl. Mitarbeiter | G34: i | H34: 41144 | I34: 4309 | J34: 36835 | K34: 30304 | L34: 216 | M34: 30088 | N34: 36611 | O34: 1257 | P34: 35354
A35: 1 | B35: Wiss. Hochschulen | C35: 4 | D35: Mathematik, Naturwissenschaften | E35: 4 | F35: Lehrkr. f. bes. Aufgaben + Doz. u. Assistenten | G35: m | H35: 901 | I35: 318 | J35: 583 | K35: 267 | L35: 12 | M35: 255 | N35: 621 | O35: 104 | P35: 517
A36: 1 | B36: Wiss. Hochschulen | C36: 4 | D36: Mathematik, Naturwissenschaften | E36: 4 | F36: Lehrkr. f. bes. Aufgaben + Doz. u. Assistenten | G36: w | H36: 442 | I36: 119 | J36: 323 | K36: 163 | L36: 8 | M36: 155 | N36: 327 | O36: 46 | P36: 281
A37: 1 | B37: Wiss. Hochschulen | C37: 4 | D37: Mathematik, Naturwissenschaften | E37: 4 | F37: Lehrkr. f. bes. Aufgaben + Doz. u. Assistenten | G37: i | H37: 1343 | I37: 437 | J37: 906 | K37: 430 | L37: 20 | M37: 410 | N37: 948 | O37: 150 | P37: 798
A38: 1 | B38: Wiss. Hochschulen | C38: 4 | D38: Mathematik, Naturwissenschaften | E38: ~~ | F38: zusammen | G38: m | H38: 29512 | I38: 3748 | J38: 25764 | K38: 20878 | L38: 155 | M38: 20723 | N38: 25745 | O38: 1039 | P38: 24706
A39: 1 | B39: Wiss. Hochschulen | C39: 4 | D39: Mathematik, Naturwissenschaften | E39: ~~ | F39: zusammen | G39: w | H39: 12975 | I39: 998 | J39: 11977 | K39: 9856 | L39: 81 | M39: 9775 | N39: 11814 | O39: 368 | P39: 11446
A40: 1 | B40: Wiss. Hochschulen | C40: 4 | D40: Mathematik, Naturwissenschaften | E40: ~~ | F40: zusammen | G40: i | H40: 42487 | I40: 4746 | J40: 37741 | K40: 30734 | L40: 236 | M40: 30498 | N40: 37559 | O40: 1407 | P40: 36152
A41: 1 | B41: Wiss. Hochschulen | C41: 5 | D41: Humanmedizin/Gesundheitswissenschaften + Veterinärmedizin | E41: 3 | F41: Wiss. u. künstl. Mitarbeiter | G41: m | H41: 25906 | I41: 6995 | J41: 18911 | K41: 10669 | L41: 102 | M41: 10567 | N41: 19640 | O41: 2273 | P41: 17367
A42: 1 | B42: Wiss. Hochschulen | C42: 5 | D42: Humanmedizin/Gesundheitswissenschaften + Veterinärmedizin | E42: 3 | F42: Wiss. u. künstl. Mitarbeiter | G42: w | H42: 27189 | I42: 3813 | J42: 23376 | K42: 15508 | L42: 158 | M42: 15350 | N42: 22869 | O42: 1326 | P42: 21543
A43: 1 | B43: Wiss. Hochschulen | C43: 5 | D43: Humanmedizin/Gesundheitswissenschaften + Veterinärmedizin | E43: 3 | F43: Wiss. u. künstl. Mitarbeiter | G43: i | H43: 53095 | I43: 10808 | J43: 42287 | K43: 26177 | L43: 260 | M43: 25917 | N43: 42509 | O43: 3599 | P43: 38910
A44: 1 | B44: Wiss. Hochschulen | C44: 5 | D44: Humanmedizin/Gesundheitswissenschaften + Veterinärmedizin | E44: 4 | F44: Lehrkr. f. bes. Aufgaben + Doz. u. Assistenten | G44: m | H44: 262 | I44: 61 | J44: 201 | K44: 79 | L44: . | M44: . | N44: 168 | O44: 11 | P44: 157
A45: 1 | B45: Wiss. Hochschulen | C45: 5 | D45: Humanmedizin/Gesundheitswissenschaften + Veterinärmedizin | E45: 4 | F45: Lehrkr. f. bes. Aufgaben + Doz. u. Assistenten | G45: w | H45: 316 | I45: 40 | J45: 276 | K45: 148 | L45: . | M45: . | N45: 249 | O45: 11 | P45: 238
A46: 1 | B46: Wiss. Hochschulen | C46: 5 | D46: Humanmedizin/Gesundheitswissenschaften + Veterinärmedizin | E46: 4 | F46: Lehrkr. f. bes. Aufgaben + Doz. u. Assistenten | G46: i | H46: 578 | I46: 101 | J46: 477 | K46: 227 | L46: 2 | M46: 225 | N46: 417 | O46: 22 | P46: 395
A47: 1 | B47: Wiss. Hochschulen | C47: 5 | D47: Humanmedizin/Gesundheitswissenschaften + Veterinärmedizin | E47: ~~ | F47: zusammen | G47: m | H47: 26168 | I47: 7056 | J47: 19112 | K47: 10748 | L47: 104 | M47: 10644 | N47: 19808 | O47: 2284 | P47: 17524
A48: 1 | B48: Wiss. Hochschulen | C48: 5 | D48: Humanmedizin/Gesundheitswissenschaften + Veterinärmedizin | E48: ~~ | F48: zusammen | G48: w | H48: 27505 | I48: 3853 | J48: 23652 | K48: 15656 | L48: 158 | M48: 15498 | N48: 23118 | O48: 1337 | P48: 21781
A49: 1 | B49: Wiss. Hochschulen | C49: 5 | D49: Humanmedizin/Gesundheitswissenschaften + Veterinärmedizin | E49: ~~ | F49: zusammen | G49: i | H49: 53673 | I49: 10909 | J49: 42764 | K49: 26404 | L49: 262 | M49: 26142 | N49: 42926 | O49: 3621 | P49: 39305
A50: 1 | B50: Wiss. Hochschulen | C50: 8 | D50: Ingenieurwissenschaften | E50: 3 | F50: Wiss. u. künstl. Mitarbeiter | G50: m | H50: 18686 | I50: 1639 | J50: 17047 | K50: 13912 | L50: 54 | M50: 13858 | N50: 16759 | O50: 436 | P50: 16323
A51: 1 | B51: Wiss. Hochschulen | C51: 8 | D51: Ingenieurwissenschaften | E51: 3 | F51: Wiss. u. künstl. Mitarbeiter | G51: w | H51: 4860 | I51: 282 | J51: 4578 | K51: 3466 | L51: 13 | M51: 3453 | N51: 4334 | O51: 83 | P51: 4251
A52: 1 | B52: Wiss. Hochschulen | C52: 8 | D52: Ingenieurwissenschaften | E52: 3 | F52: Wiss. u. künstl. Mitarbeiter | G52: i | H52: 23546 | I52: 1921 | J52: 21625 | K52: 17378 | L52: 67 | M52: 17311 | N52: 21093 | O52: 519 | P52: 20574
A53: 1 | B53: Wiss. Hochschulen | C53: 8 | D53: Ingenieurwissenschaften | E53: 4 | F53: Lehrkr. f. bes. Aufgaben + Doz. u. Assistenten | G53: m | H53: 361 | I53: 146 | J53: 215 | K53: 140 | L53: . | M53: . | N53: 238 | O53: 43 | P53: 195
A54: 1 | B54: Wiss. Hochschulen | C54: 8 | D54: Ingenieurwissenschaften | E54: 4 | F54: Lehrkr. f. bes. Aufgaben + Doz. u. Assistenten | G54: w | H54: 80 | I54: 21 | J54: 59 | K54: 37 | L54: . | M54: . | N54: 51 | O54: 1 | P54: 50
A55: 1 | B55: Wiss. Hochschulen | C55: 8 | D55: Ingenieurwissenschaften | E55: 4 | F55: Lehrkr. f. bes. Aufgaben + Doz. u. Assistenten | G55: i | H55: 441 | I55: 167 | J55: 274 | K55: 177 | L55: 4 | M55: 173 | N55: 289 | O55: 44 | P55: 245
A56: 1 | B56: Wiss. Hochschulen | C56: 8 | D56: Ingenieurwissenschaften | E56: ~~ | F56: zusammen | G56: m | H56: 19047 | I56: 1785 | J56: 17262 | K56: 14052 | L56: 58 | M56: 13994 | N56: 16997 | O56: 479 | P56: 16518
A57: 1 | B57: Wiss. Hochschulen | C57: 8 | D57: Ingenieurwissenschaften | E57: ~~ | F57: zusammen | G57: w | H57: 4940 | I57: 303 | J57: 4637 | K57: 3503 | L57: 13 | M57: 3490 | N57: 4385 | O57: 84 | P57: 4301
A58: 1 | B58: Wiss. Hochschulen | C58: 8 | D58: Ingenieurwissenschaften | E58: ~~ | F58: zusammen | G58: i | H58: 23987 | I58: 2088 | J58: 21899 | K58: 17555 | L58: 71 | M58: 17484 | N58: 21382 | O58: 563 | P58: 20819
A59: 1 | B59: Wiss. Hochschulen | C59: 10 | D59: Restliche Fächergruppen | E59: 3 | F59: Wiss. u. künstl. Mitarbeiter | G59: m | H59: 8186 | I59: 2499 | J59: 5687 | K59: 3439 | L59: 94 | M59: 3345 | N59: 5650 | O59: 627 | P59: 5023
A60: 1 | B60: Wiss. Hochschulen | C60: 10 | D60: Restliche Fächergruppen | E60: 3 | F60: Wiss. u. künstl. Mitarbeiter | G60: w | H60: 7736 | I60: 1681 | J60: 6055 | K60: 3889 | L60: 135 | M60: 3754 | N60: 5928 | O60: 553 | P60: 5375
A61: 1 | B61: Wiss. Hochschulen | C61: 10 | D61: Restliche Fächergruppen | E61: 3 | F61: Wiss. u. künstl. Mitarbeiter | G61: i | H61: 15922 | I61: 4180 | J61: 11742 | K61: 7328 | L61: 229 | M61: 7099 | N61: 11578 | O61: 1180 | P61: 10398
A62: 1 | B62: Wiss. Hochschulen | C62: 10 | D62: Restliche Fächergruppen | E62: 4 | F62: Lehrkr. f. bes. Aufgaben + Doz. u. Assistenten | G62: m | H62: 1331 | I62: 973 | J62: 358 | K62: 168 | L62: 53 | M62: 115 | N62: 466 | O62: 221 | P62: 245
A63: 1 | B63: Wiss. Hochschulen | C63: 10 | D63: Restliche Fächergruppen | E63: 4 | F63: Lehrkr. f. bes. Aufgaben + Doz. u. Assistenten | G63: w | H63: 1421 | I63: 925 | J63: 496 | K63: 235 | L63: 54 | M63: 181 | N63: 606 | O63: 249 | P63: 357
A64: 1 | B64: Wiss. Hochschulen | C64: 10 | D64: Restliche Fächergruppen | E64: 4 | F64: Lehrkr. f. bes. Aufgaben + Doz. u. Assistenten | G64: i | H64: 2752 | I64: 1898 | J64: 854 | K64: 403 | L64: 107 | M64: 296 | N64: 1072 | O64: 470 | P64: 602
A65: 1 | B65: Wiss. Hochschulen | C65: 10 | D65: Restliche Fächergruppen | E65: ~~ | F65: zusammen | G65: m | H65: 9517 | I65: 3472 | J65: 6045 | K65: 3607 | L65: 147 | M65: 3460 | N65: 6116 | O65: 848 | P65: 5268
A66: 1 | B66: Wiss. Hochschulen | C66: 10 | D66: Restliche Fächergruppen | E66: ~~ | F66: zusammen | G66: w | H66: 9157 | I66: 2606 | J66: 6551 | K66: 4124 | L66: 189 | M66: 3935 | N66: 6534 | O66: 802 | P66: 5732
A67: 1 | B67: Wiss. Hochschulen | C67: 10 | D67: Restliche Fächergruppen | E67: ~~ | F67: zusammen | G67: i | H67: 18674 | I67: 6078 | J67: 12596 | K67: 7731 | L67: 336 | M67: 7395 | N67: 12650 | O67: 1650 | P67: 11000
A68: 1 | B68: Wiss. Hochschulen | C68: ~~ | D68: zusammen | E68: ~~ | F68: zusammen | G68: m | H68: 101872 | I68: 18480 | J68: 83392 | K68: 59918 | L68: 585 | M68: 59333 | N68: 83407 | O68: 5346 | P68: 78061
A69: 1 | B69: Wiss. Hochschulen | C69: ~~ | D69: zusammen | E69: ~~ | F69: zusammen | G69: w | H69: 73445 | I69: 10159 | J69: 63286 | K69: 44894 | L69: 623 | M69: 44271 | N69: 61837 | O69: 3382 | P69: 58455
A70: 1 | B70: Wiss. Hochschulen | C70: ~~ | D70: zusammen | E70: ~~ | F70: zusammen | G70: i | H70: 175317 | I70: 28639 | J70: 146678 | K70: 104812 | L70: 1208 | M70: 103604 | N70: 145244 | O70: 8728 | P70: 136516
A71: 2 | B71: FH + VerwFH | C71: 1 | D71: Sprach- und Kulturwissenschaften | E71: 3 | F71: Wiss. u. künstl. Mitarbeiter | G71: m | H71: 57 | I71: 25 | J71: 32 | K71: 20 | L71: 3 | M71: 17 | N71: 36 | O71: 9 | P71: 27
A72: 2 | B72: FH + VerwFH | C72: 1 | D72: Sprach- und Kulturwissenschaften | E72: 3 | F72: Wiss. u. künstl. Mitarbeiter | G72: w | H72: 143 | I72: 47 | J72: 96 | K72: 61 | L72: 11 | M72: 50 | N72: 102 | O72: 23 | P72: 79
A73: 2 | B73: FH + VerwFH | C73: 1 | D73: Sprach- und Kulturwissenschaften | E73: 3 | F73: Wiss. u. künstl. Mitarbeiter | G73: i | H73: 200 | I73: 72 | J73: 128 | K73: 81 | L73: 14 | M73: 67 | N73: 138 | O73: 32 | P73: 106
A74: 2 | B74: FH + VerwFH | C74: 1 | D74: Sprach- und Kulturwissenschaften | E74: 4 | F74: Lehrkr. f. bes. Aufgaben + Doz. u. Assistenten | G74: m | H74: 118 | I74: 85 | J74: 33 | K74: 8 | L74: 2 | M74: 6 | N74: 34 | O74: 18 | P74: 16
A75: 2 | B75: FH + VerwFH | C75: 1 | D75: Sprach- und Kulturwissenschaften | E75: 4 | F75: Lehrkr. f. bes. Aufgaben + Doz. u. Assistenten | G75: w | H75: 208 | I75: 152 | J75: 56 | K75: 29 | L75: 10 | M75: 19 | N75: 70 | O75: 35 | P75: 35
A76: 2 | B76: FH + VerwFH | C76: 1 | D76: Sprach- und Kulturwissenschaften | E76: 4 | F76: Lehrkr. f. bes. Aufgaben + Doz. u. Assistenten | G76: i | H76: 326 | I76: 237 | J76: 89 | K76: 37 | L76: 12 | M76: 25 | N76: 104 | O76: 53 | P76: 51
A77: 2 | B77: FH + VerwFH | C77: 1 | D77: Sprach- und Kulturwissenschaften | E77: ~~ | F77: zusammen | G77: m | H77: 175 | I77: 110 | J77: 65 | K77: 28 | L77: 5 | M77: 23 | N77: 70 | O77: 27 | P77: 43
A78: 2 | B78: FH + VerwFH | C78: 1 | D78: Sprach- und Kulturwissenschaften | E78: ~~ | F78: zusammen | G78: w | H78: 351 | I78: 199 | J78: 152 | K78: 90 | L78: 21 | M78: 69 | N78: 172 | O78: 58 | P78: 114
A79: 2 | B79: FH + VerwFH | C79: 1 | D79: Sprach- und Kulturwissenschaften | E79: ~~ | F79: zusammen | G79: i | H79: 526 | I79: 309 | J79: 217 | K79: 118 | L79: 26 | M79: 92 | N79: 242 | O79: 85 | P79: 157
A80: 2 | B80: FH + VerwFH | C80: 3 | D80: Rechts-, Wirtschafts- und Sozialwissenschaften | E80: 3 | F80: Wiss. u. künstl. Mitarbeiter | G80: m | H80: 1004 | I80: 400 | J80: 604 | K80: 459 | L80: 76 | M80: 383 | N80: 715 | O80: 185 | P80: 530
A81: 2 | B81: FH + VerwFH | C81: 3 | D81: Rechts-, Wirtschafts- und Sozialwissenschaften | E81: 3 | F81: Wiss. u. künstl. Mitarbeiter | G81: w | H81: 1393 | I81: 475 | J81: 918 | K81: 770 | L81: 198 | M81: 572 | N81: 1123 | O81: 318 | P81: 805
A82: 2 | B82: FH + VerwFH | C82: 3 | D82: Rechts-, Wirtschafts- und Sozialwissenschaften | E82: 3 | F82: Wiss. u. künstl. Mitarbeiter | G82: i | H82: 2397 | I82: 875 | J82: 1522 | K82: 1229 | L82: 274 | M82: 955 | N82: 1838 | O82: 503 | P82: 1335
A83: 2 | B83: FH + VerwFH | C83: 3 | D83: Rechts-, Wirtschafts- und Sozialwissenschaften | E83: 4 | F83: Lehrkr. f. bes. Aufgaben + Doz. u. Assistenten | G83: m | H83: 1089 | I83: 868 | J83: 221 | K83: 81 | L83: 35 | M83: 46 | N83: 340 | O83: 212 | P83: 128
A84: 2 | B84: FH + VerwFH | C84: 3 | D84: Rechts-, Wirtschafts- und Sozialwissenschaften | E84: 4 | F84: Lehrkr. f. bes. Aufgaben + Doz. u. Assistenten | G84: w | H84: 753 | I84: 483 | J84: 270 | K84: 119 | L84: 60 | M84: 59 | N84: 345 | O84: 186 | P84: 159
A85: 2 | B85: FH + VerwFH | C85: 3 | D85: Rechts-, Wirtschafts- und Sozialwissenschaften | E85: 4 | F85: Lehrkr. f. bes. Aufgaben + Doz. u. Assistenten | G85: i | H85: 1842 | I85: 1351 | J85: 491 | K85: 200 | L85: 95 | M85: 105 | N85: 685 | O85: 398 | P85: 287
A86: 2 | B86: FH + VerwFH | C86: 3 | D86: Rechts-, Wirtschafts- und Sozialwissenschaften | E86: ~~ | F86: zusammen | G86: m | H86: 2093 | I86: 1268 | J86: 825 | K86: 540 | L86: 111 | M86: 429 | N86: 1055 | O86: 397 | P86: 658
A87: 2 | B87: FH + VerwFH | C87: 3 | D87: Rechts-, Wirtschafts- und Sozialwissenschaften | E87: ~~ | F87: zusammen | G87: w | H87: 2146 | I87: 958 | J87: 1188 | K87: 889 | L87: 258 | M87: 631 | N87: 1468 | O87: 504 | P87: 964
A88: 2 | B88: FH + VerwFH | C88: 3 | D88: Rechts-, Wirtschafts- und Sozialwissenschaften | E88: ~~ | F88: zusammen | G88: i | H88: 4239 | I88: 2226 | J88: 2013 | K88: 1429 | L88: 369 | M88: 1060 | N88: 2523 | O88: 901 | P88: 1622
A89: 2 | B89: FH + VerwFH | C89: 4 | D89: Mathematik, Naturwissenschaften | E89: 3 | F89: Wiss. u. künstl. Mitarbeiter | G89: m | H89: 1099 | I89: 200 | J89: 899 | K89: 715 | L89: 28 | M89: 687 | N89: 907 | O89: 83 | P89: 824
A90: 2 | B90: FH + VerwFH | C90: 4 | D90: Mathematik, Naturwissenschaften | E90: 3 | F90: Wiss. u. künstl. Mitarbeiter | G90: w | H90: 440 | I90: 89 | J90: 351 | K90: 276 | L90: 18 | M90: 258 | N90: 348 | O90: 38 | P90: 310
A91: 2 | B91: FH + VerwFH | C91: 4 | D91: Mathematik, Naturwissenschaften | E91: 3 | F91: Wiss. u. künstl. Mitarbeiter | G91: i | H91: 1539 | I91: 289 | J91: 1250 | K91: 991 | L91: 46 | M91: 945 | N91: 1255 | O91: 121 | P91: 1134
A92: 2 | B92: FH + VerwFH | C92: 4 | D92: Mathematik, Naturwissenschaften | E92: 4 | F92: Lehrkr. f. bes. Aufgaben + Doz. u. Assistenten | G92: m | H92: 186 | I92: 112 | J92: 74 | K92: 44 | L92: 7 | M92: 37 | N92: 82 | O92: 27 | P92: 55
A93: 2 | B93: FH + VerwFH | C93: 4 | D93: Mathematik, Naturwissenschaften | E93: 4 | F93: Lehrkr. f. bes. Aufgaben + Doz. u. Assistenten | G93: w | H93: 96 | I93: 54 | J93: 42 | K93: 20 | L93: 3 | M93: 17 | N93: 50 | O93: 18 | P93: 32
A94: 2 | B94: FH + VerwFH | C94: 4 | D94: Mathematik, Naturwissenschaften | E94: 4 | F94: Lehrkr. f. bes. Aufgaben + Doz. u. Assistenten | G94: i | H94: 282 | I94: 166 | J94: 116 | K94: 64 | L94: 10 | M94: 54 | N94: 132 | O94: 45 | P94: 87
A95: 2 | B95: FH + VerwFH | C95: 4 | D95: Mathematik, Naturwissenschaften | E95: ~~ | F95: zusammen | G95: m | H95: 1285 | I95: 312 | J95: 973 | K95: 759 | L95: 35 | M95: 724 | N95: 989 | O95: 110 | P95: 879
A96: 2 | B96: FH + VerwFH | C96: 4 | D96: Mathematik, Naturwissenschaften | E96: ~~ | F96: zusammen | G96: w | H96: 536 | I96: 143 | J96: 393 | K96: 296 | L96: 21 | M96: 275 | N96: 398 | O96: 56 | P96: 342
A97: 2 | B97: FH + VerwFH | C97: 4 | D97: Mathematik, Naturwissenschaften | E97: ~~ | F97: zusammen | G97: i | H97: 1821 | I97: 455 | J97: 1366 | K97: 1055 | L97: 56 | M97: 999 | N97: 1387 | O97: 166 | P97: 1221
A98: 2 | B98: FH + VerwFH | C98: 5 | D98: Humanmedizin/Gesundheitswissenschaften + Veterinärmedizin | E98: 3 | F98: Wiss. u. künstl. Mitarbeiter | G98: m | H98: 72 | I98: 28 | J98: 44 | K98: 29 | L98: 6 | M98: 23 | N98: 55 | O98: 18 | P98: 37
A99: 2 | B99: FH + VerwFH | C99: 5 | D99: Humanmedizin/Gesundheitswissenschaften + Veterinärmedizin | E99: 3 | F99: Wiss. u. künstl. Mitarbeiter | G99: w | H99: 180 | I99: 55 | J99: 125 | K99: 73 | L99: 14 | M99: 59 | N99: 135 | O99: 35 | P99: 100
A100: 2 | B100: FH + VerwFH | C100: 5 | D100: Humanmedizin/Gesundheitswissenschaften + Veterinärmedizin | E100: 3 | F100: Wiss. u. künstl. Mitarbeiter | G100: i | H100: 252 | I100: 83 | J100: 169 | K100: 102 | L100: 20 | M100: 82 | N100: 190 | O100: 53 | P100: 137
A101: 2 | B101: FH + VerwFH | C101: 5 | D101: Humanmedizin/Gesundheitswissenschaften + Veterinärmedizin | E101: 4 | F101: Lehrkr. f. bes. Aufgaben + Doz. u. Assistenten | G101: m | H101: 67 | I101: 55 | J101: 12 | K101: 17 | L101: 10 | M101: 7 | N101: 36 | O101: 27 | P101: 9
A102: 2 | B102: FH + VerwFH | C102: 5 | D102: Humanmedizin/Gesundheitswissenschaften + Veterinärmedizin | E102: 4 | F102: Lehrkr. f. bes. Aufgaben + Doz. u. Assistenten | G102: w | H102: 135 | I102: 98 | J102: 37 | K102: 52 | L102: 35 | M102: 17 | N102: 98 | O102: 69 | P102: 29
A103: 2 | B103: FH + VerwFH | C103: 5 | D103: Humanmedizin/Gesundheitswissenschaften + Veterinärmedizin | E103: 4 | F103: Lehrkr. f. bes. Aufgaben + Doz. u. Assistenten | G103: i | H103: 202 | I103: 153 | J103: 49 | K103: 69 | L103: 45 | M103: 24 | N103: 134 | O103: 96 | P103: 38
A104: 2 | B104: FH + VerwFH | C104: 5 | D104: Humanmedizin/Gesundheitswissenschaften + Veterinärmedizin | E104: ~~ | F104: zusammen | G104: m | H104: 139 | I104: 83 | J104: 56 | K104: 46 | L104: 16 | M104: 30 | N104: 91 | O104: 45 | P104: 46
A105: 2 | B105: FH + VerwFH | C105: 5 | D105: Humanmedizin/Gesundheitswissenschaften + Veterinärmedizin | E105: ~~ | F105: zusammen | G105: w | H105: 315 | I105: 153 | J105: 162 | K105: 125 | L105: 49 | M105: 76 | N105: 233 | O105: 104 | P105: 129
A106: 2 | B106: FH + VerwFH | C106: 5 | D106: Humanmedizin/Gesundheitswissenschaften + Veterinärmedizin | E106: ~~ | F106: zusammen | G106: i | H106: 454 | I106: 236 | J106: 218 | K106: 171 | L106: 65 | M106: 106 | N106: 324 | O106: 149 | P106: 175
A107: 2 | B107: FH + VerwFH | C107: 8 | D107: Ingenieurwissenschaften | E107: 3 | F107: Wiss. u. künstl. Mitarbeiter | G107: m | H107: 3319 | I107: 757 | J107: 2562 | K107: 2073 | L107: 97 | M107: 1976 | N107: 2573 | O107: 234 | P107: 2339
A108: 2 | B108: FH + VerwFH | C108: 8 | D108: Ingenieurwissenschaften | E108: 3 | F108: Wiss. u. künstl. Mitarbeiter | G108: w | H108: 1165 | I108: 259 | J108: 906 | K108: 608 | L108: 36 | M108: 572 | N108: 885 | O108: 100 | P108: 785
A109: 2 | B109: FH + VerwFH | C109: 8 | D109: Ingenieurwissenschaften | E109: 3 | F109: Wiss. u. künstl. Mitarbeiter | G109: i | H109: 4484 | I109: 1016 | J109: 3468 | K109: 2681 | L109: 133 | M109: 2548 | N109: 3458 | O109: 334 | P109: 3124
A110: 2 | B110: FH + VerwFH | C110: 8 | D110: Ingenieurwissenschaften | E110: 4 | F110: Lehrkr. f. bes. Aufgaben + Doz. u. Assistenten | G110: m | H110: 316 | I110: 160 | J110: 156 | K110: 84 | L110: 14 | M110: 70 | N110: 131 | O110: 33 | P110: 98
A111: 2 | B111: FH + VerwFH | C111: 8 | D111: Ingenieurwissenschaften | E111: 4 | F111: Lehrkr. f. bes. Aufgaben + Doz. u. Assistenten | G111: w | H111: 168 | I111: 86 | J111: 82 | K111: 32 | L111: 5 | M111: 27 | N111: 68 | O111: 21 | P111: 47
A112: 2 | B112: FH + VerwFH | C112: 8 | D112: Ingenieurwissenschaften | E112: 4 | F112: Lehrkr. f. bes. Aufgaben + Doz. u. Assistenten | G112: i | H112: 484 | I112: 246 | J112: 238 | K112: 116 | L112: 19 | M112: 97 | N112: 199 | O112: 54 | P112: 145
A113: 2 | B113: FH + VerwFH | C113: 8 | D113: Ingenieurwissenschaften | E113: ~~ | F113: zusammen | G113: m | H113: 3635 | I113: 917 | J113: 2718 | K113: 2157 | L113: 111 | M113: 2046 | N113: 2704 | O113: 267 | P113: 2437
A114: 2 | B114: FH + VerwFH | C114: 8 | D114: Ingenieurwissenschaften | E114: ~~ | F114: zusammen | G114: w | H114: 1333 | I114: 345 | J114: 988 | K114: 640 | L114: 41 | M114: 599 | N114: 953 | O114: 121 | P114: 832
A115: 2 | B115: FH + VerwFH | C115: 8 | D115: Ingenieurwissenschaften | E115: ~~ | F115: zusammen | G115: i | H115: 4968 | I115: 1262 | J115: 3706 | K115: 2797 | L115: 152 | M115: 2645 | N115: 3657 | O115: 388 | P115: 3269
A116: 2 | B116: FH + VerwFH | C116: 10 | D116: Restliche Fächergruppen | E116: 3 | F116: Wiss. u. künstl. Mitarbeiter | G116: m | H116: 1451 | I116: 296 | J116: 1155 | K116: 790 | L116: 29 | M116: 761 | N116: 1128 | O116: 107 | P116: 1021
A117: 2 | B117: FH + VerwFH | C117: 10 | D117: Restliche Fächergruppen | E117: 3 | F117: Wiss. u. künstl. Mitarbeiter | G117: w | H117: 1320 | I117: 260 | J117: 1060 | K117: 600 | L117: 34 | M117: 566 | N117: 951 | O117: 108 | P117: 843
A118: 2 | B118: FH + VerwFH | C118: 10 | D118: Restliche Fächergruppen | E118: 3 | F118: Wiss. u. künstl. Mitarbeiter | G118: i | H118: 2771 | I118: 556 | J118: 2215 | K118: 1390 | L118: 63 | M118: 1327 | N118: 2079 | O118: 215 | P118: 1864
A119: 2 | B119: FH + VerwFH | C119: 10 | D119: Restliche Fächergruppen | E119: 4 | F119: Lehrkr. f. bes. Aufgaben + Doz. u. Assistenten | G119: m | H119: 219 | I119: 148 | J119: 71 | K119: 26 | L119: 9 | M119: 17 | N119: 75 | O119: 36 | P119: 39
A120: 2 | B120: FH + VerwFH | C120: 10 | D120: Restliche Fächergruppen | E120: 4 | F120: Lehrkr. f. bes. Aufgaben + Doz. u. Assistenten | G120: w | H120: 300 | I120: 188 | J120: 112 | K120: 39 | L120: 9 | M120: 30 | N120: 114 | O120: 50 | P120: 64
A121: 2 | B121: FH + VerwFH | C121: 10 | D121: Restliche Fächergruppen | E121: 4 | F121: Lehrkr. f. bes. Aufgaben + Doz. u. Assistenten | G121: i | H121: 519 | I121: 336 | J121: 183 | K121: 65 | L121: 18 | M121: 47 | N121: 189 | O121: 86 | P121: 103
A122: 2 | B122: FH + VerwFH | C122: 10 | D122: Restliche Fächergruppen | E122: ~~ | F122: zusammen | G122: m | H122: 1670 | I122: 444 | J122: 1226 | K122: 816 | L122: 38 | M122: 778 | N122: 1203 | O122: 143 | P122: 1060
A123: 2 | B123: FH + VerwFH | C123: 10 | D123: Restliche Fächergruppen | E123: ~~ | F123: zusammen | G123: w | H123: 1620 | I123: 448 | J123: 1172 | K123: 639 | L123: 43 | M123: 596 | N123: 1065 | O123: 158 | P123: 907
A124: 2 | B124: FH + VerwFH | C124: 10 | D124: Restliche Fächergruppen | E124: ~~ | F124: zusammen | G124: i | H124: 3290 | I124: 892 | J124: 2398 | K124: 1455 | L124: 81 | M124: 1374 | N124: 2268 | O124: 301 | P124: 1967
A125: 2 | B125: FH + VerwFH | C125: ~~ | D125: zusammen | E125: ~~ | F125: zusammen | G125: m | H125: 8997 | I125: 3134 | J125: 5863 | K125: 4346 | L125: 316 | M125: 4030 | N125: 6112 | O125: 989 | P125: 5123
A126: 2 | B126: FH + VerwFH | C126: ~~ | D126: zusammen | E126: ~~ | F126: zusammen | G126: w | H126: 6301 | I126: 2246 | J126: 4055 | K126: 2679 | L126: 433 | M126: 2246 | N126: 4289 | O126: 1001 | P126: 3288
A127: 2 | B127: FH + VerwFH | C127: ~~ | D127: zusammen | E127: ~~ | F127: zusammen | G127: i | H127: 15298 | I127: 5380 | J127: 9918 | K127: 7025 | L127: 749 | M127: 6276 | N127: 10401 | O127: 1990 | P127: 8411
A128: ~ | B128: Insgesamt | G128: m | H128: 110869 | I128: 21614 | J128: 89255 | K128: 64264 | L128: 901 | M128: 63363 | N128: 89519 | O128: 6335 | P128: 83184
A129: ~ | B129: Insgesamt | G129: w | H129: 79746 | I129: 12405 | J129: 67341 | K129: 47573 | L129: 1056 | M129: 46517 | N129: 66126 | O129: 4383 | P129: 61743
A130: ~ | B130: Insgesamt | G130: i | H130: 190615 | I130: 34019 | J130: 156596 | K130: 111837 | L130: 1957 | M130: 109880 | N130: 155645 | O130: 10718 | P130: 144927

Sheet 1.2
A1: Statistisches Bundesamt
A2: H201 - Hochschulstatistik
A5: Hauptberufliches wissenschaftliches und künstlerisches Personal (ohne Professoren) nach ausgewählten Hochschularten, Fächer- und Personalgruppen
A6: im Berichtsjahr 2010
H8: Hauptber. wiss. und | K8: Hauptber. wiss. und | N8: Hauptber. wiss. und
H9: künstler. Personal | K9: künstler. Personal | N9: künstler. Personal
B10: Hochschulart | D10: Fächergruppe | F10: Personalgruppe | G10: Ge- | H10: (ohne Professoren) | K10: (ohne Professoren) | N10: (ohne Professoren)
D11: der fachl. Zugehörigkeit | G11: schlecht | K11: im Alter bis einschl. 34 Jahren | N11: im Alter bis einschl. 44 Jahren
H12: insgesamt | I12: auf Dauer | J12: auf Zeit | K12: insgesamt | L12: auf Dauer | M12: auf Zeit | N12: insgesamt | O12: auf Dauer | P12: auf Zeit
A14: 1 | B14: Wiss. Hochschulen (= Uni, GH, PH, TH und KunstH) | C14: 1 | D14: Sprach- und Kulturwissenschaften | E14: 3 | F14: Wiss. u. künstl. Mitarbeiter | G14: m | H14: 6600 | I14: 1273 | J14: 5327 | K14: 3034 | L14: 125 | M14: 2909 | N14: 5078 | O14: 398 | P14: 4680 | Q14: =IF(OR(H14=I14,H14=J14),"X","") ->  | R14: =IF(OR(K14=L14,K14=M14),"X","") ->  | S14: =IF(OR(N14=O14,N14=P14),"X","") -> 
A15: 1 | B15: Wiss. Hochschulen (= Uni, GH, PH, TH und KunstH) | C15: 1 | D15: Sprach- und Kulturwissenschaften | E15: 3 | F15: Wiss. u. künstl. Mitarbeiter | G15: w | H15: 8426 | I15: 1066 | J15: 7360 | K15: 5093 | L15: 170 | M15: 4923 | N15: 7078 | O15: 403 | P15: 6675 | Q15: =IF(OR(H15=I15,H15=J15),"X","") ->  | R15: =IF(OR(K15=L15,K15=M15),"X","") ->  | S15: =IF(OR(N15=O15,N15=P15),"X","") -> 
A16: 1 | B16: Wiss. Hochschulen (= Uni, GH, PH, TH und KunstH) | C16: 1 | D16: Sprach- und Kulturwissenschaften | E16: 3 | F16: Wiss. u. künstl. Mitarbeiter | G16: i | H16: 15026 | I16: 2339 | J16: 12687 | K16: 8127 | L16: 295 | M16: 7832 | N16: 12156 | O16: 801 | P16: 11355
A17: 1 | B17: Wiss. Hochschulen (= Uni, GH, PH, TH und KunstH) | C17: 1 | D17: Sprach- und Kulturwissenschaften | E17: 4 | F17: Lehrkr. f. bes. Aufgaben + Doz. u. Assistenten | G17: m | H17: 1309 | I17: 607 | J17: 702 | K17: 240 | L17: 27 | M17: 213 | N17: 707 | O17: 198 | P17: 509
A18: 1 | B18: Wiss. Hochschulen (= Uni, GH, PH, TH und KunstH) | C18: 1 | D18: Sprach- und Kulturwissenschaften | E18: 4 | F18: Lehrkr. f. bes. Aufgaben + Doz. u. Assistenten | G18: w | H18: 1791 | I18: 779 | J18: 1012 | K18: 449 | L18: 43 | M18: 406 | N18: 1086 | O18: 296 | P18: 790
A19: 1 | B19: Wiss. Hochschulen (= Uni, GH, PH, TH und KunstH) | C19: 1 | D19: Sprach- und Kulturwissenschaften | E19: 4 | F19: Lehrkr. f. bes. Aufgaben + Doz. u. Assistenten | G19: i | H19: 3100 | I19: 1386 | J19: 1714 | K19: 689 | L19: 70 | M19: 619 | N19: 1793 | O19: 494 | P19: 1299
A20: 1 | B20: Wiss. Hochschulen (= Uni, GH, PH, TH und KunstH) | C20: 1 | D20: Sprach- und Kulturwissenschaften | E20: ~~ | F20: zusammen | G20: m | H20: 7909 | I20: 1880 | J20: 6029 | K20: 3274 | L20: 152 | M20: 3122 | N20: 5785 | O20: 596 | P20: 5189
A21: 1 | B21: Wiss. Hochschulen (= Uni, GH, PH, TH und KunstH) | C21: 1 | D21: Sprach- und Kulturwissenschaften | E21: ~~ | F21: zusammen | G21: w | H21: 10217 | I21: 1845 | J21: 8372 | K21: 5542 | L21: 213 | M21: 5329 | N21: 8164 | O21: 699 | P21: 7465
A22: 1 | B22: Wiss. Hochschulen (= Uni, GH, PH, TH und KunstH) | C22: 1 | D22: Sprach- und Kulturwissenschaften | E22: ~~ | F22: zusammen | G22: i | H22: 18126 | I22: 3725 | J22: 14401 | K22: 8816 | L22: 365 | M22: 8451 | N22: 13949 | O22: 1295 | P22: 12654
A23: 1 | B23: Wiss. Hochschulen (= Uni, GH, PH, TH und KunstH) | C23: 3 | D23: Rechts-, Wirtschafts- und Sozialwissenschaften | E23: 3 | F23: Wiss. u. künstl. Mitarbeiter | G23: m | H23: 7766 | I23: 543 | J23: 7223 | K23: 6174 | L23: 127 | M23: 6047 | N23: 7259 | O23: 242 | P23: 7017
A24: 1 | B24: Wiss. Hochschulen (= Uni, GH, PH, TH und KunstH) | C24: 3 | D24: Rechts-, Wirtschafts- und Sozialwissenschaften | E24: 3 | F24: Wiss. u. künstl. Mitarbeiter | G24: w | H24: 5224 | I24: 315 | J24: 4909 | K24: 4148 | L24: 88 | M24: 4060 | N24: 4900 | O24: 172 | P24: 4728
A25: 1 | B25: Wiss. Hochschulen (= Uni, GH, PH, TH und KunstH) | C25: 3 | D25: Rechts-, Wirtschafts- und Sozialwissenschaften | E25: 3 | F25: Wiss. u. künstl. Mitarbeiter | G25: i | H25: 12990 | I25: 858 | J25: 12132 | K25: 10322 | L25: 215 | M25: 10107 | N25: 12159 | O25: 414 | P25: 11745
A26: 1 | B26: Wiss. Hochschulen (= Uni, GH, PH, TH und KunstH) | C26: 3 | D26: Rechts-, Wirtschafts- und Sozialwissenschaften | E26: 4 | F26: Lehrkr. f. bes. Aufgaben + Doz. u. Assistenten | G26: m | H26: 607 | I26: 117 | J26: 490 | K26: 302 | L26: 12 | M26: 290 | N26: 475 | O26: 45 | P26: 430
A27: 1 | B27: Wiss. Hochschulen (= Uni, GH, PH, TH und KunstH) | C27: 3 | D27: Rechts-, Wirtschafts- und Sozialwissenschaften | E27: 4 | F27: Lehrkr. f. bes. Aufgaben + Doz. u. Assistenten | G27: w | H27: 291 | I27: 60 | J27: 231 | K27: 163 | L27: 9 | M27: 154 | N27: 239 | O27: 29 | P27: 210
A28: 1 | B28: Wiss. Hochschulen (= Uni, GH, PH, TH und KunstH) | C28: 3 | D28: Rechts-, Wirtschafts- und Sozialwissenschaften | E28: 4 | F28: Lehrkr. f. bes. Aufgaben + Doz. u. Assistenten | G28: i | H28: 898 | I28: 177 | J28: 721 | K28: 465 | L28: 21 | M28: 444 | N28: 714 | O28: 74 | P28: 640
A29: 1 | B29: Wiss. Hochschulen (= Uni, GH, PH, TH und KunstH) | C29: 3 | D29: Rechts-, Wirtschafts- und Sozialwissenschaften | E29: ~~ | F29: zusammen | G29: m | H29: 8373 | I29: 660 | J29: 7713 | K29: 6476 | L29: 139 | M29: 6337 | N29: 7734 | O29: 287 | P29: 7447
A30: 1 | B30: Wiss. Hochschulen (= Uni, GH, PH, TH und KunstH) | C30: 3 | D30: Rechts-, Wirtschafts- und Sozialwissenschaften | E30: ~~ | F30: zusammen | G30: w | H30: 5515 | I30: 375 | J30: 5140 | K30: 4311 | L30: 97 | M30: 4214 | N30: 5139 | O30: 201 | P30: 4938
A31: 1 | B31: Wiss. Hochschulen (= Uni, GH, PH, TH und KunstH) | C31: 3 | D31: Rechts-, Wirtschafts- und Sozialwissenschaften | E31: ~~ | F31: zusammen | G31: i | H31: 13888 | I31: 1035 | J31: 12853 | K31: 10787 | L31: 236 | M31: 10551 | N31: 12873 | O31: 488 | P31: 12385
A32: 1 | B32: Wiss. Hochschulen (= Uni, GH, PH, TH und KunstH) | C32: 4 | D32: Mathematik, Naturwissenschaften | E32: 3 | F32: Wiss. u. künstl. Mitarbeiter | G32: m | H32: 26456 | I32: 3600 | J32: 22856 | K32: 19020 | L32: 502 | M32: 18518 | N32: 23195 | O32: 1350 | P32: 21845
A33: 1 | B33: Wiss. Hochschulen (= Uni, GH, PH, TH und KunstH) | C33: 4 | D33: Mathematik, Naturwissenschaften | E33: 3 | F33: Wiss. u. künstl. Mitarbeiter | G33: w | H33: 11224 | I33: 907 | J33: 10317 | K33: 8814 | L33: 258 | M33: 8556 | N33: 10359 | O33: 477 | P33: 9882
A34: 1 | B34: Wiss. Hochschulen (= Uni, GH, PH, TH und KunstH) | C34: 4 | D34: Mathematik, Naturwissenschaften | E34: 3 | F34: Wiss. u. künstl. Mitarbeiter | G34: i | H34: 37680 | I34: 4507 | J34: 33173 | K34: 27834 | L34: 760 | M34: 27074 | N34: 33554 | O34: 1827 | P34: 31727
A35: 1 | B35: Wiss. Hochschulen (= Uni, GH, PH, TH und KunstH) | C35: 4 | D35: Mathematik, Naturwissenschaften | E35: 4 | F35: Lehrkr. f. bes. Aufgaben + Doz. u. Assistenten | G35: m | H35: 830 | I35: 249 | J35: 581 | K35: 218 | L35: 18 | M35: 200 | N35: 583 | O35: 96 | P35: 487
A36: 1 | B36: Wiss. Hochschulen (= Uni, GH, PH, TH und KunstH) | C36: 4 | D36: Mathematik, Naturwissenschaften | E36: 4 | F36: Lehrkr. f. bes. Aufgaben + Doz. u. Assistenten | G36: w | H36: 328 | I36: 104 | J36: 224 | K36: 126 | L36: 11 | M36: 115 | N36: 240 | O36: 45 | P36: 195
A37: 1 | B37: Wiss. Hochschulen (= Uni, GH, PH, TH und KunstH) | C37: 4 | D37: Mathematik, Naturwissenschaften | E37: 4 | F37: Lehrkr. f. bes. Aufgaben + Doz. u. Assistenten | G37: i | H37: 1158 | I37: 353 | J37: 805 | K37: 344 | L37: 29 | M37: 315 | N37: 823 | O37: 141 | P37: 682
A38: 1 | B38: Wiss. Hochschulen (= Uni, GH, PH, TH und KunstH) | C38: 4 | D38: Mathematik, Naturwissenschaften | E38: ~~ | F38: zusammen | G38: m | H38: 27286 | I38: 3849 | J38: 23437 | K38: 19238 | L38: 520 | M38: 18718 | N38: 23778 | O38: 1446 | P38: 22332
A39: 1 | B39: Wiss. Hochschulen (= Uni, GH, PH, TH und KunstH) | C39: 4 | D39: Mathematik, Naturwissenschaften | E39: ~~ | F39: zusammen | G39: w | H39: 11552 | I39: 1011 | J39: 10541 | K39: 8940 | L39: 269 | M39: 8671 | N39: 10599 | O39: 522 | P39: 10077
A40: 1 | B40: Wiss. Hochschulen (= Uni, GH, PH, TH und KunstH) | C40: 4 | D40: Mathematik, Naturwissenschaften | E40: ~~ | F40: zusammen | G40: i | H40: 38838 | I40: 4860 | J40: 33978 | K40: 28178 | L40: 789 | M40: 27389 | N40: 34377 | O40: 1968 | P40: 32409
A41: 1 | B41: Wiss. Hochschulen (= Uni, GH, PH, TH und KunstH) | C41: 5 | D41: Humanmedizin/Gesundheitswissenschaften + Veterinärmedizin | E41: 3 | F41: Wiss. u. künstl. Mitarbeiter | G41: m | H41: 24721 | I41: 6283 | J41: 18438 | K41: 10843 | L41: 123 | M41: 10720 | N41: 19419 | O41: 2273 | P41: 17146
A42: 1 | B42: Wiss. Hochschulen (= Uni, GH, PH, TH und KunstH) | C42: 5 | D42: Humanmedizin/Gesundheitswissenschaften + Veterinärmedizin | E42: 3 | F42: Wiss. u. künstl. Mitarbeiter | G42: w | H42: 23811 | I42: 2945 | J42: 20866 | K42: 14391 | L42: 126 | M42: 14265 | N42: 20526 | O42: 1020 | P42: 19506
A43: 1 | B43: Wiss. Hochschulen (= Uni, GH, PH, TH und KunstH) | C43: 5 | D43: Humanmedizin/Gesundheitswissenschaften + Veterinärmedizin | E43: 3 | F43: Wiss. u. künstl. Mitarbeiter | G43: i | H43: 48532 | I43: 9228 | J43: 39304 | K43: 25234 | L43: 249 | M43: 24985 | N43: 39945 | O43: 3293 | P43: 36652
A44: 1 | B44: Wiss. Hochschulen (= Uni, GH, PH, TH und KunstH) | C44: 5 | D44: Humanmedizin/Gesundheitswissenschaften + Veterinärmedizin | E44: 4 | F44: Lehrkr. f. bes. Aufgaben + Doz. u. Assistenten | G44: m | H44: 536 | I44: 97 | J44: 439 | K44: 128 | L44: 5 | M44: 123 | N44: 383 | O44: 29 | P44: 354
A45: 1 | B45: Wiss. Hochschulen (= Uni, GH, PH, TH und KunstH) | C45: 5 | D45: Humanmedizin/Gesundheitswissenschaften + Veterinärmedizin | E45: 4 | F45: Lehrkr. f. bes. Aufgaben + Doz. u. Assistenten | G45: w | H45: 431 | I45: 48 | J45: 383 | K45: 165 | L45: 5 | M45: 160 | N45: 354 | O45: 22 | P45: 332
A46: 1 | B46: Wiss. Hochschulen (= Uni, GH, PH, TH und KunstH) | C46: 5 | D46: Humanmedizin/Gesundheitswissenschaften + Veterinärmedizin | E46: 4 | F46: Lehrkr. f. bes. Aufgaben + Doz. u. Assistenten | G46: i | H46: 967 | I46: 145 | J46: 822 | K46: 293 | L46: 10 | M46: 283 | N46: 737 | O46: 51 | P46: 686
A47: 1 | B47: Wiss. Hochschulen (= Uni, GH, PH, TH und KunstH) | C47: 5 | D47: Humanmedizin/Gesundheitswissenschaften + Veterinärmedizin | E47: ~~ | F47: zusammen | G47: m | H47: 25257 | I47: 6380 | J47: 18877 | K47: 10971 | L47: 128 | M47: 10843 | N47: 19802 | O47: 2302 | P47: 17500
A48: 1 | B48: Wiss. Hochschulen (= Uni, GH, PH, TH und KunstH) | C48: 5 | D48: Humanmedizin/Gesundheitswissenschaften + Veterinärmedizin | E48: ~~ | F48: zusammen | G48: w | H48: 24242 | I48: 2993 | J48: 21249 | K48: 14556 | L48: 131 | M48: 14425 | N48: 20880 | O48: 1042 | P48: 19838
A49: 1 | B49: Wiss. Hochschulen (= Uni, GH, PH, TH und KunstH) | C49: 5 | D49: Humanmedizin/Gesundheitswissenschaften + Veterinärmedizin | E49: ~~ | F49: zusammen | G49: i | H49: 49499 | I49: 9373 | J49: 40126 | K49: 25527 | L49: 259 | M49: 25268 | N49: 40682 | O49: 3344 | P49: 37338
A50: 1 | B50: Wiss. Hochschulen (= Uni, GH, PH, TH und KunstH) | C50: 8 | D50: Ingenieurwissenschaften | E50: 3 | F50: Wiss. u. künstl. Mitarbeiter | G50: m | H50: 16605 | I50: 1564 | J50: 15041 | K50: 12363 | L50: 115 | M50: 12248 | N50: 14829 | O50: 478 | P50: 14351
A51: 1 | B51: Wiss. Hochschulen (= Uni, GH, PH, TH und KunstH) | C51: 8 | D51: Ingenieurwissenschaften | E51: 3 | F51: Wiss. u. künstl. Mitarbeiter | G51: w | H51: 4266 | I51: 242 | J51: 4024 | K51: 3056 | L51: 24 | M51: 3032 | N51: 3845 | O51: 89 | P51: 3756
A52: 1 | B52: Wiss. Hochschulen (= Uni, GH, PH, TH und KunstH) | C52: 8 | D52: Ingenieurwissenschaften | E52: 3 | F52: Wiss. u. künstl. Mitarbeiter | G52: i | H52: 20871 | I52: 1806 | J52: 19065 | K52: 15419 | L52: 139 | M52: 15280 | N52: 18674 | O52: 567 | P52: 18107
A53: 1 | B53: Wiss. Hochschulen (= Uni, GH, PH, TH und KunstH) | C53: 8 | D53: Ingenieurwissenschaften | E53: 4 | F53: Lehrkr. f. bes. Aufgaben + Doz. u. Assistenten | G53: m | H53: 369 | I53: 140 | J53: 229 | K53: 138 | L53: 26 | M53: 112 | N53: 245 | O53: 55 | P53: 190
A54: 1 | B54: Wiss. Hochschulen (= Uni, GH, PH, TH und KunstH) | C54: 8 | D54: Ingenieurwissenschaften | E54: 4 | F54: Lehrkr. f. bes. Aufgaben + Doz. u. Assistenten | G54: w | H54: 60 | I54: 13 | J54: 47 | K54: 25 | L54: 3 | M54: 22 | N54: 49 | O54: 9 | P54: 40
A55: 1 | B55: Wiss. Hochschulen (= Uni, GH, PH, TH und KunstH) | C55: 8 | D55: Ingenieurwissenschaften | E55: 4 | F55: Lehrkr. f. bes. Aufgaben + Doz. u. Assistenten | G55: i | H55: 429 | I55: 153 | J55: 276 | K55: 163 | L55: 29 | M55: 134 | N55: 294 | O55: 64 | P55: 230
A56: 1 | B56: Wiss. Hochschulen (= Uni, GH, PH, TH und KunstH) | C56: 8 | D56: Ingenieurwissenschaften | E56: ~~ | F56: zusammen | G56: m | H56: 16974 | I56: 1704 | J56: 15270 | K56: 12501 | L56: 141 | M56: 12360 | N56: 15074 | O56: 533 | P56: 14541
A57: 1 | B57: Wiss. Hochschulen (= Uni, GH, PH, TH und KunstH) | C57: 8 | D57: Ingenieurwissenschaften | E57: ~~ | F57: zusammen | G57: w | H57: 4326 | I57: 255 | J57: 4071 | K57: 3081 | L57: 27 | M57: 3054 | N57: 3894 | O57: 98 | P57: 3796
A58: 1 | B58: Wiss. Hochschulen (= Uni, GH, PH, TH und KunstH) | C58: 8 | D58: Ingenieurwissenschaften | E58: ~~ | F58: zusammen | G58: i | H58: 21300 | I58: 1959 | J58: 19341 | K58: 15582 | L58: 168 | M58: 15414 | N58: 18968 | O58: 631 | P58: 18337
A59: 1 | B59: Wiss. Hochschulen (= Uni, GH, PH, TH und KunstH) | C59: 10 | D59: Restliche Fächergruppen | E59: 3 | F59: Wiss. u. künstl. Mitarbeiter | G59: m | H59: 7626 | I59: 2256 | J59: 5370 | K59: 3298 | L59: 98 | M59: 3200 | N59: 5236 | O59: 585 | P59: 4651
A60: 1 | B60: Wiss. Hochschulen (= Uni, GH, PH, TH und KunstH) | C60: 10 | D60: Restliche Fächergruppen | E60: 3 | F60: Wiss. u. künstl. Mitarbeiter | G60: w | H60: 6303 | I60: 1358 | J60: 4945 | K60: 3323 | L60: 106 | M60: 3217 | N60: 4900 | O60: 452 | P60: 4448
A61: 1 | B61: Wiss. Hochschulen (= Uni, GH, PH, TH und KunstH) | C61: 10 | D61: Restliche Fächergruppen | E61: 3 | F61: Wiss. u. künstl. Mitarbeiter | G61: i | H61: 13929 | I61: 3614 | J61: 10315 | K61: 6621 | L61: 204 | M61: 6417 | N61: 10136 | O61: 1037 | P61: 9099
A62: 1 | B62: Wiss. Hochschulen (= Uni, GH, PH, TH und KunstH) | C62: 10 | D62: Restliche Fächergruppen | E62: 4 | F62: Lehrkr. f. bes. Aufgaben + Doz. u. Assistenten | G62: m | H62: 1310 | I62: 932 | J62: 378 | K62: 163 | L62: 43 | M62: 120 | N62: 448 | O62: 202 | P62: 246
A63: 1 | B63: Wiss. Hochschulen (= Uni, GH, PH, TH und KunstH) | C63: 10 | D63: Restliche Fächergruppen | E63: 4 | F63: Lehrkr. f. bes. Aufgaben + Doz. u. Assistenten | G63: w | H63: 1251 | I63: 811 | J63: 440 | K63: 192 | L63: 40 | M63: 152 | N63: 483 | O63: 190 | P63: 293
A64: 1 | B64: Wiss. Hochschulen (= Uni, GH, PH, TH und KunstH) | C64: 10 | D64: Restliche Fächergruppen | E64: 4 | F64: Lehrkr. f. bes. Aufgaben + Doz. u. Assistenten | G64: i | H64: 2561 | I64: 1743 | J64: 818 | K64: 355 | L64: 83 | M64: 272 | N64: 931 | O64: 392 | P64: 539
A65: 1 | B65: Wiss. Hochschulen (= Uni, GH, PH, TH und KunstH) | C65: 10 | D65: Restliche Fächergruppen | E65: ~~ | F65: zusammen | G65: m | H65: 8936 | I65: 3188 | J65: 5748 | K65: 3461 | L65: 141 | M65: 3320 | N65: 5684 | O65: 787 | P65: 4897
A66: 1 | B66: Wiss. Hochschulen (= Uni, GH, PH, TH und KunstH) | C66: 10 | D66: Restliche Fächergruppen | E66: ~~ | F66: zusammen | G66: w | H66: 7554 | I66: 2169 | J66: 5385 | K66: 3515 | L66: 146 | M66: 3369 | N66: 5383 | O66: 642 | P66: 4741
A67: 1 | B67: Wiss. Hochschulen (= Uni, GH, PH, TH und KunstH) | C67: 10 | D67: Restliche Fächergruppen | E67: ~~ | F67: zusammen | G67: i | H67: 16490 | I67: 5357 | J67: 11133 | K67: 6976 | L67: 287 | M67: 6689 | N67: 11067 | O67: 1429 | P67: 9638
A68: 1 | B68: Wiss. Hochschulen (= Uni, GH, PH, TH und KunstH) | C68: ~~ | D68: zusammen | E68: ~~ | F68: zusammen | G68: m | H68: 94735 | I68: 17661 | J68: 77074 | K68: 55921 | L68: 1221 | M68: 54700 | N68: 77857 | O68: 5951 | P68: 71906
A69: 1 | B69: Wiss. Hochschulen (= Uni, GH, PH, TH und KunstH) | C69: ~~ | D69: zusammen | E69: ~~ | F69: zusammen | G69: w | H69: 63406 | I69: 8648 | J69: 54758 | K69: 39945 | L69: 883 | M69: 39062 | N69: 54059 | O69: 3204 | P69: 50855
A70: 1 | B70: Wiss. Hochschulen (= Uni, GH, PH, TH und KunstH) | C70: ~~ | D70: zusammen | E70: ~~ | F70: zusammen | G70: i | H70: 158141 | I70: 26309 | J70: 131832 | K70: 95866 | L70: 2104 | M70: 93762 | N70: 131916 | O70: 9155 | P70: 122761
A71: 2 | B71: FH + VerwFH | C71: 1 | D71: Sprach- und Kulturwissenschaften | E71: 3 | F71: Wiss. u. künstl. Mitarbeiter | G71: m | H71: 77 | I71: 23 | J71: 54 | K71: 30 | L71: 4 | M71: 26 | N71: 52 | O71: 11 | P71: 41
A72: 2 | B72: FH + VerwFH | C72: 1 | D72: Sprach- und Kulturwissenschaften | E72: 3 | F72: Wiss. u. künstl. Mitarbeiter | G72: w | H72: 87 | I72: 35 | J72: 52 | K72: 38 | L72: 6 | M72: 32 | N72: 60 | O72: 13 | P72: 47
A73: 2 | B73: FH + VerwFH | C73: 1 | D73: Sprach- und Kulturwissenschaften | E73: 3 | F73: Wiss. u. künstl. Mitarbeiter | G73: i | H73: 164 | I73: 58 | J73: 106 | K73: 68 | L73: 10 | M73: 58 | N73: 112 | O73: 24 | P73: 88
A74: 2 | B74: FH + VerwFH | C74: 1 | D74: Sprach- und Kulturwissenschaften | E74: 4 | F74: Lehrkr. f. bes. Aufgaben + Doz. u. Assistenten | G74: m | H74: 126 | I74: 84 | J74: 42 | K74: 7 | L74: 2 | M74: 5 | N74: 36 | O74: 16 | P74: 20
A75: 2 | B75: FH + VerwFH | C75: 1 | D75: Sprach- und Kulturwissenschaften | E75: 4 | F75: Lehrkr. f. bes. Aufgaben + Doz. u. Assistenten | G75: w | H75: 216 | I75: 140 | J75: 76 | K75: 13 | L75: 1 | M75: 12 | N75: 60 | O75: 29 | P75: 31
A76: 2 | B76: FH + VerwFH | C76: 1 | D76: Sprach- und Kulturwissenschaften | E76: 4 | F76: Lehrkr. f. bes. Aufgaben + Doz. u. Assistenten | G76: i | H76: 342 | I76: 224 | J76: 118 | K76: 20 | L76: 3 | M76: 17 | N76: 96 | O76: 45 | P76: 51
A77: 2 | B77: FH + VerwFH | C77: 1 | D77: Sprach- und Kulturwissenschaften | E77: ~~ | F77: zusammen | G77: m | H77: 203 | I77: 107 | J77: 96 | K77: 37 | L77: 6 | M77: 31 | N77: 88 | O77: 27 | P77: 61
A78: 2 | B78: FH + VerwFH | C78: 1 | D78: Sprach- und Kulturwissenschaften | E78: ~~ | F78: zusammen | G78: w | H78: 303 | I78: 175 | J78: 128 | K78: 51 | L78: 7 | M78: 44 | N78: 120 | O78: 42 | P78: 78
A79: 2 | B79: FH + VerwFH | C79: 1 | D79: Sprach- und Kulturwissenschaften | E79: ~~ | F79: zusammen | G79: i | H79: 506 | I79: 282 | J79: 224 | K79: 88 | L79: 13 | M79: 75 | N79: 208 | O79: 69 | P79: 139 | Q79: =IF(OR(H79=I79,H79=J79),"X","") ->  | R79: =IF(OR(K79=L79,K79=M79),"X","") ->  | S79: =IF(OR(N79=O79,N79=P79),"X","") -> 
A80: 2 | B80: FH + VerwFH | C80: 3 | D80: Rechts-, Wirtschafts- und Sozialwissenschaften | E80: 3 | F80: Wiss. u. künstl. Mitarbeiter | G80: m | H80: 652 | I80: 272 | J80: 380 | K80: 250 | L80: 21 | M80: 229 | N80: 411 | O80: 90 | P80: 321
A81: 2 | B81: FH + VerwFH | C81: 3 | D81: Rechts-, Wirtschafts- und Sozialwissenschaften | E81: 3 | F81: Wiss. u. künstl. Mitarbeiter | G81: w | H81: 687 | I81: 165 | J81: 522 | K81: 339 | L81: 28 | M81: 311 | N81: 521 | O81: 84 | P81: 437
A82: 2 | B82: FH + VerwFH | C82: 3 | D82: Rechts-, Wirtschafts- und Sozialwissenschaften | E82: 3 | F82: Wiss. u. künstl. Mitarbeiter | G82: i | H82: 1339 | I82: 437 | J82: 902 | K82: 589 | L82: 49 | M82: 540 | N82: 932 | O82: 174 | P82: 758
A83: 2 | B83: FH + VerwFH | C83: 3 | D83: Rechts-, Wirtschafts- und Sozialwissenschaften | E83: 4 | F83: Lehrkr. f. bes. Aufgaben + Doz. u. Assistenten | G83: m | H83: 1157 | I83: 823 | J83: 334 | K83: 118 | L83: 36 | M83: 82 | N83: 392 | O83: 209 | P83: 183
A84: 2 | B84: FH + VerwFH | C84: 3 | D84: Rechts-, Wirtschafts- und Sozialwissenschaften | E84: 4 | F84: Lehrkr. f. bes. Aufgaben + Doz. u. Assistenten | G84: w | H84: 682 | I84: 399 | J84: 283 | K84: 158 | L84: 43 | M84: 115 | N84: 354 | O84: 150 | P84: 204
A85: 2 | B85: FH + VerwFH | C85: 3 | D85: Rechts-, Wirtschafts- und Sozialwissenschaften | E85: 4 | F85: Lehrkr. f. bes. Aufgaben + Doz. u. Assistenten | G85: i | H85: 1839 | I85: 1222 | J85: 617 | K85: 276 | L85: 79 | M85: 197 | N85: 746 | O85: 359 | P85: 387
A86: 2 | B86: FH + VerwFH | C86: 3 | D86: Rechts-, Wirtschafts- und Sozialwissenschaften | E86: ~~ | F86: zusammen | G86: m | H86: 1809 | I86: 1095 | J86: 714 | K86: 368 | L86: 57 | M86: 311 | N86: 803 | O86: 299 | P86: 504
A87: 2 | B87: FH + VerwFH | C87: 3 | D87: Rechts-, Wirtschafts- und Sozialwissenschaften | E87: ~~ | F87: zusammen | G87: w | H87: 1369 | I87: 564 | J87: 805 | K87: 497 | L87: 71 | M87: 426 | N87: 875 | O87: 234 | P87: 641
A88: 2 | B88: FH + VerwFH | C88: 3 | D88: Rechts-, Wirtschafts- und Sozialwissenschaften | E88: ~~ | F88: zusammen | G88: i | H88: 3178 | I88: 1659 | J88: 1519 | K88: 865 | L88: 128 | M88: 737 | N88: 1678 | O88: 533 | P88: 1145
A89: 2 | B89: FH + VerwFH | C89: 4 | D89: Mathematik, Naturwissenschaften | E89: 3 | F89: Wiss. u. künstl. Mitarbeiter | G89: m | H89: 686 | I89: 130 | J89: 556 | K89: 436 | L89: 7 | M89: 429 | N89: 559 | O89: 52 | P89: 507
A90: 2 | B90: FH + VerwFH | C90: 4 | D90: Mathematik, Naturwissenschaften | E90: 3 | F90: Wiss. u. künstl. Mitarbeiter | G90: w | H90: 271 | I90: 44 | J90: 227 | K90: 152 | L90: 4 | M90: 148 | N90: 214 | O90: 20 | P90: 194
A91: 2 | B91: FH + VerwFH | C91: 4 | D91: Mathematik, Naturwissenschaften | E91: 3 | F91: Wiss. u. künstl. Mitarbeiter | G91: i | H91: 957 | I91: 174 | J91: 783 | K91: 588 | L91: 11 | M91: 577 | N91: 773 | O91: 72 | P91: 701
A92: 2 | B92: FH + VerwFH | C92: 4 | D92: Mathematik, Naturwissenschaften | E92: 4 | F92: Lehrkr. f. bes. Aufgaben + Doz. u. Assistenten | G92: m | H92: 209 | I92: 100 | J92: 109 | K92: 64 | L92: . | M92: . | N92: 103 | O92: 23 | P92: 80
A93: 2 | B93: FH + VerwFH | C93: 4 | D93: Mathematik, Naturwissenschaften | E93: 4 | F93: Lehrkr. f. bes. Aufgaben + Doz. u. Assistenten | G93: w | H93: 82 | I93: 34 | J93: 48 | K93: 25 | L93: . | M93: . | N93: 42 | O93: 6 | P93: 36
A94: 2 | B94: FH + VerwFH | C94: 4 | D94: Mathematik, Naturwissenschaften | E94: 4 | F94: Lehrkr. f. bes. Aufgaben + Doz. u. Assistenten | G94: i | H94: 291 | I94: 134 | J94: 157 | K94: 89 | L94: 4 | M94: 85 | N94: 145 | O94: 29 | P94: 116
A95: 2 | B95: FH + VerwFH | C95: 4 | D95: Mathematik, Naturwissenschaften | E95: ~~ | F95: zusammen | G95: m | H95: 895 | I95: 230 | J95: 665 | K95: 500 | L95: 11 | M95: 489 | N95: 662 | O95: 75 | P95: 587
A96: 2 | B96: FH + VerwFH | C96: 4 | D96: Mathematik, Naturwissenschaften | E96: ~~ | F96: zusammen | G96: w | H96: 353 | I96: 78 | J96: 275 | K96: 177 | L96: 4 | M96: 173 | N96: 256 | O96: 26 | P96: 230
A97: 2 | B97: FH + VerwFH | C97: 4 | D97: Mathematik, Naturwissenschaften | E97: ~~ | F97: zusammen | G97: i | H97: 1248 | I97: 308 | J97: 940 | K97: 677 | L97: 15 | M97: 662 | N97: 918 | O97: 101 | P97: 817
A98: 2 | B98: FH + VerwFH | C98: 5 | D98: Humanmedizin/Gesundheitswissenschaften + Veterinärmedizin | E98: 3 | F98: Wiss. u. künstl. Mitarbeiter | G98: m | H98: 27 | I98: 11 | J98: 16 | K98: 10 | L98: 2 | M98: 8 | N98: 21 | O98: 6 | P98: 15
A99: 2 | B99: FH + VerwFH | C99: 5 | D99: Humanmedizin/Gesundheitswissenschaften + Veterinärmedizin | E99: 3 | F99: Wiss. u. künstl. Mitarbeiter | G99: w | H99: 82 | I99: 23 | J99: 59 | K99: 25 | L99: 5 | M99: 20 | N99: 53 | O99: 11 | P99: 42
A100: 2 | B100: FH + VerwFH | C100: 5 | D100: Humanmedizin/Gesundheitswissenschaften + Veterinärmedizin | E100: 3 | F100: Wiss. u. künstl. Mitarbeiter | G100: i | H100: 109 | I100: 34 | J100: 75 | K100: 35 | L100: 7 | M100: 28 | N100: 74 | O100: 17 | P100: 57
A101: 2 | B101: FH + VerwFH | C101: 5 | D101: Humanmedizin/Gesundheitswissenschaften + Veterinärmedizin | E101: 4 | F101: Lehrkr. f. bes. Aufgaben + Doz. u. Assistenten | G101: m | H101: 39 | I101: 33 | J101: 6 | K101: 6 | L101: 4 | M101: 2 | N101: 25 | O101: 21 | P101: 4
A102: 2 | B102: FH + VerwFH | C102: 5 | D102: Humanmedizin/Gesundheitswissenschaften + Veterinärmedizin | E102: 4 | F102: Lehrkr. f. bes. Aufgaben + Doz. u. Assistenten | G102: w | H102: 60 | I102: 46 | J102: 14 | K102: 24 | L102: 18 | M102: 6 | N102: 44 | O102: 35 | P102: 9
A103: 2 | B103: FH + VerwFH | C103: 5 | D103: Humanmedizin/Gesundheitswissenschaften + Veterinärmedizin | E103: 4 | F103: Lehrkr. f. bes. Aufgaben + Doz. u. Assistenten | G103: i | H103: 99 | I103: 79 | J103: 20 | K103: 30 | L103: 22 | M103: 8 | N103: 69 | O103: 56 | P103: 13
A104: 2 | B104: FH + VerwFH | C104: 5 | D104: Humanmedizin/Gesundheitswissenschaften + Veterinärmedizin | E104: ~~ | F104: zusammen | G104: m | H104: 66 | I104: 44 | J104: 22 | K104: 16 | L104: 6 | M104: 10 | N104: 46 | O104: 27 | P104: 19
A105: 2 | B105: FH + VerwFH | C105: 5 | D105: Humanmedizin/Gesundheitswissenschaften + Veterinärmedizin | E105: ~~ | F105: zusammen | G105: w | H105: 142 | I105: 69 | J105: 73 | K105: 49 | L105: 23 | M105: 26 | N105: 97 | O105: 46 | P105: 51
A106: 2 | B106: FH + VerwFH | C106: 5 | D106: Humanmedizin/Gesundheitswissenschaften + Veterinärmedizin | E106: ~~ | F106: zusammen | G106: i | H106: 208 | I106: 113 | J106: 95 | K106: 65 | L106: 29 | M106: 36 | N106: 143 | O106: 73 | P106: 70
A107: 2 | B107: FH + VerwFH | C107: 8 | D107: Ingenieurwissenschaften | E107: 3 | F107: Wiss. u. künstl. Mitarbeiter | G107: m | H107: 2386 | I107: 570 | J107: 1816 | K107: 1366 | L107: 30 | M107: 1336 | N107: 1783 | O107: 156 | P107: 1627
A108: 2 | B108: FH + VerwFH | C108: 8 | D108: Ingenieurwissenschaften | E108: 3 | F108: Wiss. u. künstl. Mitarbeiter | G108: w | H108: 783 | I108: 156 | J108: 627 | K108: 389 | L108: 8 | M108: 381 | N108: 592 | O108: 67 | P108: 525
A109: 2 | B109: FH + VerwFH | C109: 8 | D109: Ingenieurwissenschaften | E109: 3 | F109: Wiss. u. künstl. Mitarbeiter | G109: i | H109: 3169 | I109: 726 | J109: 2443 | K109: 1755 | L109: 38 | M109: 1717 | N109: 2375 | O109: 223 | P109: 2152
A110: 2 | B110: FH + VerwFH | C110: 8 | D110: Ingenieurwissenschaften | E110: 4 | F110: Lehrkr. f. bes. Aufgaben + Doz. u. Assistenten | G110: m | H110: 341 | I110: 146 | J110: 195 | K110: 113 | L110: 2 | M110: 111 | N110: 189 | O110: 33 | P110: 156
A111: 2 | B111: FH + VerwFH | C111: 8 | D111: Ingenieurwissenschaften | E111: 4 | F111: Lehrkr. f. bes. Aufgaben + Doz. u. Assistenten | G111: w | H111: 163 | I111: 61 | J111: 102 | K111: 55 | L111: 8 | M111: 47 | N111: 97 | O111: 18 | P111: 79
A112: 2 | B112: FH + VerwFH | C112: 8 | D112: Ingenieurwissenschaften | E112: 4 | F112: Lehrkr. f. bes. Aufgaben + Doz. u. Assistenten | G112: i | H112: 504 | I112: 207 | J112: 297 | K112: 168 | L112: 10 | M112: 158 | N112: 286 | O112: 51 | P112: 235
A113: 2 | B113: FH + VerwFH | C113: 8 | D113: Ingenieurwissenschaften | E113: ~~ | F113: zusammen | G113: m | H113: 2727 | I113: 716 | J113: 2011 | K113: 1479 | L113: 32 | M113: 1447 | N113: 1972 | O113: 189 | P113: 1783
A114: 2 | B114: FH + VerwFH | C114: 8 | D114: Ingenieurwissenschaften | E114: ~~ | F114: zusammen | G114: w | H114: 946 | I114: 217 | J114: 729 | K114: 444 | L114: 16 | M114: 428 | N114: 689 | O114: 85 | P114: 604
A115: 2 | B115: FH + VerwFH | C115: 8 | D115: Ingenieurwissenschaften | E115: ~~ | F115: zusammen | G115: i | H115: 3673 | I115: 933 | J115: 2740 | K115: 1923 | L115: 48 | M115: 1875 | N115: 2661 | O115: 274 | P115: 2387
A116: 2 | B116: FH + VerwFH | C116: 10 | D116: Restliche Fächergruppen | E116: 3 | F116: Wiss. u. künstl. Mitarbeiter | G116: m | H116: 983 | I116: 246 | J116: 737 | K116: 542 | L116: 18 | M116: 524 | N116: 719 | O116: 67 | P116: 652
A117: 2 | B117: FH + VerwFH | C117: 10 | D117: Restliche Fächergruppen | E117: 3 | F117: Wiss. u. künstl. Mitarbeiter | G117: w | H117: 748 | I117: 183 | J117: 565 | K117: 340 | L117: 20 | M117: 320 | N117: 536 | O117: 68 | P117: 468
A118: 2 | B118: FH + VerwFH | C118: 10 | D118: Restliche Fächergruppen | E118: 3 | F118: Wiss. u. künstl. Mitarbeiter | G118: i | H118: 1731 | I118: 429 | J118: 1302 | K118: 882 | L118: 38 | M118: 844 | N118: 1255 | O118: 135 | P118: 1120
A119: 2 | B119: FH + VerwFH | C119: 10 | D119: Restliche Fächergruppen | E119: 4 | F119: Lehrkr. f. bes. Aufgaben + Doz. u. Assistenten | G119: m | H119: 190 | I119: 120 | J119: 70 | K119: 28 | L119: 2 | M119: 26 | N119: 78 | O119: 26 | P119: 52
A120: 2 | B120: FH + VerwFH | C120: 10 | D120: Restliche Fächergruppen | E120: 4 | F120: Lehrkr. f. bes. Aufgaben + Doz. u. Assistenten | G120: w | H120: 212 | I120: 131 | J120: 81 | K120: 44 | L120: 9 | M120: 35 | N120: 91 | O120: 35 | P120: 56
A121: 2 | B121: FH + VerwFH | C121: 10 | D121: Restliche Fächergruppen | E121: 4 | F121: Lehrkr. f. bes. Aufgaben + Doz. u. Assistenten | G121: i | H121: 402 | I121: 251 | J121: 151 | K121: 72 | L121: 11 | M121: 61 | N121: 169 | O121: 61 | P121: 108
A122: 2 | B122: FH + VerwFH | C122: 10 | D122: Restliche Fächergruppen | E122: ~~ | F122: zusammen | G122: m | H122: 1173 | I122: 366 | J122: 807 | K122: 570 | L122: 20 | M122: 550 | N122: 797 | O122: 93 | P122: 704
A123: 2 | B123: FH + VerwFH | C123: 10 | D123: Restliche Fächergruppen | E123: ~~ | F123: zusammen | G123: w | H123: 960 | I123: 314 | J123: 646 | K123: 384 | L123: 29 | M123: 355 | N123: 627 | O123: 103 | P123: 524
A124: 2 | B124: FH + VerwFH | C124: 10 | D124: Restliche Fächergruppen | E124: ~~ | F124: zusammen | G124: i | H124: 2133 | I124: 680 | J124: 1453 | K124: 954 | L124: 49 | M124: 905 | N124: 1424 | O124: 196 | P124: 1228
A125: 2 | B125: FH + VerwFH | C125: ~~ | D125: zusammen | E125: ~~ | F125: zusammen | G125: m | H125: 6873 | I125: 2558 | J125: 4315 | K125: 2970 | L125: 132 | M125: 2838 | N125: 4368 | O125: 710 | P125: 3658
A126: 2 | B126: FH + VerwFH | C126: ~~ | D126: zusammen | E126: ~~ | F126: zusammen | G126: w | H126: 4073 | I126: 1417 | J126: 2656 | K126: 1602 | L126: 150 | M126: 1452 | N126: 2664 | O126: 536 | P126: 2128
A127: 2 | B127: FH + VerwFH | C127: ~~ | D127: zusammen | E127: ~~ | F127: zusammen | G127: i | H127: 10946 | I127: 3975 | J127: 6971 | K127: 4572 | L127: 282 | M127: 4290 | N127: 7032 | O127: 1246 | P127: 5786
A128: ~ | B128: Insgesamt | G128: m | H128: 101608 | I128: 20219 | J128: 81389 | K128: 58891 | L128: 1353 | M128: 57538 | N128: 82225 | O128: 6661 | P128: 75564
A129: ~ | B129: Insgesamt | G129: w | H129: 67479 | I129: 10065 | J129: 57414 | K129: 41547 | L129: 1033 | M129: 40514 | N129: 56723 | O129: 3740 | P129: 52983
A130: ~ | B130: Insgesamt | G130: i | H130: 169087 | I130: 30284 | J130: 138803 | K130: 100438 | L130: 2386 | M130: 98052 | N130: 138948 | O130: 10401 | P130: 128547

Sheet 1.3
A1: Statistisches Bundesamt
A2: H201 - Hochschulstatistik
A5: Hauptberufliches wissenschaftliches und künstlerisches Personal (ohne Professoren) nach ausgewählten Hochschularten, Fächer- und Personalgruppen
A6: im Berichtsjahr 2005
H8: Hauptber. wiss. und | K8: Hauptber. wiss. und | N8: Hauptber. wiss. und
H9: künstler. Personal | K9: künstler. Personal | N9: künstler. Personal
B10: Hochschulart | D10: Fächergruppe | F10: Personalgruppe | G10: Ge- | H10: (ohne Professoren) | K10: (ohne Professoren) | N10: (ohne Professoren)
D11: der fachl. Zugehörigkeit | G11: schlecht | K11: im Alter bis einschl. 34 Jahren | N11: im Alter bis einschl. 44 Jahren
H12: insgesamt | I12: auf Dauer | J12: auf Zeit | K12: insgesamt | L12: auf Dauer | M12: auf Zeit | N12: insgesamt | O12: auf Dauer | P12: auf Zeit
A14: 1 | B14: Wiss. Hochschulen (= Uni, GH, PH, TH und KunstH) | C14: 1 | D14: Sprach- und Kulturwissenschaften | E14: 3 | F14: Wiss. u. künstl. Mitarbeiter | G14: m | H14: 5012 | I14: 1603 | J14: 3409 | K14: 1803 | L14: 125 | M14: 1678 | N14: 3322 | O14: 428 | P14: 2894 | Q14: =IF(OR(H14=I14,H14=J14),"X","") ->  | R14: =IF(OR(K14=L14,K14=M14),"X","") ->  | S14: =IF(OR(N14=O14,N14=P14),"X","") -> 
A15: 1 | B15: Wiss. Hochschulen (= Uni, GH, PH, TH und KunstH) | C15: 1 | D15: Sprach- und Kulturwissenschaften | E15: 3 | F15: Wiss. u. künstl. Mitarbeiter | G15: w | H15: 5088 | I15: 1158 | J15: 3930 | K15: 2549 | L15: 228 | M15: 2321 | N15: 4004 | O15: 499 | P15: 3505 | Q15: =IF(OR(H15=I15,H15=J15),"X","") ->  | R15: =IF(OR(K15=L15,K15=M15),"X","") ->  | S15: =IF(OR(N15=O15,N15=P15),"X","") -> 
A16: 1 | B16: Wiss. Hochschulen (= Uni, GH, PH, TH und KunstH) | C16: 1 | D16: Sprach- und Kulturwissenschaften | E16: 3 | F16: Wiss. u. künstl. Mitarbeiter | G16: i | H16: 10100 | I16: 2761 | J16: 7339 | K16: 4352 | L16: 353 | M16: 3999 | N16: 7326 | O16: 927 | P16: 6399
A17: 1 | B17: Wiss. Hochschulen (= Uni, GH, PH, TH und KunstH) | C17: 1 | D17: Sprach- und Kulturwissenschaften | E17: 4 | F17: Lehrkr. f. bes. Aufgaben + Doz. u. Assistenten | G17: m | H17: 1884 | I17: 786 | J17: 1098 | K17: 245 | L17: 50 | M17: 195 | N17: 1092 | O17: 255 | P17: 837
A18: 1 | B18: Wiss. Hochschulen (= Uni, GH, PH, TH und KunstH) | C18: 1 | D18: Sprach- und Kulturwissenschaften | E18: 4 | F18: Lehrkr. f. bes. Aufgaben + Doz. u. Assistenten | G18: w | H18: 1883 | I18: 949 | J18: 934 | K18: 315 | L18: 73 | M18: 242 | N18: 1053 | O18: 330 | P18: 723
A19: 1 | B19: Wiss. Hochschulen (= Uni, GH, PH, TH und KunstH) | C19: 1 | D19: Sprach- und Kulturwissenschaften | E19: 4 | F19: Lehrkr. f. bes. Aufgaben + Doz. u. Assistenten | G19: i | H19: 3767 | I19: 1735 | J19: 2032 | K19: 560 | L19: 123 | M19: 437 | N19: 2145 | O19: 585 | P19: 1560
A20: 1 | B20: Wiss. Hochschulen (= Uni, GH, PH, TH und KunstH) | C20: 1 | D20: Sprach- und Kulturwissenschaften | E20: ~~ | F20: zusammen | G20: m | H20: 6896 | I20: 2389 | J20: 4507 | K20: 2048 | L20: 175 | M20: 1873 | N20: 4414 | O20: 683 | P20: 3731
A21: 1 | B21: Wiss. Hochschulen (= Uni, GH, PH, TH und KunstH) | C21: 1 | D21: Sprach- und Kulturwissenschaften | E21: ~~ | F21: zusammen | G21: w | H21: 6971 | I21: 2107 | J21: 4864 | K21: 2864 | L21: 301 | M21: 2563 | N21: 5057 | O21: 829 | P21: 4228
A22: 1 | B22: Wiss. Hochschulen (= Uni, GH, PH, TH und KunstH) | C22: 1 | D22: Sprach- und Kulturwissenschaften | E22: ~~ | F22: zusammen | G22: i | H22: 13867 | I22: 4496 | J22: 9371 | K22: 4912 | L22: 476 | M22: 4436 | N22: 9471 | O22: 1512 | P22: 7959
A23: 1 | B23: Wiss. Hochschulen (= Uni, GH, PH, TH und KunstH) | C23: 3 | D23: Rechts-, Wirtschafts- und Sozialwissenschaften | E23: 3 | F23: Wiss. u. künstl. Mitarbeiter | G23: m | H23: 5858 | I23: 903 | J23: 4955 | K23: 4390 | L23: 355 | M23: 4035 | N23: 5221 | O23: 493 | P23: 4728
A24: 1 | B24: Wiss. Hochschulen (= Uni, GH, PH, TH und KunstH) | C24: 3 | D24: Rechts-, Wirtschafts- und Sozialwissenschaften | E24: 3 | F24: Wiss. u. künstl. Mitarbeiter | G24: w | H24: 3297 | I24: 389 | J24: 2908 | K24: 2532 | L24: 181 | M24: 2351 | N24: 3061 | O24: 271 | P24: 2790
A25: 1 | B25: Wiss. Hochschulen (= Uni, GH, PH, TH und KunstH) | C25: 3 | D25: Rechts-, Wirtschafts- und Sozialwissenschaften | E25: 3 | F25: Wiss. u. künstl. Mitarbeiter | G25: i | H25: 9155 | I25: 1292 | J25: 7863 | K25: 6922 | L25: 536 | M25: 6386 | N25: 8282 | O25: 764 | P25: 7518
A26: 1 | B26: Wiss. Hochschulen (= Uni, GH, PH, TH und KunstH) | C26: 3 | D26: Rechts-, Wirtschafts- und Sozialwissenschaften | E26: 4 | F26: Lehrkr. f. bes. Aufgaben + Doz. u. Assistenten | G26: m | H26: 888 | I26: 220 | J26: 668 | K26: 355 | L26: 62 | M26: 293 | N26: 753 | O26: 126 | P26: 627
A27: 1 | B27: Wiss. Hochschulen (= Uni, GH, PH, TH und KunstH) | C27: 3 | D27: Rechts-, Wirtschafts- und Sozialwissenschaften | E27: 4 | F27: Lehrkr. f. bes. Aufgaben + Doz. u. Assistenten | G27: w | H27: 335 | I27: 79 | J27: 256 | K27: 124 | L27: 22 | M27: 102 | N27: 283 | O27: 51 | P27: 232
A28: 1 | B28: Wiss. Hochschulen (= Uni, GH, PH, TH und KunstH) | C28: 3 | D28: Rechts-, Wirtschafts- und Sozialwissenschaften | E28: 4 | F28: Lehrkr. f. bes. Aufgaben + Doz. u. Assistenten | G28: i | H28: 1223 | I28: 299 | J28: 924 | K28: 479 | L28: 84 | M28: 395 | N28: 1036 | O28: 177 | P28: 859
A29: 1 | B29: Wiss. Hochschulen (= Uni, GH, PH, TH und KunstH) | C29: 3 | D29: Rechts-, Wirtschafts- und Sozialwissenschaften | E29: ~~ | F29: zusammen | G29: m | H29: 6746 | I29: 1123 | J29: 5623 | K29: 4745 | L29: 417 | M29: 4328 | N29: 5974 | O29: 619 | P29: 5355
A30: 1 | B30: Wiss. Hochschulen (= Uni, GH, PH, TH und KunstH) | C30: 3 | D30: Rechts-, Wirtschafts- und Sozialwissenschaften | E30: ~~ | F30: zusammen | G30: w | H30: 3632 | I30: 468 | J30: 3164 | K30: 2656 | L30: 203 | M30: 2453 | N30: 3344 | O30: 322 | P30: 3022
A31: 1 | B31: Wiss. Hochschulen (= Uni, GH, PH, TH und KunstH) | C31: 3 | D31: Rechts-, Wirtschafts- und Sozialwissenschaften | E31: ~~ | F31: zusammen | G31: i | H31: 10378 | I31: 1591 | J31: 8787 | K31: 7401 | L31: 620 | M31: 6781 | N31: 9318 | O31: 941 | P31: 8377
A32: 1 | B32: Wiss. Hochschulen (= Uni, GH, PH, TH und KunstH) | C32: 4 | D32: Mathematik, Naturwissenschaften | E32: 3 | F32: Wiss. u. künstl. Mitarbeiter | G32: m | H32: 19948 | I32: 4607 | J32: 15341 | K32: 12851 | L32: 1085 | M32: 11766 | N32: 16486 | O32: 2038 | P32: 14448
A33: 1 | B33: Wiss. Hochschulen (= Uni, GH, PH, TH und KunstH) | C33: 4 | D33: Mathematik, Naturwissenschaften | E33: 3 | F33: Wiss. u. künstl. Mitarbeiter | G33: w | H33: 7189 | I33: 1010 | J33: 6179 | K33: 5366 | L33: 437 | M33: 4929 | N33: 6501 | O33: 657 | P33: 5844
A34: 1 | B34: Wiss. Hochschulen (= Uni, GH, PH, TH und KunstH) | C34: 4 | D34: Mathematik, Naturwissenschaften | E34: 3 | F34: Wiss. u. künstl. Mitarbeiter | G34: i | H34: 27137 | I34: 5617 | J34: 21520 | K34: 18217 | L34: 1522 | M34: 16695 | N34: 22987 | O34: 2695 | P34: 20292
A35: 1 | B35: Wiss. Hochschulen (= Uni, GH, PH, TH und KunstH) | C35: 4 | D35: Mathematik, Naturwissenschaften | E35: 4 | F35: Lehrkr. f. bes. Aufgaben + Doz. u. Assistenten | G35: m | H35: 1958 | I35: 452 | J35: 1506 | K35: 454 | L35: 62 | M35: 392 | N35: 1549 | O35: 183 | P35: 1366
A36: 1 | B36: Wiss. Hochschulen (= Uni, GH, PH, TH und KunstH) | C36: 4 | D36: Mathematik, Naturwissenschaften | E36: 4 | F36: Lehrkr. f. bes. Aufgaben + Doz. u. Assistenten | G36: w | H36: 473 | I36: 98 | J36: 375 | K36: 130 | L36: 12 | M36: 118 | N36: 383 | O36: 51 | P36: 332
A37: 1 | B37: Wiss. Hochschulen (= Uni, GH, PH, TH und KunstH) | C37: 4 | D37: Mathematik, Naturwissenschaften | E37: 4 | F37: Lehrkr. f. bes. Aufgaben + Doz. u. Assistenten | G37: i | H37: 2431 | I37: 550 | J37: 1881 | K37: 584 | L37: 74 | M37: 510 | N37: 1932 | O37: 234 | P37: 1698
A38: 1 | B38: Wiss. Hochschulen (= Uni, GH, PH, TH und KunstH) | C38: 4 | D38: Mathematik, Naturwissenschaften | E38: ~~ | F38: zusammen | G38: m | H38: 21906 | I38: 5059 | J38: 16847 | K38: 13305 | L38: 1147 | M38: 12158 | N38: 18035 | O38: 2221 | P38: 15814
A39: 1 | B39: Wiss. Hochschulen (= Uni, GH, PH, TH und KunstH) | C39: 4 | D39: Mathematik, Naturwissenschaften | E39: ~~ | F39: zusammen | G39: w | H39: 7662 | I39: 1108 | J39: 6554 | K39: 5496 | L39: 449 | M39: 5047 | N39: 6884 | O39: 708 | P39: 6176
A40: 1 | B40: Wiss. Hochschulen (= Uni, GH, PH, TH und KunstH) | C40: 4 | D40: Mathematik, Naturwissenschaften | E40: ~~ | F40: zusammen | G40: i | H40: 29568 | I40: 6167 | J40: 23401 | K40: 18801 | L40: 1596 | M40: 17205 | N40: 24919 | O40: 2929 | P40: 21990
A41: 1 | B41: Wiss. Hochschulen (= Uni, GH, PH, TH und KunstH) | C41: 5 | D41: Humanmedizin/Gesundheitswissenschaften + Veterinärmedizin | E41: 3 | F41: Wiss. u. künstl. Mitarbeiter | G41: m | H41: 21376 | I41: 6136 | J41: 15240 | K41: 9059 | L41: 590 | M41: 8469 | N41: 17197 | O41: 2842 | P41: 14355
A42: 1 | B42: Wiss. Hochschulen (= Uni, GH, PH, TH und KunstH) | C42: 5 | D42: Humanmedizin/Gesundheitswissenschaften + Veterinärmedizin | E42: 3 | F42: Wiss. u. künstl. Mitarbeiter | G42: w | H42: 15823 | I42: 3088 | J42: 12735 | K42: 8949 | L42: 617 | M42: 8332 | N42: 13573 | O42: 1602 | P42: 11971
A43: 1 | B43: Wiss. Hochschulen (= Uni, GH, PH, TH und KunstH) | C43: 5 | D43: Humanmedizin/Gesundheitswissenschaften + Veterinärmedizin | E43: 3 | F43: Wiss. u. künstl. Mitarbeiter | G43: i | H43: 37199 | I43: 9224 | J43: 27975 | K43: 18008 | L43: 1207 | M43: 16801 | N43: 30770 | O43: 4444 | P43: 26326
A44: 1 | B44: Wiss. Hochschulen (= Uni, GH, PH, TH und KunstH) | C44: 5 | D44: Humanmedizin/Gesundheitswissenschaften + Veterinärmedizin | E44: 4 | F44: Lehrkr. f. bes. Aufgaben + Doz. u. Assistenten | G44: m | H44: 1961 | I44: 257 | J44: 1704 | K44: 435 | L44: 9 | M44: 426 | N44: 1627 | O44: 118 | P44: 1509
A45: 1 | B45: Wiss. Hochschulen (= Uni, GH, PH, TH und KunstH) | C45: 5 | D45: Humanmedizin/Gesundheitswissenschaften + Veterinärmedizin | E45: 4 | F45: Lehrkr. f. bes. Aufgaben + Doz. u. Assistenten | G45: w | H45: 958 | I45: 125 | J45: 833 | K45: 351 | L45: 16 | M45: 335 | N45: 830 | O45: 64 | P45: 766
A46: 1 | B46: Wiss. Hochschulen (= Uni, GH, PH, TH und KunstH) | C46: 5 | D46: Humanmedizin/Gesundheitswissenschaften + Veterinärmedizin | E46: 4 | F46: Lehrkr. f. bes. Aufgaben + Doz. u. Assistenten | G46: i | H46: 2919 | I46: 382 | J46: 2537 | K46: 786 | L46: 25 | M46: 761 | N46: 2457 | O46: 182 | P46: 2275
A47: 1 | B47: Wiss. Hochschulen (= Uni, GH, PH, TH und KunstH) | C47: 5 | D47: Humanmedizin/Gesundheitswissenschaften + Veterinärmedizin | E47: ~~ | F47: zusammen | G47: m | H47: 23337 | I47: 6393 | J47: 16944 | K47: 9494 | L47: 599 | M47: 8895 | N47: 18824 | O47: 2960 | P47: 15864
A48: 1 | B48: Wiss. Hochschulen (= Uni, GH, PH, TH und KunstH) | C48: 5 | D48: Humanmedizin/Gesundheitswissenschaften + Veterinärmedizin | E48: ~~ | F48: zusammen | G48: w | H48: 16781 | I48: 3213 | J48: 13568 | K48: 9300 | L48: 633 | M48: 8667 | N48: 14403 | O48: 1666 | P48: 12737
A49: 1 | B49: Wiss. Hochschulen (= Uni, GH, PH, TH und KunstH) | C49: 5 | D49: Humanmedizin/Gesundheitswissenschaften + Veterinärmedizin | E49: ~~ | F49: zusammen | G49: i | H49: 40118 | I49: 9606 | J49: 30512 | K49: 18794 | L49: 1232 | M49: 17562 | N49: 33227 | O49: 4626 | P49: 28601
A50: 1 | B50: Wiss. Hochschulen (= Uni, GH, PH, TH und KunstH) | C50: 8 | D50: Ingenieurwissenschaften | E50: 3 | F50: Wiss. u. künstl. Mitarbeiter | G50: m | H50: 12168 | I50: 2152 | J50: 10016 | K50: 8103 | L50: 358 | M50: 7745 | N50: 10442 | O50: 832 | P50: 9610
A51: 1 | B51: Wiss. Hochschulen (= Uni, GH, PH, TH und KunstH) | C51: 8 | D51: Ingenieurwissenschaften | E51: 3 | F51: Wiss. u. künstl. Mitarbeiter | G51: w | H51: 2459 | I51: 298 | J51: 2161 | K51: 1566 | L51: 89 | M51: 1477 | N51: 2213 | O51: 167 | P51: 2046
A52: 1 | B52: Wiss. Hochschulen (= Uni, GH, PH, TH und KunstH) | C52: 8 | D52: Ingenieurwissenschaften | E52: 3 | F52: Wiss. u. künstl. Mitarbeiter | G52: i | H52: 14627 | I52: 2450 | J52: 12177 | K52: 9669 | L52: 447 | M52: 9222 | N52: 12655 | O52: 999 | P52: 11656
A53: 1 | B53: Wiss. Hochschulen (= Uni, GH, PH, TH und KunstH) | C53: 8 | D53: Ingenieurwissenschaften | E53: 4 | F53: Lehrkr. f. bes. Aufgaben + Doz. u. Assistenten | G53: m | H53: 860 | I53: 191 | J53: 669 | K53: 390 | L53: 20 | M53: 370 | N53: 702 | O53: 69 | P53: 633
A54: 1 | B54: Wiss. Hochschulen (= Uni, GH, PH, TH und KunstH) | C54: 8 | D54: Ingenieurwissenschaften | E54: 4 | F54: Lehrkr. f. bes. Aufgaben + Doz. u. Assistenten | G54: w | H54: 118 | I54: 8 | J54: 110 | K54: 43 | L54: 2 | M54: 41 | N54: 110 | O54: 4 | P54: 106
A55: 1 | B55: Wiss. Hochschulen (= Uni, GH, PH, TH und KunstH) | C55: 8 | D55: Ingenieurwissenschaften | E55: 4 | F55: Lehrkr. f. bes. Aufgaben + Doz. u. Assistenten | G55: i | H55: 978 | I55: 199 | J55: 779 | K55: 433 | L55: 22 | M55: 411 | N55: 812 | O55: 73 | P55: 739
A56: 1 | B56: Wiss. Hochschulen (= Uni, GH, PH, TH und KunstH) | C56: 8 | D56: Ingenieurwissenschaften | E56: ~~ | F56: zusammen | G56: m | H56: 13028 | I56: 2343 | J56: 10685 | K56: 8493 | L56: 378 | M56: 8115 | N56: 11144 | O56: 901 | P56: 10243
A57: 1 | B57: Wiss. Hochschulen (= Uni, GH, PH, TH und KunstH) | C57: 8 | D57: Ingenieurwissenschaften | E57: ~~ | F57: zusammen | G57: w | H57: 2577 | I57: 306 | J57: 2271 | K57: 1609 | L57: 91 | M57: 1518 | N57: 2323 | O57: 171 | P57: 2152
A58: 1 | B58: Wiss. Hochschulen (= Uni, GH, PH, TH und KunstH) | C58: 8 | D58: Ingenieurwissenschaften | E58: ~~ | F58: zusammen | G58: i | H58: 15605 | I58: 2649 | J58: 12956 | K58: 10102 | L58: 469 | M58: 9633 | N58: 13467 | O58: 1072 | P58: 12395
A59: 1 | B59: Wiss. Hochschulen (= Uni, GH, PH, TH und KunstH) | C59: 10 | D59: Restliche Fächergruppen | E59: 3 | F59: Wiss. u. künstl. Mitarbeiter | G59: m | H59: 5979 | I59: 2601 | J59: 3378 | K59: 2105 | L59: 179 | M59: 1926 | N59: 3742 | O59: 777 | P59: 2965
A60: 1 | B60: Wiss. Hochschulen (= Uni, GH, PH, TH und KunstH) | C60: 10 | D60: Restliche Fächergruppen | E60: 3 | F60: Wiss. u. künstl. Mitarbeiter | G60: w | H60: 3939 | I60: 1203 | J60: 2736 | K60: 1806 | L60: 142 | M60: 1664 | N60: 3000 | O60: 510 | P60: 2490
A61: 1 | B61: Wiss. Hochschulen (= Uni, GH, PH, TH und KunstH) | C61: 10 | D61: Restliche Fächergruppen | E61: 3 | F61: Wiss. u. künstl. Mitarbeiter | G61: i | H61: 9918 | I61: 3804 | J61: 6114 | K61: 3911 | L61: 321 | M61: 3590 | N61: 6742 | O61: 1287 | P61: 5455
A62: 1 | B62: Wiss. Hochschulen (= Uni, GH, PH, TH und KunstH) | C62: 10 | D62: Restliche Fächergruppen | E62: 4 | F62: Lehrkr. f. bes. Aufgaben + Doz. u. Assistenten | G62: m | H62: 1353 | I62: 917 | J62: 436 | K62: 100 | L62: 28 | M62: 72 | N62: 511 | O62: 207 | P62: 304
A63: 1 | B63: Wiss. Hochschulen (= Uni, GH, PH, TH und KunstH) | C63: 10 | D63: Restliche Fächergruppen | E63: 4 | F63: Lehrkr. f. bes. Aufgaben + Doz. u. Assistenten | G63: w | H63: 978 | I63: 639 | J63: 339 | K63: 113 | L63: 31 | M63: 82 | N63: 415 | O63: 162 | P63: 253
A64: 1 | B64: Wiss. Hochschulen (= Uni, GH, PH, TH und KunstH) | C64: 10 | D64: Restliche Fächergruppen | E64: 4 | F64: Lehrkr. f. bes. Aufgaben + Doz. u. Assistenten | G64: i | H64: 2331 | I64: 1556 | J64: 775 | K64: 213 | L64: 59 | M64: 154 | N64: 926 | O64: 369 | P64: 557
A65: 1 | B65: Wiss. Hochschulen (= Uni, GH, PH, TH und KunstH) | C65: 10 | D65: Restliche Fächergruppen | E65: ~~ | F65: zusammen | G65: m | H65: 7332 | I65: 3518 | J65: 3814 | K65: 2205 | L65: 207 | M65: 1998 | N65: 4253 | O65: 984 | P65: 3269
A66: 1 | B66: Wiss. Hochschulen (= Uni, GH, PH, TH und KunstH) | C66: 10 | D66: Restliche Fächergruppen | E66: ~~ | F66: zusammen | G66: w | H66: 4917 | I66: 1842 | J66: 3075 | K66: 1919 | L66: 173 | M66: 1746 | N66: 3415 | O66: 672 | P66: 2743
A67: 1 | B67: Wiss. Hochschulen (= Uni, GH, PH, TH und KunstH) | C67: 10 | D67: Restliche Fächergruppen | E67: ~~ | F67: zusammen | G67: i | H67: 12249 | I67: 5360 | J67: 6889 | K67: 4124 | L67: 380 | M67: 3744 | N67: 7668 | O67: 1656 | P67: 6012
A68: 1 | B68: Wiss. Hochschulen (= Uni, GH, PH, TH und KunstH) | C68: ~~ | D68: zusammen | E68: ~~ | F68: zusammen | G68: m | H68: 79245 | I68: 20825 | J68: 58420 | K68: 40290 | L68: 2923 | M68: 37367 | N68: 62644 | O68: 8368 | P68: 54276
A69: 1 | B69: Wiss. Hochschulen (= Uni, GH, PH, TH und KunstH) | C69: ~~ | D69: zusammen | E69: ~~ | F69: zusammen | G69: w | H69: 42540 | I69: 9044 | J69: 33496 | K69: 23844 | L69: 1850 | M69: 21994 | N69: 35426 | O69: 4368 | P69: 31058
A70: 1 | B70: Wiss. Hochschulen (= Uni, GH, PH, TH und KunstH) | C70: ~~ | D70: zusammen | E70: ~~ | F70: zusammen | G70: i | H70: 121785 | I70: 29869 | J70: 91916 | K70: 64134 | L70: 4773 | M70: 59361 | N70: 98070 | O70: 12736 | P70: 85334
A71: 2 | B71: FH + VerwFH | C71: 1 | D71: Sprach- und Kulturwissenschaften | E71: 3 | F71: Wiss. u. künstl. Mitarbeiter | G71: m | H71: 43 | I71: 24 | J71: 19 | K71: 9 | L71: . | M71: . | N71: 24 | O71: 8 | P71: 16
A72: 2 | B72: FH + VerwFH | C72: 1 | D72: Sprach- und Kulturwissenschaften | E72: 3 | F72: Wiss. u. künstl. Mitarbeiter | G72: w | H72: 49 | I72: 16 | J72: 33 | K72: 12 | L72: . | M72: . | N72: 35 | O72: 6 | P72: 29
A73: 2 | B73: FH + VerwFH | C73: 1 | D73: Sprach- und Kulturwissenschaften | E73: 3 | F73: Wiss. u. künstl. Mitarbeiter | G73: i | H73: 92 | I73: 40 | J73: 52 | K73: 21 | L73: . | M73: . | N73: 59 | O73: 14 | P73: 45
A74: 2 | B74: FH + VerwFH | C74: 1 | D74: Sprach- und Kulturwissenschaften | E74: 4 | F74: Lehrkr. f. bes. Aufgaben + Doz. u. Assistenten | G74: m | H74: 130 | I74: 94 | J74: 36 | K74: 13 | L74: . | M74: . | N74: 51 | O74: 31 | P74: 20
A75: 2 | B75: FH + VerwFH | C75: 1 | D75: Sprach- und Kulturwissenschaften | E75: 4 | F75: Lehrkr. f. bes. Aufgaben + Doz. u. Assistenten | G75: w | H75: 227 | I75: 176 | J75: 51 | K75: 17 | L75: . | M75: . | N75: 86 | O75: 59 | P75: 27
A76: 2 | B76: FH + VerwFH | C76: 1 | D76: Sprach- und Kulturwissenschaften | E76: 4 | F76: Lehrkr. f. bes. Aufgaben + Doz. u. Assistenten | G76: i | H76: 357 | I76: 270 | J76: 87 | K76: 30 | L76: . | M76: . | N76: 137 | O76: 90 | P76: 47
A77: 2 | B77: FH + VerwFH | C77: 1 | D77: Sprach- und Kulturwissenschaften | E77: ~~ | F77: zusammen | G77: m | H77: 173 | I77: 118 | J77: 55 | K77: 22 | L77: . | M77: . | N77: 75 | O77: 39 | P77: 36
A78: 2 | B78: FH + VerwFH | C78: 1 | D78: Sprach- und Kulturwissenschaften | E78: ~~ | F78: zusammen | G78: w | H78: 276 | I78: 192 | J78: 84 | K78: 29 | L78: . | M78: . | N78: 121 | O78: 65 | P78: 56
A79: 2 | B79: FH + VerwFH | C79: 1 | D79: Sprach- und Kulturwissenschaften | E79: ~~ | F79: zusammen | G79: i | H79: 449 | I79: 310 | J79: 139 | K79: 51 | L79: . | M79: . | N79: 196 | O79: 104 | P79: 92 | Q79: =IF(OR(H79=I79,H79=J79),"X","") ->  | R79: =IF(OR(K79=L79,K79=M79),"X","") ->  | S79: =IF(OR(N79=O79,N79=P79),"X","") -> 
A80: 2 | B80: FH + VerwFH | C80: 3 | D80: Rechts-, Wirtschafts- und Sozialwissenschaften | E80: 3 | F80: Wiss. u. künstl. Mitarbeiter | G80: m | H80: 366 | I80: 244 | J80: 122 | K80: 69 | L80: 9 | M80: 60 | N80: 173 | O80: 82 | P80: 91
A81: 2 | B81: FH + VerwFH | C81: 3 | D81: Rechts-, Wirtschafts- und Sozialwissenschaften | E81: 3 | F81: Wiss. u. künstl. Mitarbeiter | G81: w | H81: 302 | I81: 127 | J81: 175 | K81: 97 | L81: 17 | M81: 80 | N81: 223 | O81: 73 | P81: 150
A82: 2 | B82: FH + VerwFH | C82: 3 | D82: Rechts-, Wirtschafts- und Sozialwissenschaften | E82: 3 | F82: Wiss. u. künstl. Mitarbeiter | G82: i | H82: 668 | I82: 371 | J82: 297 | K82: 166 | L82: 26 | M82: 140 | N82: 396 | O82: 155 | P82: 241
A83: 2 | B83: FH + VerwFH | C83: 3 | D83: Rechts-, Wirtschafts- und Sozialwissenschaften | E83: 4 | F83: Lehrkr. f. bes. Aufgaben + Doz. u. Assistenten | G83: m | H83: 1262 | I83: 996 | J83: 266 | K83: 79 | L83: 37 | M83: 42 | N83: 429 | O83: 283 | P83: 146
A84: 2 | B84: FH + VerwFH | C84: 3 | D84: Rechts-, Wirtschafts- und Sozialwissenschaften | E84: 4 | F84: Lehrkr. f. bes. Aufgaben + Doz. u. Assistenten | G84: w | H84: 475 | I84: 336 | J84: 139 | K84: 75 | L84: 28 | M84: 47 | N84: 242 | O84: 142 | P84: 100
A85: 2 | B85: FH + VerwFH | C85: 3 | D85: Rechts-, Wirtschafts- und Sozialwissenschaften | E85: 4 | F85: Lehrkr. f. bes. Aufgaben + Doz. u. Assistenten | G85: i | H85: 1737 | I85: 1332 | J85: 405 | K85: 154 | L85: 65 | M85: 89 | N85: 671 | O85: 425 | P85: 246
A86: 2 | B86: FH + VerwFH | C86: 3 | D86: Rechts-, Wirtschafts- und Sozialwissenschaften | E86: ~~ | F86: zusammen | G86: m | H86: 1628 | I86: 1240 | J86: 388 | K86: 148 | L86: 46 | M86: 102 | N86: 602 | O86: 365 | P86: 237
A87: 2 | B87: FH + VerwFH | C87: 3 | D87: Rechts-, Wirtschafts- und Sozialwissenschaften | E87: ~~ | F87: zusammen | G87: w | H87: 777 | I87: 463 | J87: 314 | K87: 172 | L87: 45 | M87: 127 | N87: 465 | O87: 215 | P87: 250
A88: 2 | B88: FH + VerwFH | C88: 3 | D88: Rechts-, Wirtschafts- und Sozialwissenschaften | E88: ~~ | F88: zusammen | G88: i | H88: 2405 | I88: 1703 | J88: 702 | K88: 320 | L88: 91 | M88: 229 | N88: 1067 | O88: 580 | P88: 487
A89: 2 | B89: FH + VerwFH | C89: 4 | D89: Mathematik, Naturwissenschaften | E89: 3 | F89: Wiss. u. künstl. Mitarbeiter | G89: m | H89: 294 | I89: 122 | J89: 172 | K89: 130 | L89: 11 | M89: 119 | N89: 214 | O89: 58 | P89: 156
A90: 2 | B90: FH + VerwFH | C90: 4 | D90: Mathematik, Naturwissenschaften | E90: 3 | F90: Wiss. u. künstl. Mitarbeiter | G90: w | H90: 127 | I90: 42 | J90: 85 | K90: 52 | L90: 7 | M90: 45 | N90: 101 | O90: 26 | P90: 75
A91: 2 | B91: FH + VerwFH | C91: 4 | D91: Mathematik, Naturwissenschaften | E91: 3 | F91: Wiss. u. künstl. Mitarbeiter | G91: i | H91: 421 | I91: 164 | J91: 257 | K91: 182 | L91: 18 | M91: 164 | N91: 315 | O91: 84 | P91: 231
A92: 2 | B92: FH + VerwFH | C92: 4 | D92: Mathematik, Naturwissenschaften | E92: 4 | F92: Lehrkr. f. bes. Aufgaben + Doz. u. Assistenten | G92: m | H92: 164 | I92: 80 | J92: 84 | K92: 41 | L92: . | M92: . | N92: 74 | O92: 21 | P92: 53
A93: 2 | B93: FH + VerwFH | C93: 4 | D93: Mathematik, Naturwissenschaften | E93: 4 | F93: Lehrkr. f. bes. Aufgaben + Doz. u. Assistenten | G93: w | H93: 43 | I93: 21 | J93: 22 | K93: 9 | L93: . | M93: . | N93: 27 | O93: 6 | P93: 21
A94: 2 | B94: FH + VerwFH | C94: 4 | D94: Mathematik, Naturwissenschaften | E94: 4 | F94: Lehrkr. f. bes. Aufgaben + Doz. u. Assistenten | G94: i | H94: 207 | I94: 101 | J94: 106 | K94: 50 | L94: 4 | M94: 46 | N94: 101 | O94: 27 | P94: 74
A95: 2 | B95: FH + VerwFH | C95: 4 | D95: Mathematik, Naturwissenschaften | E95: ~~ | F95: zusammen | G95: m | H95: 458 | I95: 202 | J95: 256 | K95: 171 | L95: 15 | M95: 156 | N95: 288 | O95: 79 | P95: 209
A96: 2 | B96: FH + VerwFH | C96: 4 | D96: Mathematik, Naturwissenschaften | E96: ~~ | F96: zusammen | G96: w | H96: 170 | I96: 63 | J96: 107 | K96: 61 | L96: 7 | M96: 54 | N96: 128 | O96: 32 | P96: 96
A97: 2 | B97: FH + VerwFH | C97: 4 | D97: Mathematik, Naturwissenschaften | E97: ~~ | F97: zusammen | G97: i | H97: 628 | I97: 265 | J97: 363 | K97: 232 | L97: 22 | M97: 210 | N97: 416 | O97: 111 | P97: 305
A98: 2 | B98: FH + VerwFH | C98: 5 | D98: Humanmedizin/Gesundheitswissenschaften + Veterinärmedizin | E98: 3 | F98: Wiss. u. künstl. Mitarbeiter | G98: m | H98: 6 | I98: 4 | J98: 2 | K98: 1 | L98: . | M98: . | N98: 3 | O98: . | P98: .
A99: 2 | B99: FH + VerwFH | C99: 5 | D99: Humanmedizin/Gesundheitswissenschaften + Veterinärmedizin | E99: 3 | F99: Wiss. u. künstl. Mitarbeiter | G99: w | H99: 27 | I99: 2 | J99: 25 | K99: 4 | L99: . | M99: . | N99: 18 | O99: . | P99: .
A100: 2 | B100: FH + VerwFH | C100: 5 | D100: Humanmedizin/Gesundheitswissenschaften + Veterinärmedizin | E100: 3 | F100: Wiss. u. künstl. Mitarbeiter | G100: i | H100: 33 | I100: 6 | J100: 27 | K100: 5 | L100: . | M100: . | N100: 21 | O100: 2 | P100: 19
A101: 2 | B101: FH + VerwFH | C101: 5 | D101: Humanmedizin/Gesundheitswissenschaften + Veterinärmedizin | E101: 4 | F101: Lehrkr. f. bes. Aufgaben + Doz. u. Assistenten | G101: m | H101: 9 | I101: 5 | J101: 4 | K101: 0 | L101: . | M101: . | N101: 2 | O101: 1 | P101: 1
A102: 2 | B102: FH + VerwFH | C102: 5 | D102: Humanmedizin/Gesundheitswissenschaften + Veterinärmedizin | E102: 4 | F102: Lehrkr. f. bes. Aufgaben + Doz. u. Assistenten | G102: w | H102: 6 | I102: 2 | J102: 4 | K102: 0 | L102: . | M102: . | N102: 6 | O102: 2 | P102: 4
A103: 2 | B103: FH + VerwFH | C103: 5 | D103: Humanmedizin/Gesundheitswissenschaften + Veterinärmedizin | E103: 4 | F103: Lehrkr. f. bes. Aufgaben + Doz. u. Assistenten | G103: i | H103: 15 | I103: 7 | J103: 8 | K103: 0 | L103: . | M103: . | N103: 8 | O103: 3 | P103: 5
A104: 2 | B104: FH + VerwFH | C104: 5 | D104: Humanmedizin/Gesundheitswissenschaften + Veterinärmedizin | E104: ~~ | F104: zusammen | G104: m | H104: 15 | I104: 9 | J104: 6 | K104: 1 | L104: . | M104: . | N104: 5 | O104: 3 | P104: 2
A105: 2 | B105: FH + VerwFH | C105: 5 | D105: Humanmedizin/Gesundheitswissenschaften + Veterinärmedizin | E105: ~~ | F105: zusammen | G105: w | H105: 33 | I105: 4 | J105: 29 | K105: 4 | L105: . | M105: . | N105: 24 | O105: 2 | P105: 22
A106: 2 | B106: FH + VerwFH | C106: 5 | D106: Humanmedizin/Gesundheitswissenschaften + Veterinärmedizin | E106: ~~ | F106: zusammen | G106: i | H106: 48 | I106: 13 | J106: 35 | K106: 5 | L106: . | M106: . | N106: 29 | O106: 5 | P106: 24
A107: 2 | B107: FH + VerwFH | C107: 8 | D107: Ingenieurwissenschaften | E107: 3 | F107: Wiss. u. künstl. Mitarbeiter | G107: m | H107: 1012 | I107: 502 | J107: 510 | K107: 312 | L107: 21 | M107: 291 | N107: 600 | O107: 178 | P107: 422
A108: 2 | B108: FH + VerwFH | C108: 8 | D108: Ingenieurwissenschaften | E108: 3 | F108: Wiss. u. künstl. Mitarbeiter | G108: w | H108: 303 | I108: 98 | J108: 205 | K108: 116 | L108: 7 | M108: 109 | N108: 240 | O108: 57 | P108: 183
A109: 2 | B109: FH + VerwFH | C109: 8 | D109: Ingenieurwissenschaften | E109: 3 | F109: Wiss. u. künstl. Mitarbeiter | G109: i | H109: 1315 | I109: 600 | J109: 715 | K109: 428 | L109: 28 | M109: 400 | N109: 840 | O109: 235 | P109: 605
A110: 2 | B110: FH + VerwFH | C110: 8 | D110: Ingenieurwissenschaften | E110: 4 | F110: Lehrkr. f. bes. Aufgaben + Doz. u. Assistenten | G110: m | H110: 206 | I110: 102 | J110: 104 | K110: 67 | L110: . | M110: . | N110: 111 | O110: 24 | P110: 87
A111: 2 | B111: FH + VerwFH | C111: 8 | D111: Ingenieurwissenschaften | E111: 4 | F111: Lehrkr. f. bes. Aufgaben + Doz. u. Assistenten | G111: w | H111: 82 | I111: 37 | J111: 45 | K111: 22 | L111: . | M111: . | N111: 55 | O111: 15 | P111: 40
A112: 2 | B112: FH + VerwFH | C112: 8 | D112: Ingenieurwissenschaften | E112: 4 | F112: Lehrkr. f. bes. Aufgaben + Doz. u. Assistenten | G112: i | H112: 288 | I112: 139 | J112: 149 | K112: 89 | L112: 2 | M112: 87 | N112: 166 | O112: 39 | P112: 127
A113: 2 | B113: FH + VerwFH | C113: 8 | D113: Ingenieurwissenschaften | E113: ~~ | F113: zusammen | G113: m | H113: 1218 | I113: 604 | J113: 614 | K113: 379 | L113: 23 | M113: 356 | N113: 711 | O113: 202 | P113: 509
A114: 2 | B114: FH + VerwFH | C114: 8 | D114: Ingenieurwissenschaften | E114: ~~ | F114: zusammen | G114: w | H114: 385 | I114: 135 | J114: 250 | K114: 138 | L114: 7 | M114: 131 | N114: 295 | O114: 72 | P114: 223
A115: 2 | B115: FH + VerwFH | C115: 8 | D115: Ingenieurwissenschaften | E115: ~~ | F115: zusammen | G115: i | H115: 1603 | I115: 739 | J115: 864 | K115: 517 | L115: 30 | M115: 487 | N115: 1006 | O115: 274 | P115: 732
A116: 2 | B116: FH + VerwFH | C116: 10 | D116: Restliche Fächergruppen | E116: 3 | F116: Wiss. u. künstl. Mitarbeiter | G116: m | H116: 370 | I116: 188 | J116: 182 | K116: 95 | L116: 11 | M116: 84 | N116: 213 | O116: 68 | P116: 145
A117: 2 | B117: FH + VerwFH | C117: 10 | D117: Restliche Fächergruppen | E117: 3 | F117: Wiss. u. künstl. Mitarbeiter | G117: w | H117: 308 | I117: 94 | J117: 214 | K117: 91 | L117: 4 | M117: 87 | N117: 219 | O117: 42 | P117: 177
A118: 2 | B118: FH + VerwFH | C118: 10 | D118: Restliche Fächergruppen | E118: 3 | F118: Wiss. u. künstl. Mitarbeiter | G118: i | H118: 678 | I118: 282 | J118: 396 | K118: 186 | L118: 15 | M118: 171 | N118: 432 | O118: 110 | P118: 322
A119: 2 | B119: FH + VerwFH | C119: 10 | D119: Restliche Fächergruppen | E119: 4 | F119: Lehrkr. f. bes. Aufgaben + Doz. u. Assistenten | G119: m | H119: 137 | I119: 103 | J119: 34 | K119: 14 | L119: . | M119: . | N119: 48 | O119: 26 | P119: 22
A120: 2 | B120: FH + VerwFH | C120: 10 | D120: Restliche Fächergruppen | E120: 4 | F120: Lehrkr. f. bes. Aufgaben + Doz. u. Assistenten | G120: w | H120: 139 | I120: 94 | J120: 45 | K120: 15 | L120: . | M120: . | N120: 54 | O120: 28 | P120: 26
A121: 2 | B121: FH + VerwFH | C121: 10 | D121: Restliche Fächergruppen | E121: 4 | F121: Lehrkr. f. bes. Aufgaben + Doz. u. Assistenten | G121: i | H121: 276 | I121: 197 | J121: 79 | K121: 29 | L121: 2 | M121: 27 | N121: 102 | O121: 54 | P121: 48
A122: 2 | B122: FH + VerwFH | C122: 10 | D122: Restliche Fächergruppen | E122: ~~ | F122: zusammen | G122: m | H122: 507 | I122: 291 | J122: 216 | K122: 109 | L122: 13 | M122: 96 | N122: 261 | O122: 94 | P122: 167
A123: 2 | B123: FH + VerwFH | C123: 10 | D123: Restliche Fächergruppen | E123: ~~ | F123: zusammen | G123: w | H123: 447 | I123: 188 | J123: 259 | K123: 106 | L123: 4 | M123: 102 | N123: 273 | O123: 70 | P123: 203
A124: 2 | B124: FH + VerwFH | C124: 10 | D124: Restliche Fächergruppen | E124: ~~ | F124: zusammen | G124: i | H124: 954 | I124: 479 | J124: 475 | K124: 215 | L124: 17 | M124: 198 | N124: 534 | O124: 164 | P124: 370
A125: 2 | B125: FH + VerwFH | C125: ~~ | D125: zusammen | E125: ~~ | F125: zusammen | G125: m | H125: 3999 | I125: 2464 | J125: 1535 | K125: 830 | L125: 103 | M125: 727 | N125: 1942 | O125: 782 | P125: 1160
A126: 2 | B126: FH + VerwFH | C126: ~~ | D126: zusammen | E126: ~~ | F126: zusammen | G126: w | H126: 2088 | I126: 1045 | J126: 1043 | K126: 510 | L126: 74 | M126: 436 | N126: 1306 | O126: 456 | P126: 850
A127: 2 | B127: FH + VerwFH | C127: ~~ | D127: zusammen | E127: ~~ | F127: zusammen | G127: i | H127: 6087 | I127: 3509 | J127: 2578 | K127: 1340 | L127: 177 | M127: 1163 | N127: 3248 | O127: 1238 | P127: 2010
A128: ~ | B128: Insgesamt | G128: m | H128: 83244 | I128: 23289 | J128: 59955 | K128: 41120 | L128: 3026 | M128: 38094 | N128: 64586 | O128: 9150 | P128: 55436
A129: ~ | B129: Insgesamt | G129: w | H129: 44628 | I129: 10089 | J129: 34539 | K129: 24354 | L129: 1924 | M129: 22430 | N129: 36732 | O129: 4824 | P129: 31908
A130: ~ | B130: Insgesamt | G130: i | H130: 127872 | I130: 33378 | J130: 94494 | K130: 65474 | L130: 4950 | M130: 60524 | N130: 101318 | O130: 13974 | P130: 87344

Sheet 1.4
A1: Statistisches Bundesamt
A2: H201 - Hochschulstatistik
A5: Hauptberufliches wissenschaftliches und künstlerisches Personal (ohne Professoren) nach ausgewählten Hochschularten, Fächer- und Personalgruppen
A6: im Berichtsjahr 2000
H8: Hauptber. wiss. und | K8: Hauptber. wiss. und | N8: Hauptber. wiss. und
H9: künstler. Personal | K9: künstler. Personal | N9: künstler. Personal
B10: Hochschulart | D10: Fächergruppe | F10: Personalgruppe | G10: Ge- | H10: (ohne Professoren) | K10: (ohne Professoren) | N10: (ohne Professoren)
D11: der fachl. Zugehörigkeit | G11: schlecht | K11: im Alter bis einschl. 34 Jahren | N11: im Alter bis einschl. 44 Jahren
H12: insgesamt | I12: auf Dauer | J12: auf Zeit | K12: insgesamt | L12: auf Dauer | M12: auf Zeit | N12: insgesamt | O12: auf Dauer | P12: auf Zeit
A14: 1 | B14: Wiss. Hochschulen (= Uni, GH, PH, TH und KunstH) | C14: 1 | D14: Sprach- und Kulturwissenschaften | E14: 3 | F14: Wiss. u. künstl. Mitarbeiter | G14: m | H14: 5139 | I14: 2010 | J14: 3129 | K14: 1759 | L14: 111 | M14: 1648 | N14: 3169 | O14: 416 | P14: 2753 | Q14: =IF(OR(H14=I14,H14=J14),"X","") ->  | R14: =IF(OR(K14=L14,K14=M14),"X","") ->  | S14: =IF(OR(N14=O14,N14=P14),"X","") -> 
A15: 1 | B15: Wiss. Hochschulen (= Uni, GH, PH, TH und KunstH) | C15: 1 | D15: Sprach- und Kulturwissenschaften | E15: 3 | F15: Wiss. u. künstl. Mitarbeiter | G15: w | H15: 4163 | I15: 1048 | J15: 3115 | K15: 1930 | L15: 114 | M15: 1816 | N15: 3167 | O15: 372 | P15: 2795 | Q15: =IF(OR(H15=I15,H15=J15),"X","") ->  | R15: =IF(OR(K15=L15,K15=M15),"X","") ->  | S15: =IF(OR(N15=O15,N15=P15),"X","") -> 
A16: 1 | B16: Wiss. Hochschulen (= Uni, GH, PH, TH und KunstH) | C16: 1 | D16: Sprach- und Kulturwissenschaften | E16: 3 | F16: Wiss. u. künstl. Mitarbeiter | G16: i | H16: 9302 | I16: 3058 | J16: 6244 | K16: 3689 | L16: 225 | M16: 3464 | N16: 6336 | O16: 788 | P16: 5548
A17: 1 | B17: Wiss. Hochschulen (= Uni, GH, PH, TH und KunstH) | C17: 1 | D17: Sprach- und Kulturwissenschaften | E17: 4 | F17: Lehrkr. f. bes. Aufgaben + Doz. u. Assistenten | G17: m | H17: 2300 | I17: 803 | J17: 1497 | K17: 376 | L17: 21 | M17: 355 | N17: 1444 | O17: 157 | P17: 1287
A18: 1 | B18: Wiss. Hochschulen (= Uni, GH, PH, TH und KunstH) | C18: 1 | D18: Sprach- und Kulturwissenschaften | E18: 4 | F18: Lehrkr. f. bes. Aufgaben + Doz. u. Assistenten | G18: w | H18: 1968 | I18: 845 | J18: 1123 | K18: 394 | L18: 61 | M18: 333 | N18: 1222 | O18: 267 | P18: 955
A19: 1 | B19: Wiss. Hochschulen (= Uni, GH, PH, TH und KunstH) | C19: 1 | D19: Sprach- und Kulturwissenschaften | E19: 4 | F19: Lehrkr. f. bes. Aufgaben + Doz. u. Assistenten | G19: i | H19: 4268 | I19: 1648 | J19: 2620 | K19: 770 | L19: 82 | M19: 688 | N19: 2666 | O19: 424 | P19: 2242
A20: 1 | B20: Wiss. Hochschulen (= Uni, GH, PH, TH und KunstH) | C20: 1 | D20: Sprach- und Kulturwissenschaften | E20: ~~ | F20: zusammen | G20: m | H20: 7439 | I20: 2813 | J20: 4626 | K20: 2135 | L20: 132 | M20: 2003 | N20: 4613 | O20: 573 | P20: 4040
A21: 1 | B21: Wiss. Hochschulen (= Uni, GH, PH, TH und KunstH) | C21: 1 | D21: Sprach- und Kulturwissenschaften | E21: ~~ | F21: zusammen | G21: w | H21: 6131 | I21: 1893 | J21: 4238 | K21: 2324 | L21: 175 | M21: 2149 | N21: 4389 | O21: 639 | P21: 3750
A22: 1 | B22: Wiss. Hochschulen (= Uni, GH, PH, TH und KunstH) | C22: 1 | D22: Sprach- und Kulturwissenschaften | E22: ~~ | F22: zusammen | G22: i | H22: 13570 | I22: 4706 | J22: 8864 | K22: 4459 | L22: 307 | M22: 4152 | N22: 9002 | O22: 1212 | P22: 7790
A23: 1 | B23: Wiss. Hochschulen (= Uni, GH, PH, TH und KunstH) | C23: 3 | D23: Rechts-, Wirtschafts- und Sozialwissenschaften | E23: 3 | F23: Wiss. u. künstl. Mitarbeiter | G23: m | H23: 5218 | I23: 969 | J23: 4249 | K23: 3835 | L23: . | M23: . | N23: 4531 | O23: 428 | P23: 4103
A24: 1 | B24: Wiss. Hochschulen (= Uni, GH, PH, TH und KunstH) | C24: 3 | D24: Rechts-, Wirtschafts- und Sozialwissenschaften | E24: 3 | F24: Wiss. u. künstl. Mitarbeiter | G24: w | H24: 2429 | I24: 341 | J24: 2088 | K24: 1883 | L24: . | M24: . | N24: 2237 | O24: 210 | P24: 2027
A25: 1 | B25: Wiss. Hochschulen (= Uni, GH, PH, TH und KunstH) | C25: 3 | D25: Rechts-, Wirtschafts- und Sozialwissenschaften | E25: 3 | F25: Wiss. u. künstl. Mitarbeiter | G25: i | H25: 7647 | I25: 1310 | J25: 6337 | K25: 5718 | L25: . | M25: . | N25: 6768 | O25: 638 | P25: 6130
A26: 1 | B26: Wiss. Hochschulen (= Uni, GH, PH, TH und KunstH) | C26: 3 | D26: Rechts-, Wirtschafts- und Sozialwissenschaften | E26: 4 | F26: Lehrkr. f. bes. Aufgaben + Doz. u. Assistenten | G26: m | H26: 1199 | I26: 113 | J26: 1086 | K26: 482 | L26: . | M26: . | N26: 1066 | O26: 17 | P26: 1049
A27: 1 | B27: Wiss. Hochschulen (= Uni, GH, PH, TH und KunstH) | C27: 3 | D27: Rechts-, Wirtschafts- und Sozialwissenschaften | E27: 4 | F27: Lehrkr. f. bes. Aufgaben + Doz. u. Assistenten | G27: w | H27: 413 | I27: 40 | J27: 373 | K27: 179 | L27: . | M27: . | N27: 356 | O27: 7 | P27: 349
A28: 1 | B28: Wiss. Hochschulen (= Uni, GH, PH, TH und KunstH) | C28: 3 | D28: Rechts-, Wirtschafts- und Sozialwissenschaften | E28: 4 | F28: Lehrkr. f. bes. Aufgaben + Doz. u. Assistenten | G28: i | H28: 1612 | I28: 153 | J28: 1459 | K28: 661 | L28: . | M28: . | N28: 1422 | O28: 24 | P28: 1398
A29: 1 | B29: Wiss. Hochschulen (= Uni, GH, PH, TH und KunstH) | C29: 3 | D29: Rechts-, Wirtschafts- und Sozialwissenschaften | E29: ~~ | F29: zusammen | G29: m | H29: 6417 | I29: 1082 | J29: 5335 | K29: 4317 | L29: 297 | M29: 4020 | N29: 5597 | O29: 445 | P29: 5152
A30: 1 | B30: Wiss. Hochschulen (= Uni, GH, PH, TH und KunstH) | C30: 3 | D30: Rechts-, Wirtschafts- und Sozialwissenschaften | E30: ~~ | F30: zusammen | G30: w | H30: 2842 | I30: 381 | J30: 2461 | K30: 2062 | L30: 149 | M30: 1913 | N30: 2593 | O30: 217 | P30: 2376
A31: 1 | B31: Wiss. Hochschulen (= Uni, GH, PH, TH und KunstH) | C31: 3 | D31: Rechts-, Wirtschafts- und Sozialwissenschaften | E31: ~~ | F31: zusammen | G31: i | H31: 9259 | I31: 1463 | J31: 7796 | K31: 6379 | L31: 446 | M31: 5933 | N31: 8190 | O31: 662 | P31: 7528
A32: 1 | B32: Wiss. Hochschulen (= Uni, GH, PH, TH und KunstH) | C32: 4 | D32: Mathematik, Naturwissenschaften | E32: 3 | F32: Wiss. u. künstl. Mitarbeiter | G32: m | H32: 18768 | I32: 4710 | J32: 14058 | K32: 12262 | L32: 753 | M32: 11509 | N32: 15232 | O32: 1654 | P32: 13578
A33: 1 | B33: Wiss. Hochschulen (= Uni, GH, PH, TH und KunstH) | C33: 4 | D33: Mathematik, Naturwissenschaften | E33: 3 | F33: Wiss. u. künstl. Mitarbeiter | G33: w | H33: 5243 | I33: 670 | J33: 4573 | K33: 3893 | L33: 159 | M33: 3734 | N33: 4770 | O33: 345 | P33: 4425
A34: 1 | B34: Wiss. Hochschulen (= Uni, GH, PH, TH und KunstH) | C34: 4 | D34: Mathematik, Naturwissenschaften | E34: 3 | F34: Wiss. u. künstl. Mitarbeiter | G34: i | H34: 24011 | I34: 5380 | J34: 18631 | K34: 16155 | L34: 912 | M34: 15243 | N34: 20002 | O34: 1999 | P34: 18003
A35: 1 | B35: Wiss. Hochschulen (= Uni, GH, PH, TH und KunstH) | C35: 4 | D35: Mathematik, Naturwissenschaften | E35: 4 | F35: Lehrkr. f. bes. Aufgaben + Doz. u. Assistenten | G35: m | H35: 2616 | I35: 360 | J35: 2256 | K35: 753 | L35: 4 | M35: 749 | N35: 2177 | O35: 51 | P35: 2126
A36: 1 | B36: Wiss. Hochschulen (= Uni, GH, PH, TH und KunstH) | C36: 4 | D36: Mathematik, Naturwissenschaften | E36: 4 | F36: Lehrkr. f. bes. Aufgaben + Doz. u. Assistenten | G36: w | H36: 520 | I36: 70 | J36: 450 | K36: 159 | L36: 3 | M36: 156 | N36: 432 | O36: 20 | P36: 412
A37: 1 | B37: Wiss. Hochschulen (= Uni, GH, PH, TH und KunstH) | C37: 4 | D37: Mathematik, Naturwissenschaften | E37: 4 | F37: Lehrkr. f. bes. Aufgaben + Doz. u. Assistenten | G37: i | H37: 3136 | I37: 430 | J37: 2706 | K37: 912 | L37: 7 | M37: 905 | N37: 2609 | O37: 71 | P37: 2538
A38: 1 | B38: Wiss. Hochschulen (= Uni, GH, PH, TH und KunstH) | C38: 4 | D38: Mathematik, Naturwissenschaften | E38: ~~ | F38: zusammen | G38: m | H38: 21384 | I38: 5070 | J38: 16314 | K38: 13015 | L38: 757 | M38: 12258 | N38: 17409 | O38: 1705 | P38: 15704
A39: 1 | B39: Wiss. Hochschulen (= Uni, GH, PH, TH und KunstH) | C39: 4 | D39: Mathematik, Naturwissenschaften | E39: ~~ | F39: zusammen | G39: w | H39: 5763 | I39: 740 | J39: 5023 | K39: 4052 | L39: 162 | M39: 3890 | N39: 5202 | O39: 365 | P39: 4837
A40: 1 | B40: Wiss. Hochschulen (= Uni, GH, PH, TH und KunstH) | C40: 4 | D40: Mathematik, Naturwissenschaften | E40: ~~ | F40: zusammen | G40: i | H40: 27147 | I40: 5810 | J40: 21337 | K40: 17067 | L40: 919 | M40: 16148 | N40: 22611 | O40: 2070 | P40: 20541
A41: 1 | B41: Wiss. Hochschulen (= Uni, GH, PH, TH und KunstH) | C41: 5 | D41: Humanmedizin/Gesundheitswissenschaften + Veterinärmedizin | E41: 3 | F41: Wiss. u. künstl. Mitarbeiter | G41: m | H41: 19620 | I41: 5582 | J41: 14038 | K41: 9048 | L41: 390 | M41: 8658 | N41: 16027 | O41: 2589 | P41: 13438
A42: 1 | B42: Wiss. Hochschulen (= Uni, GH, PH, TH und KunstH) | C42: 5 | D42: Humanmedizin/Gesundheitswissenschaften + Veterinärmedizin | E42: 3 | F42: Wiss. u. künstl. Mitarbeiter | G42: w | H42: 12191 | I42: 2477 | J42: 9714 | K42: 7076 | L42: 339 | M42: 6737 | N42: 10465 | O42: 1222 | P42: 9243
A43: 1 | B43: Wiss. Hochschulen (= Uni, GH, PH, TH und KunstH) | C43: 5 | D43: Humanmedizin/Gesundheitswissenschaften + Veterinärmedizin | E43: 3 | F43: Wiss. u. künstl. Mitarbeiter | G43: i | H43: 31811 | I43: 8059 | J43: 23752 | K43: 16124 | L43: 729 | M43: 15395 | N43: 26492 | O43: 3811 | P43: 22681
A44: 1 | B44: Wiss. Hochschulen (= Uni, GH, PH, TH und KunstH) | C44: 5 | D44: Humanmedizin/Gesundheitswissenschaften + Veterinärmedizin | E44: 4 | F44: Lehrkr. f. bes. Aufgaben + Doz. u. Assistenten | G44: m | H44: 3876 | I44: 184 | J44: 3692 | K44: 978 | L44: 2 | M44: 976 | N44: 3388 | O44: 33 | P44: 3355
A45: 1 | B45: Wiss. Hochschulen (= Uni, GH, PH, TH und KunstH) | C45: 5 | D45: Humanmedizin/Gesundheitswissenschaften + Veterinärmedizin | E45: 4 | F45: Lehrkr. f. bes. Aufgaben + Doz. u. Assistenten | G45: w | H45: 1530 | I45: 51 | J45: 1479 | K45: 566 | L45: 5 | M45: 561 | N45: 1356 | O45: 13 | P45: 1343
A46: 1 | B46: Wiss. Hochschulen (= Uni, GH, PH, TH und KunstH) | C46: 5 | D46: Humanmedizin/Gesundheitswissenschaften + Veterinärmedizin | E46: 4 | F46: Lehrkr. f. bes. Aufgaben + Doz. u. Assistenten | G46: i | H46: 5406 | I46: 235 | J46: 5171 | K46: 1544 | L46: 7 | M46: 1537 | N46: 4744 | O46: 46 | P46: 4698
A47: 1 | B47: Wiss. Hochschulen (= Uni, GH, PH, TH und KunstH) | C47: 5 | D47: Humanmedizin/Gesundheitswissenschaften + Veterinärmedizin | E47: ~~ | F47: zusammen | G47: m | H47: 23496 | I47: 5766 | J47: 17730 | K47: 10026 | L47: 392 | M47: 9634 | N47: 19415 | O47: 2622 | P47: 16793
A48: 1 | B48: Wiss. Hochschulen (= Uni, GH, PH, TH und KunstH) | C48: 5 | D48: Humanmedizin/Gesundheitswissenschaften + Veterinärmedizin | E48: ~~ | F48: zusammen | G48: w | H48: 13721 | I48: 2528 | J48: 11193 | K48: 7642 | L48: 344 | M48: 7298 | N48: 11821 | O48: 1235 | P48: 10586
A49: 1 | B49: Wiss. Hochschulen (= Uni, GH, PH, TH und KunstH) | C49: 5 | D49: Humanmedizin/Gesundheitswissenschaften + Veterinärmedizin | E49: ~~ | F49: zusammen | G49: i | H49: 37217 | I49: 8294 | J49: 28923 | K49: 17668 | L49: 736 | M49: 16932 | N49: 31236 | O49: 3857 | P49: 27379
A50: 1 | B50: Wiss. Hochschulen (= Uni, GH, PH, TH und KunstH) | C50: 8 | D50: Ingenieurwissenschaften | E50: 3 | F50: Wiss. u. künstl. Mitarbeiter | G50: m | H50: 12541 | I50: 2609 | J50: 9932 | K50: 8486 | L50: 401 | M50: 8085 | N50: 10519 | O50: 991 | P50: 9528
A51: 1 | B51: Wiss. Hochschulen (= Uni, GH, PH, TH und KunstH) | C51: 8 | D51: Ingenieurwissenschaften | E51: 3 | F51: Wiss. u. künstl. Mitarbeiter | G51: w | H51: 2116 | I51: 270 | J51: 1846 | K51: 1438 | L51: 61 | M51: 1377 | N51: 1916 | O51: 140 | P51: 1776
A52: 1 | B52: Wiss. Hochschulen (= Uni, GH, PH, TH und KunstH) | C52: 8 | D52: Ingenieurwissenschaften | E52: 3 | F52: Wiss. u. künstl. Mitarbeiter | G52: i | H52: 14657 | I52: 2879 | J52: 11778 | K52: 9924 | L52: 462 | M52: 9462 | N52: 12435 | O52: 1131 | P52: 11304
A53: 1 | B53: Wiss. Hochschulen (= Uni, GH, PH, TH und KunstH) | C53: 8 | D53: Ingenieurwissenschaften | E53: 4 | F53: Lehrkr. f. bes. Aufgaben + Doz. u. Assistenten | G53: m | H53: 1296 | I53: 138 | J53: 1158 | K53: 682 | L53: 6 | M53: 676 | N53: 1109 | O53: 26 | P53: 1083
A54: 1 | B54: Wiss. Hochschulen (= Uni, GH, PH, TH und KunstH) | C54: 8 | D54: Ingenieurwissenschaften | E54: 4 | F54: Lehrkr. f. bes. Aufgaben + Doz. u. Assistenten | G54: w | H54: 186 | I54: 7 | J54: 179 | K54: 89 | L54: 1 | M54: 88 | N54: 166 | O54: 2 | P54: 164
A55: 1 | B55: Wiss. Hochschulen (= Uni, GH, PH, TH und KunstH) | C55: 8 | D55: Ingenieurwissenschaften | E55: 4 | F55: Lehrkr. f. bes. Aufgaben + Doz. u. Assistenten | G55: i | H55: 1482 | I55: 145 | J55: 1337 | K55: 771 | L55: 7 | M55: 764 | N55: 1275 | O55: 28 | P55: 1247
A56: 1 | B56: Wiss. Hochschulen (= Uni, GH, PH, TH und KunstH) | C56: 8 | D56: Ingenieurwissenschaften | E56: ~~ | F56: zusammen | G56: m | H56: 13837 | I56: 2747 | J56: 11090 | K56: 9168 | L56: 407 | M56: 8761 | N56: 11628 | O56: 1017 | P56: 10611
A57: 1 | B57: Wiss. Hochschulen (= Uni, GH, PH, TH und KunstH) | C57: 8 | D57: Ingenieurwissenschaften | E57: ~~ | F57: zusammen | G57: w | H57: 2302 | I57: 277 | J57: 2025 | K57: 1527 | L57: 62 | M57: 1465 | N57: 2082 | O57: 142 | P57: 1940
A58: 1 | B58: Wiss. Hochschulen (= Uni, GH, PH, TH und KunstH) | C58: 8 | D58: Ingenieurwissenschaften | E58: ~~ | F58: zusammen | G58: i | H58: 16139 | I58: 3024 | J58: 13115 | K58: 10695 | L58: 469 | M58: 10226 | N58: 13710 | O58: 1159 | P58: 12551
A59: 1 | B59: Wiss. Hochschulen (= Uni, GH, PH, TH und KunstH) | C59: 10 | D59: Restliche Fächergruppen | E59: 3 | F59: Wiss. u. künstl. Mitarbeiter | G59: m | H59: 6109 | I59: 2953 | J59: 3156 | K59: 2282 | L59: 231 | M59: 2051 | N59: 3862 | O59: 926 | P59: 2936
A60: 1 | B60: Wiss. Hochschulen (= Uni, GH, PH, TH und KunstH) | C60: 10 | D60: Restliche Fächergruppen | E60: 3 | F60: Wiss. u. künstl. Mitarbeiter | G60: w | H60: 3303 | I60: 1208 | J60: 2095 | K60: 1489 | L60: 136 | M60: 1353 | N60: 2474 | O60: 530 | P60: 1944
A61: 1 | B61: Wiss. Hochschulen (= Uni, GH, PH, TH und KunstH) | C61: 10 | D61: Restliche Fächergruppen | E61: 3 | F61: Wiss. u. künstl. Mitarbeiter | G61: i | H61: 9412 | I61: 4161 | J61: 5251 | K61: 3771 | L61: 367 | M61: 3404 | N61: 6336 | O61: 1456 | P61: 4880
A62: 1 | B62: Wiss. Hochschulen (= Uni, GH, PH, TH und KunstH) | C62: 10 | D62: Restliche Fächergruppen | E62: 4 | F62: Lehrkr. f. bes. Aufgaben + Doz. u. Assistenten | G62: m | H62: 1566 | I62: 1002 | J62: 564 | K62: 157 | L62: 24 | M62: 133 | N62: 713 | O62: 232 | P62: 481
A63: 1 | B63: Wiss. Hochschulen (= Uni, GH, PH, TH und KunstH) | C63: 10 | D63: Restliche Fächergruppen | E63: 4 | F63: Lehrkr. f. bes. Aufgaben + Doz. u. Assistenten | G63: w | H63: 882 | I63: 597 | J63: 285 | K63: 113 | L63: 24 | M63: 89 | N63: 409 | O63: 183 | P63: 226
A64: 1 | B64: Wiss. Hochschulen (= Uni, GH, PH, TH und KunstH) | C64: 10 | D64: Restliche Fächergruppen | E64: 4 | F64: Lehrkr. f. bes. Aufgaben + Doz. u. Assistenten | G64: i | H64: 2448 | I64: 1599 | J64: 849 | K64: 270 | L64: 48 | M64: 222 | N64: 1122 | O64: 415 | P64: 707
A65: 1 | B65: Wiss. Hochschulen (= Uni, GH, PH, TH und KunstH) | C65: 10 | D65: Restliche Fächergruppen | E65: ~~ | F65: zusammen | G65: m | H65: 7675 | I65: 3955 | J65: 3720 | K65: 2439 | L65: 255 | M65: 2184 | N65: 4575 | O65: 1158 | P65: 3417
A66: 1 | B66: Wiss. Hochschulen (= Uni, GH, PH, TH und KunstH) | C66: 10 | D66: Restliche Fächergruppen | E66: ~~ | F66: zusammen | G66: w | H66: 4185 | I66: 1805 | J66: 2380 | K66: 1602 | L66: 160 | M66: 1442 | N66: 2883 | O66: 713 | P66: 2170
A67: 1 | B67: Wiss. Hochschulen (= Uni, GH, PH, TH und KunstH) | C67: 10 | D67: Restliche Fächergruppen | E67: ~~ | F67: zusammen | G67: i | H67: 11860 | I67: 5760 | J67: 6100 | K67: 4041 | L67: 415 | M67: 3626 | N67: 7458 | O67: 1871 | P67: 5587
A68: 1 | B68: Wiss. Hochschulen (= Uni, GH, PH, TH und KunstH) | C68: ~~ | D68: zusammen | E68: ~~ | F68: zusammen | G68: m | H68: 80248 | I68: 21433 | J68: 58815 | K68: 41100 | L68: 2240 | M68: 38860 | N68: 63237 | O68: 7520 | P68: 55717
A69: 1 | B69: Wiss. Hochschulen (= Uni, GH, PH, TH und KunstH) | C69: ~~ | D69: zusammen | E69: ~~ | F69: zusammen | G69: w | H69: 34944 | I69: 7624 | J69: 27320 | K69: 19209 | L69: 1052 | M69: 18157 | N69: 28970 | O69: 3311 | P69: 25659
A70: 1 | B70: Wiss. Hochschulen (= Uni, GH, PH, TH und KunstH) | C70: ~~ | D70: zusammen | E70: ~~ | F70: zusammen | G70: i | H70: 115192 | I70: 29057 | J70: 86135 | K70: 60309 | L70: 3292 | M70: 57017 | N70: 92207 | O70: 10831 | P70: 81376
A71: 2 | B71: FH + VerwFH | C71: 1 | D71: Sprach- und Kulturwissenschaften | E71: 3 | F71: Wiss. u. künstl. Mitarbeiter | G71: m | H71: 16 | I71: 12 | J71: 4 | K71: 1 | L71: . | M71: . | N71: 9 | O71: 6 | P71: 3
A72: 2 | B72: FH + VerwFH | C72: 1 | D72: Sprach- und Kulturwissenschaften | E72: 3 | F72: Wiss. u. künstl. Mitarbeiter | G72: w | H72: 25 | I72: 8 | J72: 17 | K72: 7 | L72: . | M72: . | N72: 20 | O72: 6 | P72: 14
A73: 2 | B73: FH + VerwFH | C73: 1 | D73: Sprach- und Kulturwissenschaften | E73: 3 | F73: Wiss. u. künstl. Mitarbeiter | G73: i | H73: 41 | I73: 20 | J73: 21 | K73: 8 | L73: 1 | M73: 7 | N73: 29 | O73: 12 | P73: 17
A74: 2 | B74: FH + VerwFH | C74: 1 | D74: Sprach- und Kulturwissenschaften | E74: 4 | F74: Lehrkr. f. bes. Aufgaben + Doz. u. Assistenten | G74: m | H74: 69 | I74: 59 | J74: 10 | K74: 5 | L74: 4 | M74: 1 | N74: 32 | O74: 24 | P74: 8
A75: 2 | B75: FH + VerwFH | C75: 1 | D75: Sprach- und Kulturwissenschaften | E75: 4 | F75: Lehrkr. f. bes. Aufgaben + Doz. u. Assistenten | G75: w | H75: 190 | I75: 145 | J75: 45 | K75: 25 | L75: 13 | M75: 12 | N75: 93 | O75: 64 | P75: 29
A76: 2 | B76: FH + VerwFH | C76: 1 | D76: Sprach- und Kulturwissenschaften | E76: 4 | F76: Lehrkr. f. bes. Aufgaben + Doz. u. Assistenten | G76: i | H76: 259 | I76: 204 | J76: 55 | K76: 30 | L76: 17 | M76: 13 | N76: 125 | O76: 88 | P76: 37
A77: 2 | B77: FH + VerwFH | C77: 1 | D77: Sprach- und Kulturwissenschaften | E77: ~~ | F77: zusammen | G77: m | H77: 85 | I77: 71 | J77: 14 | K77: 6 | L77: 5 | M77: 1 | N77: 41 | O77: 30 | P77: 11
A78: 2 | B78: FH + VerwFH | C78: 1 | D78: Sprach- und Kulturwissenschaften | E78: ~~ | F78: zusammen | G78: w | H78: 215 | I78: 153 | J78: 62 | K78: 32 | L78: 13 | M78: 19 | N78: 113 | O78: 70 | P78: 43
A79: 2 | B79: FH + VerwFH | C79: 1 | D79: Sprach- und Kulturwissenschaften | E79: ~~ | F79: zusammen | G79: i | H79: 300 | I79: 224 | J79: 76 | K79: 38 | L79: 18 | M79: 20 | N79: 154 | O79: 100 | P79: 54 | Q79: =IF(OR(H79=I79,H79=J79),"X","") ->  | R79: =IF(OR(K79=L79,K79=M79),"X","") ->  | S79: =IF(OR(N79=O79,N79=P79),"X","") -> 
A80: 2 | B80: FH + VerwFH | C80: 3 | D80: Rechts-, Wirtschafts- und Sozialwissenschaften | E80: 3 | F80: Wiss. u. künstl. Mitarbeiter | G80: m | H80: 283 | I80: 191 | J80: 92 | K80: 59 | L80: 15 | M80: 44 | N80: 147 | O80: 72 | P80: 75
A81: 2 | B81: FH + VerwFH | C81: 3 | D81: Rechts-, Wirtschafts- und Sozialwissenschaften | E81: 3 | F81: Wiss. u. künstl. Mitarbeiter | G81: w | H81: 182 | I81: 70 | J81: 112 | K81: 79 | L81: 26 | M81: 53 | N81: 142 | O81: 50 | P81: 92
A82: 2 | B82: FH + VerwFH | C82: 3 | D82: Rechts-, Wirtschafts- und Sozialwissenschaften | E82: 3 | F82: Wiss. u. künstl. Mitarbeiter | G82: i | H82: 465 | I82: 261 | J82: 204 | K82: 138 | L82: 41 | M82: 97 | N82: 289 | O82: 122 | P82: 167
A83: 2 | B83: FH + VerwFH | C83: 3 | D83: Rechts-, Wirtschafts- und Sozialwissenschaften | E83: 4 | F83: Lehrkr. f. bes. Aufgaben + Doz. u. Assistenten | G83: m | H83: 1091 | I83: 971 | J83: 120 | K83: 53 | L83: 38 | M83: 15 | N83: 396 | O83: 319 | P83: 77
A84: 2 | B84: FH + VerwFH | C84: 3 | D84: Rechts-, Wirtschafts- und Sozialwissenschaften | E84: 4 | F84: Lehrkr. f. bes. Aufgaben + Doz. u. Assistenten | G84: w | H84: 372 | I84: 307 | J84: 65 | K84: 52 | L84: 25 | M84: 27 | N84: 209 | O84: 157 | P84: 52
A85: 2 | B85: FH + VerwFH | C85: 3 | D85: Rechts-, Wirtschafts- und Sozialwissenschaften | E85: 4 | F85: Lehrkr. f. bes. Aufgaben + Doz. u. Assistenten | G85: i | H85: 1463 | I85: 1278 | J85: 185 | K85: 105 | L85: 63 | M85: 42 | N85: 605 | O85: 476 | P85: 129
A86: 2 | B86: FH + VerwFH | C86: 3 | D86: Rechts-, Wirtschafts- und Sozialwissenschaften | E86: ~~ | F86: zusammen | G86: m | H86: 1374 | I86: 1162 | J86: 212 | K86: 112 | L86: 53 | M86: 59 | N86: 543 | O86: 391 | P86: 152
A87: 2 | B87: FH + VerwFH | C87: 3 | D87: Rechts-, Wirtschafts- und Sozialwissenschaften | E87: ~~ | F87: zusammen | G87: w | H87: 554 | I87: 377 | J87: 177 | K87: 131 | L87: 51 | M87: 80 | N87: 351 | O87: 207 | P87: 144
A88: 2 | B88: FH + VerwFH | C88: 3 | D88: Rechts-, Wirtschafts- und Sozialwissenschaften | E88: ~~ | F88: zusammen | G88: i | H88: 1928 | I88: 1539 | J88: 389 | K88: 243 | L88: 104 | M88: 139 | N88: 894 | O88: 598 | P88: 296
A89: 2 | B89: FH + VerwFH | C89: 4 | D89: Mathematik, Naturwissenschaften | E89: 3 | F89: Wiss. u. künstl. Mitarbeiter | G89: m | H89: 71 | I89: 38 | J89: 33 | K89: 32 | L89: 12 | M89: 20 | N89: 55 | O89: 28 | P89: 27
A90: 2 | B90: FH + VerwFH | C90: 4 | D90: Mathematik, Naturwissenschaften | E90: 3 | F90: Wiss. u. künstl. Mitarbeiter | G90: w | H90: 33 | I90: 13 | J90: 20 | K90: 11 | L90: 1 | M90: 10 | N90: 30 | O90: 12 | P90: 18
A91: 2 | B91: FH + VerwFH | C91: 4 | D91: Mathematik, Naturwissenschaften | E91: 3 | F91: Wiss. u. künstl. Mitarbeiter | G91: i | H91: 104 | I91: 51 | J91: 53 | K91: 43 | L91: 13 | M91: 30 | N91: 85 | O91: 40 | P91: 45
A92: 2 | B92: FH + VerwFH | C92: 4 | D92: Mathematik, Naturwissenschaften | E92: 4 | F92: Lehrkr. f. bes. Aufgaben + Doz. u. Assistenten | G92: m | H92: 101 | I92: 70 | J92: 31 | K92: 27 | L92: 4 | M92: 23 | N92: 53 | O92: 27 | P92: 26
A93: 2 | B93: FH + VerwFH | C93: 4 | D93: Mathematik, Naturwissenschaften | E93: 4 | F93: Lehrkr. f. bes. Aufgaben + Doz. u. Assistenten | G93: w | H93: 36 | I93: 20 | J93: 16 | K93: 12 | L93: 1 | M93: 11 | N93: 21 | O93: 8 | P93: 13
A94: 2 | B94: FH + VerwFH | C94: 4 | D94: Mathematik, Naturwissenschaften | E94: 4 | F94: Lehrkr. f. bes. Aufgaben + Doz. u. Assistenten | G94: i | H94: 137 | I94: 90 | J94: 47 | K94: 39 | L94: 5 | M94: 34 | N94: 74 | O94: 35 | P94: 39
A95: 2 | B95: FH + VerwFH | C95: 4 | D95: Mathematik, Naturwissenschaften | E95: ~~ | F95: zusammen | G95: m | H95: 172 | I95: 108 | J95: 64 | K95: 59 | L95: 16 | M95: 43 | N95: 108 | O95: 55 | P95: 53
A96: 2 | B96: FH + VerwFH | C96: 4 | D96: Mathematik, Naturwissenschaften | E96: ~~ | F96: zusammen | G96: w | H96: 69 | I96: 33 | J96: 36 | K96: 23 | L96: 2 | M96: 21 | N96: 51 | O96: 20 | P96: 31
A97: 2 | B97: FH + VerwFH | C97: 4 | D97: Mathematik, Naturwissenschaften | E97: ~~ | F97: zusammen | G97: i | H97: 241 | I97: 141 | J97: 100 | K97: 82 | L97: 18 | M97: 64 | N97: 159 | O97: 75 | P97: 84
A98: 2 | B98: FH + VerwFH | C98: 8 | D98: Ingenieurwissenschaften | E98: 3 | F98: Wiss. u. künstl. Mitarbeiter | G98: m | H98: 675 | I98: 386 | J98: 289 | K98: 206 | L98: 36 | M98: 170 | N98: 401 | O98: 157 | P98: 244
A99: 2 | B99: FH + VerwFH | C99: 8 | D99: Ingenieurwissenschaften | E99: 3 | F99: Wiss. u. künstl. Mitarbeiter | G99: w | H99: 163 | I99: 63 | J99: 100 | K99: 72 | L99: 16 | M99: 56 | N99: 120 | O99: 36 | P99: 84
A100: 2 | B100: FH + VerwFH | C100: 8 | D100: Ingenieurwissenschaften | E100: 3 | F100: Wiss. u. künstl. Mitarbeiter | G100: i | H100: 838 | I100: 449 | J100: 389 | K100: 278 | L100: 52 | M100: 226 | N100: 521 | O100: 193 | P100: 328
A101: 2 | B101: FH + VerwFH | C101: 8 | D101: Ingenieurwissenschaften | E101: 4 | F101: Lehrkr. f. bes. Aufgaben + Doz. u. Assistenten | G101: m | H101: 243 | I101: 185 | J101: 58 | K101: 51 | L101: 16 | M101: 35 | N101: 119 | O101: 70 | P101: 49
A102: 2 | B102: FH + VerwFH | C102: 8 | D102: Ingenieurwissenschaften | E102: 4 | F102: Lehrkr. f. bes. Aufgaben + Doz. u. Assistenten | G102: w | H102: 67 | I102: 39 | J102: 28 | K102: 18 | L102: 5 | M102: 13 | N102: 41 | O102: 20 | P102: 21
A103: 2 | B103: FH + VerwFH | C103: 8 | D103: Ingenieurwissenschaften | E103: 4 | F103: Lehrkr. f. bes. Aufgaben + Doz. u. Assistenten | G103: i | H103: 310 | I103: 224 | J103: 86 | K103: 69 | L103: 21 | M103: 48 | N103: 160 | O103: 90 | P103: 70
A104: 2 | B104: FH + VerwFH | C104: 8 | D104: Ingenieurwissenschaften | E104: ~~ | F104: zusammen | G104: m | H104: 918 | I104: 571 | J104: 347 | K104: 257 | L104: 52 | M104: 205 | N104: 520 | O104: 227 | P104: 293
A105: 2 | B105: FH + VerwFH | C105: 8 | D105: Ingenieurwissenschaften | E105: ~~ | F105: zusammen | G105: w | H105: 230 | I105: 102 | J105: 128 | K105: 90 | L105: 21 | M105: 69 | N105: 161 | O105: 56 | P105: 105
A106: 2 | B106: FH + VerwFH | C106: 8 | D106: Ingenieurwissenschaften | E106: ~~ | F106: zusammen | G106: i | H106: 1148 | I106: 673 | J106: 475 | K106: 347 | L106: 73 | M106: 274 | N106: 681 | O106: 283 | P106: 398
A107: 2 | B107: FH + VerwFH | C107: 10 | D107: Restliche Fächergruppen | E107: 3 | F107: Wiss. u. künstl. Mitarbeiter | G107: m | H107: 223 | I107: 151 | J107: 72 | K107: 50 | L107: 16 | M107: 34 | N107: 125 | O107: 61 | P107: 64
A108: 2 | B108: FH + VerwFH | C108: 10 | D108: Restliche Fächergruppen | E108: 3 | F108: Wiss. u. künstl. Mitarbeiter | G108: w | H108: 167 | I108: 80 | J108: 87 | K108: 53 | L108: 12 | M108: 41 | N108: 123 | O108: 43 | P108: 80
A109: 2 | B109: FH + VerwFH | C109: 10 | D109: Restliche Fächergruppen | E109: 3 | F109: Wiss. u. künstl. Mitarbeiter | G109: i | H109: 390 | I109: 231 | J109: 159 | K109: 103 | L109: 28 | M109: 75 | N109: 248 | O109: 104 | P109: 144
A110: 2 | B110: FH + VerwFH | C110: 10 | D110: Restliche Fächergruppen | E110: 4 | F110: Lehrkr. f. bes. Aufgaben + Doz. u. Assistenten | G110: m | H110: 128 | I110: 85 | J110: 43 | K110: 21 | L110: 6 | M110: 15 | N110: 55 | O110: 24 | P110: 31
A111: 2 | B111: FH + VerwFH | C111: 10 | D111: Restliche Fächergruppen | E111: 4 | F111: Lehrkr. f. bes. Aufgaben + Doz. u. Assistenten | G111: w | H111: 95 | I111: 67 | J111: 28 | K111: 12 | L111: 3 | M111: 9 | N111: 45 | O111: 25 | P111: 20
A112: 2 | B112: FH + VerwFH | C112: 10 | D112: Restliche Fächergruppen | E112: 4 | F112: Lehrkr. f. bes. Aufgaben + Doz. u. Assistenten | G112: i | H112: 223 | I112: 152 | J112: 71 | K112: 33 | L112: 9 | M112: 24 | N112: 100 | O112: 49 | P112: 51
A113: 2 | B113: FH + VerwFH | C113: 10 | D113: Restliche Fächergruppen | E113: ~~ | F113: zusammen | G113: m | H113: 351 | I113: 236 | J113: 115 | K113: 71 | L113: 22 | M113: 49 | N113: 180 | O113: 85 | P113: 95
A114: 2 | B114: FH + VerwFH | C114: 10 | D114: Restliche Fächergruppen | E114: ~~ | F114: zusammen | G114: w | H114: 262 | I114: 147 | J114: 115 | K114: 65 | L114: 15 | M114: 50 | N114: 168 | O114: 68 | P114: 100
A115: 2 | B115: FH + VerwFH | C115: 10 | D115: Restliche Fächergruppen | E115: ~~ | F115: zusammen | G115: i | H115: 613 | I115: 383 | J115: 230 | K115: 136 | L115: 37 | M115: 99 | N115: 348 | O115: 153 | P115: 195
A116: 2 | B116: FH + VerwFH | C116: ~~ | D116: zusammen | E116: ~~ | F116: zusammen | G116: m | H116: 2900 | I116: 2148 | J116: 752 | K116: 505 | L116: 148 | M116: 357 | N116: 1392 | O116: 788 | P116: 604
A117: 2 | B117: FH + VerwFH | C117: ~~ | D117: zusammen | E117: ~~ | F117: zusammen | G117: w | H117: 1330 | I117: 812 | J117: 518 | K117: 341 | L117: 102 | M117: 239 | N117: 844 | O117: 421 | P117: 423
A118: 2 | B118: FH + VerwFH | C118: ~~ | D118: zusammen | E118: ~~ | F118: zusammen | G118: i | H118: 4230 | I118: 2960 | J118: 1270 | K118: 846 | L118: 250 | M118: 596 | N118: 2236 | O118: 1209 | P118: 1027
A119: ~ | B119: Insgesamt | C119: ~~ | D119: zusammen | E119: ~~ | F119: zusammen | G119: m | H119: 83148 | I119: 23581 | J119: 59567 | K119: 41605 | L119: 2388 | M119: 39217 | N119: 64629 | O119: 8308 | P119: 56321
A120: ~ | B120: Insgesamt | C120: ~~ | D120: zusammen | E120: ~~ | F120: zusammen | G120: w | H120: 36274 | I120: 8436 | J120: 27838 | K120: 19550 | L120: 1154 | M120: 18396 | N120: 29814 | O120: 3732 | P120: 26082
A121: ~ | B121: Insgesamt | C121: ~~ | D121: zusammen | E121: ~~ | F121: zusammen | G121: i | H121: 119422 | I121: 32017 | J121: 87405 | K121: 61155 | L121: 3542 | M121: 57613 | N121: 94443 | O121: 12040 | P121: 82403

Sheet 1.5
A1: Statistisches Bundesamt
A2: H201 - Hochschulstatistik
A5: Hauptberufliches wissenschaftliches und künstlerisches Personal (ohne Professoren) nach ausgewählten Hochschularten, Fächer- und Personalgruppen
A6: im Berichtsjahr 1995
H8: Hauptber. wiss. und | I8: Hauptber. wiss. und | J8: Hauptber. wiss. und
H9: künstler. Personal | I9: künstler. Personal | J9: künstler. Personal
B10: Hochschulart | D10: Fächergruppe | F10: Personalgruppe | G10: Ge- | H10: (ohne Professoren) | I10: (ohne Professoren) | J10: (ohne Professoren)
D11: der fachl. Zugehörigkeit | G11: schlecht | I11: im Alter bis einschl. 34 Jahren | J11: im Alter bis einschl. 44 Jahren
H12: insgesamt | I12: insgesamt | J12: insgesamt
A14: 1 | B14: Wiss. Hochschulen | C14: 1 | D14: Sprach- und Kulturwissenschaften | E14: 3 | F14: Wiss. u. künstl. Mitarbeiter | G14: m | H14: 4994 | I14: 1559 | J14: 2836
A15: 1 | B15: Wiss. Hochschulen | C15: 1 | D15: Sprach- und Kulturwissenschaften | E15: 3 | F15: Wiss. u. künstl. Mitarbeiter | G15: w | H15: 3641 | I15: 1658 | J15: 2669
A16: 1 | B16: Wiss. Hochschulen | C16: 1 | D16: Sprach- und Kulturwissenschaften | E16: 3 | F16: Wiss. u. künstl. Mitarbeiter | G16: i | H16: 8635 | I16: 3217 | J16: 5505
A17: 1 | B17: Wiss. Hochschulen | C17: 1 | D17: Sprach- und Kulturwissenschaften | E17: 4 | F17: Lehrkr. f. bes. Aufgaben + Doz. u. Assistenten | G17: m | H17: 2477 | I17: 518 | J17: 1560
A18: 1 | B18: Wiss. Hochschulen | C18: 1 | D18: Sprach- und Kulturwissenschaften | E18: 4 | F18: Lehrkr. f. bes. Aufgaben + Doz. u. Assistenten | G18: w | H18: 1909 | I18: 494 | J18: 1215
A19: 1 | B19: Wiss. Hochschulen | C19: 1 | D19: Sprach- und Kulturwissenschaften | E19: 4 | F19: Lehrkr. f. bes. Aufgaben + Doz. u. Assistenten | G19: i | H19: 4386 | I19: 1012 | J19: 2775
A20: 1 | B20: Wiss. Hochschulen | C20: 1 | D20: Sprach- und Kulturwissenschaften | E20: ~~ | F20: zusammen | G20: m | H20: 7471 | I20: 2077 | J20: 4396
A21: 1 | B21: Wiss. Hochschulen | C21: 1 | D21: Sprach- und Kulturwissenschaften | E21: ~~ | F21: zusammen | G21: w | H21: 5550 | I21: 2152 | J21: 3884
A22: 1 | B22: Wiss. Hochschulen | C22: 1 | D22: Sprach- und Kulturwissenschaften | E22: ~~ | F22: zusammen | G22: i | H22: 13021 | I22: 4229 | J22: 8280
A23: 1 | B23: Wiss. Hochschulen | C23: 3 | D23: Rechts-, Wirtschafts- und Sozialwissenschaften | E23: 3 | F23: Wiss. u. künstl. Mitarbeiter | G23: m | H23: 4827 | I23: 3548 | J23: 4106
A24: 1 | B24: Wiss. Hochschulen | C24: 3 | D24: Rechts-, Wirtschafts- und Sozialwissenschaften | E24: 3 | F24: Wiss. u. künstl. Mitarbeiter | G24: w | H24: 2016 | I24: 1526 | J24: 1831
A25: 1 | B25: Wiss. Hochschulen | C25: 3 | D25: Rechts-, Wirtschafts- und Sozialwissenschaften | E25: 3 | F25: Wiss. u. künstl. Mitarbeiter | G25: i | H25: 6843 | I25: 5074 | J25: 5937
A26: 1 | B26: Wiss. Hochschulen | C26: 3 | D26: Rechts-, Wirtschafts- und Sozialwissenschaften | E26: 4 | F26: Lehrkr. f. bes. Aufgaben + Doz. u. Assistenten | G26: m | H26: 1186 | I26: 619 | J26: 1045
A27: 1 | B27: Wiss. Hochschulen | C27: 3 | D27: Rechts-, Wirtschafts- und Sozialwissenschaften | E27: 4 | F27: Lehrkr. f. bes. Aufgaben + Doz. u. Assistenten | G27: w | H27: 378 | I27: 208 | J27: 327
A28: 1 | B28: Wiss. Hochschulen | C28: 3 | D28: Rechts-, Wirtschafts- und Sozialwissenschaften | E28: 4 | F28: Lehrkr. f. bes. Aufgaben + Doz. u. Assistenten | G28: i | H28: 1564 | I28: 827 | J28: 1372
A29: 1 | B29: Wiss. Hochschulen | C29: 3 | D29: Rechts-, Wirtschafts- und Sozialwissenschaften | E29: ~~ | F29: zusammen | G29: m | H29: 6013 | I29: 4167 | J29: 5151
A30: 1 | B30: Wiss. Hochschulen | C30: 3 | D30: Rechts-, Wirtschafts- und Sozialwissenschaften | E30: ~~ | F30: zusammen | G30: w | H30: 2394 | I30: 1734 | J30: 2158
A31: 1 | B31: Wiss. Hochschulen | C31: 3 | D31: Rechts-, Wirtschafts- und Sozialwissenschaften | E31: ~~ | F31: zusammen | G31: i | H31: 8407 | I31: 5901 | J31: 7309
A32: 1 | B32: Wiss. Hochschulen | C32: 4 | D32: Mathematik, Naturwissenschaften | E32: 3 | F32: Wiss. u. künstl. Mitarbeiter | G32: m | H32: 19869 | I32: 13572 | J32: 16185
A33: 1 | B33: Wiss. Hochschulen | C33: 4 | D33: Mathematik, Naturwissenschaften | E33: 3 | F33: Wiss. u. künstl. Mitarbeiter | G33: w | H33: 4888 | I33: 3806 | J33: 4430
A34: 1 | B34: Wiss. Hochschulen | C34: 4 | D34: Mathematik, Naturwissenschaften | E34: 3 | F34: Wiss. u. künstl. Mitarbeiter | G34: i | H34: 24757 | I34: 17378 | J34: 20615
A35: 1 | B35: Wiss. Hochschulen | C35: 4 | D35: Mathematik, Naturwissenschaften | E35: 4 | F35: Lehrkr. f. bes. Aufgaben + Doz. u. Assistenten | G35: m | H35: 2835 | I35: 1145 | J35: 2314
A36: 1 | B36: Wiss. Hochschulen | C36: 4 | D36: Mathematik, Naturwissenschaften | E36: 4 | F36: Lehrkr. f. bes. Aufgaben + Doz. u. Assistenten | G36: w | H36: 607 | I36: 298 | J36: 517
A37: 1 | B37: Wiss. Hochschulen | C37: 4 | D37: Mathematik, Naturwissenschaften | E37: 4 | F37: Lehrkr. f. bes. Aufgaben + Doz. u. Assistenten | G37: i | H37: 3442 | I37: 1443 | J37: 2831
A38: 1 | B38: Wiss. Hochschulen | C38: 4 | D38: Mathematik, Naturwissenschaften | E38: ~~ | F38: zusammen | G38: m | H38: 22704 | I38: 14717 | J38: 18499
A39: 1 | B39: Wiss. Hochschulen | C39: 4 | D39: Mathematik, Naturwissenschaften | E39: ~~ | F39: zusammen | G39: w | H39: 5495 | I39: 4104 | J39: 4947
A40: 1 | B40: Wiss. Hochschulen | C40: 4 | D40: Mathematik, Naturwissenschaften | E40: ~~ | F40: zusammen | G40: i | H40: 28199 | I40: 18821 | J40: 23446
A41: 1 | B41: Wiss. Hochschulen | C41: 5 | D41: Humanmedizin/Gesundheitswissenschaften + Veterinärmedizin | E41: 3 | F41: Wiss. u. künstl. Mitarbeiter | G41: m | H41: 18350 | I41: 9605 | J41: 14965
A42: 1 | B42: Wiss. Hochschulen | C42: 5 | D42: Humanmedizin/Gesundheitswissenschaften + Veterinärmedizin | E42: 3 | F42: Wiss. u. künstl. Mitarbeiter | G42: w | H42: 10066 | I42: 6267 | J42: 8544
A43: 1 | B43: Wiss. Hochschulen | C43: 5 | D43: Humanmedizin/Gesundheitswissenschaften + Veterinärmedizin | E43: 3 | F43: Wiss. u. künstl. Mitarbeiter | G43: i | H43: 28416 | I43: 15872 | J43: 23509
A44: 1 | B44: Wiss. Hochschulen | C44: 5 | D44: Humanmedizin/Gesundheitswissenschaften + Veterinärmedizin | E44: 4 | F44: Lehrkr. f. bes. Aufgaben + Doz. u. Assistenten | G44: m | H44: 4301 | I44: 1719 | J44: 3747
A45: 1 | B45: Wiss. Hochschulen | C45: 5 | D45: Humanmedizin/Gesundheitswissenschaften + Veterinärmedizin | E45: 4 | F45: Lehrkr. f. bes. Aufgaben + Doz. u. Assistenten | G45: w | H45: 1632 | I45: 907 | J45: 1458
A46: 1 | B46: Wiss. Hochschulen | C46: 5 | D46: Humanmedizin/Gesundheitswissenschaften + Veterinärmedizin | E46: 4 | F46: Lehrkr. f. bes. Aufgaben + Doz. u. Assistenten | G46: i | H46: 5933 | I46: 2626 | J46: 5205
A47: 1 | B47: Wiss. Hochschulen | C47: 5 | D47: Humanmedizin/Gesundheitswissenschaften + Veterinärmedizin | E47: ~~ | F47: zusammen | G47: m | H47: 22651 | I47: 11324 | J47: 18712
A48: 1 | B48: Wiss. Hochschulen | C48: 5 | D48: Humanmedizin/Gesundheitswissenschaften + Veterinärmedizin | E48: ~~ | F48: zusammen | G48: w | H48: 11698 | I48: 7174 | J48: 10002
A49: 1 | B49: Wiss. Hochschulen | C49: 5 | D49: Humanmedizin/Gesundheitswissenschaften + Veterinärmedizin | E49: ~~ | F49: zusammen | G49: i | H49: 34349 | I49: 18498 | J49: 28714
A50: 1 | B50: Wiss. Hochschulen | C50: 8 | D50: Ingenieurwissenschaften | E50: 3 | F50: Wiss. u. künstl. Mitarbeiter | G50: m | H50: 12399 | I50: 8687 | J50: 10478
A51: 1 | B51: Wiss. Hochschulen | C51: 8 | D51: Ingenieurwissenschaften | E51: 3 | F51: Wiss. u. künstl. Mitarbeiter | G51: w | H51: 1502 | I51: 1054 | J51: 1349
A52: 1 | B52: Wiss. Hochschulen | C52: 8 | D52: Ingenieurwissenschaften | E52: 3 | F52: Wiss. u. künstl. Mitarbeiter | G52: i | H52: 13901 | I52: 9741 | J52: 11827
A53: 1 | B53: Wiss. Hochschulen | C53: 8 | D53: Ingenieurwissenschaften | E53: 4 | F53: Lehrkr. f. bes. Aufgaben + Doz. u. Assistenten | G53: m | H53: 1681 | I53: 1026 | J53: 1357
A54: 1 | B54: Wiss. Hochschulen | C54: 8 | D54: Ingenieurwissenschaften | E54: 4 | F54: Lehrkr. f. bes. Aufgaben + Doz. u. Assistenten | G54: w | H54: 229 | I54: 159 | J54: 207
A55: 1 | B55: Wiss. Hochschulen | C55: 8 | D55: Ingenieurwissenschaften | E55: 4 | F55: Lehrkr. f. bes. Aufgaben + Doz. u. Assistenten | G55: i | H55: 1910 | I55: 1185 | J55: 1564
A56: 1 | B56: Wiss. Hochschulen | C56: 8 | D56: Ingenieurwissenschaften | E56: ~~ | F56: zusammen | G56: m | H56: 14080 | I56: 9713 | J56: 11835
A57: 1 | B57: Wiss. Hochschulen | C57: 8 | D57: Ingenieurwissenschaften | E57: ~~ | F57: zusammen | G57: w | H57: 1731 | I57: 1213 | J57: 1556
A58: 1 | B58: Wiss. Hochschulen | C58: 8 | D58: Ingenieurwissenschaften | E58: ~~ | F58: zusammen | G58: i | H58: 15811 | I58: 10926 | J58: 13391
A59: 1 | B59: Wiss. Hochschulen | C59: 10 | D59: Restliche Fächergruppen | E59: 3 | F59: Wiss. u. künstl. Mitarbeiter | G59: m | H59: 6109 | I59: 2416 | J59: 3920
A60: 1 | B60: Wiss. Hochschulen | C60: 10 | D60: Restliche Fächergruppen | E60: 3 | F60: Wiss. u. künstl. Mitarbeiter | G60: w | H60: 2803 | I60: 1336 | J60: 2114
A61: 1 | B61: Wiss. Hochschulen | C61: 10 | D61: Restliche Fächergruppen | E61: 3 | F61: Wiss. u. künstl. Mitarbeiter | G61: i | H61: 8912 | I61: 3752 | J61: 6034
A62: 1 | B62: Wiss. Hochschulen | C62: 10 | D62: Restliche Fächergruppen | E62: 4 | F62: Lehrkr. f. bes. Aufgaben + Doz. u. Assistenten | G62: m | H62: 1486 | I62: 245 | J62: 747
A63: 1 | B63: Wiss. Hochschulen | C63: 10 | D63: Restliche Fächergruppen | E63: 4 | F63: Lehrkr. f. bes. Aufgaben + Doz. u. Assistenten | G63: w | H63: 776 | I63: 174 | J63: 459
A64: 1 | B64: Wiss. Hochschulen | C64: 10 | D64: Restliche Fächergruppen | E64: 4 | F64: Lehrkr. f. bes. Aufgaben + Doz. u. Assistenten | G64: i | H64: 2262 | I64: 419 | J64: 1206
A65: 1 | B65: Wiss. Hochschulen | C65: 10 | D65: Restliche Fächergruppen | E65: ~~ | F65: zusammen | G65: m | H65: 7595 | I65: 2661 | J65: 4667
A66: 1 | B66: Wiss. Hochschulen | C66: 10 | D66: Restliche Fächergruppen | E66: ~~ | F66: zusammen | G66: w | H66: 3579 | I66: 1510 | J66: 2573
A67: 1 | B67: Wiss. Hochschulen | C67: 10 | D67: Restliche Fächergruppen | E67: ~~ | F67: zusammen | G67: i | H67: 11174 | I67: 4171 | J67: 7240
A68: 1 | B68: Wiss. Hochschulen | C68: ~~ | D68: zusammen | E68: ~~ | F68: zusammen | G68: m | H68: 80514 | I68: 44659 | J68: 63260
A69: 1 | B69: Wiss. Hochschulen | C69: ~~ | D69: zusammen | E69: ~~ | F69: zusammen | G69: w | H69: 30447 | I69: 17887 | J69: 25120
A70: 1 | B70: Wiss. Hochschulen | C70: ~~ | D70: zusammen | E70: ~~ | F70: zusammen | G70: i | H70: 110961 | I70: 62546 | J70: 88380
A71: 2 | B71: FH + VerwFH | C71: 1 | D71: Sprach- und Kulturwissenschaften | E71: 3 | F71: Wiss. u. künstl. Mitarbeiter | G71: m | H71: 20 | I71: 5 | J71: 11
A72: 2 | B72: FH + VerwFH | C72: 1 | D72: Sprach- und Kulturwissenschaften | E72: 3 | F72: Wiss. u. künstl. Mitarbeiter | G72: w | H72: 18 | I72: 1 | J72: 10
A73: 2 | B73: FH + VerwFH | C73: 1 | D73: Sprach- und Kulturwissenschaften | E73: 3 | F73: Wiss. u. künstl. Mitarbeiter | G73: i | H73: 38 | I73: 6 | J73: 21
A74: 2 | B74: FH + VerwFH | C74: 1 | D74: Sprach- und Kulturwissenschaften | E74: 4 | F74: Lehrkr. f. bes. Aufgaben + Doz. u. Assistenten | G74: m | H74: 67 | I74: 9 | J74: 27
A75: 2 | B75: FH + VerwFH | C75: 1 | D75: Sprach- und Kulturwissenschaften | E75: 4 | F75: Lehrkr. f. bes. Aufgaben + Doz. u. Assistenten | G75: w | H75: 139 | I75: 19 | J75: 72
A76: 2 | B76: FH + VerwFH | C76: 1 | D76: Sprach- und Kulturwissenschaften | E76: 4 | F76: Lehrkr. f. bes. Aufgaben + Doz. u. Assistenten | G76: i | H76: 206 | I76: 28 | J76: 99
A77: 2 | B77: FH + VerwFH | C77: 1 | D77: Sprach- und Kulturwissenschaften | E77: ~~ | F77: zusammen | G77: m | H77: 87 | I77: 14 | J77: 38
A78: 2 | B78: FH + VerwFH | C78: 1 | D78: Sprach- und Kulturwissenschaften | E78: ~~ | F78: zusammen | G78: w | H78: 157 | I78: 20 | J78: 82
A79: 2 | B79: FH + VerwFH | C79: 1 | D79: Sprach- und Kulturwissenschaften | E79: ~~ | F79: zusammen | G79: i | H79: 244 | I79: 34 | J79: 120
A80: 2 | B80: FH + VerwFH | C80: 3 | D80: Rechts-, Wirtschafts- und Sozialwissenschaften | E80: 3 | F80: Wiss. u. künstl. Mitarbeiter | G80: m | H80: 234 | I80: 36 | J80: 118
A81: 2 | B81: FH + VerwFH | C81: 3 | D81: Rechts-, Wirtschafts- und Sozialwissenschaften | E81: 3 | F81: Wiss. u. künstl. Mitarbeiter | G81: w | H81: 80 | I81: 21 | J81: 62
A82: 2 | B82: FH + VerwFH | C82: 3 | D82: Rechts-, Wirtschafts- und Sozialwissenschaften | E82: 3 | F82: Wiss. u. künstl. Mitarbeiter | G82: i | H82: 314 | I82: 57 | J82: 180
A83: 2 | B83: FH + VerwFH | C83: 3 | D83: Rechts-, Wirtschafts- und Sozialwissenschaften | E83: 4 | F83: Lehrkr. f. bes. Aufgaben + Doz. u. Assistenten | G83: m | H83: 1218 | I83: 118 | J83: 550
A84: 2 | B84: FH + VerwFH | C84: 3 | D84: Rechts-, Wirtschafts- und Sozialwissenschaften | E84: 4 | F84: Lehrkr. f. bes. Aufgaben + Doz. u. Assistenten | G84: w | H84: 402 | I84: 91 | J84: 280
A85: 2 | B85: FH + VerwFH | C85: 3 | D85: Rechts-, Wirtschafts- und Sozialwissenschaften | E85: 4 | F85: Lehrkr. f. bes. Aufgaben + Doz. u. Assistenten | G85: i | H85: 1620 | I85: 209 | J85: 830
A86: 2 | B86: FH + VerwFH | C86: 3 | D86: Rechts-, Wirtschafts- und Sozialwissenschaften | E86: ~~ | F86: zusammen | G86: m | H86: 1452 | I86: 154 | J86: 668
A87: 2 | B87: FH + VerwFH | C87: 3 | D87: Rechts-, Wirtschafts- und Sozialwissenschaften | E87: ~~ | F87: zusammen | G87: w | H87: 482 | I87: 112 | J87: 342
A88: 2 | B88: FH + VerwFH | C88: 3 | D88: Rechts-, Wirtschafts- und Sozialwissenschaften | E88: ~~ | F88: zusammen | G88: i | H88: 1934 | I88: 266 | J88: 1010
A89: 2 | B89: FH + VerwFH | C89: 4 | D89: Mathematik, Naturwissenschaften | E89: 3 | F89: Wiss. u. künstl. Mitarbeiter | G89: m | H89: 46 | I89: 10 | J89: 22
A90: 2 | B90: FH + VerwFH | C90: 4 | D90: Mathematik, Naturwissenschaften | E90: 3 | F90: Wiss. u. künstl. Mitarbeiter | G90: w | H90: 13 | I90: 3 | J90: 10
A91: 2 | B91: FH + VerwFH | C91: 4 | D91: Mathematik, Naturwissenschaften | E91: 3 | F91: Wiss. u. künstl. Mitarbeiter | G91: i | H91: 59 | I91: 13 | J91: 32
A92: 2 | B92: FH + VerwFH | C92: 4 | D92: Mathematik, Naturwissenschaften | E92: 4 | F92: Lehrkr. f. bes. Aufgaben + Doz. u. Assistenten | G92: m | H92: 85 | I92: 19 | J92: 45
A93: 2 | B93: FH + VerwFH | C93: 4 | D93: Mathematik, Naturwissenschaften | E93: 4 | F93: Lehrkr. f. bes. Aufgaben + Doz. u. Assistenten | G93: w | H93: 22 | I93: 6 | J93: 13
A94: 2 | B94: FH + VerwFH | C94: 4 | D94: Mathematik, Naturwissenschaften | E94: 4 | F94: Lehrkr. f. bes. Aufgaben + Doz. u. Assistenten | G94: i | H94: 107 | I94: 25 | J94: 58
A95: 2 | B95: FH + VerwFH | C95: 4 | D95: Mathematik, Naturwissenschaften | E95: ~~ | F95: zusammen | G95: m | H95: 131 | I95: 29 | J95: 67
A96: 2 | B96: FH + VerwFH | C96: 4 | D96: Mathematik, Naturwissenschaften | E96: ~~ | F96: zusammen | G96: w | H96: 35 | I96: 9 | J96: 23
A97: 2 | B97: FH + VerwFH | C97: 4 | D97: Mathematik, Naturwissenschaften | E97: ~~ | F97: zusammen | G97: i | H97: 166 | I97: 38 | J97: 90
A98: 2 | B98: FH + VerwFH | C98: 5 | D98: Humanmedizin/Gesundheitswissenschaften + Veterinärmedizin | E98: 3 | F98: Wiss. u. künstl. Mitarbeiter | G98: m | H98: 1 | I98: 1 | J98: 1
A99: 2 | B99: FH + VerwFH | C99: 5 | D99: Humanmedizin/Gesundheitswissenschaften + Veterinärmedizin | E99: 3 | F99: Wiss. u. künstl. Mitarbeiter | G99: i | H99: 1 | I99: 1 | J99: 1
A100: 2 | B100: FH + VerwFH | C100: 5 | D100: Humanmedizin/Gesundheitswissenschaften + Veterinärmedizin | E100: ~~ | F100: zusammen | G100: m | H100: 1 | I100: 1 | J100: 1
A101: 2 | B101: FH + VerwFH | C101: 5 | D101: Humanmedizin/Gesundheitswissenschaften + Veterinärmedizin | E101: ~~ | F101: zusammen | G101: i | H101: 1 | I101: 1 | J101: 1
A102: 2 | B102: FH + VerwFH | C102: 8 | D102: Ingenieurwissenschaften | E102: 3 | F102: Wiss. u. künstl. Mitarbeiter | G102: m | H102: 374 | I102: 133 | J102: 248
A103: 2 | B103: FH + VerwFH | C103: 8 | D103: Ingenieurwissenschaften | E103: 3 | F103: Wiss. u. künstl. Mitarbeiter | G103: w | H103: 53 | I103: 27 | J103: 39
A104: 2 | B104: FH + VerwFH | C104: 8 | D104: Ingenieurwissenschaften | E104: 3 | F104: Wiss. u. künstl. Mitarbeiter | G104: i | H104: 427 | I104: 160 | J104: 287
A105: 2 | B105: FH + VerwFH | C105: 8 | D105: Ingenieurwissenschaften | E105: 4 | F105: Lehrkr. f. bes. Aufgaben + Doz. u. Assistenten | G105: m | H105: 432 | I105: 161 | J105: 251
A106: 2 | B106: FH + VerwFH | C106: 8 | D106: Ingenieurwissenschaften | E106: 4 | F106: Lehrkr. f. bes. Aufgaben + Doz. u. Assistenten | G106: w | H106: 82 | I106: 36 | J106: 57
A107: 2 | B107: FH + VerwFH | C107: 8 | D107: Ingenieurwissenschaften | E107: 4 | F107: Lehrkr. f. bes. Aufgaben + Doz. u. Assistenten | G107: i | H107: 514 | I107: 197 | J107: 308
A108: 2 | B108: FH + VerwFH | C108: 8 | D108: Ingenieurwissenschaften | E108: ~~ | F108: zusammen | G108: m | H108: 806 | I108: 294 | J108: 499
A109: 2 | B109: FH + VerwFH | C109: 8 | D109: Ingenieurwissenschaften | E109: ~~ | F109: zusammen | G109: w | H109: 135 | I109: 63 | J109: 96
A110: 2 | B110: FH + VerwFH | C110: 8 | D110: Ingenieurwissenschaften | E110: ~~ | F110: zusammen | G110: i | H110: 941 | I110: 357 | J110: 595
A111: 2 | B111: FH + VerwFH | C111: 10 | D111: Restliche Fächergruppen | E111: 3 | F111: Wiss. u. künstl. Mitarbeiter | G111: m | H111: 135 | I111: 36 | J111: 85
A112: 2 | B112: FH + VerwFH | C112: 10 | D112: Restliche Fächergruppen | E112: 3 | F112: Wiss. u. künstl. Mitarbeiter | G112: w | H112: 68 | I112: 17 | J112: 49
A113: 2 | B113: FH + VerwFH | C113: 10 | D113: Restliche Fächergruppen | E113: 3 | F113: Wiss. u. künstl. Mitarbeiter | G113: i | H113: 203 | I113: 53 | J113: 134
A114: 2 | B114: FH + VerwFH | C114: 10 | D114: Restliche Fächergruppen | E114: 4 | F114: Lehrkr. f. bes. Aufgaben + Doz. u. Assistenten | G114: m | H114: 186 | I114: 57 | J114: 109
A115: 2 | B115: FH + VerwFH | C115: 10 | D115: Restliche Fächergruppen | E115: 4 | F115: Lehrkr. f. bes. Aufgaben + Doz. u. Assistenten | G115: w | H115: 93 | I115: 30 | J115: 64
A116: 2 | B116: FH + VerwFH | C116: 10 | D116: Restliche Fächergruppen | E116: 4 | F116: Lehrkr. f. bes. Aufgaben + Doz. u. Assistenten | G116: i | H116: 279 | I116: 87 | J116: 173
A117: 2 | B117: FH + VerwFH | C117: 10 | D117: Restliche Fächergruppen | E117: ~~ | F117: zusammen | G117: m | H117: 321 | I117: 93 | J117: 194
A118: 2 | B118: FH + VerwFH | C118: 10 | D118: Restliche Fächergruppen | E118: ~~ | F118: zusammen | G118: w | H118: 161 | I118: 47 | J118: 113
A119: 2 | B119: FH + VerwFH | C119: 10 | D119: Restliche Fächergruppen | E119: ~~ | F119: zusammen | G119: i | H119: 482 | I119: 140 | J119: 307
A120: 2 | B120: FH + VerwFH | C120: ~~ | D120: zusammen | E120: ~~ | F120: zusammen | G120: m | H120: 2798 | I120: 585 | J120: 1467
A121: 2 | B121: FH + VerwFH | C121: ~~ | D121: zusammen | E121: ~~ | F121: zusammen | G121: w | H121: 970 | I121: 251 | J121: 656
A122: 2 | B122: FH + VerwFH | C122: ~~ | D122: zusammen | E122: ~~ | F122: zusammen | G122: i | H122: 3768 | I122: 836 | J122: 2123
A123: ~ | B123: Insgesamt | G123: m | H123: 83312 | I123: 45244 | J123: 64727
A124: ~ | B124: Insgesamt | G124: w | H124: 31417 | I124: 18138 | J124: 25776
A125: ~ | B125: Insgesamt | G125: i | H125: 114729 | I125: 63382 | J125: 90503

Sheet 1.6
A2: * Daten der Finanzierung "aus Studiengebühren/-beiträgen" (erst ab Berichtsjahr 2008 erhoben) und "Nicht finanziert/ohne Angabe" sind nicht enthalten.
A3: Quelle: Destatis; Fachserie 11 Reihe 4.4; Sonderauswertung
A4: Hauptberufliches wissenschaftliches und künstlerisches Personal nach dem Beschäftigungs-
A5: verhältnis und der Finanzierung aus Grund- und Drittmitteln
B8: Professoren
B9: 2000 | D9: 2005 | F9: 2010 | H9: 2014
B10: Grundmittel | C10: Drittmittel | D10: Grundmittel | E10: Drittmittel | F10: Grundmittel | G10: Drittmittel | H10: Grundmittel | I10: Drittmittel
A11: Auf Dauer | B11: 35630 | C11: 275 | D11: 32359 | E11: 260 | F11: 31673 | G11: 596 | H11: 35949 | I11: 832
A12: Auf Zeit | B12: 1689 | C12: 89 | D12: 4322 | E12: 249 | F12: 6757 | G12: 976 | H12: 5499 | I12: 1146
A13: Summe | B13: =SUM(B11:B12) -> 37319 | C13: 364 | D13: 36681 | E13: 509 | F13: 38430 | G13: 1572 | H13: 41448 | I13: 1978
B16: Professoren
B17: 2000 | D17: 2005 | F17: 2010 | H17: 2014
B18: Grundmittel | C18: Drittmittel | D18: Grundmittel | E18: Drittmittel | F18: Grundmittel | G18: Drittmittel | H18: Grundmittel | I18: Drittmittel
A19: Auf Dauer | B19: =B11/B13 -> 0.9547415526 | C19: 0.7554945055 | D19: 0.8821733322 | E19: 0.510805501 | F19: 0.8241738225 | G19: 0.3791348601 | H19: 0.867327736 | I19: 0.4206268959
A20: Auf Zeit | B20: =B12/B13 -> 0.04525844744 | C20: 0.2445054945 | D20: 0.1178266678 | E20: 0.489194499 | F20: 0.1758261775 | G20: 0.6208651399 | H20: 0.132672264 | I20: 0.5793731041
A21: Summe | B21: =SUM(B19:B20) -> 1 | C21: 1 | D21: 1 | E21: 1 | F21: 1 | G21: 1 | H21: 1 | I21: 1
B24: Dozenten u. Assistenten
B25: 2000 | D25: 2005 | F25: 2010 | H25: 2014
B26: Grundmittel | C26: Drittmittel | D26: Grundmittel | E26: Drittmittel | F26: Grundmittel | G26: Drittmittel | H26: Grundmittel | I26: Drittmittel
A27: Auf Dauer | B27: 1019 | C27: 16 | D27: 1788 | E27: 46 | F27: 1108 | G27: 40 | H27: 881 | I27: 35
A28: Auf Zeit | B28: 12613 | C28: 517 | D28: 7601 | E28: 269 | F28: 2211 | G28: 445 | H28: 1746 | I28: 432
A29: Summe | B29: =SUM(B27:B28) -> 13632 | C29: 533 | D29: 9389 | E29: 315 | F29: 3319 | G29: 485 | H29: 2627 | I29: 467
B32: Dozenten u. Assistenten
B33: 2000 | D33: 2005 | F33: 2010 | H33: 2014
B34: Grundmittel | C34: Drittmittel | D34: Grundmittel | E34: Drittmittel | F34: Grundmittel | G34: Drittmittel | H34: Grundmittel | I34: Drittmittel
A35: Auf Dauer | B35: =B27/B29 -> 0.07475058685 | C35: 0.03001876173 | D35: 0.1904356161 | E35: 0.146031746 | F35: 0.3338354926 | G35: 0.0824742268 | H35: 0.3353635325 | I35: 0.07494646681
A36: Auf Zeit | B36: =B28/B29 -> 0.9252494131 | C36: 0.9699812383 | D36: 0.8095643839 | E36: 0.853968254 | F36: 0.6661645074 | G36: 0.9175257732 | H36: 0.6646364675 | I36: 0.9250535332
A37: Summe | B37: =SUM(B35:B36) -> 1 | C37: 1 | D37: 1 | E37: 1 | F37: 1 | G37: 1 | H37: 1 | I37: 1
B40: Wissenschaftliche u. künstlerische Mitarbeiter
B41: 2000 | D41: 2005 | F41: 2010 | H41: 2014
B42: Grundmittel | C42: Drittmittel | D42: Grundmittel | E42: Drittmittel | F42: Grundmittel | G42: Drittmittel | H42: Grundmittel | I42: Drittmittel
A43: Auf Dauer | B43: 23837 | C43: 1837 | D43: 22745 | E43: 3609 | F43: 22086 | G43: 1491 | H43: 25283 | I43: 1111
A44: Auf Zeit | B44: 40911 | C44: 29983 | D44: 47814 | E44: 32759 | F44: 65456 | G44: 59923 | H44: 77433 | I44: 69263
A45: Summe | B45: =SUM(B43:B44) -> 64748 | C45: 31820 | D45: 70559 | E45: 36368 | F45: 87542 | G45: 61414 | H45: 102716 | I45: 70374
B48: Wissenschaftliche u. künstlerische Mitarbeiter
B49: 2000 | D49: 2005 | F49: 2010 | H49: 2014
B50: Grundmittel | C50: Drittmittel | D50: Grundmittel | E50: Drittmittel | F50: Grundmittel | G50: Drittmittel | H50: Grundmittel | I50: Drittmittel
A51: Auf Dauer | B51: =B43/B45 -> 0.3681503676 | C51: 0.0577309868 | D51: 0.3223543418 | E51: 0.09923559173 | F51: 0.2522903292 | G51: 0.02427785196 | H51: 0.2461447097 | I51: 0.01578708046
A52: Auf Zeit | B52: =B44/B45 -> 0.6318496324 | C52: 0.9422690132 | D52: 0.6776456582 | E52: 0.9007644083 | F52: 0.7477096708 | G52: 0.975722148 | H52: 0.7538552903 | I52: 0.9842129195
A53: Summe | B53: =SUM(B51:B52) -> 1 | C53: 1 | D53: 1 | E53: 1 | F53: 1 | G53: 1 | H53: 1 | I53: 1
B56: Lehrkräfte für besondere Aufgaben
B57: 2000 | D57: 2005 | F57: 2010 | H57: 2014
B58: Grundmittel | C58: Drittmittel | D58: Grundmittel | E58: Drittmittel | F58: Grundmittel | G58: Drittmittel | H58: Grundmittel | I58: Drittmittel
A59: Auf Dauer | B59: 5047 | C59: 30 | D59: 4732 | E59: 66 | F59: 4587 | G59: 41 | H59: 5397 | I59: 109
A60: Auf Zeit | B60: 1111 | C60: 100 | D60: 1406 | E60: 131 | F60: 2488 | G60: 344 | H60: 3402 | I60: 518
A61: Summe | B61: =SUM(B59:B60) -> 6158 | C61: 130 | D61: 6138 | E61: 197 | F61: 7075 | G61: 385 | H61: 8799 | I61: 627
B64: Lehrkräfte für besondere Aufgaben
B65: 2000 | D65: 2005 | F65: 2010 | H65: 2014
B66: Grundmittel | C66: Drittmittel | D66: Grundmittel | E66: Drittmittel | F66: Grundmittel | G66: Drittmittel | H66: Grundmittel | I66: Drittmittel
A67: Auf Dauer | B67: =B59/B61 -> 0.8195842806 | C67: 0.2307692308 | D67: 0.770935158 | E67: 0.3350253807 | F67: 0.6483392226 | G67: 0.1064935065 | H67: 0.6133651551 | I67: 0.1738437002
A68: Auf Zeit | B68: =B60/B61 -> 0.1804157194 | C68: 0.7692307692 | D68: 0.229064842 | E68: 0.6649746193 | F68: 0.3516607774 | G68: 0.8935064935 | H68: 0.3866348449 | I68: 0.8261562998
A69: Summe | B69: =SUM(B67:B68) -> 1 | C69: 1 | D69: 1 | E69: 1 | F69: 1 | G69: 1 | H69: 1 | I69: 1
B72: Insgesamt
B73: 2000 | D73: 2005 | F73: 2010 | H73: 2014
B74: Grundmittel | C74: Drittmittel | D74: Grundmittel | E74: Drittmittel | F74: Grundmittel | G74: Drittmittel | H74: Grundmittel | I74: Drittmittel
A75: Auf Dauer | B75: 65533 | C75: 2158 | D75: 61624 | E75: 3981 | F75: 59454 | G75: 2168 | H75: 67510 | I75: 2087
A76: Auf Zeit | B76: 56324 | C76: 30689 | D76: 61143 | E76: 33408 | F76: 76912 | G76: 61688 | H76: 88080 | I76: 71359
A77: Summe | B77: =SUM(B75:B76) -> 121857 | C77: 32847 | D77: 122767 | E77: 37389 | F77: 136366 | G77: 63856 | H77: 155590 | I77: 73446
B80: Insgesamt
B81: 2000 | D81: 2005 | F81: 2010 | H81: 2014
B82: Grundmittel | C82: Drittmittel | D82: Grundmittel | E82: Drittmittel | F82: Grundmittel | G82: Drittmittel | H82: Grundmittel | I82: Drittmittel
A83: Auf Dauer | B83: =B75/B77 -> 0.5377860935 | C83: 0.06569854172 | D83: 0.5019589955 | E83: 0.1064751665 | F83: 0.4359884429 | G83: 0.03395139063 | H83: 0.43389678 | I83: 0.02841543447
A84: Auf Zeit | B84: =B76/B77 -> 0.4622139065 | C84: 0.9343014583 | D84: 0.4980410045 | E84: 0.8935248335 | F84: 0.5640115571 | G84: 0.9660486094 | H84: 0.56610322 | I84: 0.9715845655
A85: Summe | B85: =SUM(B83:B84) -> 1 | C85: 1 | D85: 1 | E85: 1 | F85: 1 | G85: 1 | H85: 1 | I85: 1

Sheet 1.7
A1: Statistisches Bundesamt
A2: H201 - Hochschulpersonalstatistik
A4: Hauptberufliches wissenschaftliches und künstlerisches Personal nach dem Beschäftigungs-
A5: verhältnis, Geschlecht und der Finanzierung aus Grund- und Drittmitteln
A7: Berichtsjahr 2000
A9: Personalgruppe | B9: Beschäftigungs- | C9: Geschl. | D9: Finanzierung aus
B10: verhältnis | D10: Grundmitteln | E10: Drittmitteln
A12: Professoren | B12: auf Dauer | C12: m | D12: 32018 | E12: 235
A13: Professoren | B13: auf Dauer | C13: w | D13: 3612 | E13: 40
A14: Professoren | B14: auf Dauer | C14: i | D14: 35630 | E14: 275
A15: Professoren | B15: auf Zeit | C15: m | D15: 1383 | E15: 72
A16: Professoren | B16: auf Zeit | C16: w | D16: 306 | E16: 17
A17: Professoren | B17: auf Zeit | C17: i | D17: 1689 | E17: 89
A18: Dozenten und Assistenten | B18: auf Dauer | C18: m | D18: 833 | E18: 15
A19: Dozenten und Assistenten | B19: auf Dauer | C19: w | D19: 186 | E19: 1
A20: Dozenten und Assistenten | B20: auf Dauer | C20: i | D20: 1019 | E20: 16
A21: Dozenten und Assistenten | B21: auf Zeit | C21: m | D21: 9483 | E21: 322
A22: Dozenten und Assistenten | B22: auf Zeit | C22: w | D22: 3130 | E22: 195
A23: Dozenten und Assistenten | B23: auf Zeit | C23: i | D23: 12613 | E23: 517
A24: Wissenschaftliche und künstlerische Mitarbeiter | B24: auf Dauer | C24: m | D24: 18133 | E24: 1359
A25: Wissenschaftliche und künstlerische Mitarbeiter | B25: auf Dauer | C25: w | D25: 5704 | E25: 478
A26: Wissenschaftliche und künstlerische Mitarbeiter | B26: auf Dauer | C26: i | D26: 23837 | E26: 1837
A27: Wissenschaftliche und künstlerische Mitarbeiter | B27: auf Zeit | C27: m | D27: 27193 | E27: 20611
A28: Wissenschaftliche und künstlerische Mitarbeiter | B28: auf Zeit | C28: w | D28: 13718 | E28: 9372
A29: Wissenschaftliche und künstlerische Mitarbeiter | B29: auf Zeit | C29: i | D29: 40911 | E29: 29983
A30: Lehrkräfte für besondere Aufgaben | B30: auf Dauer | C30: m | D30: 3077 | E30: 12
A31: Lehrkräfte für besondere Aufgaben | B31: auf Dauer | C31: w | D31: 1970 | E31: 18
A32: Lehrkräfte für besondere Aufgaben | B32: auf Dauer | C32: i | D32: 5047 | E32: 30
A33: Lehrkräfte für besondere Aufgaben | B33: auf Zeit | C33: m | D33: 536 | E33: 49
A34: Lehrkräfte für besondere Aufgaben | B34: auf Zeit | C34: w | D34: 575 | E34: 51
A35: Lehrkräfte für besondere Aufgaben | B35: auf Zeit | C35: i | D35: 1111 | E35: 100
A36: Hauptberufliches Personal insgesamt | B36: auf Dauer | C36: m | D36: 54061 | E36: 1621
A37: Hauptberufliches Personal insgesamt | B37: auf Dauer | C37: w | D37: 11472 | E37: 537
A38: Hauptberufliches Personal insgesamt | B38: auf Dauer | C38: i | D38: 65533 | E38: 2158
A39: Hauptberufliches Personal insgesamt | B39: auf Zeit | C39: m | D39: 38595 | E39: 21054
A40: Hauptberufliches Personal insgesamt | B40: auf Zeit | C40: w | D40: 17729 | E40: 9635
A41: Hauptberufliches Personal insgesamt | B41: auf Zeit | C41: i | D41: 56324 | E41: 30689
A42: Hauptberufliches Personal insgesamt | C42: m | D42: 92656 | E42: 22675
A43: Hauptberufliches Personal insgesamt | C43: w | D43: 29201 | E43: 10172
A44: Hauptberufliches Personal insgesamt | C44: i | D44: 121857 | E44: 32847

Sheet 1.8
A1: Statistisches Bundesamt
A2: H201 - Hochschulpersonalstatistik
A4: Hauptberufliches wissenschaftliches und künstlerisches Personal nach dem Beschäftigungs-
A5: verhältnis, Geschlecht und der Finanzierung aus Grund- und Drittmitteln
A7: Berichtsjahr 2005
A9: Personalgruppe | B9: Beschäftigungs- | C9: Geschl. | D9: Finanzierung aus
B10: verhältnis | D10: Grundmitteln | E10: Drittmitteln
A12: Professoren | B12: auf Dauer | C12: m | D12: 28054 | E12: 225
A13: Professoren | B13: auf Dauer | C13: w | D13: 4305 | E13: 35
A14: Professoren | B14: auf Dauer | C14: i | D14: 32359 | E14: 260
A15: Professoren | B15: auf Zeit | C15: m | D15: 3391 | E15: 200
A16: Professoren | B16: auf Zeit | C16: w | D16: 931 | E16: 49
A17: Professoren | B17: auf Zeit | C17: i | D17: 4322 | E17: 249
A18: Dozenten und Assistenten | B18: auf Dauer | C18: m | D18: 1367 | E18: 35
A19: Dozenten und Assistenten | B19: auf Dauer | C19: w | D19: 421 | E19: 11
A20: Dozenten und Assistenten | B20: auf Dauer | C20: i | D20: 1788 | E20: 46
A21: Dozenten und Assistenten | B21: auf Zeit | C21: m | D21: 5488 | E21: 142
A22: Dozenten und Assistenten | B22: auf Zeit | C22: w | D22: 2113 | E22: 127
A23: Dozenten und Assistenten | B23: auf Zeit | C23: i | D23: 7601 | E23: 269
A24: Wissenschaftliche und künstlerische Mitarbeiter | B24: auf Dauer | C24: m | D24: 16603 | E24: 2335
A25: Wissenschaftliche und künstlerische Mitarbeiter | B25: auf Dauer | C25: w | D25: 6142 | E25: 1274
A26: Wissenschaftliche und künstlerische Mitarbeiter | B26: auf Dauer | C26: i | D26: 22745 | E26: 3609
A27: Wissenschaftliche und künstlerische Mitarbeiter | B27: auf Zeit | C27: m | D27: 29617 | E27: 21073
A28: Wissenschaftliche und künstlerische Mitarbeiter | B28: auf Zeit | C28: w | D28: 18197 | E28: 11686
A29: Wissenschaftliche und künstlerische Mitarbeiter | B29: auf Zeit | C29: i | D29: 47814 | E29: 32759
A30: Lehrkräfte für besondere Aufgaben | B30: auf Dauer | C30: m | D30: 2662 | E30: 29
A31: Lehrkräfte für besondere Aufgaben | B31: auf Dauer | C31: w | D31: 2070 | E31: 37
A32: Lehrkräfte für besondere Aufgaben | B32: auf Dauer | C32: i | D32: 4732 | E32: 66
A33: Lehrkräfte für besondere Aufgaben | B33: auf Zeit | C33: m | D33: 691 | E33: 64
A34: Lehrkräfte für besondere Aufgaben | B34: auf Zeit | C34: w | D34: 715 | E34: 67
A35: Lehrkräfte für besondere Aufgaben | B35: auf Zeit | C35: i | D35: 1406 | E35: 131
A36: Hauptberufliches Personal insgesamt | B36: auf Dauer | C36: m | D36: 48686 | E36: 2624
A37: Hauptberufliches Personal insgesamt | B37: auf Dauer | C37: w | D37: 12938 | E37: 1357
A38: Hauptberufliches Personal insgesamt | B38: auf Dauer | C38: i | D38: 61624 | E38: 3981
A39: Hauptberufliches Personal insgesamt | B39: auf Zeit | C39: m | D39: 39187 | E39: 21479
A40: Hauptberufliches Personal insgesamt | B40: auf Zeit | C40: w | D40: 21956 | E40: 11929
A41: Hauptberufliches Personal insgesamt | B41: auf Zeit | C41: i | D41: 61143 | E41: 33408
A42: Hauptberufliches Personal insgesamt | C42: m | D42: 87873 | E42: 24103
A43: Hauptberufliches Personal insgesamt | C43: w | D43: 34894 | E43: 13286
A44: Hauptberufliches Personal insgesamt | C44: i | D44: 122767 | E44: 37389

Sheet 1.9
A1: Statistisches Bundesamt
A2: H201 - Hochschulpersonalstatistik
A4: Hauptberufliches wissenschaftliches und künstlerisches Personal nach dem Beschäftigungs-
A5: verhältnis, Geschlecht und der Finanzierung aus Grund- und Drittmitteln
A7: Berichtsjahr 2010
A9: Personalgruppe | B9: Beschäftigungs- | C9: Geschl. | D9: Finanzierung aus
B10: verhältnis | D10: Grundmitteln | E10: Drittmitteln
A12: Professoren | B12: auf Dauer | C12: m | D12: 26134 | E12: 455
A13: Professoren | B13: auf Dauer | C13: w | D13: 5539 | E13: 141
A14: Professoren | B14: auf Dauer | C14: i | D14: 31673 | E14: 596
A15: Professoren | B15: auf Zeit | C15: m | D15: 5089 | E15: 689
A16: Professoren | B16: auf Zeit | C16: w | D16: 1668 | E16: 287
A17: Professoren | B17: auf Zeit | C17: i | D17: 6757 | E17: 976
A18: Dozenten und Assistenten | B18: auf Dauer | C18: m | D18: 799 | E18: 31
A19: Dozenten und Assistenten | B19: auf Dauer | C19: w | D19: 309 | E19: 9
A20: Dozenten und Assistenten | B20: auf Dauer | C20: i | D20: 1108 | E20: 40
A21: Dozenten und Assistenten | B21: auf Zeit | C21: m | D21: 1446 | E21: 258
A22: Dozenten und Assistenten | B22: auf Zeit | C22: w | D22: 765 | E22: 187
A23: Dozenten und Assistenten | B23: auf Zeit | C23: i | D23: 2211 | E23: 445
A24: Wissenschaftliche und künstlerische Mitarbeiter | B24: auf Dauer | C24: m | D24: 15481 | E24: 920
A25: Wissenschaftliche und künstlerische Mitarbeiter | B25: auf Dauer | C25: w | D25: 6605 | E25: 571
A26: Wissenschaftliche und künstlerische Mitarbeiter | B26: auf Dauer | C26: i | D26: 22086 | E26: 1491
A27: Wissenschaftliche und künstlerische Mitarbeiter | B27: auf Zeit | C27: m | D27: 37185 | E27: 36688
A28: Wissenschaftliche und künstlerische Mitarbeiter | B28: auf Zeit | C28: w | D28: 28271 | E28: 23235
A29: Wissenschaftliche und künstlerische Mitarbeiter | B29: auf Zeit | C29: i | D29: 65456 | E29: 59923
A30: Lehrkräfte für besondere Aufgaben | B30: auf Dauer | C30: m | D30: 2427 | E30: 21
A31: Lehrkräfte für besondere Aufgaben | B31: auf Dauer | C31: w | D31: 2160 | E31: 20
A32: Lehrkräfte für besondere Aufgaben | B32: auf Dauer | C32: i | D32: 4587 | E32: 41
A33: Lehrkräfte für besondere Aufgaben | B33: auf Zeit | C33: m | D33: 1193 | E33: 206
A34: Lehrkräfte für besondere Aufgaben | B34: auf Zeit | C34: w | D34: 1295 | E34: 138
A35: Lehrkräfte für besondere Aufgaben | B35: auf Zeit | C35: i | D35: 2488 | E35: 344
A36: Hauptberufliches Personal insgesamt | B36: auf Dauer | C36: m | D36: 44841 | E36: 1427
A37: Hauptberufliches Personal insgesamt | B37: auf Dauer | C37: w | D37: 14613 | E37: 741
A38: Hauptberufliches Personal insgesamt | B38: auf Dauer | C38: i | D38: 59454 | E38: 2168
A39: Hauptberufliches Personal insgesamt | B39: auf Zeit | C39: m | D39: 44913 | E39: 37841
A40: Hauptberufliches Personal insgesamt | B40: auf Zeit | C40: w | D40: 31999 | E40: 23847
A41: Hauptberufliches Personal insgesamt | B41: auf Zeit | C41: i | D41: 76912 | E41: 61688
A42: Hauptberufliches Personal insgesamt | C42: m | D42: 89754 | E42: 39268
A43: Hauptberufliches Personal insgesamt | C43: w | D43: 46612 | E43: 24588
A44: Hauptberufliches Personal insgesamt | C44: i | D44: 136366 | E44: 63856

Sheet 1.10
A1: Statistisches Bundesamt
A2: H201 - Hochschulpersonalstatistik
A4: Hauptberufliches wissenschaftliches und künstlerisches Personal nach dem Beschäftigungs-
A5: verhältnis, Geschlecht und der Finanzierung aus Grund- und Drittmitteln
A7: Berichtsjahr 2014
A9: Personalgruppe | B9: Beschäftigungs- | C9: Geschl. | D9: Finanzierung aus
B10: verhältnis | D10: Grundmitteln | E10: Drittmitteln
A12: Professoren | B12: auf Dauer | C12: m | D12: 28766 | E12: 606
A13: Professoren | B13: auf Dauer | C13: w | D13: 7183 | E13: 226
A14: Professoren | B14: auf Dauer | C14: i | D14: 35949 | E14: 832
A15: Professoren | B15: auf Zeit | C15: m | D15: 3777 | E15: 795
A16: Professoren | B16: auf Zeit | C16: w | D16: 1722 | E16: 351
A17: Professoren | B17: auf Zeit | C17: i | D17: 5499 | E17: 1146
A18: Dozenten und Assistenten | B18: auf Dauer | C18: m | D18: 619 | E18: 22
A19: Dozenten und Assistenten | B19: auf Dauer | C19: w | D19: 262 | E19: 13
A20: Dozenten und Assistenten | B20: auf Dauer | C20: i | D20: 881 | E20: 35
A21: Dozenten und Assistenten | B21: auf Zeit | C21: m | D21: 1098 | E21: 228
A22: Dozenten und Assistenten | B22: auf Zeit | C22: w | D22: 648 | E22: 204
A23: Dozenten und Assistenten | B23: auf Zeit | C23: i | D23: 1746 | E23: 432
A24: Wissenschaftliche und künstlerische Mitarbeiter | B24: auf Dauer | C24: m | D24: 16850 | E24: 675
A25: Wissenschaftliche und künstlerische Mitarbeiter | B25: auf Dauer | C25: w | D25: 8433 | E25: 436
A26: Wissenschaftliche und künstlerische Mitarbeiter | B26: auf Dauer | C26: i | D26: 25283 | E26: 1111
A27: Wissenschaftliche und künstlerische Mitarbeiter | B27: auf Zeit | C27: m | D27: 42143 | E27: 41864
A28: Wissenschaftliche und künstlerische Mitarbeiter | B28: auf Zeit | C28: w | D28: 35290 | E28: 27399
A29: Wissenschaftliche und künstlerische Mitarbeiter | B29: auf Zeit | C29: i | D29: 77433 | E29: 69263
A30: Lehrkräfte für besondere Aufgaben | B30: auf Dauer | C30: m | D30: 2804 | E30: 57
A31: Lehrkräfte für besondere Aufgaben | B31: auf Dauer | C31: w | D31: 2593 | E31: 52
A32: Lehrkräfte für besondere Aufgaben | B32: auf Dauer | C32: i | D32: 5397 | E32: 109
A33: Lehrkräfte für besondere Aufgaben | B33: auf Zeit | C33: m | D33: 1474 | E33: 237
A34: Lehrkräfte für besondere Aufgaben | B34: auf Zeit | C34: w | D34: 1928 | E34: 281
A35: Lehrkräfte für besondere Aufgaben | B35: auf Zeit | C35: i | D35: 3402 | E35: 518
A36: Hauptberufliches Personal insgesamt | B36: auf Dauer | C36: m | D36: 49039 | E36: 1360
A37: Hauptberufliches Personal insgesamt | B37: auf Dauer | C37: w | D37: 18471 | E37: 727
A38: Hauptberufliches Personal insgesamt | B38: auf Dauer | C38: i | D38: 67510 | E38: 2087
A39: Hauptberufliches Personal insgesamt | B39: auf Zeit | C39: m | D39: 48492 | E39: 43124
A40: Hauptberufliches Personal insgesamt | B40: auf Zeit | C40: w | D40: 39588 | E40: 28235
A41: Hauptberufliches Personal insgesamt | B41: auf Zeit | C41: i | D41: 88080 | E41: 71359
A42: Hauptberufliches Personal insgesamt | C42: m | D42: 97531 | E42: 44484
A43: Hauptberufliches Personal insgesamt | C43: w | D43: 58059 | E43: 28962
A44: Hauptberufliches Personal insgesamt | C44: i | D44: 155590 | E44: 73446

Sheet 2.Habil. je Alter&Geschlecht

Sheet 2.1
A1: Statistisches Bundesamt
A2: H201 - Hochschulstatistik
A4: Habilitationen 2009 bis 2014
A5: Habilitationen
A6: Jahr | B6: Alter | C6: insgesamt | D6: männlich | E6: weiblich
A7: 2014 | B7: unter 45 Jahre | C7: 1260 | D7: 923 | E7: 337
A8: 2013 | B8: unter 44 Jahre | C8: 1101 | D8: 812 | E8: 289
A9: 2012 | B9: unter 43 Jahre | C9: 1095 | D9: 810 | E9: 285
A10: 2011 | B10: unter 42 Jahre | C10: 953 | D10: 713 | E10: 240
A11: 2010 | B11: unter 41 Jahre | C11: 961 | D11: 722 | E11: 239
A12: 2009 | B12: unter 40 Jahre | C12: 835 | D12: 669 | E12: 166
B13: Summe | C13: =SUM(C7:C12) -> 6205 | D13: =SUM(D7:D12) -> 4649 | E13: =SUM(E7:E12) -> 1556
A14: Quelle: Sonderauswertung Statistisches Bundesamt; Hochschulstatistik

Sheet 2.2
A1: Habilitationen 2014
A3: 21 Nach Fächergruppen und Lehr- und Forschungsbereichen der fachlichen Zugehörigkeit,
A4: Habilitationsalter und Durchschnittsalter bei der Habilitation
A6: Fächergruppe | E6: Davon im Alter von ... bis unter ... Jahren 1) | P6: Durchschnitts-
A7: ------------ | D7: Habili- | P7: alter
A8: Lehr- und Forschungsbereich | D8: tierte | E8: unter | F8: 33 | G8: 35 | H8: 37 | I8: 39 | J8: 41 | K8: 43 | L8: 45 | M8: 47 | N8: 49 | O8: 51 | P8: arith-
D9: ins- | E9: 33 | F9: - | G9: - | H9: - | I9: - | J9: - | K9: - | L9: - | M9: - | N9: - | O9: und | P9: meti- | Q9: Median
A10: (m = männlich, w = weiblich | D10: gesamt | F10: 35 | G10: 37 | H10: 39 | I10: 41 | J10: 43 | K10: 45 | L10: 47 | M10: 49 | N10: 51 | O10: mehr | P10: sches | Q10: 2)
A11: i = insgesamt) | P11: Mittel
A13: Sprach- und Kulturwissenschaften
B15: Sprach- und Kulturwissenschaften | C15: m | D15: 5 | E15: 0 | F15: 0 | G15: 1 | H15: 0 | I15: 0 | J15: 0 | K15: 0 | L15: 0 | M15: 1 | N15: 0 | O15: 3 | P15: 48.6 | Q15: 51.5
B16: allgemein | C16: w | D16: 3 | E16: 0 | F16: 1 | G16: 0 | H16: 0 | I16: 0 | J16: 0 | K16: 1 | L16: 0 | M16: 1 | N16: 0 | O16: 0 | P16: 40.8 | Q16: 42.5
C17: i | D17: 8 | E17: 0 | F17: 1 | G17: 1 | H17: 0 | I17: 0 | J17: 0 | K17: 1 | L17: 0 | M17: 2 | N17: 0 | O17: 3 | P17: 45.7 | Q17: 46.5
B19: Evangelische Theologie | C19: m | D19: 6 | E19: 0 | F19: 1 | G19: 0 | H19: 0 | I19: 1 | J19: 1 | K19: 1 | L19: 1 | M19: 0 | N19: 0 | O19: 1 | P19: 42.6 | Q19: 42
C20: w | D20: 7 | E20: 0 | F20: 0 | G20: 0 | H20: 1 | I20: 2 | J20: 0 | K20: 1 | L20: 2 | M20: 0 | N20: 0 | O20: 1 | P20: 43.5 | Q20: 43.5
C21: i | D21: 13 | E21: 0 | F21: 1 | G21: 0 | H21: 1 | I21: 3 | J21: 1 | K21: 2 | L21: 3 | M21: 0 | N21: 0 | O21: 2 | P21: 43.1 | Q21: 42.5
B23: Katholische Theologie | C23: m | D23: 12 | E23: 0 | F23: 2 | G23: 2 | H23: 1 | I23: 2 | J23: 0 | K23: 0 | L23: 0 | M23: 3 | N23: 0 | O23: 2 | P23: 41.9 | Q23: 39.5
C24: w | D24: 8 | E24: 0 | F24: 0 | G24: 0 | H24: 3 | I24: 2 | J24: 1 | K24: 1 | L24: 1 | M24: 0 | N24: 0 | O24: 0 | P24: 40.5 | Q24: 39
C25: i | D25: 20 | E25: 0 | F25: 2 | G25: 2 | H25: 4 | I25: 4 | J25: 1 | K25: 1 | L25: 1 | M25: 3 | N25: 0 | O25: 2 | P25: 41.4 | Q25: 39.3
B27: Philosophie | C27: m | D27: 19 | E27: 0 | F27: 2 | G27: 1 | H27: 1 | I27: 3 | J27: 1 | K27: 7 | L27: 1 | M27: 2 | N27: 0 | O27: 1 | P27: 42 | Q27: 42.8
C28: w | D28: 3 | E28: 0 | F28: 0 | G28: 0 | H28: 0 | I28: 0 | J28: 1 | K28: 1 | L28: 1 | M28: 0 | N28: 0 | O28: 0 | P28: 43.6 | Q28: 42.5
C29: i | D29: 22 | E29: 0 | F29: 2 | G29: 1 | H29: 1 | I29: 3 | J29: 2 | K29: 8 | L29: 2 | M29: 2 | N29: 0 | O29: 1 | P29: 42.2 | Q29: 42.7
B31: Geschichte | C31: m | D31: 22 | E31: 1 | F31: 0 | G31: 0 | H31: 3 | I31: 3 | J31: 4 | K31: 2 | L31: 2 | M31: 4 | N31: 1 | O31: 2 | P31: 44.2 | Q31: 42
C32: w | D32: 8 | E32: 0 | F32: 0 | G32: 0 | H32: 1 | I32: 1 | J32: 2 | K32: 3 | L32: 0 | M32: 0 | N32: 0 | O32: 1 | P32: 42.6 | Q32: 42
C33: i | D33: 30 | E33: 1 | F33: 0 | G33: 0 | H33: 4 | I33: 4 | J33: 6 | K33: 5 | L33: 2 | M33: 4 | N33: 1 | O33: 3 | P33: 43.8 | Q33: 42
B35: Bibliothekswissenschaft, Dokumentation | C35: m | D35: 1 | E35: 0 | F35: 0 | G35: 0 | H35: 0 | I35: 0 | J35: 0 | K35: 0 | L35: 0 | M35: 0 | N35: 0 | O35: 1 | P35: . | Q35: .
B37: Allgemeine und vergleichende | C37: m | D37: 8 | E37: 0 | F37: 1 | G37: 0 | H37: 2 | I37: 0 | J37: 1 | K37: 1 | L37: 1 | M37: 2 | N37: 0 | O37: 0 | P37: 41.8 | Q37: 42
B38: Literatur- und Sprachwissenschaft | C38: w | D38: 4 | E38: 0 | F38: 0 | G38: 0 | H38: 0 | I38: 1 | J38: 0 | K38: 0 | L38: 2 | M38: 0 | N38: 0 | O38: 1 | P38: 45.9 | Q38: 44.5
C39: i | D39: 12 | E39: 0 | F39: 1 | G39: 0 | H39: 2 | I39: 1 | J39: 1 | K39: 1 | L39: 3 | M39: 2 | N39: 0 | O39: 1 | P39: 43.1 | Q39: 44
B41: Altphilologie (klassische Philologie) | C41: w | D41: 2 | E41: 0 | F41: 0 | G41: 0 | H41: 0 | I41: 1 | J41: 0 | K41: 1 | L41: 0 | M41: 0 | N41: 0 | O41: 0 | P41: 42.6 | Q41: 40
B43: Germanistik (Deutsch, germanische | C43: m | D43: 14 | E43: 0 | F43: 0 | G43: 0 | H43: 1 | I43: 3 | J43: 3 | K43: 2 | L43: 2 | M43: 1 | N43: 0 | O43: 2 | P43: 43.7 | Q43: 42
B44: Sprachen ohne Anglistik) | C44: w | D44: 11 | E44: 0 | F44: 1 | G44: 1 | H44: 1 | I44: 1 | J44: 1 | K44: 0 | L44: 2 | M44: 2 | N44: 2 | O44: 0 | P44: 42.9 | Q44: 44.3
C45: i | D45: 25 | E45: 0 | F45: 1 | G45: 1 | H45: 2 | I45: 4 | J45: 4 | K45: 2 | L45: 4 | M45: 3 | N45: 2 | O45: 2 | P45: 43.4 | Q45: 42.3
B47: Anglistik, Amerikanistik | C47: m | D47: 12 | E47: 0 | F47: 0 | G47: 2 | H47: 3 | I47: 3 | J47: 1 | K47: 2 | L47: 0 | M47: 0 | N47: 0 | O47: 1 | P47: 40.5 | Q47: 38.5
C48: w | D48: 10 | E48: 0 | F48: 0 | G48: 2 | H48: 1 | I48: 3 | J48: 0 | K48: 0 | L48: 1 | M48: 0 | N48: 2 | O48: 1 | P48: 42.3 | Q48: 39
C49: i | D49: 22 | E49: 0 | F49: 0 | G49: 4 | H49: 4 | I49: 6 | J49: 1 | K49: 2 | L49: 1 | M49: 0 | N49: 2 | O49: 2 | P49: 41.3 | Q49: 38.8
B51: Romanistik | C51: m | D51: 3 | E51: 0 | F51: 0 | G51: 0 | H51: 0 | I51: 0 | J51: 0 | K51: 0 | L51: 1 | M51: 0 | N51: 0 | O51: 2 | P51: 50 | Q51: 50.5
C52: w | D52: 7 | E52: 0 | F52: 0 | G52: 0 | H52: 2 | I52: 1 | J52: 1 | K52: 1 | L52: 1 | M52: 0 | N52: 0 | O52: 1 | P52: 42.9 | Q52: 40.5
C53: i | D53: 10 | E53: 0 | F53: 0 | G53: 0 | H53: 2 | I53: 1 | J53: 1 | K53: 1 | L53: 2 | M53: 0 | N53: 0 | O53: 3 | P53: 45.1 | Q53: 43
B55: Slawistik, Baltistik, Finno-Ugristik | C55: m | D55: 4 | E55: 1 | F55: 0 | G55: 1 | H55: 0 | I55: 1 | J55: 0 | K55: 0 | L55: 0 | M55: 1 | N55: 0 | O55: 0 | P55: 38.4 | Q55: 35
C56: w | D56: 4 | E56: 0 | F56: 0 | G56: 0 | H56: 0 | I56: 0 | J56: 2 | K56: 2 | L56: 0 | M56: 0 | N56: 0 | O56: 0 | P56: 43.4 | Q56: 42
C57: i | D57: 8 | E57: 1 | F57: 0 | G57: 1 | H57: 0 | I57: 1 | J57: 2 | K57: 2 | L57: 0 | M57: 1 | N57: 0 | O57: 0 | P57: 40.9 | Q57: 41.5
B59: Sonstige/Außereuropäische Sprach- | C59: m | D59: 9 | E59: 0 | F59: 0 | G59: 0 | H59: 0 | I59: 2 | J59: 2 | K59: 2 | L59: 1 | M59: 2 | N59: 0 | O59: 0 | P59: 42.8 | Q59: 42.3
B60: und Kulturwissenschaften | C60: w | D60: 3 | E60: 0 | F60: 0 | G60: 0 | H60: 0 | I60: 1 | J60: 0 | K60: 0 | L60: 0 | M60: 0 | N60: 1 | O60: 1 | P60: 49.2 | Q60: 48.5
C61: i | D61: 12 | E61: 0 | F61: 0 | G61: 0 | H61: 0 | I61: 3 | J61: 2 | K61: 2 | L61: 1 | M61: 2 | N61: 1 | O61: 1 | P61: 44.4 | Q61: 42.5
B63: Kulturwissenschaften i.e.S. | C63: m | D63: 3 | E63: 0 | F63: 0 | G63: 0 | H63: 0 | I63: 0 | J63: 0 | K63: 0 | L63: 2 | M63: 0 | N63: 0 | O63: 1 | P63: 46.8 | Q63: 44.8
C64: w | D64: 4 | E64: 0 | F64: 0 | G64: 0 | H64: 0 | I64: 1 | J64: 0 | K64: 0 | L64: 1 | M64: 0 | N64: 1 | O64: 1 | P64: 46.9 | Q64: 46
C65: i | D65: 7 | E65: 0 | F65: 0 | G65: 0 | H65: 0 | I65: 1 | J65: 0 | K65: 0 | L65: 3 | M65: 0 | N65: 1 | O65: 2 | P65: 46.8 | Q65: 45.5
B67: Psychologie | C67: m | D67: 21 | E67: 1 | F67: 5 | G67: 6 | H67: 1 | I67: 6 | J67: 1 | K67: 1 | L67: 0 | M67: 0 | N67: 0 | O67: 0 | P67: 36.8 | Q67: 35.7
C68: w | D68: 25 | E68: 0 | F68: 3 | G68: 3 | H68: 6 | I68: 5 | J68: 3 | K68: 1 | L68: 1 | M68: 2 | N68: 1 | O68: 0 | P68: 39.4 | Q68: 38.1
C69: i | D69: 46 | E69: 1 | F69: 8 | G69: 9 | H69: 7 | I69: 11 | J69: 4 | K69: 2 | L69: 1 | M69: 2 | N69: 1 | O69: 0 | P69: 38.2 | Q69: 37.3
B71: Erziehungswissenschaften | C71: m | D71: 8 | E71: 0 | F71: 0 | G71: 0 | H71: 1 | I71: 2 | J71: 1 | K71: 2 | L71: 1 | M71: 1 | N71: 0 | O71: 0 | P71: 42.1 | Q71: 41
C72: w | D72: 11 | E72: 1 | F72: 0 | G72: 1 | H72: 0 | I72: 1 | J72: 2 | K72: 1 | L72: 2 | M72: 1 | N72: 0 | O72: 2 | P72: 44 | Q72: 42.5
C73: i | D73: 19 | E73: 1 | F73: 0 | G73: 1 | H73: 1 | I73: 3 | J73: 3 | K73: 3 | L73: 3 | M73: 2 | N73: 0 | O73: 2 | P73: 43.2 | Q73: 42.2
B75: Sonderpädagogik | C75: m | D75: 2 | E75: 0 | F75: 0 | G75: 0 | H75: 0 | I75: 0 | J75: 0 | K75: 1 | L75: 0 | M75: 1 | N75: 0 | O75: 0 | P75: . | Q75: .
C76: w | D76: 2 | E76: 0 | F76: 0 | G76: 0 | H76: 0 | I76: 1 | J76: 0 | K76: 0 | L76: 1 | M76: 0 | N76: 0 | O76: 0 | P76: . | Q76: .
C77: i | D77: 4 | E77: 0 | F77: 0 | G77: 0 | H77: 0 | I77: 1 | J77: 0 | K77: 1 | L77: 1 | M77: 1 | N77: 0 | O77: 0 | P77: 44.1 | Q77: 44
B79: Zusammen | C79: m | D79: 149 | E79: 3 | F79: 11 | G79: 13 | H79: 13 | I79: 26 | J79: 15 | K79: 21 | L79: 12 | M79: 18 | N79: 1 | O79: 16 | P79: 42.2 | Q79: 41.3
C80: w | D80: 112 | E80: 1 | F80: 5 | G80: 7 | H80: 15 | I80: 21 | J80: 13 | K80: 13 | L80: 15 | M80: 6 | N80: 7 | O80: 9 | P80: 42.4 | Q80: 41.1
C81: i | D81: 261 | E81: 4 | F81: 16 | G81: 20 | H81: 28 | I81: 47 | J81: 28 | K81: 34 | L81: 27 | M81: 24 | N81: 8 | O81: 25 | P81: 42.3 | Q81: 41.2
A83: Sport
B85: Sport | C85: m | D85: 6 | E85: 0 | F85: 0 | G85: 0 | H85: 2 | I85: 1 | J85: 2 | K85: 1 | L85: 0 | M85: 0 | N85: 0 | O85: 0 | P85: 40.4 | Q85: 40
C86: w | D86: 5 | E86: 0 | F86: 0 | G86: 2 | H86: 1 | I86: 1 | J86: 0 | K86: 0 | L86: 1 | M86: 0 | N86: 0 | O86: 0 | P86: 38.1 | Q86: 37.5
C87: i | D87: 11 | E87: 0 | F87: 0 | G87: 2 | H87: 3 | I87: 2 | J87: 2 | K87: 1 | L87: 1 | M87: 0 | N87: 0 | O87: 0 | P87: 39.4 | Q87: 38.5
A89: _________
A90: 1) Altersangaben bezogen auf den Monat der Habilitation.
A91: 2) Anpassung des Berechnungsverfahrens "Median" an die Studenten- und Prüfungsstatistik".
A93: Statistisches Bundesamt, Fachserie 11, Reihe 4.4, 2014
A95: Rechts-, Wirtschafts- und Sozial-
A96: wissenschaften
B98: Rechts-, Wirtschafts- und Sozial- | C98: m | D98: 6 | E98: 1 | F98: 0 | G98: 0 | H98: 1 | I98: 1 | J98: 1 | K98: 0 | L98: 0 | M98: 0 | N98: 1 | O98: 1 | P98: . | Q98: .
B99: wissenschaften allgemein | C99: w | D99: 1 | E99: 0 | F99: 0 | G99: 0 | H99: 0 | I99: 0 | J99: 0 | K99: 0 | L99: 0 | M99: 1 | N99: 0 | O99: 0 | P99: . | Q99: .
C100: i | D100: 7 | E100: 1 | F100: 0 | G100: 0 | H100: 1 | I100: 1 | J100: 1 | K100: 0 | L100: 0 | M100: 1 | N100: 1 | O100: 1 | P100: 42.5 | Q100: 40.5
B102: Politikwissenschaften | C102: m | D102: 8 | E102: 1 | F102: 0 | G102: 0 | H102: 1 | I102: 2 | J102: 1 | K102: 1 | L102: 0 | M102: 1 | N102: 0 | O102: 1 | P102: . | Q102: .
C103: w | D103: 4 | E103: 0 | F103: 0 | G103: 1 | H103: 0 | I103: 1 | J103: 0 | K103: 1 | L103: 0 | M103: 0 | N103: 1 | O103: 0 | P103: . | Q103: .
C104: i | D104: 12 | E104: 1 | F104: 0 | G104: 1 | H104: 1 | I104: 3 | J104: 1 | K104: 2 | L104: 0 | M104: 1 | N104: 1 | O104: 1 | P104: 41.1 | Q104: 39
B106: Sozialwissenschaften | C106: m | D106: 13 | E106: 0 | F106: 0 | G106: 0 | H106: 1 | I106: 2 | J106: 0 | K106: 6 | L106: 0 | M106: 1 | N106: 0 | O106: 3 | P106: 45.2 | Q106: 43.2
C107: w | D107: 13 | E107: 0 | F107: 1 | G107: 1 | H107: 1 | I107: 2 | J107: 1 | K107: 2 | L107: 2 | M107: 2 | N107: 1 | O107: 0 | P107: 42.5 | Q107: 43.3
C108: i | D108: 26 | E108: 0 | F108: 1 | G108: 1 | H108: 2 | I108: 4 | J108: 1 | K108: 8 | L108: 2 | M108: 3 | N108: 1 | O108: 3 | P108: 43.8 | Q108: 43.2
B110: Sozialwesen | C110: m | D110: 2 | E110: 0 | F110: 0 | G110: 0 | H110: 0 | I110: 0 | J110: 1 | K110: 0 | L110: 0 | M110: 0 | N110: 0 | O110: 1 | P110: 46.3 | Q110: 42
B112: Rechtswissenschaften | C112: m | D112: 41 | E112: 1 | F112: 1 | G112: 7 | H112: 10 | I112: 10 | J112: 4 | K112: 2 | L112: 4 | M112: 0 | N112: 1 | O112: 1 | P112: 39.5 | Q112: 38.2
C113: w | D113: 12 | E113: 0 | F113: 0 | G113: 3 | H113: 1 | I113: 3 | J113: 3 | K113: 1 | L113: 1 | M113: 0 | N113: 0 | O113: 0 | P113: 39.7 | Q113: 39
C114: i | D114: 53 | E114: 1 | F114: 1 | G114: 10 | H114: 11 | I114: 13 | J114: 7 | K114: 3 | L114: 5 | M114: 0 | N114: 1 | O114: 1 | P114: 39.5 | Q114: 38.4
B116: Wirtschaftswissenschaften | C116: m | D116: 37 | E116: 3 | F116: 5 | G116: 8 | H116: 5 | I116: 6 | J116: 6 | K116: 0 | L116: 0 | M116: 0 | N116: 2 | O116: 2 | P116: 38.6 | Q116: 37.4
C117: w | D117: 6 | E117: 0 | F117: 0 | G117: 1 | H117: 3 | I117: 1 | J117: 0 | K117: 0 | L117: 0 | M117: 1 | N117: 0 | O117: 0 | P117: 39 | Q117: 37.5
C118: i | D118: 43 | E118: 3 | F118: 5 | G118: 9 | H118: 8 | I118: 7 | J118: 6 | K118: 0 | L118: 0 | M118: 1 | N118: 2 | O118: 2 | P118: 38.6 | Q118: 37.4
B120: Zusammen | C120: m | D120: 107 | E120: 6 | F120: 6 | G120: 15 | H120: 18 | I120: 21 | J120: 13 | K120: 9 | L120: 4 | M120: 2 | N120: 4 | O120: 9 | P120: 40.2 | Q120: 38.6
C121: w | D121: 36 | E121: 0 | F121: 1 | G121: 6 | H121: 5 | I121: 7 | J121: 4 | K121: 4 | L121: 3 | M121: 4 | N121: 2 | O121: 0 | P121: 41 | Q121: 39.5
C122: i | D122: 143 | E122: 6 | F122: 7 | G122: 21 | H122: 23 | I122: 28 | J122: 17 | K122: 13 | L122: 7 | M122: 6 | N122: 6 | O122: 9 | P122: 40.4 | Q122: 38.8
A125: Mathematik, Naturwissenschaften
B127: Mathematik, Naturwissenschaften
B128: allgemein | C128: m | D128: 3 | E128: 0 | F128: 0 | G128: 1 | H128: 1 | I128: 0 | J128: 0 | K128: 0 | L128: 0 | M128: 1 | N128: 0 | O128: 0 | P128: 39.6 | Q128: 36.5
B130: Mathematik | C130: m | D130: 33 | E130: 6 | F130: 3 | G130: 6 | H130: 3 | I130: 5 | J130: 4 | K130: 0 | L130: 2 | M130: 1 | N130: 2 | O130: 1 | P130: 38.4 | Q130: 36.8
C131: w | D131: 5 | E131: 0 | F131: 2 | G131: 0 | H131: 0 | I131: 0 | J131: 2 | K131: 0 | L131: 0 | M131: 0 | N131: 1 | O131: 0 | P131: 40.2 | Q131: 40.5
C132: i | D132: 38 | E132: 6 | F132: 5 | G132: 6 | H132: 3 | I132: 5 | J132: 6 | K132: 0 | L132: 2 | M132: 1 | N132: 3 | O132: 1 | P132: 38.6 | Q132: 37
B134: Informatik | C134: m | D134: 26 | E134: 2 | F134: 3 | G134: 4 | H134: 4 | I134: 3 | J134: 5 | K134: 4 | L134: 1 | M134: 0 | N134: 0 | O134: 0 | P134: 38.4 | Q134: 38
C135: w | D135: 6 | E135: 0 | F135: 1 | G135: 1 | H135: 0 | I135: 1 | J135: 1 | K135: 0 | L135: 1 | M135: 0 | N135: 0 | O135: 1 | P135: 41.2 | Q135: 39
C136: i | D136: 32 | E136: 2 | F136: 4 | G136: 5 | H136: 4 | I136: 4 | J136: 6 | K136: 4 | L136: 2 | M136: 0 | N136: 0 | O136: 1 | P136: 38.9 | Q136: 38.3
B138: Physik, Astronomie | C138: m | D138: 60 | E138: 0 | F138: 2 | G138: 10 | H138: 16 | I138: 10 | J138: 6 | K138: 8 | L138: 4 | M138: 2 | N138: 1 | O138: 1 | P138: 39.9 | Q138: 38.3
C139: w | D139: 6 | E139: 0 | F139: 1 | G139: 2 | H139: 0 | I139: 0 | J139: 1 | K139: 1 | L139: 0 | M139: 0 | N139: 1 | O139: 0 | P139: 39.5 | Q139: 35
C140: i | D140: 66 | E140: 0 | F140: 3 | G140: 12 | H140: 16 | I140: 10 | J140: 7 | K140: 9 | L140: 4 | M140: 2 | N140: 2 | O140: 1 | P140: 39.9 | Q140: 38.3
B142: Chemie | C142: m | D142: 22 | E142: 0 | F142: 0 | G142: 4 | H142: 5 | I142: 6 | J142: 3 | K142: 2 | L142: 1 | M142: 1 | N142: 0 | O142: 0 | P142: 39.5 | Q142: 38.4
C143: w | D143: 10 | E143: 1 | F143: 0 | G143: 2 | H143: 0 | I143: 4 | J143: 2 | K143: 0 | L143: 0 | M143: 0 | N143: 0 | O143: 1 | P143: 39.6 | Q143: 39.3
C144: i | D144: 32 | E144: 1 | F144: 0 | G144: 6 | H144: 5 | I144: 10 | J144: 5 | K144: 2 | L144: 1 | M144: 1 | N144: 0 | O144: 1 | P144: 39.5 | Q144: 38.7
B146: Pharmazie | C146: m | D146: 6 | E146: 0 | F146: 0 | G146: 1 | H146: 1 | I146: 0 | J146: 1 | K146: 0 | L146: 1 | M146: 1 | N146: 1 | O146: 0 | P146: . | Q146: .
C147: w | D147: 1 | E147: 0 | F147: 0 | G147: 0 | H147: 0 | I147: 1 | J147: 0 | K147: 0 | L147: 0 | M147: 0 | N147: 0 | O147: 0 | P147: . | Q147: .
C148: i | D148: 7 | E148: 0 | F148: 0 | G148: 1 | H148: 1 | I148: 1 | J148: 1 | K148: 0 | L148: 1 | M148: 1 | N148: 1 | O148: 0 | P148: 42.1 | Q148: 40.5
B150: Biologie | C150: m | D150: 33 | E150: 0 | F150: 0 | G150: 3 | H150: 1 | I150: 5 | J150: 7 | K150: 5 | L150: 3 | M150: 3 | N150: 4 | O150: 2 | P150: 43.5 | Q150: 42.3
C151: w | D151: 22 | E151: 1 | F151: 1 | G151: 3 | H151: 3 | I151: 3 | J151: 2 | K151: 5 | L151: 1 | M151: 0 | N151: 2 | O151: 1 | P151: 41 | Q151: 40
C152: i | D152: 55 | E152: 1 | F152: 1 | G152: 6 | H152: 4 | I152: 8 | J152: 9 | K152: 10 | L152: 4 | M152: 3 | N152: 6 | O152: 3 | P152: 42.5 | Q152: 41.6
B154: Geowissenschaften | C154: m | D154: 17 | E154: 0 | F154: 0 | G154: 3 | H154: 3 | I154: 4 | J154: 3 | K154: 0 | L154: 0 | M154: 1 | N154: 0 | O154: 3 | P154: 41.7 | Q154: 38.8
B155: (ohne Geographie) | C155: w | D155: 7 | E155: 0 | F155: 0 | G155: 0 | H155: 1 | I155: 0 | J155: 2 | K155: 3 | L155: 0 | M155: 0 | N155: 0 | O155: 1 | P155: 44.2 | Q155: 42.3
C156: i | D156: 24 | E156: 0 | F156: 0 | G156: 3 | H156: 4 | I156: 4 | J156: 5 | K156: 3 | L156: 0 | M156: 1 | N156: 0 | O156: 4 | P156: 42.4 | Q156: 40.5
B158: Geographie | C158: m | D158: 18 | E158: 0 | F158: 2 | G158: 0 | H158: 2 | I158: 5 | J158: 2 | K158: 2 | L158: 2 | M158: 1 | N158: 1 | O158: 1 | P158: . | Q158: .
C159: w | D159: 1 | E159: 0 | F159: 0 | G159: 0 | H159: 1 | I159: 0 | J159: 0 | K159: 0 | L159: 0 | M159: 0 | N159: 0 | O159: 0 | P159: . | Q159: .
C160: i | D160: 19 | E160: 0 | F160: 2 | G160: 0 | H160: 3 | I160: 5 | J160: 2 | K160: 2 | L160: 2 | M160: 1 | N160: 1 | O160: 1 | P160: 41.4 | Q160: 39.8
B162: Zusammen | C162: m | D162: 218 | E162: 8 | F162: 10 | G162: 32 | H162: 36 | I162: 38 | J162: 31 | K162: 21 | L162: 14 | M162: 11 | N162: 9 | O162: 8 | P162: 40.4 | Q162: 39
C163: w | D163: 58 | E163: 2 | F163: 5 | G163: 8 | H163: 5 | I163: 9 | J163: 10 | K163: 9 | L163: 2 | M163: 0 | N163: 4 | O163: 4 | P163: 40.8 | Q163: 40
C164: i | D164: 276 | E164: 10 | F164: 15 | G164: 40 | H164: 41 | I164: 47 | J164: 41 | K164: 30 | L164: 16 | M164: 11 | N164: 13 | O164: 12 | P164: 40.5 | Q164: 39.2
A169: _________
A170: 1) Altersangaben bezogen auf den Monat der Habilitation.
A171: 2) Anpassung des Berechnungsverfahrens "Median" an die Studenten- und Prüfungsstatistik".
A174: Statistisches Bundesamt, Fachserie 11, Reihe 4.4, 2014
A176: Humanmedizin/Gesundheitswissenschaften
B178: Humanmedizin allgemein | C178: m | D178: 3 | E178: 1 | F178: 0 | G178: 0 | H178: 1 | I178: 0 | J178: 1 | K178: 0 | L178: 0 | M178: 0 | N178: 0 | O178: 0 | P178: 36.7 | Q178: 37.5
C179: w | D179: 2 | E179: 0 | F179: 0 | G179: 0 | H179: 0 | I179: 0 | J179: 0 | K179: 1 | L179: 0 | M179: 0 | N179: 0 | O179: 1 | P179: 47.1 | Q179: 44
C180: i | D180: 5 | E180: 1 | F180: 0 | G180: 0 | H180: 1 | I180: 0 | J180: 1 | K180: 1 | L180: 0 | M180: 0 | N180: 0 | O180: 1 | P180: 40.9 | Q180: 40.5
B182: Gesundheitswissenschaften allgemein | C182: m | D182: 2 | E182: 0 | F182: 0 | G182: 0 | H182: 0 | I182: 1 | J182: 1 | K182: 0 | L182: 0 | M182: 0 | N182: 0 | O182: 0 | P182: 40.4 | Q182: 39
C183: w | D183: 2 | E183: 0 | F183: 0 | G183: 0 | H183: 0 | I183: 0 | J183: 0 | K183: 1 | L183: 1 | M183: 0 | N183: 0 | O183: 0 | P183: 44 | Q183: 43
C184: i | D184: 4 | E184: 0 | F184: 0 | G184: 0 | H184: 0 | I184: 1 | J184: 1 | K184: 1 | L184: 1 | M184: 0 | N184: 0 | O184: 0 | P184: 42.2 | Q184: 42
B186: Vorklinische Humanmedizin | C186: m | D186: 28 | E186: 2 | F186: 4 | G186: 2 | H186: 5 | I186: 7 | J186: 1 | K186: 1 | L186: 2 | M186: 1 | N186: 0 | O186: 3 | P186: 39.9 | Q186: 38.5
B187: (einschl. Zahnmedizin) | C187: w | D187: 18 | E187: 1 | F187: 1 | G187: 2 | H187: 3 | I187: 3 | J187: 1 | K187: 1 | L187: 1 | M187: 0 | N187: 2 | O187: 3 | P187: 42.7 | Q187: 39
C188: i | D188: 46 | E188: 3 | F188: 5 | G188: 4 | H188: 8 | I188: 10 | J188: 2 | K188: 2 | L188: 3 | M188: 1 | N188: 2 | O188: 6 | P188: 41 | Q188: 38.8
B190: Klinisch-Theoretische Human- | C190: m | D190: 89 | E190: 2 | F190: 6 | G190: 14 | H190: 10 | I190: 15 | J190: 9 | K190: 10 | L190: 13 | M190: 2 | N190: 4 | O190: 4 | P190: 40.7 | Q190: 39.7
B191: medizin (einschl. Zahnmedizin) | C191: w | D191: 43 | E191: 2 | F191: 2 | G191: 7 | H191: 7 | I191: 5 | J191: 4 | K191: 7 | L191: 1 | M191: 2 | N191: 4 | O191: 2 | P191: 40.7 | Q191: 39.3
C192: i | D192: 132 | E192: 4 | F192: 8 | G192: 21 | H192: 17 | I192: 20 | J192: 13 | K192: 17 | L192: 14 | M192: 4 | N192: 8 | O192: 6 | P192: 40.7 | Q192: 39.6
B194: Klinisch-Praktische Human- | C194: m | D194: 479 | E194: 9 | F194: 37 | G194: 81 | H194: 93 | I194: 85 | J194: 51 | K194: 47 | L194: 27 | M194: 15 | N194: 9 | O194: 25 | P194: 40 | Q194: 38.5
B195: medizin (ohne Zahnmedizin) | C195: w | D195: 135 | E195: 1 | F195: 8 | G195: 23 | H195: 33 | I195: 15 | J195: 18 | K195: 9 | L195: 12 | M195: 7 | N195: 4 | O195: 5 | P195: 40.2 | Q195: 38.3
C196: i | D196: 614 | E196: 10 | F196: 45 | G196: 104 | H196: 126 | I196: 100 | J196: 69 | K196: 56 | L196: 39 | M196: 22 | N196: 13 | O196: 30 | P196: 40.1 | Q196: 38.4
B198: Zahnmedizin (klinisch-praktisch) | C198: m | D198: 21 | E198: 1 | F198: 2 | G198: 2 | H198: 7 | I198: 3 | J198: 2 | K198: 0 | L198: 2 | M198: 1 | N198: 0 | O198: 1 | P198: 39 | Q198: 36.9
C199: w | D199: 6 | E199: 0 | F199: 1 | G199: 0 | H199: 1 | I199: 0 | J199: 2 | K199: 1 | L199: 0 | M199: 0 | N199: 0 | O199: 1 | P199: 43.9 | Q199: 41
C200: i | D200: 27 | E200: 1 | F200: 3 | G200: 2 | H200: 8 | I200: 3 | J200: 4 | K200: 1 | L200: 2 | M200: 1 | N200: 0 | O200: 2 | P200: 40.1 | Q200: 37.5
B202: Zusammen | C202: m | D202: 622 | E202: 15 | F202: 49 | G202: 99 | H202: 116 | I202: 111 | J202: 65 | K202: 58 | L202: 44 | M202: 19 | N202: 13 | O202: 33 | P202: 40.1 | Q202: 38.6
C203: w | D203: 206 | E203: 4 | F203: 12 | G203: 32 | H203: 44 | I203: 23 | J203: 25 | K203: 20 | L203: 15 | M203: 9 | N203: 10 | O203: 12 | P203: 40.8 | Q203: 38.8
C204: i | D204: 828 | E204: 19 | F204: 61 | G204: 131 | H204: 160 | I204: 134 | J204: 90 | K204: 78 | L204: 59 | M204: 28 | N204: 23 | O204: 45 | P204: 40.2 | Q204: 38.7
A207: Veterinärmedizin
B209: Vorklinische Veterinärmedizin | C209: w | D209: 2 | E209: 0 | F209: 0 | G209: 0 | H209: 2 | I209: 0 | J209: 0 | K209: 0 | L209: 0 | M209: 0 | N209: 0 | O209: 0 | P209: 38.3 | Q209: 37.5
B211: Klinisch-Theoretische | C211: m | D211: 3 | E211: 0 | F211: 0 | G211: 0 | H211: 0 | I211: 1 | J211: 0 | K211: 0 | L211: 1 | M211: 0 | N211: 1 | O211: 0 | P211: 44.7 | Q211: 44.5
B212: Veterinärmedizin | C212: w | D212: 6 | E212: 0 | F212: 0 | G212: 0 | H212: 2 | I212: 1 | J212: 1 | K212: 1 | L212: 0 | M212: 0 | N212: 0 | O212: 1 | P212: 42.8 | Q212: 40
C213: i | D213: 9 | E213: 0 | F213: 0 | G213: 0 | H213: 2 | I213: 2 | J213: 1 | K213: 1 | L213: 1 | M213: 0 | N213: 1 | O213: 1 | P213: 43.4 | Q213: 40.5
B215: Klinisch-Praktische
B216: Veterinärmedizin | C216: w | D216: 4 | E216: 0 | F216: 0 | G216: 0 | H216: 1 | I216: 0 | J216: 0 | K216: 1 | L216: 0 | M216: 0 | N216: 1 | O216: 1 | P216: 45.7 | Q216: 44
B218: Zusammen | C218: m | D218: 3 | E218: 0 | F218: 0 | G218: 0 | H218: 0 | I218: 1 | J218: 0 | K218: 0 | L218: 1 | M218: 0 | N218: 1 | O218: 0 | P218: 44.7 | Q218: 44.5
C219: w | D219: 12 | E219: 0 | F219: 0 | G219: 0 | H219: 5 | I219: 1 | J219: 1 | K219: 2 | L219: 0 | M219: 0 | N219: 1 | O219: 2 | P219: 43 | Q219: 40
C220: i | D220: 15 | E220: 0 | F220: 0 | G220: 0 | H220: 5 | I220: 2 | J220: 1 | K220: 2 | L220: 1 | M220: 0 | N220: 2 | O220: 2 | P220: 43.4 | Q220: 40.5
A223: Agrar-, Forst- und Ernährungs-
A224: wissenschaften
B226: Agrar-, Forst- und Ernährungs-
B227: wissenschaften allgemein | C227: w | D227: 1 | E227: 0 | F227: 0 | G227: 0 | H227: 0 | I227: 0 | J227: 0 | K227: 0 | L227: 0 | M227: 0 | N227: 0 | O227: 1 | P227: . | Q227: .
B229: Landespflege, Umweltgestaltung | C229: m | D229: 3 | E229: 0 | F229: 0 | G229: 0 | H229: 0 | I229: 0 | J229: 0 | K229: 0 | L229: 1 | M229: 1 | N229: 1 | O229: 0 | P229: . | Q229: .
C230: w | D230: 1 | E230: 0 | F230: 0 | G230: 0 | H230: 0 | I230: 0 | J230: 1 | K230: 0 | L230: 0 | M230: 0 | N230: 0 | O230: 0 | P230: . | Q230: .
C231: i | D231: 4 | E231: 0 | F231: 0 | G231: 0 | H231: 0 | I231: 0 | J231: 1 | K231: 0 | L231: 1 | M231: 1 | N231: 1 | O231: 0 | P231: 46.2 | Q231: 45
B233: Agrarwissenschaften, Lebensmittel- | C233: m | D233: 7 | E233: 0 | F233: 0 | G233: 1 | H233: 0 | I233: 3 | J233: 0 | K233: 0 | L233: 1 | M233: 1 | N233: 1 | O233: 0 | P233: 42.2 | Q233: 39.8
B234: und Getränketechnologie | C234: w | D234: 2 | E234: 0 | F234: 0 | G234: 0 | H234: 0 | I234: 0 | J234: 2 | K234: 0 | L234: 0 | M234: 0 | N234: 0 | O234: 0 | P234: 41.1 | Q234: 40.5
C235: i | D235: 9 | E235: 0 | F235: 0 | G235: 1 | H235: 0 | I235: 3 | J235: 2 | K235: 0 | L235: 1 | M235: 1 | N235: 1 | O235: 0 | P235: 42 | Q235: 40.3
B237: Forstwissenschaft, Holzwirtschaft | C237: m | D237: 2 | E237: 0 | F237: 0 | G237: 0 | H237: 0 | I237: 1 | J237: 0 | K237: 0 | L237: 1 | M237: 0 | N237: 0 | O237: 0 | P237: 41.9 | Q237: 39
B239: Ernährungs- und Haushaltswissenschaften | C239: w | D239: 4 | E239: 0 | F239: 0 | G239: 0 | H239: 0 | I239: 0 | J239: 0 | K239: 1 | L239: 1 | M239: 1 | N239: 0 | O239: 1 | P239: 49.3 | Q239: 46
B241: Zusammen | C241: m | D241: 12 | E241: 0 | F241: 0 | G241: 1 | H241: 0 | I241: 4 | J241: 0 | K241: 0 | L241: 3 | M241: 2 | N241: 2 | O241: 0 | P241: 43.5 | Q241: 44.3
C242: w | D242: 8 | E242: 0 | F242: 0 | G242: 0 | H242: 0 | I242: 0 | J242: 3 | K242: 1 | L242: 1 | M242: 1 | N242: 0 | O242: 2 | P242: 46.8 | Q242: 43
C243: i | D243: 20 | E243: 0 | F243: 0 | G243: 1 | H243: 0 | I243: 4 | J243: 3 | K243: 1 | L243: 4 | M243: 3 | N243: 2 | O243: 2 | P243: 44.8 | Q243: 44.3
A251: _________
A252: 1) Altersangaben bezogen auf den Monat der Habilitation.
A253: 2) Anpassung des Berechnungsverfahrens "Median" an die Studenten- und Prüfungsstatistik".
A256: Statistisches Bundesamt, Fachserie 11, Reihe 4.4, 2014
A258: Ingenieurwissenschaften
B260: Ingenieurwissenschaften allgemein | C260: m | D260: 5 | E260: 0 | F260: 0 | G260: 0 | H260: 2 | I260: 0 | J260: 0 | K260: 1 | L260: 1 | M260: 1 | N260: 0 | O260: 0 | P260: 42.5 | Q260: 43.5
B262: Bergbau, Hüttenwesen | C262: m | D262: 1 | E262: 0 | F262: 0 | G262: 0 | H262: 0 | I262: 0 | J262: 0 | K262: 0 | L262: 0 | M262: 0 | N262: 1 | O262: 0 | P262: . | Q262: .
B264: Maschinenbau/Verfahrenstechnik | C264: m | D264: 19 | E264: 0 | F264: 0 | G264: 3 | H264: 1 | I264: 2 | J264: 2 | K264: 1 | L264: 1 | M264: 2 | N264: 4 | O264: 3 | P264: 45.1 | Q264: 45.5
C265: w | D265: 2 | E265: 0 | F265: 1 | G265: 0 | H265: 0 | I265: 0 | J265: 0 | K265: 0 | L265: 0 | M265: 1 | N265: 0 | O265: 0 | P265: 41 | Q265: 34
C266: i | D266: 21 | E266: 0 | F266: 1 | G266: 3 | H266: 1 | I266: 2 | J266: 2 | K266: 1 | L266: 1 | M266: 3 | N266: 4 | O266: 3 | P266: 44.7 | Q266: 45.5
B268: Elektrotechnik | C268: m | D268: 10 | E268: 0 | F268: 0 | G268: 1 | H268: 0 | I268: 2 | J268: 0 | K268: 2 | L268: 2 | M268: 0 | N268: 0 | O268: 3 | P268: 46.1 | Q268: 44
B270: Verkehrstechnik, Nautik | C270: m | D270: 2 | E270: 0 | F270: 0 | G270: 1 | H270: 0 | I270: 0 | J270: 0 | K270: 1 | L270: 0 | M270: 0 | N270: 0 | O270: 0 | P270: . | Q270: .
C271: w | D271: 1 | E271: 0 | F271: 0 | G271: 0 | H271: 0 | I271: 0 | J271: 0 | K271: 1 | L271: 0 | M271: 0 | N271: 0 | O271: 0 | P271: . | Q271: .
C272: i | D272: 3 | E272: 0 | F272: 0 | G272: 1 | H272: 0 | I272: 0 | J272: 0 | K272: 2 | L272: 0 | M272: 0 | N272: 0 | O272: 0 | P272: 41.5 | Q272: 43.3
B274: Architektur | C274: m | D274: 3 | E274: 0 | F274: 0 | G274: 0 | H274: 0 | I274: 1 | J274: 0 | K274: 1 | L274: 0 | M274: 0 | N274: 0 | O274: 1 | P274: 49.1 | Q274: 43.5
B276: Raumplanung | C276: m | D276: 3 | E276: 0 | F276: 0 | G276: 0 | H276: 0 | I276: 1 | J276: 2 | K276: 0 | L276: 0 | M276: 0 | N276: 0 | O276: 0 | P276: 40.8 | Q276: 41.3
B278: Bauingenieurwesen | C278: m | D278: 2 | E278: 0 | F278: 1 | G278: 0 | H278: 0 | I278: 0 | J278: 0 | K278: 1 | L278: 0 | M278: 0 | N278: 0 | O278: 0 | P278: 38.1 | Q278: 34
C279: w | D279: 5 | E279: 0 | F279: 0 | G279: 1 | H279: 0 | I279: 1 | J279: 1 | K279: 1 | L279: 0 | M279: 1 | N279: 0 | O279: 0 | P279: 41.7 | Q279: 41.5
C280: i | D280: 7 | E280: 0 | F280: 1 | G280: 1 | H280: 0 | I280: 1 | J280: 1 | K280: 2 | L280: 0 | M280: 1 | N280: 0 | O280: 0 | P280: 40.7 | Q280: 41.5
B282: Zusammen | C282: m | D282: 45 | E282: 0 | F282: 1 | G282: 5 | H282: 3 | I282: 6 | J282: 4 | K282: 7 | L282: 4 | M282: 3 | N282: 5 | O282: 7 | P282: 44.6 | Q282: 43.3
C283: w | D283: 8 | E283: 0 | F283: 1 | G283: 1 | H283: 0 | I283: 1 | J283: 1 | K283: 2 | L283: 0 | M283: 2 | N283: 0 | O283: 0 | P283: 41.8 | Q283: 42
C284: i | D284: 53 | E284: 0 | F284: 2 | G284: 6 | H284: 3 | I284: 7 | J284: 5 | K284: 9 | L284: 4 | M284: 5 | N284: 5 | O284: 7 | P284: 44.1 | Q284: 43.1
A287: Kunst, Kunstwissenschaft
B289: Kunst, Kunstwissenschaft | C289: m | D289: 5 | E289: 0 | F289: 0 | G289: 0 | H289: 0 | I289: 2 | J289: 2 | K289: 0 | L289: 1 | M289: 0 | N289: 0 | O289: 0 | P289: 41.2 | Q289: 40.5
B290: allgemein | C290: w | D290: 5 | E290: 0 | F290: 0 | G290: 0 | H290: 0 | I290: 1 | J290: 1 | K290: 1 | L290: 2 | M290: 0 | N290: 0 | O290: 0 | P290: 42.9 | Q290: 43.5
C291: i | D291: 10 | E291: 0 | F291: 0 | G291: 0 | H291: 0 | I291: 3 | J291: 3 | K291: 1 | L291: 3 | M291: 0 | N291: 0 | O291: 0 | P291: 42 | Q291: 41
B293: Darstellende Kunst, Film und
B294: Fernsehen, Theaterwissenschaft | C294: m | D294: 3 | E294: 0 | F294: 0 | G294: 0 | H294: 0 | I294: 0 | J294: 0 | K294: 0 | L294: 1 | M294: 0 | N294: 2 | O294: 0 | P294: 48 | Q294: 49.3
B296: Musik, Musikwissenschaft | C296: m | D296: 4 | E296: 0 | F296: 0 | G296: 0 | H296: 0 | I296: 1 | J296: 1 | K296: 0 | L296: 2 | M296: 0 | N296: 0 | O296: 0 | P296: 42.8 | Q296: 41
C297: w | D297: 3 | E297: 0 | F297: 0 | G297: 0 | H297: 0 | I297: 1 | J297: 0 | K297: 0 | L297: 2 | M297: 0 | N297: 0 | O297: 0 | P297: 43.2 | Q297: 44.5
... 11 more rows

Sheet 3.Hauptberuf.Wikü,Befrist,VZTZ

Sheet 3.1
A1: Statistisches Bundesamt
A2: H201 - Hochschulstatistik
A5: Hauptberufliches wissenschaftliches und künstlerisches Personal (ohne Professoren) auf Zeit im Alter bis einschl. 34 Jahren nach ausgewählten
A6: Hochschularten, Fächer- und Personalgruppen sowie spezielle Definition von Voll- und Teilzeit im Berichtsjahr 2014
I8: davon:
H9: Wikue auf Zeit | I9: Vollzeit und
B10: Hochschulart | D10: Fächergruppe | F10: Personalgruppe | G10: Ge- | H10: bis einschl. 34 Jahren | I10: Teilzeit | J10: Teilzeit
D11: der fachl. Zugehörigkeit | G11: schlecht | H11: (ohne Prof.) | I11: mit mind. 2/3 | J11: unter 2/3
H12: insgesamt | I12: der regelmäßigen | J12: der regelmäßigen
I13: Arbeitszeit | J13: Arbeitszeit
A15: 1 | B15: Wiss. Hochschulen (= Uni, GH, PH, TH und KunstH) | C15: 1 | D15: Sprach- und Kulturwissenschaften | E15: 3 | F15: Wiss. u. künstl. Mitarbeiter | G15: m | H15: 3514 | I15: 1276 | J15: 2238
A16: 1 | B16: Wiss. Hochschulen (= Uni, GH, PH, TH und KunstH) | C16: 1 | D16: Sprach- und Kulturwissenschaften | E16: 3 | F16: Wiss. u. künstl. Mitarbeiter | G16: w | H16: 6155 | I16: 2090 | J16: 4065
A17: 1 | B17: Wiss. Hochschulen (= Uni, GH, PH, TH und KunstH) | C17: 1 | D17: Sprach- und Kulturwissenschaften | E17: 3 | F17: Wiss. u. künstl. Mitarbeiter | G17: i | H17: 9669 | I17: 3366 | J17: 6303
A18: 1 | B18: Wiss. Hochschulen (= Uni, GH, PH, TH und KunstH) | C18: 1 | D18: Sprach- und Kulturwissenschaften | E18: 4 | F18: Lehrkr. f. bes. Aufgaben + Doz. u. Assistenten | G18: m | H18: 243 | I18: 137 | J18: 106
A19: 1 | B19: Wiss. Hochschulen (= Uni, GH, PH, TH und KunstH) | C19: 1 | D19: Sprach- und Kulturwissenschaften | E19: 4 | F19: Lehrkr. f. bes. Aufgaben + Doz. u. Assistenten | G19: w | H19: 437 | I19: 191 | J19: 246
A20: 1 | B20: Wiss. Hochschulen (= Uni, GH, PH, TH und KunstH) | C20: 1 | D20: Sprach- und Kulturwissenschaften | E20: 4 | F20: Lehrkr. f. bes. Aufgaben + Doz. u. Assistenten | G20: i | H20: 680 | I20: 328 | J20: 352
A21: 1 | B21: Wiss. Hochschulen (= Uni, GH, PH, TH und KunstH) | C21: 1 | D21: Sprach- und Kulturwissenschaften | E21: ~~ | F21: zusammen | G21: m | H21: 3757 | I21: 1413 | J21: 2344
A22: 1 | B22: Wiss. Hochschulen (= Uni, GH, PH, TH und KunstH) | C22: 1 | D22: Sprach- und Kulturwissenschaften | E22: ~~ | F22: zusammen | G22: w | H22: 6592 | I22: 2281 | J22: 4311
A23: 1 | B23: Wiss. Hochschulen (= Uni, GH, PH, TH und KunstH) | C23: 1 | D23: Sprach- und Kulturwissenschaften | E23: ~~ | F23: zusammen | G23: i | H23: 10349 | I23: 3694 | J23: 6655
A24: 1 | B24: Wiss. Hochschulen (= Uni, GH, PH, TH und KunstH) | C24: 3 | D24: Rechts-, Wirtschafts- und Sozialwissenschaften | E24: 3 | F24: Wiss. u. künstl. Mitarbeiter | G24: m | H24: 6515 | I24: 3536 | J24: 2979
A25: 1 | B25: Wiss. Hochschulen (= Uni, GH, PH, TH und KunstH) | C25: 3 | D25: Rechts-, Wirtschafts- und Sozialwissenschaften | E25: 3 | F25: Wiss. u. künstl. Mitarbeiter | G25: w | H25: 4838 | I25: 2350 | J25: 2488
A26: 1 | B26: Wiss. Hochschulen (= Uni, GH, PH, TH und KunstH) | C26: 3 | D26: Rechts-, Wirtschafts- und Sozialwissenschaften | E26: 3 | F26: Wiss. u. künstl. Mitarbeiter | G26: i | H26: 11353 | I26: 5886 | J26: 5467
A27: 1 | B27: Wiss. Hochschulen (= Uni, GH, PH, TH und KunstH) | C27: 3 | D27: Rechts-, Wirtschafts- und Sozialwissenschaften | E27: 4 | F27: Lehrkr. f. bes. Aufgaben + Doz. u. Assistenten | G27: m | H27: 240 | I27: 145 | J27: 95
A28: 1 | B28: Wiss. Hochschulen (= Uni, GH, PH, TH und KunstH) | C28: 3 | D28: Rechts-, Wirtschafts- und Sozialwissenschaften | E28: 4 | F28: Lehrkr. f. bes. Aufgaben + Doz. u. Assistenten | G28: w | H28: 143 | I28: 73 | J28: 70
A29: 1 | B29: Wiss. Hochschulen (= Uni, GH, PH, TH und KunstH) | C29: 3 | D29: Rechts-, Wirtschafts- und Sozialwissenschaften | E29: 4 | F29: Lehrkr. f. bes. Aufgaben + Doz. u. Assistenten | G29: i | H29: 383 | I29: 218 | J29: 165
A30: 1 | B30: Wiss. Hochschulen (= Uni, GH, PH, TH und KunstH) | C30: 3 | D30: Rechts-, Wirtschafts- und Sozialwissenschaften | E30: ~~ | F30: zusammen | G30: m | H30: 6755 | I30: 3681 | J30: 3074
A31: 1 | B31: Wiss. Hochschulen (= Uni, GH, PH, TH und KunstH) | C31: 3 | D31: Rechts-, Wirtschafts- und Sozialwissenschaften | E31: ~~ | F31: zusammen | G31: w | H31: 4981 | I31: 2423 | J31: 2558
A32: 1 | B32: Wiss. Hochschulen (= Uni, GH, PH, TH und KunstH) | C32: 3 | D32: Rechts-, Wirtschafts- und Sozialwissenschaften | E32: ~~ | F32: zusammen | G32: i | H32: 11736 | I32: 6104 | J32: 5632
A33: 1 | B33: Wiss. Hochschulen (= Uni, GH, PH, TH und KunstH) | C33: 4 | D33: Mathematik, Naturwissenschaften | E33: 3 | F33: Wiss. u. künstl. Mitarbeiter | G33: m | H33: 20468 | I33: 10855 | J33: 9613
A34: 1 | B34: Wiss. Hochschulen (= Uni, GH, PH, TH und KunstH) | C34: 4 | D34: Mathematik, Naturwissenschaften | E34: 3 | F34: Wiss. u. künstl. Mitarbeiter | G34: w | H34: 9620 | I34: 3451 | J34: 6169
A35: 1 | B35: Wiss. Hochschulen (= Uni, GH, PH, TH und KunstH) | C35: 4 | D35: Mathematik, Naturwissenschaften | E35: 3 | F35: Wiss. u. künstl. Mitarbeiter | G35: i | H35: 30088 | I35: 14306 | J35: 15782
A36: 1 | B36: Wiss. Hochschulen (= Uni, GH, PH, TH und KunstH) | C36: 4 | D36: Mathematik, Naturwissenschaften | E36: 4 | F36: Lehrkr. f. bes. Aufgaben + Doz. u. Assistenten | G36: m | H36: 255 | I36: 191 | J36: 64
A37: 1 | B37: Wiss. Hochschulen (= Uni, GH, PH, TH und KunstH) | C37: 4 | D37: Mathematik, Naturwissenschaften | E37: 4 | F37: Lehrkr. f. bes. Aufgaben + Doz. u. Assistenten | G37: w | H37: 155 | I37: 83 | J37: 72
A38: 1 | B38: Wiss. Hochschulen (= Uni, GH, PH, TH und KunstH) | C38: 4 | D38: Mathematik, Naturwissenschaften | E38: 4 | F38: Lehrkr. f. bes. Aufgaben + Doz. u. Assistenten | G38: i | H38: 410 | I38: 274 | J38: 136
A39: 1 | B39: Wiss. Hochschulen (= Uni, GH, PH, TH und KunstH) | C39: 4 | D39: Mathematik, Naturwissenschaften | E39: ~~ | F39: zusammen | G39: m | H39: 20723 | I39: 11046 | J39: 9677
A40: 1 | B40: Wiss. Hochschulen (= Uni, GH, PH, TH und KunstH) | C40: 4 | D40: Mathematik, Naturwissenschaften | E40: ~~ | F40: zusammen | G40: w | H40: 9775 | I40: 3534 | J40: 6241
A41: 1 | B41: Wiss. Hochschulen (= Uni, GH, PH, TH und KunstH) | C41: 4 | D41: Mathematik, Naturwissenschaften | E41: ~~ | F41: zusammen | G41: i | H41: 30498 | I41: 14580 | J41: 15918
A42: 1 | B42: Wiss. Hochschulen (= Uni, GH, PH, TH und KunstH) | C42: 5 | D42: Humanmedizin/Gesundheitswissenschaften + Veterinärmedizin | E42: 3 | F42: Wiss. u. künstl. Mitarbeiter | G42: m | H42: 10567 | I42: 8178 | J42: 2389
A43: 1 | B43: Wiss. Hochschulen (= Uni, GH, PH, TH und KunstH) | C43: 5 | D43: Humanmedizin/Gesundheitswissenschaften + Veterinärmedizin | E43: 3 | F43: Wiss. u. künstl. Mitarbeiter | G43: w | H43: 15350 | I43: 10108 | J43: 5242
A44: 1 | B44: Wiss. Hochschulen (= Uni, GH, PH, TH und KunstH) | C44: 5 | D44: Humanmedizin/Gesundheitswissenschaften + Veterinärmedizin | E44: 3 | F44: Wiss. u. künstl. Mitarbeiter | G44: i | H44: 25917 | I44: 18286 | J44: 7631
A45: 1 | B45: Wiss. Hochschulen (= Uni, GH, PH, TH und KunstH) | C45: 5 | D45: Humanmedizin/Gesundheitswissenschaften + Veterinärmedizin | E45: 4 | F45: Lehrkr. f. bes. Aufgaben + Doz. u. Assistenten | G45: m | H45: 77 | I45: 44 | J45: 33
A46: 1 | B46: Wiss. Hochschulen (= Uni, GH, PH, TH und KunstH) | C46: 5 | D46: Humanmedizin/Gesundheitswissenschaften + Veterinärmedizin | E46: 4 | F46: Lehrkr. f. bes. Aufgaben + Doz. u. Assistenten | G46: w | H46: 148 | I46: 70 | J46: 78
A47: 1 | B47: Wiss. Hochschulen (= Uni, GH, PH, TH und KunstH) | C47: 5 | D47: Humanmedizin/Gesundheitswissenschaften + Veterinärmedizin | E47: 4 | F47: Lehrkr. f. bes. Aufgaben + Doz. u. Assistenten | G47: i | H47: 225 | I47: 114 | J47: 111
A48: 1 | B48: Wiss. Hochschulen (= Uni, GH, PH, TH und KunstH) | C48: 5 | D48: Humanmedizin/Gesundheitswissenschaften + Veterinärmedizin | E48: ~~ | F48: zusammen | G48: m | H48: 10644 | I48: 8222 | J48: 2422
A49: 1 | B49: Wiss. Hochschulen (= Uni, GH, PH, TH und KunstH) | C49: 5 | D49: Humanmedizin/Gesundheitswissenschaften + Veterinärmedizin | E49: ~~ | F49: zusammen | G49: w | H49: 15498 | I49: 10178 | J49: 5320
A50: 1 | B50: Wiss. Hochschulen (= Uni, GH, PH, TH und KunstH) | C50: 5 | D50: Humanmedizin/Gesundheitswissenschaften + Veterinärmedizin | E50: ~~ | F50: zusammen | G50: i | H50: 26142 | I50: 18400 | J50: 7742
A51: 1 | B51: Wiss. Hochschulen (= Uni, GH, PH, TH und KunstH) | C51: 8 | D51: Ingenieurwissenschaften | E51: 3 | F51: Wiss. u. künstl. Mitarbeiter | G51: m | H51: 13858 | I51: 12506 | J51: 1352
A52: 1 | B52: Wiss. Hochschulen (= Uni, GH, PH, TH und KunstH) | C52: 8 | D52: Ingenieurwissenschaften | E52: 3 | F52: Wiss. u. künstl. Mitarbeiter | G52: w | H52: 3453 | I52: 2677 | J52: 776
A53: 1 | B53: Wiss. Hochschulen (= Uni, GH, PH, TH und KunstH) | C53: 8 | D53: Ingenieurwissenschaften | E53: 3 | F53: Wiss. u. künstl. Mitarbeiter | G53: i | H53: 17311 | I53: 15183 | J53: 2128
A54: 1 | B54: Wiss. Hochschulen (= Uni, GH, PH, TH und KunstH) | C54: 8 | D54: Ingenieurwissenschaften | E54: 4 | F54: Lehrkr. f. bes. Aufgaben + Doz. u. Assistenten | G54: m | H54: 136 | I54: 121 | J54: 15
A55: 1 | B55: Wiss. Hochschulen (= Uni, GH, PH, TH und KunstH) | C55: 8 | D55: Ingenieurwissenschaften | E55: 4 | F55: Lehrkr. f. bes. Aufgaben + Doz. u. Assistenten | G55: w | H55: 37 | I55: 28 | J55: 9
A56: 1 | B56: Wiss. Hochschulen (= Uni, GH, PH, TH und KunstH) | C56: 8 | D56: Ingenieurwissenschaften | E56: 4 | F56: Lehrkr. f. bes. Aufgaben + Doz. u. Assistenten | G56: i | H56: 173 | I56: 149 | J56: 24
A57: 1 | B57: Wiss. Hochschulen (= Uni, GH, PH, TH und KunstH) | C57: 8 | D57: Ingenieurwissenschaften | E57: ~~ | F57: zusammen | G57: m | H57: 13994 | I57: 12627 | J57: 1367
A58: 1 | B58: Wiss. Hochschulen (= Uni, GH, PH, TH und KunstH) | C58: 8 | D58: Ingenieurwissenschaften | E58: ~~ | F58: zusammen | G58: w | H58: 3490 | I58: 2705 | J58: 785
A59: 1 | B59: Wiss. Hochschulen (= Uni, GH, PH, TH und KunstH) | C59: 8 | D59: Ingenieurwissenschaften | E59: ~~ | F59: zusammen | G59: i | H59: 17484 | I59: 15332 | J59: 2152
A60: 1 | B60: Wiss. Hochschulen (= Uni, GH, PH, TH und KunstH) | C60: 10 | D60: Restliche Fächergruppen | E60: 3 | F60: Wiss. u. künstl. Mitarbeiter | G60: m | H60: 3345 | I60: 1686 | J60: 1659
A61: 1 | B61: Wiss. Hochschulen (= Uni, GH, PH, TH und KunstH) | C61: 10 | D61: Restliche Fächergruppen | E61: 3 | F61: Wiss. u. künstl. Mitarbeiter | G61: w | H61: 3754 | I61: 1551 | J61: 2203
A62: 1 | B62: Wiss. Hochschulen (= Uni, GH, PH, TH und KunstH) | C62: 10 | D62: Restliche Fächergruppen | E62: 3 | F62: Wiss. u. künstl. Mitarbeiter | G62: i | H62: 7099 | I62: 3237 | J62: 3862
A63: 1 | B63: Wiss. Hochschulen (= Uni, GH, PH, TH und KunstH) | C63: 10 | D63: Restliche Fächergruppen | E63: 4 | F63: Lehrkr. f. bes. Aufgaben + Doz. u. Assistenten | G63: m | H63: 115 | I63: 43 | J63: 72
A64: 1 | B64: Wiss. Hochschulen (= Uni, GH, PH, TH und KunstH) | C64: 10 | D64: Restliche Fächergruppen | E64: 4 | F64: Lehrkr. f. bes. Aufgaben + Doz. u. Assistenten | G64: w | H64: 181 | I64: 65 | J64: 116
A65: 1 | B65: Wiss. Hochschulen (= Uni, GH, PH, TH und KunstH) | C65: 10 | D65: Restliche Fächergruppen | E65: 4 | F65: Lehrkr. f. bes. Aufgaben + Doz. u. Assistenten | G65: i | H65: 296 | I65: 108 | J65: 188
A66: 1 | B66: Wiss. Hochschulen (= Uni, GH, PH, TH und KunstH) | C66: 10 | D66: Restliche Fächergruppen | E66: ~~ | F66: zusammen | G66: m | H66: 3460 | I66: 1729 | J66: 1731
A67: 1 | B67: Wiss. Hochschulen (= Uni, GH, PH, TH und KunstH) | C67: 10 | D67: Restliche Fächergruppen | E67: ~~ | F67: zusammen | G67: w | H67: 3935 | I67: 1616 | J67: 2319
A68: 1 | B68: Wiss. Hochschulen (= Uni, GH, PH, TH und KunstH) | C68: 10 | D68: Restliche Fächergruppen | E68: ~~ | F68: zusammen | G68: i | H68: 7395 | I68: 3345 | J68: 4050
A69: 1 | B69: Wiss. Hochschulen (= Uni, GH, PH, TH und KunstH) | C69: ~~ | D69: zusammen | E69: ~~ | F69: zusammen | G69: m | H69: 59333 | I69: 38718 | J69: 20615
A70: 1 | B70: Wiss. Hochschulen (= Uni, GH, PH, TH und KunstH) | C70: ~~ | D70: zusammen | E70: ~~ | F70: zusammen | G70: w | H70: 44271 | I70: 22737 | J70: 21534
A71: 1 | B71: Wiss. Hochschulen (= Uni, GH, PH, TH und KunstH) | C71: ~~ | D71: zusammen | E71: ~~ | F71: zusammen | G71: i | H71: 103604 | I71: 61455 | J71: 42149
A72: 2 | B72: FH + VerwFH | C72: 1 | D72: Sprach- und Kulturwissenschaften | E72: 3 | F72: Wiss. u. künstl. Mitarbeiter | G72: m | H72: 17 | I72: 7 | J72: 10
A73: 2 | B73: FH + VerwFH | C73: 1 | D73: Sprach- und Kulturwissenschaften | E73: 3 | F73: Wiss. u. künstl. Mitarbeiter | G73: w | H73: 50 | I73: 23 | J73: 27
A74: 2 | B74: FH + VerwFH | C74: 1 | D74: Sprach- und Kulturwissenschaften | E74: 3 | F74: Wiss. u. künstl. Mitarbeiter | G74: i | H74: 67 | I74: 30 | J74: 37
A75: 2 | B75: FH + VerwFH | C75: 1 | D75: Sprach- und Kulturwissenschaften | E75: 4 | F75: Lehrkr. f. bes. Aufgaben + Doz. u. Assistenten | G75: m | H75: 6 | I75: 5 | J75: 1
A76: 2 | B76: FH + VerwFH | C76: 1 | D76: Sprach- und Kulturwissenschaften | E76: 4 | F76: Lehrkr. f. bes. Aufgaben + Doz. u. Assistenten | G76: w | H76: 19 | I76: 9 | J76: 10
A77: 2 | B77: FH + VerwFH | C77: 1 | D77: Sprach- und Kulturwissenschaften | E77: 4 | F77: Lehrkr. f. bes. Aufgaben + Doz. u. Assistenten | G77: i | H77: 25 | I77: 14 | J77: 11
A78: 2 | B78: FH + VerwFH | C78: 1 | D78: Sprach- und Kulturwissenschaften | E78: ~~ | F78: zusammen | G78: m | H78: 23 | I78: 12 | J78: 11
A79: 2 | B79: FH + VerwFH | C79: 1 | D79: Sprach- und Kulturwissenschaften | E79: ~~ | F79: zusammen | G79: w | H79: 69 | I79: 32 | J79: 37
A80: 2 | B80: FH + VerwFH | C80: 1 | D80: Sprach- und Kulturwissenschaften | E80: ~~ | F80: zusammen | G80: i | H80: 92 | I80: 44 | J80: 48
A81: 2 | B81: FH + VerwFH | C81: 3 | D81: Rechts-, Wirtschafts- und Sozialwissenschaften | E81: 3 | F81: Wiss. u. künstl. Mitarbeiter | G81: m | H81: 383 | I81: 197 | J81: 186
A82: 2 | B82: FH + VerwFH | C82: 3 | D82: Rechts-, Wirtschafts- und Sozialwissenschaften | E82: 3 | F82: Wiss. u. künstl. Mitarbeiter | G82: w | H82: 572 | I82: 323 | J82: 249
A83: 2 | B83: FH + VerwFH | C83: 3 | D83: Rechts-, Wirtschafts- und Sozialwissenschaften | E83: 3 | F83: Wiss. u. künstl. Mitarbeiter | G83: i | H83: 955 | I83: 520 | J83: 435
A84: 2 | B84: FH + VerwFH | C84: 3 | D84: Rechts-, Wirtschafts- und Sozialwissenschaften | E84: 4 | F84: Lehrkr. f. bes. Aufgaben + Doz. u. Assistenten | G84: m | H84: 46 | I84: 25 | J84: 21
A85: 2 | B85: FH + VerwFH | C85: 3 | D85: Rechts-, Wirtschafts- und Sozialwissenschaften | E85: 4 | F85: Lehrkr. f. bes. Aufgaben + Doz. u. Assistenten | G85: w | H85: 59 | I85: 35 | J85: 24
A86: 2 | B86: FH + VerwFH | C86: 3 | D86: Rechts-, Wirtschafts- und Sozialwissenschaften | E86: 4 | F86: Lehrkr. f. bes. Aufgaben + Doz. u. Assistenten | G86: i | H86: 105 | I86: 60 | J86: 45
A87: 2 | B87: FH + VerwFH | C87: 3 | D87: Rechts-, Wirtschafts- und Sozialwissenschaften | E87: ~~ | F87: zusammen | G87: m | H87: 429 | I87: 222 | J87: 207
A88: 2 | B88: FH + VerwFH | C88: 3 | D88: Rechts-, Wirtschafts- und Sozialwissenschaften | E88: ~~ | F88: zusammen | G88: w | H88: 631 | I88: 358 | J88: 273
A89: 2 | B89: FH + VerwFH | C89: 3 | D89: Rechts-, Wirtschafts- und Sozialwissenschaften | E89: ~~ | F89: zusammen | G89: i | H89: 1060 | I89: 580 | J89: 480
A90: 2 | B90: FH + VerwFH | C90: 4 | D90: Mathematik, Naturwissenschaften | E90: 3 | F90: Wiss. u. künstl. Mitarbeiter | G90: m | H90: 687 | I90: 333 | J90: 354
A91: 2 | B91: FH + VerwFH | C91: 4 | D91: Mathematik, Naturwissenschaften | E91: 3 | F91: Wiss. u. künstl. Mitarbeiter | G91: w | H91: 258 | I91: 125 | J91: 133
A92: 2 | B92: FH + VerwFH | C92: 4 | D92: Mathematik, Naturwissenschaften | E92: 3 | F92: Wiss. u. künstl. Mitarbeiter | G92: i | H92: 945 | I92: 458 | J92: 487
A93: 2 | B93: FH + VerwFH | C93: 4 | D93: Mathematik, Naturwissenschaften | E93: 4 | F93: Lehrkr. f. bes. Aufgaben + Doz. u. Assistenten | G93: m | H93: 37 | I93: 14 | J93: 23
A94: 2 | B94: FH + VerwFH | C94: 4 | D94: Mathematik, Naturwissenschaften | E94: 4 | F94: Lehrkr. f. bes. Aufgaben + Doz. u. Assistenten | G94: w | H94: 17 | I94: 6 | J94: 11
A95: 2 | B95: FH + VerwFH | C95: 4 | D95: Mathematik, Naturwissenschaften | E95: 4 | F95: Lehrkr. f. bes. Aufgaben + Doz. u. Assistenten | G95: i | H95: 54 | I95: 20 | J95: 34
A96: 2 | B96: FH + VerwFH | C96: 4 | D96: Mathematik, Naturwissenschaften | E96: ~~ | F96: zusammen | G96: m | H96: 724 | I96: 347 | J96: 377
A97: 2 | B97: FH + VerwFH | C97: 4 | D97: Mathematik, Naturwissenschaften | E97: ~~ | F97: zusammen | G97: w | H97: 275 | I97: 131 | J97: 144
A98: 2 | B98: FH + VerwFH | C98: 4 | D98: Mathematik, Naturwissenschaften | E98: ~~ | F98: zusammen | G98: i | H98: 999 | I98: 478 | J98: 521
A99: 2 | B99: FH + VerwFH | C99: 5 | D99: Humanmedizin/Gesundheitswissenschaften + Veterinärmedizin | E99: 3 | F99: Wiss. u. künstl. Mitarbeiter | G99: m | H99: 23 | I99: 14 | J99: 9
A100: 2 | B100: FH + VerwFH | C100: 5 | D100: Humanmedizin/Gesundheitswissenschaften + Veterinärmedizin | E100: 3 | F100: Wiss. u. künstl. Mitarbeiter | G100: w | H100: 59 | I100: 28 | J100: 31
A101: 2 | B101: FH + VerwFH | C101: 5 | D101: Humanmedizin/Gesundheitswissenschaften + Veterinärmedizin | E101: 3 | F101: Wiss. u. künstl. Mitarbeiter | G101: i | H101: 82 | I101: 42 | J101: 40
A102: 2 | B102: FH + VerwFH | C102: 5 | D102: Humanmedizin/Gesundheitswissenschaften + Veterinärmedizin | E102: 4 | F102: Lehrkr. f. bes. Aufgaben + Doz. u. Assistenten | G102: m | H102: 7 | I102: 4 | J102: 3
A103: 2 | B103: FH + VerwFH | C103: 5 | D103: Humanmedizin/Gesundheitswissenschaften + Veterinärmedizin | E103: 4 | F103: Lehrkr. f. bes. Aufgaben + Doz. u. Assistenten | G103: w | H103: 17 | I103: 12 | J103: 5
A104: 2 | B104: FH + VerwFH | C104: 5 | D104: Humanmedizin/Gesundheitswissenschaften + Veterinärmedizin | E104: 4 | F104: Lehrkr. f. bes. Aufgaben + Doz. u. Assistenten | G104: i | H104: 24 | I104: 16 | J104: 8
A105: 2 | B105: FH + VerwFH | C105: 5 | D105: Humanmedizin/Gesundheitswissenschaften + Veterinärmedizin | E105: ~~ | F105: zusammen | G105: m | H105: 30 | I105: 18 | J105: 12
A106: 2 | B106: FH + VerwFH | C106: 5 | D106: Humanmedizin/Gesundheitswissenschaften + Veterinärmedizin | E106: ~~ | F106: zusammen | G106: w | H106: 76 | I106: 40 | J106: 36
A107: 2 | B107: FH + VerwFH | C107: 5 | D107: Humanmedizin/Gesundheitswissenschaften + Veterinärmedizin | E107: ~~ | F107: zusammen | G107: i | H107: 106 | I107: 58 | J107: 48
A108: 2 | B108: FH + VerwFH | C108: 8 | D108: Ingenieurwissenschaften | E108: 3 | F108: Wiss. u. künstl. Mitarbeiter | G108: m | H108: 1976 | I108: 1142 | J108: 834
A109: 2 | B109: FH + VerwFH | C109: 8 | D109: Ingenieurwissenschaften | E109: 3 | F109: Wiss. u. künstl. Mitarbeiter | G109: w | H109: 572 | I109: 291 | J109: 281
A110: 2 | B110: FH + VerwFH | C110: 8 | D110: Ingenieurwissenschaften | E110: 3 | F110: Wiss. u. künstl. Mitarbeiter | G110: i | H110: 2548 | I110: 1433 | J110: 1115
A111: 2 | B111: FH + VerwFH | C111: 8 | D111: Ingenieurwissenschaften | E111: 4 | F111: Lehrkr. f. bes. Aufgaben + Doz. u. Assistenten | G111: m | H111: 70 | I111: 32 | J111: 38
A112: 2 | B112: FH + VerwFH | C112: 8 | D112: Ingenieurwissenschaften | E112: 4 | F112: Lehrkr. f. bes. Aufgaben + Doz. u. Assistenten | G112: w | H112: 27 | I112: 14 | J112: 13
A113: 2 | B113: FH + VerwFH | C113: 8 | D113: Ingenieurwissenschaften | E113: 4 | F113: Lehrkr. f. bes. Aufgaben + Doz. u. Assistenten | G113: i | H113: 97 | I113: 46 | J113: 51
A114: 2 | B114: FH + VerwFH | C114: 8 | D114: Ingenieurwissenschaften | E114: ~~ | F114: zusammen | G114: m | H114: 2046 | I114: 1174 | J114: 872
A115: 2 | B115: FH + VerwFH | C115: 8 | D115: Ingenieurwissenschaften | E115: ~~ | F115: zusammen | G115: w | H115: 599 | I115: 305 | J115: 294
A116: 2 | B116: FH + VerwFH | C116: 8 | D116: Ingenieurwissenschaften | E116: ~~ | F116: zusammen | G116: i | H116: 2645 | I116: 1479 | J116: 1166
A117: 2 | B117: FH + VerwFH | C117: 10 | D117: Restliche Fächergruppen | E117: 3 | F117: Wiss. u. künstl. Mitarbeiter | G117: m | H117: 761 | I117: 447 | J117: 314
A118: 2 | B118: FH + VerwFH | C118: 10 | D118: Restliche Fächergruppen | E118: 3 | F118: Wiss. u. künstl. Mitarbeiter | G118: w | H118: 566 | I118: 327 | J118: 239
A119: 2 | B119: FH + VerwFH | C119: 10 | D119: Restliche Fächergruppen | E119: 3 | F119: Wiss. u. künstl. Mitarbeiter | G119: i | H119: 1327 | I119: 774 | J119: 553
A120: 2 | B120: FH + VerwFH | C120: 10 | D120: Restliche Fächergruppen | E120: 4 | F120: Lehrkr. f. bes. Aufgaben + Doz. u. Assistenten | G120: m | H120: 17 | I120: 9 | J120: 8
A121: 2 | B121: FH + VerwFH | C121: 10 | D121: Restliche Fächergruppen | E121: 4 | F121: Lehrkr. f. bes. Aufgaben + Doz. u. Assistenten | G121: w | H121: 30 | I121: 18 | J121: 12
A122: 2 | B122: FH + VerwFH | C122: 10 | D122: Restliche Fächergruppen | E122: 4 | F122: Lehrkr. f. bes. Aufgaben + Doz. u. Assistenten | G122: i | H122: 47 | I122: 27 | J122: 20
A123: 2 | B123: FH + VerwFH | C123: 10 | D123: Restliche Fächergruppen | E123: ~~ | F123: zusammen | G123: m | H123: 778 | I123: 456 | J123: 322
A124: 2 | B124: FH + VerwFH | C124: 10 | D124: Restliche Fächergruppen | E124: ~~ | F124: zusammen | G124: w | H124: 596 | I124: 345 | J124: 251
A125: 2 | B125: FH + VerwFH | C125: 10 | D125: Restliche Fächergruppen | E125: ~~ | F125: zusammen | G125: i | H125: 1374 | I125: 801 | J125: 573
A126: 2 | B126: FH + VerwFH | C126: ~~ | D126: zusammen | E126: ~~ | F126: zusammen | G126: m | H126: 4030 | I126: 2229 | J126: 1801
A127: 2 | B127: FH + VerwFH | C127: ~~ | D127: zusammen | E127: ~~ | F127: zusammen | G127: w | H127: 2246 | I127: 1211 | J127: 1035
A128: 2 | B128: FH + VerwFH | C128: ~~ | D128: zusammen | E128: ~~ | F128: zusammen | G128: i | H128: 6276 | I128: 3440 | J128: 2836
A129: ~ | B129: Insgesamt | G129: m | H129: 63363 | I129: 40947 | J129: 22416
A130: ~ | B130: Insgesamt | G130: w | H130: 46517 | I130: 23948 | J130: 22569
A131: ~ | B131: Insgesamt | G131: i | H131: 109880 | I131: 64895 | J131: 44985

Sheet 3.2
A1: Statistisches Bundesamt
A2: H201 - Hochschulstatistik
A5: Hauptberufliches wissenschaftliches und künstlerisches Personal (ohne Professoren) auf Zeit im Alter bis einschl. 44 Jahren nach ausgewählten
A6: Hochschularten, Fächer- und Personalgruppen sowie spezielle Definition von Voll- und Teilzeit im Berichtsjahr 2014
I8: davon:
H9: Wikue auf Zeit | I9: Vollzeit und
B10: Hochschulart | D10: Fächergruppe | F10: Personalgruppe | G10: Ge- | H10: bis einschl. 44 Jahren | I10: Teilzeit | J10: Teilzeit
D11: der fachl. Zugehörigkeit | G11: schlecht | H11: (ohne Prof.) | I11: mit mind. 2/3 | J11: unter 2/3
H12: insgesamt | I12: der regelmäßigen | J12: der regelmäßigen
I13: Arbeitszeit | J13: Arbeitszeit
A15: 1 | B15: Wiss. Hochschulen (= Uni, GH, PH, TH und KunstH) | C15: 1 | D15: Sprach- und Kulturwissenschaften | E15: 3 | F15: Wiss. u. künstl. Mitarbeiter | G15: m | H15: 5445 | I15: 2515 | J15: 2930
A16: 1 | B16: Wiss. Hochschulen (= Uni, GH, PH, TH und KunstH) | C16: 1 | D16: Sprach- und Kulturwissenschaften | E16: 3 | F16: Wiss. u. künstl. Mitarbeiter | G16: w | H16: 8440 | I16: 3221 | J16: 5219
A17: 1 | B17: Wiss. Hochschulen (= Uni, GH, PH, TH und KunstH) | C17: 1 | D17: Sprach- und Kulturwissenschaften | E17: 3 | F17: Wiss. u. künstl. Mitarbeiter | G17: i | H17: 13885 | I17: 5736 | J17: 8149
A18: 1 | B18: Wiss. Hochschulen (= Uni, GH, PH, TH und KunstH) | C18: 1 | D18: Sprach- und Kulturwissenschaften | E18: 4 | F18: Lehrkr. f. bes. Aufgaben + Doz. u. Assistenten | G18: m | H18: 537 | I18: 329 | J18: 208
A19: 1 | B19: Wiss. Hochschulen (= Uni, GH, PH, TH und KunstH) | C19: 1 | D19: Sprach- und Kulturwissenschaften | E19: 4 | F19: Lehrkr. f. bes. Aufgaben + Doz. u. Assistenten | G19: w | H19: 878 | I19: 417 | J19: 461
A20: 1 | B20: Wiss. Hochschulen (= Uni, GH, PH, TH und KunstH) | C20: 1 | D20: Sprach- und Kulturwissenschaften | E20: 4 | F20: Lehrkr. f. bes. Aufgaben + Doz. u. Assistenten | G20: i | H20: 1415 | I20: 746 | J20: 669
A21: 1 | B21: Wiss. Hochschulen (= Uni, GH, PH, TH und KunstH) | C21: 1 | D21: Sprach- und Kulturwissenschaften | E21: ~~ | F21: zusammen | G21: m | H21: 5982 | I21: 2844 | J21: 3138
A22: 1 | B22: Wiss. Hochschulen (= Uni, GH, PH, TH und KunstH) | C22: 1 | D22: Sprach- und Kulturwissenschaften | E22: ~~ | F22: zusammen | G22: w | H22: 9318 | I22: 3638 | J22: 5680
A23: 1 | B23: Wiss. Hochschulen (= Uni, GH, PH, TH und KunstH) | C23: 1 | D23: Sprach- und Kulturwissenschaften | E23: ~~ | F23: zusammen | G23: i | H23: 15300 | I23: 6482 | J23: 8818
A24: 1 | B24: Wiss. Hochschulen (= Uni, GH, PH, TH und KunstH) | C24: 3 | D24: Rechts-, Wirtschafts- und Sozialwissenschaften | E24: 3 | F24: Wiss. u. künstl. Mitarbeiter | G24: m | H24: 7651 | I24: 4301 | J24: 3350
A25: 1 | B25: Wiss. Hochschulen (= Uni, GH, PH, TH und KunstH) | C25: 3 | D25: Rechts-, Wirtschafts- und Sozialwissenschaften | E25: 3 | F25: Wiss. u. künstl. Mitarbeiter | G25: w | H25: 5659 | I25: 2821 | J25: 2838
A26: 1 | B26: Wiss. Hochschulen (= Uni, GH, PH, TH und KunstH) | C26: 3 | D26: Rechts-, Wirtschafts- und Sozialwissenschaften | E26: 3 | F26: Wiss. u. künstl. Mitarbeiter | G26: i | H26: 13310 | I26: 7122 | J26: 6188
A27: 1 | B27: Wiss. Hochschulen (= Uni, GH, PH, TH und KunstH) | C27: 3 | D27: Rechts-, Wirtschafts- und Sozialwissenschaften | E27: 4 | F27: Lehrkr. f. bes. Aufgaben + Doz. u. Assistenten | G27: m | H27: 412 | I27: 283 | J27: 129
A28: 1 | B28: Wiss. Hochschulen (= Uni, GH, PH, TH und KunstH) | C28: 3 | D28: Rechts-, Wirtschafts- und Sozialwissenschaften | E28: 4 | F28: Lehrkr. f. bes. Aufgaben + Doz. u. Assistenten | G28: w | H28: 218 | I28: 115 | J28: 103
A29: 1 | B29: Wiss. Hochschulen (= Uni, GH, PH, TH und KunstH) | C29: 3 | D29: Rechts-, Wirtschafts- und Sozialwissenschaften | E29: 4 | F29: Lehrkr. f. bes. Aufgaben + Doz. u. Assistenten | G29: i | H29: 630 | I29: 398 | J29: 232
A30: 1 | B30: Wiss. Hochschulen (= Uni, GH, PH, TH und KunstH) | C30: 3 | D30: Rechts-, Wirtschafts- und Sozialwissenschaften | E30: ~~ | F30: zusammen | G30: m | H30: 8063 | I30: 4584 | J30: 3479
A31: 1 | B31: Wiss. Hochschulen (= Uni, GH, PH, TH und KunstH) | C31: 3 | D31: Rechts-, Wirtschafts- und Sozialwissenschaften | E31: ~~ | F31: zusammen | G31: w | H31: 5877 | I31: 2936 | J31: 2941
A32: 1 | B32: Wiss. Hochschulen (= Uni, GH, PH, TH und KunstH) | C32: 3 | D32: Rechts-, Wirtschafts- und Sozialwissenschaften | E32: ~~ | F32: zusammen | G32: i | H32: 13940 | I32: 7520 | J32: 6420
A33: 1 | B33: Wiss. Hochschulen (= Uni, GH, PH, TH und KunstH) | C33: 4 | D33: Mathematik, Naturwissenschaften | E33: 3 | F33: Wiss. u. künstl. Mitarbeiter | G33: m | H33: 24189 | I33: 13887 | J33: 10302
A34: 1 | B34: Wiss. Hochschulen (= Uni, GH, PH, TH und KunstH) | C34: 4 | D34: Mathematik, Naturwissenschaften | E34: 3 | F34: Wiss. u. künstl. Mitarbeiter | G34: w | H34: 11165 | I34: 4418 | J34: 6747
A35: 1 | B35: Wiss. Hochschulen (= Uni, GH, PH, TH und KunstH) | C35: 4 | D35: Mathematik, Naturwissenschaften | E35: 3 | F35: Wiss. u. künstl. Mitarbeiter | G35: i | H35: 35354 | I35: 18305 | J35: 17049
A36: 1 | B36: Wiss. Hochschulen (= Uni, GH, PH, TH und KunstH) | C36: 4 | D36: Mathematik, Naturwissenschaften | E36: 4 | F36: Lehrkr. f. bes. Aufgaben + Doz. u. Assistenten | G36: m | H36: 517 | I36: 408 | J36: 109
A37: 1 | B37: Wiss. Hochschulen (= Uni, GH, PH, TH und KunstH) | C37: 4 | D37: Mathematik, Naturwissenschaften | E37: 4 | F37: Lehrkr. f. bes. Aufgaben + Doz. u. Assistenten | G37: w | H37: 281 | I37: 165 | J37: 116
A38: 1 | B38: Wiss. Hochschulen (= Uni, GH, PH, TH und KunstH) | C38: 4 | D38: Mathematik, Naturwissenschaften | E38: 4 | F38: Lehrkr. f. bes. Aufgaben + Doz. u. Assistenten | G38: i | H38: 798 | I38: 573 | J38: 225
A39: 1 | B39: Wiss. Hochschulen (= Uni, GH, PH, TH und KunstH) | C39: 4 | D39: Mathematik, Naturwissenschaften | E39: ~~ | F39: zusammen | G39: m | H39: 24706 | I39: 14295 | J39: 10411
A40: 1 | B40: Wiss. Hochschulen (= Uni, GH, PH, TH und KunstH) | C40: 4 | D40: Mathematik, Naturwissenschaften | E40: ~~ | F40: zusammen | G40: w | H40: 11446 | I40: 4583 | J40: 6863
A41: 1 | B41: Wiss. Hochschulen (= Uni, GH, PH, TH und KunstH) | C41: 4 | D41: Mathematik, Naturwissenschaften | E41: ~~ | F41: zusammen | G41: i | H41: 36152 | I41: 18878 | J41: 17274
A42: 1 | B42: Wiss. Hochschulen (= Uni, GH, PH, TH und KunstH) | C42: 5 | D42: Humanmedizin/Gesundheitswissenschaften + Veterinärmedizin | E42: 3 | F42: Wiss. u. künstl. Mitarbeiter | G42: m | H42: 17367 | I42: 14369 | J42: 2998
A43: 1 | B43: Wiss. Hochschulen (= Uni, GH, PH, TH und KunstH) | C43: 5 | D43: Humanmedizin/Gesundheitswissenschaften + Veterinärmedizin | E43: 3 | F43: Wiss. u. künstl. Mitarbeiter | G43: w | H43: 21543 | I43: 14318 | J43: 7225
A44: 1 | B44: Wiss. Hochschulen (= Uni, GH, PH, TH und KunstH) | C44: 5 | D44: Humanmedizin/Gesundheitswissenschaften + Veterinärmedizin | E44: 3 | F44: Wiss. u. künstl. Mitarbeiter | G44: i | H44: 38910 | I44: 28687 | J44: 10223
A45: 1 | B45: Wiss. Hochschulen (= Uni, GH, PH, TH und KunstH) | C45: 5 | D45: Humanmedizin/Gesundheitswissenschaften + Veterinärmedizin | E45: 4 | F45: Lehrkr. f. bes. Aufgaben + Doz. u. Assistenten | G45: m | H45: 157 | I45: 114 | J45: 43
A46: 1 | B46: Wiss. Hochschulen (= Uni, GH, PH, TH und KunstH) | C46: 5 | D46: Humanmedizin/Gesundheitswissenschaften + Veterinärmedizin | E46: 4 | F46: Lehrkr. f. bes. Aufgaben + Doz. u. Assistenten | G46: w | H46: 238 | I46: 133 | J46: 105
A47: 1 | B47: Wiss. Hochschulen (= Uni, GH, PH, TH und KunstH) | C47: 5 | D47: Humanmedizin/Gesundheitswissenschaften + Veterinärmedizin | E47: 4 | F47: Lehrkr. f. bes. Aufgaben + Doz. u. Assistenten | G47: i | H47: 395 | I47: 247 | J47: 148
A48: 1 | B48: Wiss. Hochschulen (= Uni, GH, PH, TH und KunstH) | C48: 5 | D48: Humanmedizin/Gesundheitswissenschaften + Veterinärmedizin | E48: ~~ | F48: zusammen | G48: m | H48: 17524 | I48: 14483 | J48: 3041
A49: 1 | B49: Wiss. Hochschulen (= Uni, GH, PH, TH und KunstH) | C49: 5 | D49: Humanmedizin/Gesundheitswissenschaften + Veterinärmedizin | E49: ~~ | F49: zusammen | G49: w | H49: 21781 | I49: 14451 | J49: 7330
A50: 1 | B50: Wiss. Hochschulen (= Uni, GH, PH, TH und KunstH) | C50: 5 | D50: Humanmedizin/Gesundheitswissenschaften + Veterinärmedizin | E50: ~~ | F50: zusammen | G50: i | H50: 39305 | I50: 28934 | J50: 10371
A51: 1 | B51: Wiss. Hochschulen (= Uni, GH, PH, TH und KunstH) | C51: 8 | D51: Ingenieurwissenschaften | E51: 3 | F51: Wiss. u. künstl. Mitarbeiter | G51: m | H51: 16323 | I51: 14457 | J51: 1866
A52: 1 | B52: Wiss. Hochschulen (= Uni, GH, PH, TH und KunstH) | C52: 8 | D52: Ingenieurwissenschaften | E52: 3 | F52: Wiss. u. künstl. Mitarbeiter | G52: w | H52: 4251 | I52: 3151 | J52: 1100
A53: 1 | B53: Wiss. Hochschulen (= Uni, GH, PH, TH und KunstH) | C53: 8 | D53: Ingenieurwissenschaften | E53: 3 | F53: Wiss. u. künstl. Mitarbeiter | G53: i | H53: 20574 | I53: 17608 | J53: 2966
A54: 1 | B54: Wiss. Hochschulen (= Uni, GH, PH, TH und KunstH) | C54: 8 | D54: Ingenieurwissenschaften | E54: 4 | F54: Lehrkr. f. bes. Aufgaben + Doz. u. Assistenten | G54: m | H54: 195 | I54: 172 | J54: 23
A55: 1 | B55: Wiss. Hochschulen (= Uni, GH, PH, TH und KunstH) | C55: 8 | D55: Ingenieurwissenschaften | E55: 4 | F55: Lehrkr. f. bes. Aufgaben + Doz. u. Assistenten | G55: w | H55: 50 | I55: 36 | J55: 14
A56: 1 | B56: Wiss. Hochschulen (= Uni, GH, PH, TH und KunstH) | C56: 8 | D56: Ingenieurwissenschaften | E56: 4 | F56: Lehrkr. f. bes. Aufgaben + Doz. u. Assistenten | G56: i | H56: 245 | I56: 208 | J56: 37
A57: 1 | B57: Wiss. Hochschulen (= Uni, GH, PH, TH und KunstH) | C57: 8 | D57: Ingenieurwissenschaften | E57: ~~ | F57: zusammen | G57: m | H57: 16518 | I57: 14629 | J57: 1889
A58: 1 | B58: Wiss. Hochschulen (= Uni, GH, PH, TH und KunstH) | C58: 8 | D58: Ingenieurwissenschaften | E58: ~~ | F58: zusammen | G58: w | H58: 4301 | I58: 3187 | J58: 1114
A59: 1 | B59: Wiss. Hochschulen (= Uni, GH, PH, TH und KunstH) | C59: 8 | D59: Ingenieurwissenschaften | E59: ~~ | F59: zusammen | G59: i | H59: 20819 | I59: 17816 | J59: 3003
A60: 1 | B60: Wiss. Hochschulen (= Uni, GH, PH, TH und KunstH) | C60: 10 | D60: Restliche Fächergruppen | E60: 3 | F60: Wiss. u. künstl. Mitarbeiter | G60: m | H60: 5023 | I60: 2865 | J60: 2158
A61: 1 | B61: Wiss. Hochschulen (= Uni, GH, PH, TH und KunstH) | C61: 10 | D61: Restliche Fächergruppen | E61: 3 | F61: Wiss. u. künstl. Mitarbeiter | G61: w | H61: 5375 | I61: 2412 | J61: 2963
A62: 1 | B62: Wiss. Hochschulen (= Uni, GH, PH, TH und KunstH) | C62: 10 | D62: Restliche Fächergruppen | E62: 3 | F62: Wiss. u. künstl. Mitarbeiter | G62: i | H62: 10398 | I62: 5277 | J62: 5121
A63: 1 | B63: Wiss. Hochschulen (= Uni, GH, PH, TH und KunstH) | C63: 10 | D63: Restliche Fächergruppen | E63: 4 | F63: Lehrkr. f. bes. Aufgaben + Doz. u. Assistenten | G63: m | H63: 245 | I63: 111 | J63: 134
A64: 1 | B64: Wiss. Hochschulen (= Uni, GH, PH, TH und KunstH) | C64: 10 | D64: Restliche Fächergruppen | E64: 4 | F64: Lehrkr. f. bes. Aufgaben + Doz. u. Assistenten | G64: w | H64: 357 | I64: 135 | J64: 222
A65: 1 | B65: Wiss. Hochschulen (= Uni, GH, PH, TH und KunstH) | C65: 10 | D65: Restliche Fächergruppen | E65: 4 | F65: Lehrkr. f. bes. Aufgaben + Doz. u. Assistenten | G65: i | H65: 602 | I65: 246 | J65: 356
A66: 1 | B66: Wiss. Hochschulen (= Uni, GH, PH, TH und KunstH) | C66: 10 | D66: Restliche Fächergruppen | E66: ~~ | F66: zusammen | G66: m | H66: 5268 | I66: 2976 | J66: 2292
A67: 1 | B67: Wiss. Hochschulen (= Uni, GH, PH, TH und KunstH) | C67: 10 | D67: Restliche Fächergruppen | E67: ~~ | F67: zusammen | G67: w | H67: 5732 | I67: 2547 | J67: 3185
A68: 1 | B68: Wiss. Hochschulen (= Uni, GH, PH, TH und KunstH) | C68: 10 | D68: Restliche Fächergruppen | E68: ~~ | F68: zusammen | G68: i | H68: 11000 | I68: 5523 | J68: 5477
A69: 1 | B69: Wiss. Hochschulen (= Uni, GH, PH, TH und KunstH) | C69: ~~ | D69: zusammen | E69: ~~ | F69: zusammen | G69: m | H69: 78061 | I69: 53811 | J69: 24250
A70: 1 | B70: Wiss. Hochschulen (= Uni, GH, PH, TH und KunstH) | C70: ~~ | D70: zusammen | E70: ~~ | F70: zusammen | G70: w | H70: 58455 | I70: 31342 | J70: 27113
A71: 1 | B71: Wiss. Hochschulen (= Uni, GH, PH, TH und KunstH) | C71: ~~ | D71: zusammen | E71: ~~ | F71: zusammen | G71: i | H71: 136516 | I71: 85153 | J71: 51363
A72: 2 | B72: FH + VerwFH | C72: 1 | D72: Sprach- und Kulturwissenschaften | E72: 3 | F72: Wiss. u. künstl. Mitarbeiter | G72: m | H72: 27 | I72: 12 | J72: 15
A73: 2 | B73: FH + VerwFH | C73: 1 | D73: Sprach- und Kulturwissenschaften | E73: 3 | F73: Wiss. u. künstl. Mitarbeiter | G73: w | H73: 79 | I73: 28 | J73: 51
A74: 2 | B74: FH + VerwFH | C74: 1 | D74: Sprach- und Kulturwissenschaften | E74: 3 | F74: Wiss. u. künstl. Mitarbeiter | G74: i | H74: 106 | I74: 40 | J74: 66
A75: 2 | B75: FH + VerwFH | C75: 1 | D75: Sprach- und Kulturwissenschaften | E75: 4 | F75: Lehrkr. f. bes. Aufgaben + Doz. u. Assistenten | G75: m | H75: 16 | I75: 6 | J75: 10
A76: 2 | B76: FH + VerwFH | C76: 1 | D76: Sprach- und Kulturwissenschaften | E76: 4 | F76: Lehrkr. f. bes. Aufgaben + Doz. u. Assistenten | G76: w | H76: 35 | I76: 14 | J76: 21
A77: 2 | B77: FH + VerwFH | C77: 1 | D77: Sprach- und Kulturwissenschaften | E77: 4 | F77: Lehrkr. f. bes. Aufgaben + Doz. u. Assistenten | G77: i | H77: 51 | I77: 20 | J77: 31
A78: 2 | B78: FH + VerwFH | C78: 1 | D78: Sprach- und Kulturwissenschaften | E78: ~~ | F78: zusammen | G78: m | H78: 43 | I78: 18 | J78: 25
A79: 2 | B79: FH + VerwFH | C79: 1 | D79: Sprach- und Kulturwissenschaften | E79: ~~ | F79: zusammen | G79: w | H79: 114 | I79: 42 | J79: 72
A80: 2 | B80: FH + VerwFH | C80: 1 | D80: Sprach- und Kulturwissenschaften | E80: ~~ | F80: zusammen | G80: i | H80: 157 | I80: 60 | J80: 97
A81: 2 | B81: FH + VerwFH | C81: 3 | D81: Rechts-, Wirtschafts- und Sozialwissenschaften | E81: 3 | F81: Wiss. u. künstl. Mitarbeiter | G81: m | H81: 530 | I81: 282 | J81: 248
A82: 2 | B82: FH + VerwFH | C82: 3 | D82: Rechts-, Wirtschafts- und Sozialwissenschaften | E82: 3 | F82: Wiss. u. künstl. Mitarbeiter | G82: w | H82: 805 | I82: 433 | J82: 372
A83: 2 | B83: FH + VerwFH | C83: 3 | D83: Rechts-, Wirtschafts- und Sozialwissenschaften | E83: 3 | F83: Wiss. u. künstl. Mitarbeiter | G83: i | H83: 1335 | I83: 715 | J83: 620
A84: 2 | B84: FH + VerwFH | C84: 3 | D84: Rechts-, Wirtschafts- und Sozialwissenschaften | E84: 4 | F84: Lehrkr. f. bes. Aufgaben + Doz. u. Assistenten | G84: m | H84: 128 | I84: 84 | J84: 44
A85: 2 | B85: FH + VerwFH | C85: 3 | D85: Rechts-, Wirtschafts- und Sozialwissenschaften | E85: 4 | F85: Lehrkr. f. bes. Aufgaben + Doz. u. Assistenten | G85: w | H85: 159 | I85: 84 | J85: 75
A86: 2 | B86: FH + VerwFH | C86: 3 | D86: Rechts-, Wirtschafts- und Sozialwissenschaften | E86: 4 | F86: Lehrkr. f. bes. Aufgaben + Doz. u. Assistenten | G86: i | H86: 287 | I86: 168 | J86: 119
A87: 2 | B87: FH + VerwFH | C87: 3 | D87: Rechts-, Wirtschafts- und Sozialwissenschaften | E87: ~~ | F87: zusammen | G87: m | H87: 658 | I87: 366 | J87: 292
A88: 2 | B88: FH + VerwFH | C88: 3 | D88: Rechts-, Wirtschafts- und Sozialwissenschaften | E88: ~~ | F88: zusammen | G88: w | H88: 964 | I88: 517 | J88: 447
A89: 2 | B89: FH + VerwFH | C89: 3 | D89: Rechts-, Wirtschafts- und Sozialwissenschaften | E89: ~~ | F89: zusammen | G89: i | H89: 1622 | I89: 883 | J89: 739
A90: 2 | B90: FH + VerwFH | C90: 4 | D90: Mathematik, Naturwissenschaften | E90: 3 | F90: Wiss. u. künstl. Mitarbeiter | G90: m | H90: 824 | I90: 421 | J90: 403
A91: 2 | B91: FH + VerwFH | C91: 4 | D91: Mathematik, Naturwissenschaften | E91: 3 | F91: Wiss. u. künstl. Mitarbeiter | G91: w | H91: 310 | I91: 152 | J91: 158
A92: 2 | B92: FH + VerwFH | C92: 4 | D92: Mathematik, Naturwissenschaften | E92: 3 | F92: Wiss. u. künstl. Mitarbeiter | G92: i | H92: 1134 | I92: 573 | J92: 561
A93: 2 | B93: FH + VerwFH | C93: 4 | D93: Mathematik, Naturwissenschaften | E93: 4 | F93: Lehrkr. f. bes. Aufgaben + Doz. u. Assistenten | G93: m | H93: 55 | I93: 24 | J93: 31
A94: 2 | B94: FH + VerwFH | C94: 4 | D94: Mathematik, Naturwissenschaften | E94: 4 | F94: Lehrkr. f. bes. Aufgaben + Doz. u. Assistenten | G94: w | H94: 32 | I94: 17 | J94: 15
A95: 2 | B95: FH + VerwFH | C95: 4 | D95: Mathematik, Naturwissenschaften | E95: 4 | F95: Lehrkr. f. bes. Aufgaben + Doz. u. Assistenten | G95: i | H95: 87 | I95: 41 | J95: 46
A96: 2 | B96: FH + VerwFH | C96: 4 | D96: Mathematik, Naturwissenschaften | E96: ~~ | F96: zusammen | G96: m | H96: 879 | I96: 445 | J96: 434
A97: 2 | B97: FH + VerwFH | C97: 4 | D97: Mathematik, Naturwissenschaften | E97: ~~ | F97: zusammen | G97: w | H97: 342 | I97: 169 | J97: 173
A98: 2 | B98: FH + VerwFH | C98: 4 | D98: Mathematik, Naturwissenschaften | E98: ~~ | F98: zusammen | G98: i | H98: 1221 | I98: 614 | J98: 607
A99: 2 | B99: FH + VerwFH | C99: 5 | D99: Humanmedizin/Gesundheitswissenschaften + Veterinärmedizin | E99: 3 | F99: Wiss. u. künstl. Mitarbeiter | G99: m | H99: 37 | I99: 21 | J99: 16
A100: 2 | B100: FH + VerwFH | C100: 5 | D100: Humanmedizin/Gesundheitswissenschaften + Veterinärmedizin | E100: 3 | F100: Wiss. u. künstl. Mitarbeiter | G100: w | H100: 100 | I100: 44 | J100: 56
A101: 2 | B101: FH + VerwFH | C101: 5 | D101: Humanmedizin/Gesundheitswissenschaften + Veterinärmedizin | E101: 3 | F101: Wiss. u. künstl. Mitarbeiter | G101: i | H101: 137 | I101: 65 | J101: 72
A102: 2 | B102: FH + VerwFH | C102: 5 | D102: Humanmedizin/Gesundheitswissenschaften + Veterinärmedizin | E102: 4 | F102: Lehrkr. f. bes. Aufgaben + Doz. u. Assistenten | G102: m | H102: 9 | I102: 4 | J102: 5
A103: 2 | B103: FH + VerwFH | C103: 5 | D103: Humanmedizin/Gesundheitswissenschaften + Veterinärmedizin | E103: 4 | F103: Lehrkr. f. bes. Aufgaben + Doz. u. Assistenten | G103: w | H103: 29 | I103: 18 | J103: 11
A104: 2 | B104: FH + VerwFH | C104: 5 | D104: Humanmedizin/Gesundheitswissenschaften + Veterinärmedizin | E104: 4 | F104: Lehrkr. f. bes. Aufgaben + Doz. u. Assistenten | G104: i | H104: 38 | I104: 22 | J104: 16
A105: 2 | B105: FH + VerwFH | C105: 5 | D105: Humanmedizin/Gesundheitswissenschaften + Veterinärmedizin | E105: ~~ | F105: zusammen | G105: m | H105: 46 | I105: 25 | J105: 21
A106: 2 | B106: FH + VerwFH | C106: 5 | D106: Humanmedizin/Gesundheitswissenschaften + Veterinärmedizin | E106: ~~ | F106: zusammen | G106: w | H106: 129 | I106: 62 | J106: 67
A107: 2 | B107: FH + VerwFH | C107: 5 | D107: Humanmedizin/Gesundheitswissenschaften + Veterinärmedizin | E107: ~~ | F107: zusammen | G107: i | H107: 175 | I107: 87 | J107: 88
A108: 2 | B108: FH + VerwFH | C108: 8 | D108: Ingenieurwissenschaften | E108: 3 | F108: Wiss. u. künstl. Mitarbeiter | G108: m | H108: 2339 | I108: 1369 | J108: 970
A109: 2 | B109: FH + VerwFH | C109: 8 | D109: Ingenieurwissenschaften | E109: 3 | F109: Wiss. u. künstl. Mitarbeiter | G109: w | H109: 785 | I109: 389 | J109: 396
A110: 2 | B110: FH + VerwFH | C110: 8 | D110: Ingenieurwissenschaften | E110: 3 | F110: Wiss. u. künstl. Mitarbeiter | G110: i | H110: 3124 | I110: 1758 | J110: 1366
A111: 2 | B111: FH + VerwFH | C111: 8 | D111: Ingenieurwissenschaften | E111: 4 | F111: Lehrkr. f. bes. Aufgaben + Doz. u. Assistenten | G111: m | H111: 98 | I111: 51 | J111: 47
A112: 2 | B112: FH + VerwFH | C112: 8 | D112: Ingenieurwissenschaften | E112: 4 | F112: Lehrkr. f. bes. Aufgaben + Doz. u. Assistenten | G112: w | H112: 47 | I112: 25 | J112: 22
A113: 2 | B113: FH + VerwFH | C113: 8 | D113: Ingenieurwissenschaften | E113: 4 | F113: Lehrkr. f. bes. Aufgaben + Doz. u. Assistenten | G113: i | H113: 145 | I113: 76 | J113: 69
A114: 2 | B114: FH + VerwFH | C114: 8 | D114: Ingenieurwissenschaften | E114: ~~ | F114: zusammen | G114: m | H114: 2437 | I114: 1420 | J114: 1017
A115: 2 | B115: FH + VerwFH | C115: 8 | D115: Ingenieurwissenschaften | E115: ~~ | F115: zusammen | G115: w | H115: 832 | I115: 414 | J115: 418
A116: 2 | B116: FH + VerwFH | C116: 8 | D116: Ingenieurwissenschaften | E116: ~~ | F116: zusammen | G116: i | H116: 3269 | I116: 1834 | J116: 1435
A117: 2 | B117: FH + VerwFH | C117: 10 | D117: Restliche Fächergruppen | E117: 3 | F117: Wiss. u. künstl. Mitarbeiter | G117: m | H117: 1021 | I117: 617 | J117: 404
A118: 2 | B118: FH + VerwFH | C118: 10 | D118: Restliche Fächergruppen | E118: 3 | F118: Wiss. u. künstl. Mitarbeiter | G118: w | H118: 843 | I118: 462 | J118: 381
A119: 2 | B119: FH + VerwFH | C119: 10 | D119: Restliche Fächergruppen | E119: 3 | F119: Wiss. u. künstl. Mitarbeiter | G119: i | H119: 1864 | I119: 1079 | J119: 785
A120: 2 | B120: FH + VerwFH | C120: 10 | D120: Restliche Fächergruppen | E120: 4 | F120: Lehrkr. f. bes. Aufgaben + Doz. u. Assistenten | G120: m | H120: 39 | I120: 19 | J120: 20
A121: 2 | B121: FH + VerwFH | C121: 10 | D121: Restliche Fächergruppen | E121: 4 | F121: Lehrkr. f. bes. Aufgaben + Doz. u. Assistenten | G121: w | H121: 64 | I121: 35 | J121: 29
A122: 2 | B122: FH + VerwFH | C122: 10 | D122: Restliche Fächergruppen | E122: 4 | F122: Lehrkr. f. bes. Aufgaben + Doz. u. Assistenten | G122: i | H122: 103 | I122: 54 | J122: 49
A123: 2 | B123: FH + VerwFH | C123: 10 | D123: Restliche Fächergruppen | E123: ~~ | F123: zusammen | G123: m | H123: 1060 | I123: 636 | J123: 424
A124: 2 | B124: FH + VerwFH | C124: 10 | D124: Restliche Fächergruppen | E124: ~~ | F124: zusammen | G124: w | H124: 907 | I124: 497 | J124: 410
A125: 2 | B125: FH + VerwFH | C125: 10 | D125: Restliche Fächergruppen | E125: ~~ | F125: zusammen | G125: i | H125: 1967 | I125: 1133 | J125: 834
A126: 2 | B126: FH + VerwFH | C126: ~~ | D126: zusammen | E126: ~~ | F126: zusammen | G126: m | H126: 5123 | I126: 2910 | J126: 2213
A127: 2 | B127: FH + VerwFH | C127: ~~ | D127: zusammen | E127: ~~ | F127: zusammen | G127: w | H127: 3288 | I127: 1701 | J127: 1587
A128: 2 | B128: FH + VerwFH | C128: ~~ | D128: zusammen | E128: ~~ | F128: zusammen | G128: i | H128: 8411 | I128: 4611 | J128: 3800
A129: ~ | B129: Insgesamt | G129: m | H129: 83184 | I129: 56721 | J129: 26463
A130: ~ | B130: Insgesamt | G130: w | H130: 61743 | I130: 33043 | J130: 28700
A131: ~ | B131: Insgesamt | G131: i | H131: 144927 | I131: 89764 | J131: 55163

Sheet 3.3
A1: Statistisches Bundesamt
A2: H201 - Hochschulstatistik
A5: Hauptberufliches wissenschaftliches und künstlerisches Personal (ohne Professoren) nach ausgewählten
A6: Hochschularten, Fächer- und Personalgruppen sowie spezielle Definition von Voll- und Teilzeit im Berichtsjahr 2014
I8: davon:
H9: Hauptber. | I9: Vollzeit und
B10: Hochschulart | D10: Fächergruppe | F10: Personalgruppe | G10: Ge- | H10: Wikue | I10: Teilzeit | J10: Teilzeit
D11: der fachl. Zugehörigkeit | G11: schlecht | H11: (ohne | I11: mit mind. 2/3 | J11: unter 2/3
H12: (Professoren) | I12: der regelmäßigen | J12: der regelmäßigen
H13: insgesamt | I13: Arbeitszeit | J13: Arbeitszeit
A15: 1 | B15: Wiss. Hochschulen (= Uni, GH, PH, TH und KunstH) | C15: 1 | D15: Sprach- und Kulturwissenschaften | E15: 3 | F15: Wiss. u. künstl. Mitarbeiter | G15: m | H15: 7358 | I15: 4055 | J15: 3303
A16: 1 | B16: Wiss. Hochschulen (= Uni, GH, PH, TH und KunstH) | C16: 1 | D16: Sprach- und Kulturwissenschaften | E16: 3 | F16: Wiss. u. künstl. Mitarbeiter | G16: w | H16: 10367 | I16: 4493 | J16: 5874
A17: 1 | B17: Wiss. Hochschulen (= Uni, GH, PH, TH und KunstH) | C17: 1 | D17: Sprach- und Kulturwissenschaften | E17: 3 | F17: Wiss. u. künstl. Mitarbeiter | G17: i | H17: 17725 | I17: 8548 | J17: 9177
A18: 1 | B18: Wiss. Hochschulen (= Uni, GH, PH, TH und KunstH) | C18: 1 | D18: Sprach- und Kulturwissenschaften | E18: 4 | F18: Lehrkr. f. bes. Aufgaben + Doz. u. Assistenten | G18: m | H18: 1374 | I18: 958 | J18: 416
A19: 1 | B19: Wiss. Hochschulen (= Uni, GH, PH, TH und KunstH) | C19: 1 | D19: Sprach- und Kulturwissenschaften | E19: 4 | F19: Lehrkr. f. bes. Aufgaben + Doz. u. Assistenten | G19: w | H19: 2030 | I19: 1203 | J19: 827
A20: 1 | B20: Wiss. Hochschulen (= Uni, GH, PH, TH und KunstH) | C20: 1 | D20: Sprach- und Kulturwissenschaften | E20: 4 | F20: Lehrkr. f. bes. Aufgaben + Doz. u. Assistenten | G20: i | H20: 3404 | I20: 2161 | J20: 1243
A21: 1 | B21: Wiss. Hochschulen (= Uni, GH, PH, TH und KunstH) | C21: 1 | D21: Sprach- und Kulturwissenschaften | E21: ~~ | F21: zusammen | G21: m | H21: 8732 | I21: 5013 | J21: 3719
A22: 1 | B22: Wiss. Hochschulen (= Uni, GH, PH, TH und KunstH) | C22: 1 | D22: Sprach- und Kulturwissenschaften | E22: ~~ | F22: zusammen | G22: w | H22: 12397 | I22: 5696 | J22: 6701
A23: 1 | B23: Wiss. Hochschulen (= Uni, GH, PH, TH und KunstH) | C23: 1 | D23: Sprach- und Kulturwissenschaften | E23: ~~ | F23: zusammen | G23: i | H23: 21129 | I23: 10709 | J23: 10420
A24: 1 | B24: Wiss. Hochschulen (= Uni, GH, PH, TH und KunstH) | C24: 3 | D24: Rechts-, Wirtschafts- und Sozialwissenschaften | E24: 3 | F24: Wiss. u. künstl. Mitarbeiter | G24: m | H24: 8310 | I24: 4846 | J24: 3464
A25: 1 | B25: Wiss. Hochschulen (= Uni, GH, PH, TH und KunstH) | C25: 3 | D25: Rechts-, Wirtschafts- und Sozialwissenschaften | E25: 3 | F25: Wiss. u. künstl. Mitarbeiter | G25: w | H25: 6143 | I25: 3155 | J25: 2988
A26: 1 | B26: Wiss. Hochschulen (= Uni, GH, PH, TH und KunstH) | C26: 3 | D26: Rechts-, Wirtschafts- und Sozialwissenschaften | E26: 3 | F26: Wiss. u. künstl. Mitarbeiter | G26: i | H26: 14453 | I26: 8001 | J26: 6452
A27: 1 | B27: Wiss. Hochschulen (= Uni, GH, PH, TH und KunstH) | C27: 3 | D27: Rechts-, Wirtschafts- und Sozialwissenschaften | E27: 4 | F27: Lehrkr. f. bes. Aufgaben + Doz. u. Assistenten | G27: m | H27: 586 | I27: 428 | J27: 158
A28: 1 | B28: Wiss. Hochschulen (= Uni, GH, PH, TH und KunstH) | C28: 3 | D28: Rechts-, Wirtschafts- und Sozialwissenschaften | E28: 4 | F28: Lehrkr. f. bes. Aufgaben + Doz. u. Assistenten | G28: w | H28: 328 | I28: 184 | J28: 144
A29: 1 | B29: Wiss. Hochschulen (= Uni, GH, PH, TH und KunstH) | C29: 3 | D29: Rechts-, Wirtschafts- und Sozialwissenschaften | E29: 4 | F29: Lehrkr. f. bes. Aufgaben + Doz. u. Assistenten | G29: i | H29: 914 | I29: 612 | J29: 302
A30: 1 | B30: Wiss. Hochschulen (= Uni, GH, PH, TH und KunstH) | C30: 3 | D30: Rechts-, Wirtschafts- und Sozialwissenschaften | E30: ~~ | F30: zusammen | G30: m | H30: 8896 | I30: 5274 | J30: 3622
A31: 1 | B31: Wiss. Hochschulen (= Uni, GH, PH, TH und KunstH) | C31: 3 | D31: Rechts-, Wirtschafts- und Sozialwissenschaften | E31: ~~ | F31: zusammen | G31: w | H31: 6471 | I31: 3339 | J31: 3132
A32: 1 | B32: Wiss. Hochschulen (= Uni, GH, PH, TH und KunstH) | C32: 3 | D32: Rechts-, Wirtschafts- und Sozialwissenschaften | E32: ~~ | F32: zusammen | G32: i | H32: 15367 | I32: 8613 | J32: 6754
A33: 1 | B33: Wiss. Hochschulen (= Uni, GH, PH, TH und KunstH) | C33: 4 | D33: Mathematik, Naturwissenschaften | E33: 3 | F33: Wiss. u. künstl. Mitarbeiter | G33: m | H33: 28611 | I33: 17921 | J33: 10690
A34: 1 | B34: Wiss. Hochschulen (= Uni, GH, PH, TH und KunstH) | C34: 4 | D34: Mathematik, Naturwissenschaften | E34: 3 | F34: Wiss. u. künstl. Mitarbeiter | G34: w | H34: 12533 | I34: 5430 | J34: 7103
A35: 1 | B35: Wiss. Hochschulen (= Uni, GH, PH, TH und KunstH) | C35: 4 | D35: Mathematik, Naturwissenschaften | E35: 3 | F35: Wiss. u. künstl. Mitarbeiter | G35: i | H35: 41144 | I35: 23351 | J35: 17793
A36: 1 | B36: Wiss. Hochschulen (= Uni, GH, PH, TH und KunstH) | C36: 4 | D36: Mathematik, Naturwissenschaften | E36: 4 | F36: Lehrkr. f. bes. Aufgaben + Doz. u. Assistenten | G36: m | H36: 901 | I36: 746 | J36: 155
A37: 1 | B37: Wiss. Hochschulen (= Uni, GH, PH, TH und KunstH) | C37: 4 | D37: Mathematik, Naturwissenschaften | E37: 4 | F37: Lehrkr. f. bes. Aufgaben + Doz. u. Assistenten | G37: w | H37: 442 | I37: 280 | J37: 162
A38: 1 | B38: Wiss. Hochschulen (= Uni, GH, PH, TH und KunstH) | C38: 4 | D38: Mathematik, Naturwissenschaften | E38: 4 | F38: Lehrkr. f. bes. Aufgaben + Doz. u. Assistenten | G38: i | H38: 1343 | I38: 1026 | J38: 317
A39: 1 | B39: Wiss. Hochschulen (= Uni, GH, PH, TH und KunstH) | C39: 4 | D39: Mathematik, Naturwissenschaften | E39: ~~ | F39: zusammen | G39: m | H39: 29512 | I39: 18667 | J39: 10845
A40: 1 | B40: Wiss. Hochschulen (= Uni, GH, PH, TH und KunstH) | C40: 4 | D40: Mathematik, Naturwissenschaften | E40: ~~ | F40: zusammen | G40: w | H40: 12975 | I40: 5710 | J40: 7265
A41: 1 | B41: Wiss. Hochschulen (= Uni, GH, PH, TH und KunstH) | C41: 4 | D41: Mathematik, Naturwissenschaften | E41: ~~ | F41: zusammen | G41: i | H41: 42487 | I41: 24377 | J41: 18110
A42: 1 | B42: Wiss. Hochschulen (= Uni, GH, PH, TH und KunstH) | C42: 5 | D42: Humanmedizin/Gesundheitswissenschaften + Veterinärmedizin | E42: 3 | F42: Wiss. u. künstl. Mitarbeiter | G42: m | H42: 25906 | I42: 22181 | J42: 3725
A43: 1 | B43: Wiss. Hochschulen (= Uni, GH, PH, TH und KunstH) | C43: 5 | D43: Humanmedizin/Gesundheitswissenschaften + Veterinärmedizin | E43: 3 | F43: Wiss. u. künstl. Mitarbeiter | G43: w | H43: 27189 | I43: 18452 | J43: 8737
A44: 1 | B44: Wiss. Hochschulen (= Uni, GH, PH, TH und KunstH) | C44: 5 | D44: Humanmedizin/Gesundheitswissenschaften + Veterinärmedizin | E44: 3 | F44: Wiss. u. künstl. Mitarbeiter | G44: i | H44: 53095 | I44: 40633 | J44: 12462
A45: 1 | B45: Wiss. Hochschulen (= Uni, GH, PH, TH und KunstH) | C45: 5 | D45: Humanmedizin/Gesundheitswissenschaften + Veterinärmedizin | E45: 4 | F45: Lehrkr. f. bes. Aufgaben + Doz. u. Assistenten | G45: m | H45: 262 | I45: 207 | J45: 55
A46: 1 | B46: Wiss. Hochschulen (= Uni, GH, PH, TH und KunstH) | C46: 5 | D46: Humanmedizin/Gesundheitswissenschaften + Veterinärmedizin | E46: 4 | F46: Lehrkr. f. bes. Aufgaben + Doz. u. Assistenten | G46: w | H46: 316 | I46: 179 | J46: 137
A47: 1 | B47: Wiss. Hochschulen (= Uni, GH, PH, TH und KunstH) | C47: 5 | D47: Humanmedizin/Gesundheitswissenschaften + Veterinärmedizin | E47: 4 | F47: Lehrkr. f. bes. Aufgaben + Doz. u. Assistenten | G47: i | H47: 578 | I47: 386 | J47: 192
A48: 1 | B48: Wiss. Hochschulen (= Uni, GH, PH, TH und KunstH) | C48: 5 | D48: Humanmedizin/Gesundheitswissenschaften + Veterinärmedizin | E48: ~~ | F48: zusammen | G48: m | H48: 26168 | I48: 22388 | J48: 3780
A49: 1 | B49: Wiss. Hochschulen (= Uni, GH, PH, TH und KunstH) | C49: 5 | D49: Humanmedizin/Gesundheitswissenschaften + Veterinärmedizin | E49: ~~ | F49: zusammen | G49: w | H49: 27505 | I49: 18631 | J49: 8874
A50: 1 | B50: Wiss. Hochschulen (= Uni, GH, PH, TH und KunstH) | C50: 5 | D50: Humanmedizin/Gesundheitswissenschaften + Veterinärmedizin | E50: ~~ | F50: zusammen | G50: i | H50: 53673 | I50: 41019 | J50: 12654
A51: 1 | B51: Wiss. Hochschulen (= Uni, GH, PH, TH und KunstH) | C51: 8 | D51: Ingenieurwissenschaften | E51: 3 | F51: Wiss. u. künstl. Mitarbeiter | G51: m | H51: 18686 | I51: 16537 | J51: 2149
A52: 1 | B52: Wiss. Hochschulen (= Uni, GH, PH, TH und KunstH) | C52: 8 | D52: Ingenieurwissenschaften | E52: 3 | F52: Wiss. u. künstl. Mitarbeiter | G52: w | H52: 4860 | I52: 3542 | J52: 1318
A53: 1 | B53: Wiss. Hochschulen (= Uni, GH, PH, TH und KunstH) | C53: 8 | D53: Ingenieurwissenschaften | E53: 3 | F53: Wiss. u. künstl. Mitarbeiter | G53: i | H53: 23546 | I53: 20079 | J53: 3467
A54: 1 | B54: Wiss. Hochschulen (= Uni, GH, PH, TH und KunstH) | C54: 8 | D54: Ingenieurwissenschaften | E54: 4 | F54: Lehrkr. f. bes. Aufgaben + Doz. u. Assistenten | G54: m | H54: 361 | I54: 324 | J54: 37
A55: 1 | B55: Wiss. Hochschulen (= Uni, GH, PH, TH und KunstH) | C55: 8 | D55: Ingenieurwissenschaften | E55: 4 | F55: Lehrkr. f. bes. Aufgaben + Doz. u. Assistenten | G55: w | H55: 80 | I55: 56 | J55: 24
A56: 1 | B56: Wiss. Hochschulen (= Uni, GH, PH, TH und KunstH) | C56: 8 | D56: Ingenieurwissenschaften | E56: 4 | F56: Lehrkr. f. bes. Aufgaben + Doz. u. Assistenten | G56: i | H56: 441 | I56: 380 | J56: 61
A57: 1 | B57: Wiss. Hochschulen (= Uni, GH, PH, TH und KunstH) | C57: 8 | D57: Ingenieurwissenschaften | E57: ~~ | F57: zusammen | G57: m | H57: 19047 | I57: 16861 | J57: 2186
A58: 1 | B58: Wiss. Hochschulen (= Uni, GH, PH, TH und KunstH) | C58: 8 | D58: Ingenieurwissenschaften | E58: ~~ | F58: zusammen | G58: w | H58: 4940 | I58: 3598 | J58: 1342
A59: 1 | B59: Wiss. Hochschulen (= Uni, GH, PH, TH und KunstH) | C59: 8 | D59: Ingenieurwissenschaften | E59: ~~ | F59: zusammen | G59: i | H59: 23987 | I59: 20459 | J59: 3528
A60: 1 | B60: Wiss. Hochschulen (= Uni, GH, PH, TH und KunstH) | C60: 10 | D60: Restliche Fächergruppen | E60: 3 | F60: Wiss. u. künstl. Mitarbeiter | G60: m | H60: 8186 | I60: 5574 | J60: 2612
A61: 1 | B61: Wiss. Hochschulen (= Uni, GH, PH, TH und KunstH) | C61: 10 | D61: Restliche Fächergruppen | E61: 3 | F61: Wiss. u. künstl. Mitarbeiter | G61: w | H61: 7736 | I61: 4090 | J61: 3646
A62: 1 | B62: Wiss. Hochschulen (= Uni, GH, PH, TH und KunstH) | C62: 10 | D62: Restliche Fächergruppen | E62: 3 | F62: Wiss. u. künstl. Mitarbeiter | G62: i | H62: 15922 | I62: 9664 | J62: 6258
A63: 1 | B63: Wiss. Hochschulen (= Uni, GH, PH, TH und KunstH) | C63: 10 | D63: Restliche Fächergruppen | E63: 4 | F63: Lehrkr. f. bes. Aufgaben + Doz. u. Assistenten | G63: m | H63: 1331 | I63: 923 | J63: 408
A64: 1 | B64: Wiss. Hochschulen (= Uni, GH, PH, TH und KunstH) | C64: 10 | D64: Restliche Fächergruppen | E64: 4 | F64: Lehrkr. f. bes. Aufgaben + Doz. u. Assistenten | G64: w | H64: 1421 | I64: 865 | J64: 556
A65: 1 | B65: Wiss. Hochschulen (= Uni, GH, PH, TH und KunstH) | C65: 10 | D65: Restliche Fächergruppen | E65: 4 | F65: Lehrkr. f. bes. Aufgaben + Doz. u. Assistenten | G65: i | H65: 2752 | I65: 1788 | J65: 964
A66: 1 | B66: Wiss. Hochschulen (= Uni, GH, PH, TH und KunstH) | C66: 10 | D66: Restliche Fächergruppen | E66: ~~ | F66: zusammen | G66: m | H66: 9517 | I66: 6497 | J66: 3020
A67: 1 | B67: Wiss. Hochschulen (= Uni, GH, PH, TH und KunstH) | C67: 10 | D67: Restliche Fächergruppen | E67: ~~ | F67: zusammen | G67: w | H67: 9157 | I67: 4955 | J67: 4202
A68: 1 | B68: Wiss. Hochschulen (= Uni, GH, PH, TH und KunstH) | C68: 10 | D68: Restliche Fächergruppen | E68: ~~ | F68: zusammen | G68: i | H68: 18674 | I68: 11452 | J68: 7222
A69: 1 | B69: Wiss. Hochschulen (= Uni, GH, PH, TH und KunstH) | C69: ~~ | D69: zusammen | E69: ~~ | F69: zusammen | G69: m | H69: 101872 | I69: 74700 | J69: 27172
A70: 1 | B70: Wiss. Hochschulen (= Uni, GH, PH, TH und KunstH) | C70: ~~ | D70: zusammen | E70: ~~ | F70: zusammen | G70: w | H70: 73445 | I70: 41929 | J70: 31516
A71: 1 | B71: Wiss. Hochschulen (= Uni, GH, PH, TH und KunstH) | C71: ~~ | D71: zusammen | E71: ~~ | F71: zusammen | G71: i | H71: 175317 | I71: 116629 | J71: 58688
A72: 2 | B72: FH + VerwFH | C72: 1 | D72: Sprach- und Kulturwissenschaften | E72: 3 | F72: Wiss. u. künstl. Mitarbeiter | G72: m | H72: 57 | I72: 36 | J72: 21
A73: 2 | B73: FH + VerwFH | C73: 1 | D73: Sprach- und Kulturwissenschaften | E73: 3 | F73: Wiss. u. künstl. Mitarbeiter | G73: w | H73: 143 | I73: 68 | J73: 75
A74: 2 | B74: FH + VerwFH | C74: 1 | D74: Sprach- und Kulturwissenschaften | E74: 3 | F74: Wiss. u. künstl. Mitarbeiter | G74: i | H74: 200 | I74: 104 | J74: 96
A75: 2 | B75: FH + VerwFH | C75: 1 | D75: Sprach- und Kulturwissenschaften | E75: 4 | F75: Lehrkr. f. bes. Aufgaben + Doz. u. Assistenten | G75: m | H75: 118 | I75: 72 | J75: 46
A76: 2 | B76: FH + VerwFH | C76: 1 | D76: Sprach- und Kulturwissenschaften | E76: 4 | F76: Lehrkr. f. bes. Aufgaben + Doz. u. Assistenten | G76: w | H76: 208 | I76: 135 | J76: 73
A77: 2 | B77: FH + VerwFH | C77: 1 | D77: Sprach- und Kulturwissenschaften | E77: 4 | F77: Lehrkr. f. bes. Aufgaben + Doz. u. Assistenten | G77: i | H77: 326 | I77: 207 | J77: 119
A78: 2 | B78: FH + VerwFH | C78: 1 | D78: Sprach- und Kulturwissenschaften | E78: ~~ | F78: zusammen | G78: m | H78: 175 | I78: 108 | J78: 67
A79: 2 | B79: FH + VerwFH | C79: 1 | D79: Sprach- und Kulturwissenschaften | E79: ~~ | F79: zusammen | G79: w | H79: 351 | I79: 203 | J79: 148
A80: 2 | B80: FH + VerwFH | C80: 1 | D80: Sprach- und Kulturwissenschaften | E80: ~~ | F80: zusammen | G80: i | H80: 526 | I80: 311 | J80: 215
A81: 2 | B81: FH + VerwFH | C81: 3 | D81: Rechts-, Wirtschafts- und Sozialwissenschaften | E81: 3 | F81: Wiss. u. künstl. Mitarbeiter | G81: m | H81: 1004 | I81: 710 | J81: 294
A82: 2 | B82: FH + VerwFH | C82: 3 | D82: Rechts-, Wirtschafts- und Sozialwissenschaften | E82: 3 | F82: Wiss. u. künstl. Mitarbeiter | G82: w | H82: 1393 | I82: 854 | J82: 539
A83: 2 | B83: FH + VerwFH | C83: 3 | D83: Rechts-, Wirtschafts- und Sozialwissenschaften | E83: 3 | F83: Wiss. u. künstl. Mitarbeiter | G83: i | H83: 2397 | I83: 1564 | J83: 833
A84: 2 | B84: FH + VerwFH | C84: 3 | D84: Rechts-, Wirtschafts- und Sozialwissenschaften | E84: 4 | F84: Lehrkr. f. bes. Aufgaben + Doz. u. Assistenten | G84: m | H84: 1089 | I84: 985 | J84: 104
A85: 2 | B85: FH + VerwFH | C85: 3 | D85: Rechts-, Wirtschafts- und Sozialwissenschaften | E85: 4 | F85: Lehrkr. f. bes. Aufgaben + Doz. u. Assistenten | G85: w | H85: 753 | I85: 546 | J85: 207
A86: 2 | B86: FH + VerwFH | C86: 3 | D86: Rechts-, Wirtschafts- und Sozialwissenschaften | E86: 4 | F86: Lehrkr. f. bes. Aufgaben + Doz. u. Assistenten | G86: i | H86: 1842 | I86: 1531 | J86: 311
A87: 2 | B87: FH + VerwFH | C87: 3 | D87: Rechts-, Wirtschafts- und Sozialwissenschaften | E87: ~~ | F87: zusammen | G87: m | H87: 2093 | I87: 1695 | J87: 398
A88: 2 | B88: FH + VerwFH | C88: 3 | D88: Rechts-, Wirtschafts- und Sozialwissenschaften | E88: ~~ | F88: zusammen | G88: w | H88: 2146 | I88: 1400 | J88: 746
A89: 2 | B89: FH + VerwFH | C89: 3 | D89: Rechts-, Wirtschafts- und Sozialwissenschaften | E89: ~~ | F89: zusammen | G89: i | H89: 4239 | I89: 3095 | J89: 1144
A90: 2 | B90: FH + VerwFH | C90: 4 | D90: Mathematik, Naturwissenschaften | E90: 3 | F90: Wiss. u. künstl. Mitarbeiter | G90: m | H90: 1099 | I90: 650 | J90: 449
A91: 2 | B91: FH + VerwFH | C91: 4 | D91: Mathematik, Naturwissenschaften | E91: 3 | F91: Wiss. u. künstl. Mitarbeiter | G91: w | H91: 440 | I91: 230 | J91: 210
A92: 2 | B92: FH + VerwFH | C92: 4 | D92: Mathematik, Naturwissenschaften | E92: 3 | F92: Wiss. u. künstl. Mitarbeiter | G92: i | H92: 1539 | I92: 880 | J92: 659
A93: 2 | B93: FH + VerwFH | C93: 4 | D93: Mathematik, Naturwissenschaften | E93: 4 | F93: Lehrkr. f. bes. Aufgaben + Doz. u. Assistenten | G93: m | H93: 186 | I93: 141 | J93: 45
A94: 2 | B94: FH + VerwFH | C94: 4 | D94: Mathematik, Naturwissenschaften | E94: 4 | F94: Lehrkr. f. bes. Aufgaben + Doz. u. Assistenten | G94: w | H94: 96 | I94: 61 | J94: 35
A95: 2 | B95: FH + VerwFH | C95: 4 | D95: Mathematik, Naturwissenschaften | E95: 4 | F95: Lehrkr. f. bes. Aufgaben + Doz. u. Assistenten | G95: i | H95: 282 | I95: 202 | J95: 80
A96: 2 | B96: FH + VerwFH | C96: 4 | D96: Mathematik, Naturwissenschaften | E96: ~~ | F96: zusammen | G96: m | H96: 1285 | I96: 791 | J96: 494
A97: 2 | B97: FH + VerwFH | C97: 4 | D97: Mathematik, Naturwissenschaften | E97: ~~ | F97: zusammen | G97: w | H97: 536 | I97: 291 | J97: 245
A98: 2 | B98: FH + VerwFH | C98: 4 | D98: Mathematik, Naturwissenschaften | E98: ~~ | F98: zusammen | G98: i | H98: 1821 | I98: 1082 | J98: 739
A99: 2 | B99: FH + VerwFH | C99: 5 | D99: Humanmedizin/Gesundheitswissenschaften + Veterinärmedizin | E99: 3 | F99: Wiss. u. künstl. Mitarbeiter | G99: m | H99: 72 | I99: 47 | J99: 25
A100: 2 | B100: FH + VerwFH | C100: 5 | D100: Humanmedizin/Gesundheitswissenschaften + Veterinärmedizin | E100: 3 | F100: Wiss. u. künstl. Mitarbeiter | G100: w | H100: 180 | I100: 95 | J100: 85
A101: 2 | B101: FH + VerwFH | C101: 5 | D101: Humanmedizin/Gesundheitswissenschaften + Veterinärmedizin | E101: 3 | F101: Wiss. u. künstl. Mitarbeiter | G101: i | H101: 252 | I101: 142 | J101: 110
A102: 2 | B102: FH + VerwFH | C102: 5 | D102: Humanmedizin/Gesundheitswissenschaften + Veterinärmedizin | E102: 4 | F102: Lehrkr. f. bes. Aufgaben + Doz. u. Assistenten | G102: m | H102: 67 | I102: 53 | J102: 14
A103: 2 | B103: FH + VerwFH | C103: 5 | D103: Humanmedizin/Gesundheitswissenschaften + Veterinärmedizin | E103: 4 | F103: Lehrkr. f. bes. Aufgaben + Doz. u. Assistenten | G103: w | H103: 135 | I103: 92 | J103: 43
A104: 2 | B104: FH + VerwFH | C104: 5 | D104: Humanmedizin/Gesundheitswissenschaften + Veterinärmedizin | E104: 4 | F104: Lehrkr. f. bes. Aufgaben + Doz. u. Assistenten | G104: i | H104: 202 | I104: 145 | J104: 57
A105: 2 | B105: FH + VerwFH | C105: 5 | D105: Humanmedizin/Gesundheitswissenschaften + Veterinärmedizin | E105: ~~ | F105: zusammen | G105: m | H105: 139 | I105: 100 | J105: 39
A106: 2 | B106: FH + VerwFH | C106: 5 | D106: Humanmedizin/Gesundheitswissenschaften + Veterinärmedizin | E106: ~~ | F106: zusammen | G106: w | H106: 315 | I106: 187 | J106: 128
A107: 2 | B107: FH + VerwFH | C107: 5 | D107: Humanmedizin/Gesundheitswissenschaften + Veterinärmedizin | E107: ~~ | F107: zusammen | G107: i | H107: 454 | I107: 287 | J107: 167
A108: 2 | B108: FH + VerwFH | C108: 8 | D108: Ingenieurwissenschaften | E108: 3 | F108: Wiss. u. künstl. Mitarbeiter | G108: m | H108: 3319 | I108: 2196 | J108: 1123
A109: 2 | B109: FH + VerwFH | C109: 8 | D109: Ingenieurwissenschaften | E109: 3 | F109: Wiss. u. künstl. Mitarbeiter | G109: w | H109: 1165 | I109: 599 | J109: 566
A110: 2 | B110: FH + VerwFH | C110: 8 | D110: Ingenieurwissenschaften | E110: 3 | F110: Wiss. u. künstl. Mitarbeiter | G110: i | H110: 4484 | I110: 2795 | J110: 1689
A111: 2 | B111: FH + VerwFH | C111: 8 | D111: Ingenieurwissenschaften | E111: 4 | F111: Lehrkr. f. bes. Aufgaben + Doz. u. Assistenten | G111: m | H111: 316 | I111: 228 | J111: 88
A112: 2 | B112: FH + VerwFH | C112: 8 | D112: Ingenieurwissenschaften | E112: 4 | F112: Lehrkr. f. bes. Aufgaben + Doz. u. Assistenten | G112: w | H112: 168 | I112: 106 | J112: 62
A113: 2 | B113: FH + VerwFH | C113: 8 | D113: Ingenieurwissenschaften | E113: 4 | F113: Lehrkr. f. bes. Aufgaben + Doz. u. Assistenten | G113: i | H113: 484 | I113: 334 | J113: 150
A114: 2 | B114: FH + VerwFH | C114: 8 | D114: Ingenieurwissenschaften | E114: ~~ | F114: zusammen | G114: m | H114: 3635 | I114: 2424 | J114: 1211
A115: 2 | B115: FH + VerwFH | C115: 8 | D115: Ingenieurwissenschaften | E115: ~~ | F115: zusammen | G115: w | H115: 1333 | I115: 705 | J115: 628
A116: 2 | B116: FH + VerwFH | C116: 8 | D116: Ingenieurwissenschaften | E116: ~~ | F116: zusammen | G116: i | H116: 4968 | I116: 3129 | J116: 1839
A117: 2 | B117: FH + VerwFH | C117: 10 | D117: Restliche Fächergruppen | E117: 3 | F117: Wiss. u. künstl. Mitarbeiter | G117: m | H117: 1451 | I117: 966 | J117: 485
A118: 2 | B118: FH + VerwFH | C118: 10 | D118: Restliche Fächergruppen | E118: 3 | F118: Wiss. u. künstl. Mitarbeiter | G118: w | H118: 1320 | I118: 767 | J118: 553
A119: 2 | B119: FH + VerwFH | C119: 10 | D119: Restliche Fächergruppen | E119: 3 | F119: Wiss. u. künstl. Mitarbeiter | G119: i | H119: 2771 | I119: 1733 | J119: 1038
A120: 2 | B120: FH + VerwFH | C120: 10 | D120: Restliche Fächergruppen | E120: 4 | F120: Lehrkr. f. bes. Aufgaben + Doz. u. Assistenten | G120: m | H120: 219 | I120: 148 | J120: 71
A121: 2 | B121: FH + VerwFH | C121: 10 | D121: Restliche Fächergruppen | E121: 4 | F121: Lehrkr. f. bes. Aufgaben + Doz. u. Assistenten | G121: w | H121: 300 | I121: 200 | J121: 100
A122: 2 | B122: FH + VerwFH | C122: 10 | D122: Restliche Fächergruppen | E122: 4 | F122: Lehrkr. f. bes. Aufgaben + Doz. u. Assistenten | G122: i | H122: 519 | I122: 348 | J122: 171
A123: 2 | B123: FH + VerwFH | C123: 10 | D123: Restliche Fächergruppen | E123: ~~ | F123: zusammen | G123: m | H123: 1670 | I123: 1114 | J123: 556
A124: 2 | B124: FH + VerwFH | C124: 10 | D124: Restliche Fächergruppen | E124: ~~ | F124: zusammen | G124: w | H124: 1620 | I124: 967 | J124: 653
A125: 2 | B125: FH + VerwFH | C125: 10 | D125: Restliche Fächergruppen | E125: ~~ | F125: zusammen | G125: i | H125: 3290 | I125: 2081 | J125: 1209
A126: 2 | B126: FH + VerwFH | C126: ~~ | D126: zusammen | E126: ~~ | F126: zusammen | G126: m | H126: 8997 | I126: 6232 | J126: 2765
A127: 2 | B127: FH + VerwFH | C127: ~~ | D127: zusammen | E127: ~~ | F127: zusammen | G127: w | H127: 6301 | I127: 3753 | J127: 2548
A128: 2 | B128: FH + VerwFH | C128: ~~ | D128: zusammen | E128: ~~ | F128: zusammen | G128: i | H128: 15298 | I128: 9985 | J128: 5313
A129: ~ | B129: Insgesamt | G129: m | H129: 110869 | I129: 80932 | J129: 29937
A130: ~ | B130: Insgesamt | G130: w | H130: 79746 | I130: 45682 | J130: 34064
A131: ~ | B131: Insgesamt | G131: i | H131: 190615 | I131: 126614 | J131: 64001

Sheet 3.4
A1: Statistisches Bundesamt
A2: H 201- Hochschulstatistik
A4: Hauptber. Wikü-Personal 2014 (ohne Professoren )im Alter bis 44 Jahren an Universitäten und gleichgestellten Hochschulen
A7: 1Vollzeit | B7: 1 auf Dauer | C7: 6787
A8: 1 Vollzeit | B8: 2 auf Zeit | C8: 68853
A9: 1 Vollzeit | B9: ~ Zusammen | C9: 75640
A11: 2 Teilzeit | B11: 1 auf Dauer | C11: 1941
A12: 2 Teilzeit | B12: 2 auf Zeit | C12: 67663
A13: 2 Teilzeit | B13: ~ Zusammen | C13: 69604
A15: ~ Zusammen | B15: ~ Zusammen | C15: 145244

Sheet 4.WiKü FH VERWFH und UNI GGHS

Sheet 4.1
A1: Hochschulpersonal 2014
A3: 8 Wissenschaftliches und künstlerisches Personal nach Hochschularten, Fächergruppen und Lehr- und Forschungsbereichen
A4: der fachlichen Zugehörigkeit, Beschäftigungsverhältnissen und Personalgruppen
E6: Hauptberufliches Personal | J6: Nebenberufliches Personal
A7: Fächergruppe | H7: Wissen- | I7: Lehr- | L7: Lehrbeauf-
A8: ------- | G8: Dozenten | H8: schaftl. | I8: kräfte | K8: Gast-/ | L8: tragte, | M8: Wissen-
A9: Lehr- und Forschungsbereich | D9: Insgesamt | E9: zusammen | F9: Profes- | G9: und | H9: und | I9: für | J9: zusammen | K9: Profes- | L9: Honorar- | M9: schaftliche
F10: soren | G10: Assi- | H10: künstler. | I10: beson- | K10: soren, | L10: prof., | M10: Hilfskräfte,
A11: (m = männlich, w = weiblich, | G11: stenten | H11: Mitar- | I11: dere | K11: Emeriti | L11: Privat- | M11: Tutoren
A12: i = insgesamt) | H12: beiter | I12: Aufgaben | L12: dozenten
D14: Universitäten (einschl. Päd. H, Theol. H und Kunsthochschulen)
A16: Sprach- und Kulturwissenschaften zusammen | C16: m | D16: 21617 | E16: 12398 | F16: 3666 | G16: 225 | H16: 7358 | I16: 1149 | J16: 9219 | K16: 255 | L16: 6380 | M16: 2584
C17: w | D17: 25769 | E17: 14529 | F17: 2132 | G17: 190 | H17: 10367 | I17: 1840 | J17: 11240 | K17: 52 | L17: 6014 | M17: 5174
C18: i | D18: 47386 | E18: 26927 | F18: 5798 | G18: 415 | H18: 17725 | I18: 2989 | J18: 20459 | K18: 307 | L18: 12394 | M18: 7758
A19: Sport zusammen | C19: m | D19: 1961 | E19: 1047 | F19: 194 | G19: 6 | H19: 638 | I19: 209 | J19: 914 | K19: 7 | L19: 651 | M19: 256
C20: w | D20: 1304 | E20: 731 | F20: 51 | G20: 2 | H20: 514 | I20: 164 | J20: 573 | K20: 2 | L20: 299 | M20: 272
C21: i | D21: 3265 | E21: 1778 | F21: 245 | G21: 8 | H21: 1152 | I21: 373 | J21: 1487 | K21: 9 | L21: 950 | M21: 528
A22: Rechts-, Wirtschafts- und Sozialwissenschaften zusammen | C22: m | D22: 19703 | E22: 12207 | F22: 3311 | G22: 294 | H22: 8310 | I22: 292 | J22: 7496 | K22: 243 | L22: 4179 | M22: 3074
C23: w | D23: 11737 | E23: 7386 | F23: 915 | G23: 135 | H23: 6143 | I23: 193 | J23: 4351 | K23: 27 | L23: 1480 | M23: 2844
C24: i | D24: 31440 | E24: 19593 | F24: 4226 | G24: 429 | H24: 14453 | I24: 485 | J24: 11847 | K24: 270 | L24: 5659 | M24: 5918
A25: Mathematik, Naturwissenschaften zusammen | C25: m | D25: 44618 | E25: 35173 | F25: 5661 | G25: 403 | H25: 28611 | I25: 498 | J25: 9445 | K25: 283 | L25: 2934 | M25: 6228
C26: w | D26: 18209 | E26: 14005 | F26: 1030 | G26: 150 | H26: 12533 | I26: 292 | J26: 4204 | K26: 21 | L26: 833 | M26: 3350
C27: i | D27: 62827 | E27: 49178 | F27: 6691 | G27: 553 | H27: 41144 | I27: 790 | J27: 13649 | K27: 304 | L27: 3767 | M27: 9578
A28: Humanmedizin/Gesundheitswissenschaften zusammen | C28: m | D28: 32880 | E28: 28645 | F28: 2815 | G28: 245 | H28: 25582 | I28: 3 | J28: 4235 | K28: 147 | L28: 3520 | M28: 568
C29: w | D29: 29150 | E29: 27262 | F29: 518 | G29: 272 | H29: 26454 | I29: 18 | J29: 1888 | K29: 9 | L29: 803 | M29: 1076
C30: i | D30: 62030 | E30: 55907 | F30: 3333 | G30: 517 | H30: 52036 | I30: 21 | J30: 6123 | K30: 156 | L30: 4323 | M30: 1644
A31: Veterinärmedizin zusammen | C31: m | D31: 623 | E31: 467 | F31: 129 | G31: 14 | H31: 324 | I31: 0 | J31: 156 | K31: 1 | L31: 76 | M31: 79
C32: w | D32: 1141 | E32: 804 | F32: 43 | G32: 25 | H32: 735 | I32: 1 | J32: 337 | K32: 0 | L32: 27 | M32: 310
C33: i | D33: 1764 | E33: 1271 | F33: 172 | G33: 39 | H33: 1059 | I33: 1 | J33: 493 | K33: 1 | L33: 103 | M33: 389
A34: Agrar-, Forst- und Ernährungswissenschaften zusammen | C34: m | D34: 2452 | E34: 1826 | F34: 341 | G34: 5 | H34: 1453 | I34: 27 | J34: 626 | K34: 19 | L34: 313 | M34: 294
C35: w | D35: 2038 | E35: 1485 | F35: 107 | G35: 4 | H35: 1332 | I35: 42 | J35: 553 | K35: 1 | L35: 146 | M35: 406
C36: i | D36: 4490 | E36: 3311 | F36: 448 | G36: 9 | H36: 2785 | I36: 69 | J36: 1179 | K36: 20 | L36: 459 | M36: 700
A37: Ingenieurwissenschaften zusammen | C37: m | D37: 27158 | E37: 21378 | F37: 2331 | G37: 196 | H37: 18686 | I37: 165 | J37: 5780 | K37: 41 | L37: 2327 | M37: 3412
C38: w | D38: 6816 | E38: 5219 | F38: 279 | G38: 37 | H38: 4860 | I38: 43 | J38: 1597 | K38: 5 | L38: 319 | M38: 1273
C39: i | D39: 33974 | E39: 26597 | F39: 2610 | G39: 233 | H39: 23546 | I39: 208 | J39: 7377 | K39: 46 | L39: 2646 | M39: 4685
A40: Kunst, Kunstwissenschaft zusammen | C40: m | D40: 9175 | E40: 3545 | F40: 1949 | G40: 63 | H40: 995 | I40: 538 | J40: 5630 | K40: 110 | L40: 5108 | M40: 412
C41: w | D41: 6544 | E41: 2394 | F41: 876 | G41: 36 | H41: 1115 | I41: 367 | J41: 4150 | K41: 35 | L41: 3473 | M41: 642
C42: i | D42: 15719 | E42: 5939 | F42: 2825 | G42: 99 | H42: 2110 | I42: 905 | J42: 9780 | K42: 145 | L42: 8581 | M42: 1054
A43: Zentrale Einrichtungen (ohne klinikspezifische Einrichtungen) zusammen | C43: m | D43: 10152 | E43: 5413 | F43: 297 | G43: 19 | H43: 4649 | I43: 448 | J43: 4739 | K43: 93 | L43: 2990 | M43: 1656
C44: w | D44: 10996 | E44: 5057 | F44: 108 | G44: 5 | H44: 4231 | I44: 713 | J44: 5939 | K44: 7 | L44: 3641 | M44: 2291
C45: i | D45: 21148 | E45: 10470 | F45: 405 | G45: 24 | H45: 8880 | I45: 1161 | J45: 10678 | K45: 100 | L45: 6631 | M45: 3947
A46: Zentrale Einrichtungen der Hochschulkliniken (nur Humanmedizin) zusammen | C46: m | D46: 530 | E46: 484 | F46: 17 | G46: 8 | H46: 451 | I46: 8 | J46: 46 | K46: 0 | L46: 20 | M46: 26
C47: w | D47: 685 | E47: 635 | F47: 3 | G47: 25 | H47: 544 | I47: 63 | J47: 50 | K47: 0 | L47: 5 | M47: 45
C48: i | D48: 1215 | E48: 1119 | F48: 20 | G48: 33 | H48: 995 | I48: 71 | J48: 96 | K48: 0 | L48: 25 | M48: 71
B49: Hochschulart insgesamt | C49: m | D49: 170869 | E49: 122583 | F49: 20711 | G49: 1478 | H49: 97057 | I49: 3337 | J49: 48286 | K49: 1199 | L49: 28498 | M49: 18589
C50: w | D50: 114389 | E50: 79507 | F50: 6062 | G50: 881 | H50: 68828 | I50: 3736 | J50: 34882 | K50: 159 | L50: 17040 | M50: 17683
C51: i | D51: 285258 | E51: 202090 | F51: 26773 | G51: 2359 | H51: 165885 | I51: 7073 | J51: 83168 | K51: 1358 | L51: 45538 | M51: 36272
D52: Fachhochschulen (einschl. Verwaltungs-FH)
A54: Sprach- und Kulturwissenschaften zusammen | C54: m | D54: 1517 | E54: 540 | F54: 365 | G54: 31 | H54: 57 | I54: 87 | J54: 977 | K54: 9 | L54: 924 | M54: 44
C55: w | D55: 2033 | E55: 637 | F55: 286 | G55: 30 | H55: 143 | I55: 178 | J55: 1396 | K55: 2 | L55: 1327 | M55: 67
C56: i | D56: 3550 | E56: 1177 | F56: 651 | G56: 61 | H56: 200 | I56: 265 | J56: 2373 | K56: 11 | L56: 2251 | M56: 111
A57: Sport zusammen | C57: m | D57: 62 | E57: 14 | F57: 8 | G57: 5 | H57: 0 | I57: 1 | J57: 48 | K57: 0 | L57: 45 | M57: 3
C58: w | D58: 34 | E58: 7 | F58: 3 | G58: 0 | H58: 2 | I58: 2 | J58: 27 | K58: 0 | L58: 25 | M58: 2
C59: i | D59: 96 | E59: 21 | F59: 11 | G59: 5 | H59: 2 | I59: 3 | J59: 75 | K59: 0 | L59: 70 | M59: 5
A60: Rechts-, Wirtschafts- und Sozialwissenschaften zusammen | C60: m | D60: 27044 | E60: 7137 | F60: 5044 | G60: 453 | H60: 1004 | I60: 636 | J60: 19907 | K60: 126 | L60: 18952 | M60: 829
C61: w | D61: 14374 | E61: 4061 | F61: 1915 | G61: 223 | H61: 1393 | I61: 530 | J61: 10313 | K61: 17 | L61: 9344 | M61: 952
C62: i | D62: 41418 | E62: 11198 | F62: 6959 | G62: 676 | H62: 2397 | I62: 1166 | J62: 30220 | K62: 143 | L62: 28296 | M62: 1781
A63: Mathematik, Naturwissenschaften zusammen | C63: m | D63: 6540 | E63: 3252 | F63: 1967 | G63: 48 | H63: 1099 | I63: 138 | J63: 3288 | K63: 9 | L63: 2476 | M63: 803
C64: w | D64: 1759 | E64: 904 | F64: 368 | G64: 16 | H64: 440 | I64: 80 | J64: 855 | K64: 0 | L64: 605 | M64: 250
C65: i | D65: 8299 | E65: 4156 | F65: 2335 | G65: 64 | H65: 1539 | I65: 218 | J65: 4143 | K65: 9 | L65: 3081 | M65: 1053
A66: Humanmedizin/Gesundheitswissenschaften zusammen | C66: m | D66: 1663 | E66: 384 | F66: 248 | G66: 46 | H66: 71 | I66: 19 | J66: 1279 | K66: 21 | L66: 1173 | M66: 85
C67: w | D67: 1579 | E67: 519 | F67: 208 | G67: 97 | H67: 176 | I67: 38 | J67: 1060 | K67: 3 | L67: 898 | M67: 159
C68: i | D68: 3242 | E68: 903 | F68: 456 | G68: 143 | H68: 247 | I68: 57 | J68: 2339 | K68: 24 | L68: 2071 | M68: 244
A69: Veterinärmedizin zusammen | C69: m | D69: 9 | E69: 9 | F69: 6 | G69: 0 | H69: 1 | I69: 2 | J69: 0 | K69: 0 | L69: 0 | M69: 0
C70: w | D70: 7 | E70: 6 | F70: 2 | G70: 0 | H70: 4 | I70: 0 | J70: 1 | K70: 0 | L70: 1 | M70: 0
C71: i | D71: 16 | E71: 15 | F71: 8 | G71: 0 | H71: 5 | I71: 2 | J71: 1 | K71: 0 | L71: 1 | M71: 0
A72: Agrar-, Forst- und Ernährungswissenschaften zusammen | C72: m | D72: 1371 | E72: 640 | F72: 424 | G72: 2 | H72: 194 | I72: 20 | J72: 731 | K72: 2 | L72: 646 | M72: 83
C73: w | D73: 871 | E73: 394 | F73: 136 | G73: 0 | H73: 234 | I73: 24 | J73: 477 | K73: 1 | L73: 326 | M73: 150
C74: i | D74: 2242 | E74: 1034 | F74: 560 | G74: 2 | H74: 428 | I74: 44 | J74: 1208 | K74: 3 | L74: 972 | M74: 233
A75: Ingenieurwissenschaften zusammen | C75: m | D75: 22174 | E75: 9736 | F75: 6101 | G75: 46 | H75: 3319 | I75: 270 | J75: 12438 | K75: 36 | L75: 10046 | M75: 2356
C76: w | D76: 4992 | E76: 2085 | F76: 752 | G76: 19 | H76: 1165 | I76: 149 | J76: 2907 | K76: 0 | L76: 2131 | M76: 776
C77: i | D77: 27166 | E77: 11821 | F77: 6853 | G77: 65 | H77: 4484 | I77: 419 | J77: 15345 | K77: 36 | L77: 12177 | M77: 3132
A78: Kunst, Kunstwissenschaft zusammen | C78: m | D78: 2163 | E78: 789 | F78: 596 | G78: 15 | H78: 106 | I78: 72 | J78: 1374 | K78: 1 | L78: 1239 | M78: 134
C79: w | D79: 1344 | E79: 397 | F79: 262 | G79: 9 | H79: 99 | I79: 27 | J79: 947 | K79: 1 | L79: 806 | M79: 140
C80: i | D80: 3507 | E80: 1186 | F80: 858 | G80: 24 | H80: 205 | I80: 99 | J80: 2321 | K80: 2 | L80: 2045 | M80: 274
A81: Zentrale Einrichtungen (ohne klinikspezifische Einrichtungen) zusammen | C81: m | D81: 3143 | E81: 1471 | F81: 216 | G81: 10 | H81: 1151 | I81: 94 | J81: 1672 | K81: 57 | L81: 968 | M81: 647
C82: w | D82: 3323 | E82: 1291 | F82: 68 | G82: 22 | H82: 985 | I82: 216 | J82: 2032 | K82: 3 | L82: 1467 | M82: 562
C83: i | D83: 6466 | E83: 2762 | F83: 284 | G83: 32 | H83: 2136 | I83: 310 | J83: 3704 | K83: 60 | L83: 2435 | M83: 1209
A84: Zentrale Einrichtungen der Hochschulkliniken (nur Humanmedizin) zusammen | C84: m | D84: 6 | E84: 1 | F84: 1 | G84: 0 | H84: 0 | I84: 0 | J84: 5 | K84: 0 | L84: 5 | M84: 0
C85: w | D85: 3 | E85: 0 | F85: 0 | G85: 0 | H85: 0 | I85: 0 | J85: 3 | K85: 1 | L85: 2 | M85: 0
C86: i | D86: 9 | E86: 1 | F86: 1 | G86: 0 | H86: 0 | I86: 0 | J86: 8 | K86: 1 | L86: 7 | M86: 0
B87: Hochschulart insgesamt | C87: m | D87: 65692 | E87: 23973 | F87: 14976 | G87: 656 | H87: 7002 | I87: 1339 | J87: 41719 | K87: 261 | L87: 36474 | M87: 4984
C88: w | D88: 30319 | E88: 10301 | F88: 4000 | G88: 416 | H88: 4641 | I88: 1244 | J88: 20018 | K88: 28 | L88: 16932 | M88: 3058
C89: i | D89: 96011 | E89: 34274 | F89: 18976 | G89: 1072 | H89: 11643 | I89: 2583 | J89: 61737 | K89: 289 | L89: 53406 | M89: 8042

Sheet 5.HS-Kliniken Personal

Sheet 5.1
A1: Statistisches Bundesamt
A2: H201 - Hochschulstatistik
A5: Personal insgesamt an Kliniken 2014
E7: Wissenschaftliches und | G7: Verwaltungs-, technisches
A8: Land | C8: Hochschule | D8: Personal | E8: künstlerisches Personal | G8: und sonstiges Personal
D9: insgesamt | E9: hauptberufl. | F9: nebenberufl. | G9: hauptberufl. | H9: nebenberufl.
A11: 1 | B11: Baden-Württemberg | C11: U Freiburg i.Br. (Klinikum) | D11: 9825 | E11: 2345 | F11: 179 | G11: 7301 | H11: 0
A12: 1 | B12: Baden-Württemberg | C12: U Heidelberg in Mannheim (Klinikum) | D12: 737 | E12: 458 | F12: 23 | G12: 255 | H12: 1
A13: 1 | B13: Baden-Württemberg | C13: U Heidelberg in Heidelberg (Klinikum) | D13: 10190 | E13: 2616 | F13: 203 | G13: 7371 | H13: 0
A14: 1 | B14: Baden-Württemberg | C14: U Tübingen (Klinikum) | D14: 8901 | E14: 2214 | F14: 136 | G14: 6551 | H14: 0
A15: 1 | B15: Baden-Württemberg | C15: U Ulm (Klinikum) | D15: 6092 | E15: 1515 | F15: 1 | G15: 4576 | H15: 0
A16: 1 | B16: Baden-Württemberg | C16: zusammen | D16: 35745 | E16: 9148 | F16: 542 | G16: 26054 | H16: 1
A17: 2 | B17: Bayern | C17: U Erlangen-Nürnberg in Erlangen (Klinikum) | D17: 6537 | E17: 1529 | F17: 13 | G17: 4995 | H17: 0
A18: 2 | B18: Bayern | C18: U München (Klinikum) | D18: 10391 | E18: 2574 | F18: 425 | G18: 6951 | H18: 441
A19: 2 | B19: Bayern | C19: TU München in München (Klinikum) | D19: 4663 | E19: 1453 | F19: 12 | G19: 3198 | H19: 0
A20: 2 | B20: Bayern | C20: U Regensburg (Klinikum) | D20: 4208 | E20: 842 | F20: 320 | G20: 2927 | H20: 119
A21: 2 | B21: Bayern | C21: U Würzburg (Klinikum) | D21: 6760 | E21: 1444 | F21: 45 | G21: 5116 | H21: 155
A22: 2 | B22: Bayern | C22: zusammen | D22: 32559 | E22: 7842 | F22: 815 | G22: 23187 | H22: 715
A23: 3 | B23: Berlin | C23: Charité - Universitätsmedizin Berlin | D23: 12844 | E23: 4298 | F23: 24 | G23: 8522 | H23: 0
A24: 3 | B24: Berlin | C24: zusammen | D24: 12844 | E24: 4298 | F24: 24 | G24: 8522 | H24: 0
A25: 6 | B25: Hamburg | C25: U Hamburg (Klinikum) | D25: 6806 | E25: 2127 | F25: 0 | G25: 4679 | H25: 0
A26: 6 | B26: Hamburg | C26: zusammen | D26: 6806 | E26: 2127 | F26: 0 | G26: 4679 | H26: 0
A27: 7 | B27: Hessen | C27: U Frankfurt a.M. (Klinikum) | D27: 5540 | E27: 1486 | F27: 0 | G27: 4054 | H27: 0
A28: 7 | B28: Hessen | C28: Universitätsklinikum Gießen und Marburg, Abt. Gießen | D28: 4085 | E28: 822 | F28: 0 | G28: 3263 | H28: 0
A29: 7 | B29: Hessen | C29: Universitätsklinikum Gießen und Marburg, Abt. Marburg | D29: 3780 | E29: 729 | F29: 0 | G29: 3051 | H29: 0
A30: 7 | B30: Hessen | C30: zusammen | D30: 13405 | E30: 3037 | F30: 0 | G30: 10368 | H30: 0
A31: 8 | B31: Mecklenburg-Vorpommern | C31: U Greifswald (Klinikum) | D31: 3781 | E31: 979 | F31: 0 | G31: 2802 | H31: 0
A32: 8 | B32: Mecklenburg-Vorpommern | C32: U Rostock (Klinikum) | D32: 3682 | E32: 948 | F32: 52 | G32: 2675 | H32: 7
A33: 8 | B33: Mecklenburg-Vorpommern | C33: zusammen | D33: 7463 | E33: 1927 | F33: 52 | G33: 5477 | H33: 7
A34: 9 | B34: Niedersachsen | C34: U Göttingen (Klinikum) | D34: 7195 | E34: 1763 | F34: 151 | G34: 5280 | H34: 1
A35: 9 | B35: Niedersachsen | C35: Medizinische H Hannover (Klinikum) | D35: 6417 | E35: 1745 | F35: 27 | G35: 4630 | H35: 15
A36: 9 | B36: Niedersachsen | C36: zusammen | D36: 13612 | E36: 3508 | F36: 178 | G36: 9910 | H36: 16
A37: 10 | B37: Nordrhein-Westfalen | C37: TH Aachen (Klinikum) | D37: 6838 | E37: 1860 | F37: 40 | G37: 4938 | H37: 0
A38: 10 | B38: Nordrhein-Westfalen | C38: U Bochum (Klinikum) | D38: 592 | E38: 269 | F38: 58 | G38: 265 | H38: 0
A39: 10 | B39: Nordrhein-Westfalen | C39: U Bonn (Klinikum) | D39: 5288 | E39: 1698 | F39: 27 | G39: 3563 | H39: 0
A40: 10 | B40: Nordrhein-Westfalen | C40: U Düsseldorf (Klinikum) | D40: 6304 | E40: 1755 | F40: 1 | G40: 4548 | H40: 0
A41: 10 | B41: Nordrhein-Westfalen | C41: U Duisburg-Essen (Klinikum) | D41: 6716 | E41: 1364 | F41: 5 | G41: 5347 | H41: 0
A42: 10 | B42: Nordrhein-Westfalen | C42: U Köln (Klinikum) | D42: 7805 | E42: 2020 | F42: 61 | G42: 5561 | H42: 163
A43: 10 | B43: Nordrhein-Westfalen | C43: U Münster (Klinikum) | D43: 8350 | E43: 2006 | F43: 22 | G43: 6126 | H43: 196
A44: 10 | B44: Nordrhein-Westfalen | C44: Universität Witten-Herdecke (Priv. H) (Klinikum) | D44: 129 | E44: 41 | F44: 0 | G44: 88 | H44: 0
A45: 10 | B45: Nordrhein-Westfalen | C45: zusammen | D45: 42022 | E45: 11013 | F45: 214 | G45: 30436 | H45: 359
A46: 11 | B46: Rheinland-Pfalz | C46: Universitätsmedizin der U Mainz | D46: 7655 | E46: 1625 | F46: 101 | G46: 5929 | H46: 0
A47: 11 | B47: Rheinland-Pfalz | C47: zusammen | D47: 7655 | E47: 1625 | F47: 101 | G47: 5929 | H47: 0
A48: 12 | B48: Saarland | C48: U des Saarlandes Saarbrücken in Homburg/Saar (Med. Fakultät) | D48: 884 | E48: 428 | F48: 30 | G48: 420 | H48: 6
A49: 12 | B49: Saarland | C49: U des Saarlandes Saarbrücken in Homburg/Saar (Klinikum-LKH) | D49: 4985 | E49: 808 | F49: 0 | G49: 4177 | H49: 0
A50: 12 | B50: Saarland | C50: zusammen | D50: 5869 | E50: 1236 | F50: 30 | G50: 4597 | H50: 6
A51: 13 | B51: Sachsen | C51: TU Dresden (Klinikum) | D51: 4744 | E51: 350 | F51: 0 | G51: 4394 | H51: 0
A52: 13 | B52: Sachsen | C52: TU Dresden (Med. Fakultät) | D52: 1789 | E52: 1327 | F52: 24 | G52: 438 | H52: 0
A53: 13 | B53: Sachsen | C53: U Leipzig (Klinikum) | D53: 4538 | E53: 866 | F53: 0 | G53: 3671 | H53: 1
A54: 13 | B54: Sachsen | C54: U Leipzig (Med. Fakultät) | D54: 1341 | E54: 787 | F54: 72 | G54: 482 | H54: 0
A55: 13 | B55: Sachsen | C55: zusammen | D55: 12412 | E55: 3330 | F55: 96 | G55: 8985 | H55: 1
A56: 14 | B56: Sachsen-Anhalt | C56: U Halle in Halle (Klinikum) | D56: 4089 | E56: 949 | F56: 4 | G56: 2904 | H56: 232
A57: 14 | B57: Sachsen-Anhalt | C57: U Magdeburg (Klinikum) | D57: 3939 | E57: 798 | F57: 0 | G57: 3141 | H57: 0
A58: 14 | B58: Sachsen-Anhalt | C58: zusammen | D58: 8028 | E58: 1747 | F58: 4 | G58: 6045 | H58: 232
A59: 15 | B59: Schleswig-Holstein | C59: Universitätsklinikum Schleswig-Holstein | D59: 7770 | E59: 2029 | F59: 0 | G59: 5741 | H59: 0
A60: 15 | B60: Schleswig-Holstein | C60: zusammen | D60: 7770 | E60: 2029 | F60: 0 | G60: 5741 | H60: 0
A61: 16 | B61: Thüringen | C61: U Jena (Klinikum) | D61: 5312 | E61: 1471 | F61: 160 | G61: 3674 | H61: 7
A62: 16 | B62: Thüringen | C62: zusammen | D62: 5312 | E62: 1471 | F62: 160 | G62: 3674 | H62: 7
B63: Insgesamt | D63: 211502 | E63: 54338 | F63: 2216 | G63: 153604 | H63: 1344

Sheet 6.Neuberufene Professoren

Sheet 6.1
A1: Statistisches Bundesamt
A2: H 201 - Hochschulstatistik
A5: Neuberufene Professoren nach Fächergruppen sowie Besoldungs- und Vergütungsgruppen und Geschlecht
A6: an Wissenschaftlichen Hochschulen (Universitäten, Pädagogische und Theologische Hochschulen)
A7: im Berichtsjahr 2014
G9: Durchschnittsalter
B10: Fächergruppe | D10: Besoldungs- und Vergütungsgruppen | E10: Geschlecht | F10: Anzahl | G10: bei der Ernennung zum Professor
G11: (arith. Mittel)
A13: 1 | B13: Sprach- und Kulturwissenschaften | C13: 1 | D13: C4 und entspr. Besoldungsgruppe | E13: m | F13: 2 | G13: 47
A14: 1 | B14: Sprach- und Kulturwissenschaften | C14: 1 | D14: C4 und entspr. Besoldungsgruppe | E14: i | F14: 2 | G14: 47
A15: 1 | B15: Sprach- und Kulturwissenschaften | C15: 5 | D15: C2 und entspr. Besoldungsgruppe - auf Dauer - | E15: m | F15: 2 | G15: 53
A16: 1 | B16: Sprach- und Kulturwissenschaften | C16: 5 | D16: C2 und entspr. Besoldungsgruppe - auf Dauer - | E16: i | F16: 2 | G16: 53
A17: 1 | B17: Sprach- und Kulturwissenschaften | C17: 7 | D17: C2 und entspr. Besoldungsgruppe - auf Zeit - | E17: m | F17: 3 | G17: .
A18: 1 | B18: Sprach- und Kulturwissenschaften | C18: 7 | D18: C2 und entspr. Besoldungsgruppe - auf Zeit - | E18: w | F18: 1 | G18: .
A19: 1 | B19: Sprach- und Kulturwissenschaften | C19: 7 | D19: C2 und entspr. Besoldungsgruppe - auf Zeit - | E19: i | F19: 4 | G19: 42
A20: 1 | B20: Sprach- und Kulturwissenschaften | C20: 9 | D20: W3 | E20: m | F20: 26 | G20: 45.2
A21: 1 | B21: Sprach- und Kulturwissenschaften | C21: 9 | D21: W3 | E21: w | F21: 23 | G21: 44.6
A22: 1 | B22: Sprach- und Kulturwissenschaften | C22: 9 | D22: W3 | E22: i | F22: 49 | G22: 44.9
A23: 1 | B23: Sprach- und Kulturwissenschaften | C23: 11 | D23: W2 | E23: m | F23: 40 | G23: 44.1
A24: 1 | B24: Sprach- und Kulturwissenschaften | C24: 11 | D24: W2 | E24: w | F24: 32 | G24: 42.3
A25: 1 | B25: Sprach- und Kulturwissenschaften | C25: 11 | D25: W2 | E25: i | F25: 72 | G25: 43.3
A26: 1 | B26: Sprach- und Kulturwissenschaften | C26: 13 | D26: Juniorprofessoren, W1, AT | E26: m | F26: 5 | G26: 37.8
A27: 1 | B27: Sprach- und Kulturwissenschaften | C27: 13 | D27: Juniorprofessoren, W1, AT | E27: w | F27: 9 | G27: 37.3
A28: 1 | B28: Sprach- und Kulturwissenschaften | C28: 13 | D28: Juniorprofessoren, W1, AT | E28: i | F28: 14 | G28: 37.5
A29: 1 | B29: Sprach- und Kulturwissenschaften | C29: ~~ | D29: zusammen | E29: m | F29: 78 | G29: 44.3
A30: 1 | B30: Sprach- und Kulturwissenschaften | C30: ~~ | D30: zusammen | E30: w | F30: 65 | G30: 42.4
A31: 1 | B31: Sprach- und Kulturwissenschaften | C31: ~~ | D31: zusammen | E31: i | F31: 143 | G31: 43.4
A32: 2 | B32: Sport | C32: 9 | D32: W3 | E32: m | F32: 1 | G32: .
A33: 2 | B33: Sport | C33: 9 | D33: W3 | E33: i | F33: 1 | G33: .
A34: 2 | B34: Sport | C34: 11 | D34: W2 | E34: m | F34: 1 | G34: .
A35: 2 | B35: Sport | C35: 11 | D35: W2 | E35: w | F35: 1 | G35: .
A36: 2 | B36: Sport | C36: 11 | D36: W2 | E36: i | F36: 2 | G36: 51
A37: 2 | B37: Sport | C37: 13 | D37: Juniorprofessoren, W1, AT | E37: m | F37: 1 | G37: .
A38: 2 | B38: Sport | C38: 13 | D38: Juniorprofessoren, W1, AT | E38: w | F38: 1 | G38: .
A39: 2 | B39: Sport | C39: 13 | D39: Juniorprofessoren, W1, AT | E39: i | F39: 2 | G39: 37.5
A40: 2 | B40: Sport | C40: ~~ | D40: zusammen | E40: m | F40: 3 | G40: 44.3
A41: 2 | B41: Sport | C41: ~~ | D41: zusammen | E41: w | F41: 2 | G41: 46.5
A42: 2 | B42: Sport | C42: ~~ | D42: zusammen | E42: i | F42: 5 | G42: 45.2
A43: 3 | B43: Rechts-, Wirtschafts- und Sozialwissenschaften | C43: 5 | D43: C2 und entspr. Besoldungsgruppe - auf Dauer - | E43: m | F43: 3 | G43: 41
A44: 3 | B44: Rechts-, Wirtschafts- und Sozialwissenschaften | C44: 5 | D44: C2 und entspr. Besoldungsgruppe - auf Dauer - | E44: i | F44: 3 | G44: 41
A45: 3 | B45: Rechts-, Wirtschafts- und Sozialwissenschaften | C45: 7 | D45: C2 und entspr. Besoldungsgruppe - auf Zeit - | E45: m | F45: 5 | G45: 39
A46: 3 | B46: Rechts-, Wirtschafts- und Sozialwissenschaften | C46: 7 | D46: C2 und entspr. Besoldungsgruppe - auf Zeit - | E46: w | F46: 5 | G46: 40.8
A47: 3 | B47: Rechts-, Wirtschafts- und Sozialwissenschaften | C47: 7 | D47: C2 und entspr. Besoldungsgruppe - auf Zeit - | E47: i | F47: 10 | G47: 39.9
A48: 3 | B48: Rechts-, Wirtschafts- und Sozialwissenschaften | C48: 9 | D48: W3 | E48: m | F48: 32 | G48: 39.6
A49: 3 | B49: Rechts-, Wirtschafts- und Sozialwissenschaften | C49: 9 | D49: W3 | E49: w | F49: 17 | G49: 39.5
A50: 3 | B50: Rechts-, Wirtschafts- und Sozialwissenschaften | C50: 9 | D50: W3 | E50: i | F50: 49 | G50: 39.6
A51: 3 | B51: Rechts-, Wirtschafts- und Sozialwissenschaften | C51: 11 | D51: W2 | E51: m | F51: 20 | G51: 40.7
A52: 3 | B52: Rechts-, Wirtschafts- und Sozialwissenschaften | C52: 11 | D52: W2 | E52: w | F52: 15 | G52: 40.1
A53: 3 | B53: Rechts-, Wirtschafts- und Sozialwissenschaften | C53: 11 | D53: W2 | E53: i | F53: 35 | G53: 40.4
A54: 3 | B54: Rechts-, Wirtschafts- und Sozialwissenschaften | C54: 13 | D54: Juniorprofessoren, W1, AT | E54: m | F54: 13 | G54: 34
A55: 3 | B55: Rechts-, Wirtschafts- und Sozialwissenschaften | C55: 13 | D55: Juniorprofessoren, W1, AT | E55: w | F55: 5 | G55: 34.8
A56: 3 | B56: Rechts-, Wirtschafts- und Sozialwissenschaften | C56: 13 | D56: Juniorprofessoren, W1, AT | E56: i | F56: 18 | G56: 34.2
A57: 3 | B57: Rechts-, Wirtschafts- und Sozialwissenschaften | C57: 15 | D57: Gastprofessoren (hauptberuflich), C2-C4, W2, W3, BAT IIa, E13h, E14, AT | E57: m | F57: 1 | G57: .
A58: 3 | B58: Rechts-, Wirtschafts- und Sozialwissenschaften | C58: 15 | D58: Gastprofessoren (hauptberuflich), C2-C4, W2, W3, BAT IIa, E13h, E14, AT | E58: i | F58: 1 | G58: .
A59: 3 | B59: Rechts-, Wirtschafts- und Sozialwissenschaften | C59: ~~ | D59: zusammen | E59: m | F59: 74 | G59: 38.9
A60: 3 | B60: Rechts-, Wirtschafts- und Sozialwissenschaften | C60: ~~ | D60: zusammen | E60: w | F60: 42 | G60: 39.3
A61: 3 | B61: Rechts-, Wirtschafts- und Sozialwissenschaften | C61: ~~ | D61: zusammen | E61: i | F61: 116 | G61: 39.1
A62: 4 | B62: Mathematik, Naturwissenschaften | C62: 5 | D62: C2 und entspr. Besoldungsgruppe - auf Dauer - | E62: w | F62: 1 | G62: .
A63: 4 | B63: Mathematik, Naturwissenschaften | C63: 5 | D63: C2 und entspr. Besoldungsgruppe - auf Dauer - | E63: i | F63: 1 | G63: .
A64: 4 | B64: Mathematik, Naturwissenschaften | C64: 7 | D64: C2 und entspr. Besoldungsgruppe - auf Zeit - | E64: m | F64: 1 | G64: .
A65: 4 | B65: Mathematik, Naturwissenschaften | C65: 7 | D65: C2 und entspr. Besoldungsgruppe - auf Zeit - | E65: i | F65: 1 | G65: .
A66: 4 | B66: Mathematik, Naturwissenschaften | C66: 9 | D66: W3 | E66: m | F66: 47 | G66: 40.6
A67: 4 | B67: Mathematik, Naturwissenschaften | C67: 9 | D67: W3 | E67: w | F67: 16 | G67: 40.9
A68: 4 | B68: Mathematik, Naturwissenschaften | C68: 9 | D68: W3 | E68: i | F68: 63 | G68: 40.7
A69: 4 | B69: Mathematik, Naturwissenschaften | C69: 11 | D69: W2 | E69: m | F69: 45 | G69: 39.4
A70: 4 | B70: Mathematik, Naturwissenschaften | C70: 11 | D70: W2 | E70: w | F70: 13 | G70: 39.2
A71: 4 | B71: Mathematik, Naturwissenschaften | C71: 11 | D71: W2 | E71: i | F71: 58 | G71: 39.3
A72: 4 | B72: Mathematik, Naturwissenschaften | C72: 13 | D72: Juniorprofessoren, W1, AT | E72: m | F72: 18 | G72: 34.5
A73: 4 | B73: Mathematik, Naturwissenschaften | C73: 13 | D73: Juniorprofessoren, W1, AT | E73: w | F73: 12 | G73: 34
A74: 4 | B74: Mathematik, Naturwissenschaften | C74: 13 | D74: Juniorprofessoren, W1, AT | E74: i | F74: 30 | G74: 34.3
A75: 4 | B75: Mathematik, Naturwissenschaften | C75: ~~ | D75: zusammen | E75: m | F75: 111 | G75: 39.1
A76: 4 | B76: Mathematik, Naturwissenschaften | C76: ~~ | D76: zusammen | E76: w | F76: 42 | G76: 38.3
A77: 4 | B77: Mathematik, Naturwissenschaften | C77: ~~ | D77: zusammen | E77: i | F77: 153 | G77: 38.9
A78: 5 | B78: Humanmedizin/Gesundheitswissenschaften | C78: 5 | D78: C2 und entspr. Besoldungsgruppe - auf Dauer - | E78: m | F78: 13 | G78: 49
A79: 5 | B79: Humanmedizin/Gesundheitswissenschaften | C79: 5 | D79: C2 und entspr. Besoldungsgruppe - auf Dauer - | E79: w | F79: 5 | G79: 42.8
A80: 5 | B80: Humanmedizin/Gesundheitswissenschaften | C80: 5 | D80: C2 und entspr. Besoldungsgruppe - auf Dauer - | E80: i | F80: 18 | G80: 47.3
A81: 5 | B81: Humanmedizin/Gesundheitswissenschaften | C81: 7 | D81: C2 und entspr. Besoldungsgruppe - auf Zeit - | E81: m | F81: 6 | G81: .
A82: 5 | B82: Humanmedizin/Gesundheitswissenschaften | C82: 7 | D82: C2 und entspr. Besoldungsgruppe - auf Zeit - | E82: w | F82: 1 | G82: .
A83: 5 | B83: Humanmedizin/Gesundheitswissenschaften | C83: 7 | D83: C2 und entspr. Besoldungsgruppe - auf Zeit - | E83: i | F83: 7 | G83: 40
A84: 5 | B84: Humanmedizin/Gesundheitswissenschaften | C84: 9 | D84: W3 | E84: m | F84: 22 | G84: 43
A85: 5 | B85: Humanmedizin/Gesundheitswissenschaften | C85: 9 | D85: W3 | E85: w | F85: 4 | G85: 39.3
A86: 5 | B86: Humanmedizin/Gesundheitswissenschaften | C86: 9 | D86: W3 | E86: i | F86: 26 | G86: 42.5
A87: 5 | B87: Humanmedizin/Gesundheitswissenschaften | C87: 11 | D87: W2 | E87: m | F87: 29 | G87: 41.5
A88: 5 | B88: Humanmedizin/Gesundheitswissenschaften | C88: 11 | D88: W2 | E88: w | F88: 12 | G88: 42.2
A89: 5 | B89: Humanmedizin/Gesundheitswissenschaften | C89: 11 | D89: W2 | E89: i | F89: 41 | G89: 41.7
A90: 5 | B90: Humanmedizin/Gesundheitswissenschaften | C90: 13 | D90: Juniorprofessoren, W1, AT | E90: m | F90: 2 | G90: .
A91: 5 | B91: Humanmedizin/Gesundheitswissenschaften | C91: 13 | D91: Juniorprofessoren, W1, AT | E91: w | F91: 1 | G91: .
A92: 5 | B92: Humanmedizin/Gesundheitswissenschaften | C92: 13 | D92: Juniorprofessoren, W1, AT | E92: i | F92: 3 | G92: 34.7
A93: 5 | B93: Humanmedizin/Gesundheitswissenschaften | C93: ~~ | D93: zusammen | E93: m | F93: 72 | G93: 43
A94: 5 | B94: Humanmedizin/Gesundheitswissenschaften | C94: ~~ | D94: zusammen | E94: w | F94: 23 | G94: 41.4
A95: 5 | B95: Humanmedizin/Gesundheitswissenschaften | C95: ~~ | D95: zusammen | E95: i | F95: 95 | G95: 42.6
A96: 6 | B96: Veterinärmedizin | C96: 9 | D96: W3 | E96: m | F96: 2 | G96: 48
A97: 6 | B97: Veterinärmedizin | C97: 9 | D97: W3 | E97: i | F97: 2 | G97: 48
A98: 6 | B98: Veterinärmedizin | C98: 11 | D98: W2 | E98: w | F98: 1 | G98: .
A99: 6 | B99: Veterinärmedizin | C99: 11 | D99: W2 | E99: i | F99: 1 | G99: .
A100: 6 | B100: Veterinärmedizin | C100: ~~ | D100: zusammen | E100: m | F100: 2 | G100: .
A101: 6 | B101: Veterinärmedizin | C101: ~~ | D101: zusammen | E101: w | F101: 1 | G101: .
A102: 6 | B102: Veterinärmedizin | C102: ~~ | D102: zusammen | E102: i | F102: 3 | G102: 48.3
A103: 7 | B103: Agrar-, Forst- und Ernährungswissenschaften | C103: 9 | D103: W3 | E103: m | F103: 5 | G103: 44.4
A104: 7 | B104: Agrar-, Forst- und Ernährungswissenschaften | C104: 9 | D104: W3 | E104: i | F104: 5 | G104: 44.4
A105: 7 | B105: Agrar-, Forst- und Ernährungswissenschaften | C105: 11 | D105: W2 | E105: m | F105: 4 | G105: 40.3
A106: 7 | B106: Agrar-, Forst- und Ernährungswissenschaften | C106: 11 | D106: W2 | E106: w | F106: 3 | G106: 37.7
A107: 7 | B107: Agrar-, Forst- und Ernährungswissenschaften | C107: 11 | D107: W2 | E107: i | F107: 7 | G107: 39.1
A108: 7 | B108: Agrar-, Forst- und Ernährungswissenschaften | C108: 13 | D108: Juniorprofessoren, W1, AT | E108: m | F108: 1 | G108: .
A109: 7 | B109: Agrar-, Forst- und Ernährungswissenschaften | C109: 13 | D109: Juniorprofessoren, W1, AT | E109: i | F109: 1 | G109: .
A110: 7 | B110: Agrar-, Forst- und Ernährungswissenschaften | C110: ~~ | D110: zusammen | E110: m | F110: 10 | G110: 42.3
A111: 7 | B111: Agrar-, Forst- und Ernährungswissenschaften | C111: ~~ | D111: zusammen | E111: w | F111: 3 | G111: 37.7
A112: 7 | B112: Agrar-, Forst- und Ernährungswissenschaften | C112: ~~ | D112: zusammen | E112: i | F112: 13 | G112: 41.2
A113: 8 | B113: Ingenieurwissenschaften | C113: 7 | D113: C2 und entspr. Besoldungsgruppe - auf Zeit - | E113: m | F113: 1 | G113: .
A114: 8 | B114: Ingenieurwissenschaften | C114: 7 | D114: C2 und entspr. Besoldungsgruppe - auf Zeit - | E114: i | F114: 1 | G114: .
A115: 8 | B115: Ingenieurwissenschaften | C115: 9 | D115: W3 | E115: m | F115: 33 | G115: 43.6
A116: 8 | B116: Ingenieurwissenschaften | C116: 9 | D116: W3 | E116: w | F116: 3 | G116: 42.3
A117: 8 | B117: Ingenieurwissenschaften | C117: 9 | D117: W3 | E117: i | F117: 36 | G117: 43.5
A118: 8 | B118: Ingenieurwissenschaften | C118: 11 | D118: W2 | E118: m | F118: 9 | G118: .
A119: 8 | B119: Ingenieurwissenschaften | C119: 11 | D119: W2 | E119: w | F119: 1 | G119: .
A120: 8 | B120: Ingenieurwissenschaften | C120: 11 | D120: W2 | E120: i | F120: 10 | G120: 41.5
A121: 8 | B121: Ingenieurwissenschaften | C121: 13 | D121: Juniorprofessoren, W1, AT | E121: m | F121: 4 | G121: 36
A122: 8 | B122: Ingenieurwissenschaften | C122: 13 | D122: Juniorprofessoren, W1, AT | E122: w | F122: 2 | G122: 35
A123: 8 | B123: Ingenieurwissenschaften | C123: 13 | D123: Juniorprofessoren, W1, AT | E123: i | F123: 6 | G123: 35.7
A124: 8 | B124: Ingenieurwissenschaften | C124: ~~ | D124: zusammen | E124: m | F124: 47 | G124: 42.7
A125: 8 | B125: Ingenieurwissenschaften | C125: ~~ | D125: zusammen | E125: w | F125: 6 | G125: 39.8
A126: 8 | B126: Ingenieurwissenschaften | C126: ~~ | D126: zusammen | E126: i | F126: 53 | G126: 42.3
A127: 9 | B127: Kunst, Kunstwissenschaft | C127: 5 | D127: C2 und entspr. Besoldungsgruppe - auf Dauer - | E127: w | F127: 1 | G127: .
A128: 9 | B128: Kunst, Kunstwissenschaft | C128: 5 | D128: C2 und entspr. Besoldungsgruppe - auf Dauer - | E128: i | F128: 1 | G128: .
A129: 9 | B129: Kunst, Kunstwissenschaft | C129: 9 | D129: W3 | E129: m | F129: 1 | G129: .
A130: 9 | B130: Kunst, Kunstwissenschaft | C130: 9 | D130: W3 | E130: w | F130: 2 | G130: .
A131: 9 | B131: Kunst, Kunstwissenschaft | C131: 9 | D131: W3 | E131: i | F131: 3 | G131: 48.3
A132: 9 | B132: Kunst, Kunstwissenschaft | C132: 11 | D132: W2 | E132: m | F132: 7 | G132: 43.1
A133: 9 | B133: Kunst, Kunstwissenschaft | C133: 11 | D133: W2 | E133: w | F133: 5 | G133: 47
A134: 9 | B134: Kunst, Kunstwissenschaft | C134: 11 | D134: W2 | E134: i | F134: 12 | G134: 44.8
A135: 9 | B135: Kunst, Kunstwissenschaft | C135: 13 | D135: Juniorprofessoren, W1, AT | E135: m | F135: 1 | G135: .
A136: 9 | B136: Kunst, Kunstwissenschaft | C136: 13 | D136: Juniorprofessoren, W1, AT | E136: w | F136: 1 | G136: .
A137: 9 | B137: Kunst, Kunstwissenschaft | C137: 13 | D137: Juniorprofessoren, W1, AT | E137: i | F137: 2 | G137: 37.5
A138: 9 | B138: Kunst, Kunstwissenschaft | C138: ~~ | D138: zusammen | E138: m | F138: 9 | G138: 42.2
A139: 9 | B139: Kunst, Kunstwissenschaft | C139: ~~ | D139: zusammen | E139: w | F139: 9 | G139: 47.2
A140: 9 | B140: Kunst, Kunstwissenschaft | C140: ~~ | D140: zusammen | E140: i | F140: 18 | G140: 44.7
A141: 15 | B141: Zentrale Einrichtungen (ohne klinikspezifische Einrichtungen) | C141: 7 | D141: C2 und entspr. Besoldungsgruppe - auf Zeit - | E141: m | F141: 1 | G141: .
A142: 15 | B142: Zentrale Einrichtungen (ohne klinikspezifische Einrichtungen) | C142: 7 | D142: C2 und entspr. Besoldungsgruppe - auf Zeit - | E142: w | F142: 1 | G142: .
A143: 15 | B143: Zentrale Einrichtungen (ohne klinikspezifische Einrichtungen) | C143: 7 | D143: C2 und entspr. Besoldungsgruppe - auf Zeit - | E143: i | F143: 2 | G143: 49.5
A144: 15 | B144: Zentrale Einrichtungen (ohne klinikspezifische Einrichtungen) | C144: 9 | D144: W3 | E144: m | F144: 4 | G144: 51.3
A145: 15 | B145: Zentrale Einrichtungen (ohne klinikspezifische Einrichtungen) | C145: 9 | D145: W3 | E145: w | F145: 2 | G145: 44
A146: 15 | B146: Zentrale Einrichtungen (ohne klinikspezifische Einrichtungen) | C146: 9 | D146: W3 | E146: i | F146: 6 | G146: 48.8
A147: 15 | B147: Zentrale Einrichtungen (ohne klinikspezifische Einrichtungen) | C147: 11 | D147: W2 | E147: m | F147: 5 | G147: 34.2
A148: 15 | B148: Zentrale Einrichtungen (ohne klinikspezifische Einrichtungen) | C148: 11 | D148: W2 | E148: i | F148: 5 | G148: 34.2
A149: 15 | B149: Zentrale Einrichtungen (ohne klinikspezifische Einrichtungen) | C149: 13 | D149: Juniorprofessoren, W1, AT | E149: m | F149: 3 | G149: 34
A150: 15 | B150: Zentrale Einrichtungen (ohne klinikspezifische Einrichtungen) | C150: 13 | D150: Juniorprofessoren, W1, AT | E150: w | F150: 3 | G150: 35.3
A151: 15 | B151: Zentrale Einrichtungen (ohne klinikspezifische Einrichtungen) | C151: 13 | D151: Juniorprofessoren, W1, AT | E151: i | F151: 6 | G151: 34.7
A152: 15 | B152: Zentrale Einrichtungen (ohne klinikspezifische Einrichtungen) | C152: ~~ | D152: zusammen | E152: m | F152: 13 | G152: 40
A153: 15 | B153: Zentrale Einrichtungen (ohne klinikspezifische Einrichtungen) | C153: ~~ | D153: zusammen | E153: w | F153: 6 | G153: 41.8
A154: 15 | B154: Zentrale Einrichtungen (ohne klinikspezifische Einrichtungen) | C154: ~~ | D154: zusammen | E154: i | F154: 19 | G154: 40.6
A155: 20 | B155: Zentrale Einrichtungen der Hochschulkliniken (nur Humanmedizin) | C155: 5 | D155: C2 und entspr. Besoldungsgruppe - auf Dauer - | E155: w | F155: 1 | G155: .
A156: 20 | B156: Zentrale Einrichtungen der Hochschulkliniken (nur Humanmedizin) | C156: 5 | D156: C2 und entspr. Besoldungsgruppe - auf Dauer - | E156: i | F156: 1 | G156: .
A157: 20 | B157: Zentrale Einrichtungen der Hochschulkliniken (nur Humanmedizin) | C157: 9 | D157: W3 | E157: m | F157: 1 | G157: .
A158: 20 | B158: Zentrale Einrichtungen der Hochschulkliniken (nur Humanmedizin) | C158: 9 | D158: W3 | E158: i | F158: 1 | G158: .
A159: 20 | B159: Zentrale Einrichtungen der Hochschulkliniken (nur Humanmedizin) | C159: ~~ | D159: zusammen | E159: m | F159: 1 | G159: .
A160: 20 | B160: Zentrale Einrichtungen der Hochschulkliniken (nur Humanmedizin) | C160: ~~ | D160: zusammen | E160: w | F160: 1 | G160: .
A161: 20 | B161: Zentrale Einrichtungen der Hochschulkliniken (nur Humanmedizin) | C161: ~~ | D161: zusammen | E161: i | F161: 2 | G161: 49.5
A162: ~~ | B162: Insgesamt | C162: 1 | D162: C4 und entspr. Besoldungsgruppe | E162: m | F162: 2 | G162: 47.0
A163: ~~ | B163: Insgesamt | C163: 1 | D163: C4 und entspr. Besoldungsgruppe | E163: i | F163: 2 | G163: 47.0
A164: ~~ | B164: Insgesamt | C164: 5 | D164: C2 und entspr. Besoldungsgruppe - auf Dauer - | E164: m | F164: 18 | G164: 48.1
A165: ~~ | B165: Insgesamt | C165: 5 | D165: C2 und entspr. Besoldungsgruppe - auf Dauer - | E165: w | F165: 8 | G165: 43.9
A166: ~~ | B166: Insgesamt | C166: 5 | D166: C2 und entspr. Besoldungsgruppe - auf Dauer - | E166: i | F166: 26 | G166: 46.8
A167: ~~ | B167: Insgesamt | C167: 7 | D167: C2 und entspr. Besoldungsgruppe - auf Zeit - | E167: m | F167: 17 | G167: 40.6
A168: ~~ | B168: Insgesamt | C168: 7 | D168: C2 und entspr. Besoldungsgruppe - auf Zeit - | E168: w | F168: 8 | G168: 43.3
A169: ~~ | B169: Insgesamt | C169: 7 | D169: C2 und entspr. Besoldungsgruppe - auf Zeit - | E169: i | F169: 25 | G169: 41.4
A170: ~~ | B170: Insgesamt | C170: 9 | D170: W3 | E170: m | F170: 174 | G170: 42.5
A171: ~~ | B171: Insgesamt | C171: 9 | D171: W3 | E171: w | F171: 67 | G171: 42.1
A172: ~~ | B172: Insgesamt | C172: 9 | D172: W3 | E172: i | F172: 241 | G172: 42.4
A173: ~~ | B173: Insgesamt | C173: 11 | D173: W2 | E173: m | F173: 160 | G173: 41.3
A174: ~~ | B174: Insgesamt | C174: 11 | D174: W2 | E174: w | F174: 83 | G174: 41.7
A175: ~~ | B175: Insgesamt | C175: 11 | D175: W2 | E175: i | F175: 243 | G175: 41.4
A176: ~~ | B176: Insgesamt | C176: 13 | D176: Juniorprofessoren, W1, AT | E176: m | F176: 48 | G176: 35
A177: ~~ | B177: Insgesamt | C177: 13 | D177: Juniorprofessoren, W1, AT | E177: w | F177: 34 | G177: 35.5
A178: ~~ | B178: Insgesamt | C178: 13 | D178: Juniorprofessoren, W1, AT | E178: i | F178: 82 | G178: 35.2
A179: ~~ | B179: Insgesamt | C179: 15 | D179: Gastprofessoren (hauptberuflich), C2-C4, W2, W3, BAT IIa, E13h, E14, AT | E179: m | F179: 1 | G179: .
A180: ~~ | B180: Insgesamt | C180: 15 | D180: Gastprofessoren (hauptberuflich), C2-C4, W2, W3, BAT IIa, E13h, E14, AT | E180: i | F180: 1 | G180: .
A181: ~~ | B181: Insgesamt | E181: m | F181: 420 | G181: 41.4
A182: ~~ | B182: Insgesamt | E182: w | F182: 200 | G182: 40.9
A183: ~~ | B183: Insgesamt | E183: i | F183: 620 | G183: 41.2
B184: Insgesamt ohne Juniorprofessoren (eigene Berechnung) | E184: i | F184: =F183-F178 -> 538
B185: Insgesamt Juniorprofessoren/W2/W3 (eigene Berechnung) | D185: Juniorprofessoren (W1, AT), W2, W3 | E185: i | F185: =F172+F175+F178 -> 566
B186: Insgesamt W2/W3 (eigene Berechnung) | D186: W2, W3 | E186: i | F186: =F172+F175 -> 484
B187: Hinweis:
B188: Bei dieser Tabelle müssen wir unsere Geheimhaltungsvorschriften beachten.
B189: (Das Durchschnittsalter bei einem Beschäftigten müssen wir mit einer Gegenposition auspunkten.)

Sheet 6.2
A1: Statistisches Bundesamt
A2: H 201 - Hochschulstatistik
A5: Neuberufene Professoren nach Fächergruppen sowie Besoldungs- und Vergütungsgruppen und Geschlecht
A6: an Wissenschaftlichen Hochschulen (Universitäten, Pädagogische und Theologische Hochschulen)
A7: im Berichtsjahr 2013
G9: Durchschnittsalter
B10: Fächergruppe | D10: Besoldungs- und Vergütungsgruppen | E10: Geschlecht | F10: Anzahl | G10: bei der Ernennung zum Professor
G11: (arith. Mittel)
A13: 1 | B13: Sprach- und Kulturwissenschaften | C13: 5 | D13: C2 und entspr. Besoldungsgruppe - auf Dauer - | E13: m | F13: 4 | G13: 47
A14: 1 | B14: Sprach- und Kulturwissenschaften | C14: 5 | D14: C2 und entspr. Besoldungsgruppe - auf Dauer - | E14: w | F14: 2 | G14: 49.5
A15: 1 | B15: Sprach- und Kulturwissenschaften | C15: 5 | D15: C2 und entspr. Besoldungsgruppe - auf Dauer - | E15: i | F15: 6 | G15: 47.8
A16: 1 | B16: Sprach- und Kulturwissenschaften | C16: 7 | D16: C2 und entspr. Besoldungsgruppe - auf Zeit - | E16: m | F16: 8 | G16: 41.1
A17: 1 | B17: Sprach- und Kulturwissenschaften | C17: 7 | D17: C2 und entspr. Besoldungsgruppe - auf Zeit - | E17: w | F17: 2 | G17: 47.5
A18: 1 | B18: Sprach- und Kulturwissenschaften | C18: 7 | D18: C2 und entspr. Besoldungsgruppe - auf Zeit - | E18: i | F18: 10 | G18: 42.4
A19: 1 | B19: Sprach- und Kulturwissenschaften | C19: 9 | D19: W3 | E19: m | F19: 42 | G19: 43.4
A20: 1 | B20: Sprach- und Kulturwissenschaften | C20: 9 | D20: W3 | E20: w | F20: 21 | G20: 43.3
A21: 1 | B21: Sprach- und Kulturwissenschaften | C21: 9 | D21: W3 | E21: i | F21: 63 | G21: 43.4
A22: 1 | B22: Sprach- und Kulturwissenschaften | C22: 11 | D22: W2 | E22: m | F22: 42 | G22: 43.5
A23: 1 | B23: Sprach- und Kulturwissenschaften | C23: 11 | D23: W2 | E23: w | F23: 41 | G23: 43
A24: 1 | B24: Sprach- und Kulturwissenschaften | C24: 11 | D24: W2 | E24: i | F24: 83 | G24: 43.3
A25: 1 | B25: Sprach- und Kulturwissenschaften | C25: 13 | D25: Juniorprofessoren, W1, AT | E25: m | F25: 8 | G25: 37.4
A26: 1 | B26: Sprach- und Kulturwissenschaften | C26: 13 | D26: Juniorprofessoren, W1, AT | E26: w | F26: 18 | G26: 35.7
A27: 1 | B27: Sprach- und Kulturwissenschaften | C27: 13 | D27: Juniorprofessoren, W1, AT | E27: i | F27: 26 | G27: 36.2
A28: 1 | B28: Sprach- und Kulturwissenschaften | C28: ~~ | D28: zusammen | E28: m | F28: 104 | G28: 43
A29: 1 | B29: Sprach- und Kulturwissenschaften | C29: ~~ | D29: zusammen | E29: w | F29: 84 | G29: 41.8
A30: 1 | B30: Sprach- und Kulturwissenschaften | C30: ~~ | D30: zusammen | E30: i | F30: 188 | G30: 42.4
A31: 2 | B31: Sport | C31: 9 | D31: W3 | E31: m | F31: 3 | G31: 42
A32: 2 | B32: Sport | C32: 9 | D32: W3 | E32: i | F32: 3 | G32: 42
A33: 2 | B33: Sport | C33: 11 | D33: W2 | E33: m | F33: 5 | G33: .
A34: 2 | B34: Sport | C34: 11 | D34: W2 | E34: w | F34: 1 | G34: .
A35: 2 | B35: Sport | C35: 11 | D35: W2 | E35: i | F35: 6 | G35: 39.5
A36: 2 | B36: Sport | C36: ~~ | D36: zusammen | E36: m | F36: 8 | G36: .
A37: 2 | B37: Sport | C37: ~~ | D37: zusammen | E37: w | F37: 1 | G37: .
A38: 2 | B38: Sport | C38: ~~ | D38: zusammen | E38: i | F38: 9 | G38: 40.3
A39: 3 | B39: Rechts-, Wirtschafts- und Sozialwissenschaften | C39: 3 | D39: C3 und entspr. Besoldungsgruppe | E39: m | F39: 1 | G39: .
A40: 3 | B40: Rechts-, Wirtschafts- und Sozialwissenschaften | C40: 3 | D40: C3 und entspr. Besoldungsgruppe | E40: w | F40: 1 | G40: .
A41: 3 | B41: Rechts-, Wirtschafts- und Sozialwissenschaften | C41: 3 | D41: C3 und entspr. Besoldungsgruppe | E41: i | F41: 2 | G41: 32.5
A42: 3 | B42: Rechts-, Wirtschafts- und Sozialwissenschaften | C42: 5 | D42: C2 und entspr. Besoldungsgruppe - auf Dauer - | E42: m | F42: 3 | G42: 38
A43: 3 | B43: Rechts-, Wirtschafts- und Sozialwissenschaften | C43: 5 | D43: C2 und entspr. Besoldungsgruppe - auf Dauer - | E43: i | F43: 3 | G43: 38
A44: 3 | B44: Rechts-, Wirtschafts- und Sozialwissenschaften | C44: 7 | D44: C2 und entspr. Besoldungsgruppe - auf Zeit - | E44: m | F44: 6 | G44: 39
A45: 3 | B45: Rechts-, Wirtschafts- und Sozialwissenschaften | C45: 7 | D45: C2 und entspr. Besoldungsgruppe - auf Zeit - | E45: w | F45: 2 | G45: 42
A46: 3 | B46: Rechts-, Wirtschafts- und Sozialwissenschaften | C46: 7 | D46: C2 und entspr. Besoldungsgruppe - auf Zeit - | E46: i | F46: 8 | G46: 39.8
A47: 3 | B47: Rechts-, Wirtschafts- und Sozialwissenschaften | C47: 9 | D47: W3 | E47: m | F47: 51 | G47: 40.3
A48: 3 | B48: Rechts-, Wirtschafts- und Sozialwissenschaften | C48: 9 | D48: W3 | E48: w | F48: 9 | G48: 43.7
A49: 3 | B49: Rechts-, Wirtschafts- und Sozialwissenschaften | C49: 9 | D49: W3 | E49: i | F49: 60 | G49: 40.8
A50: 3 | B50: Rechts-, Wirtschafts- und Sozialwissenschaften | C50: 11 | D50: W2 | E50: m | F50: 29 | G50: 39.7
A51: 3 | B51: Rechts-, Wirtschafts- und Sozialwissenschaften | C51: 11 | D51: W2 | E51: w | F51: 7 | G51: 38.9
A52: 3 | B52: Rechts-, Wirtschafts- und Sozialwissenschaften | C52: 11 | D52: W2 | E52: i | F52: 36 | G52: 39.5
A53: 3 | B53: Rechts-, Wirtschafts- und Sozialwissenschaften | C53: 13 | D53: Juniorprofessoren, W1, AT | E53: m | F53: 22 | G53: 33.9
A54: 3 | B54: Rechts-, Wirtschafts- und Sozialwissenschaften | C54: 13 | D54: Juniorprofessoren, W1, AT | E54: w | F54: 10 | G54: 33.4
A55: 3 | B55: Rechts-, Wirtschafts- und Sozialwissenschaften | C55: 13 | D55: Juniorprofessoren, W1, AT | E55: i | F55: 32 | G55: 33.7
A56: 3 | B56: Rechts-, Wirtschafts- und Sozialwissenschaften | C56: ~~ | D56: zusammen | E56: m | F56: 112 | G56: 38.7
A57: 3 | B57: Rechts-, Wirtschafts- und Sozialwissenschaften | C57: ~~ | D57: zusammen | E57: w | F57: 29 | G57: 38.5
A58: 3 | B58: Rechts-, Wirtschafts- und Sozialwissenschaften | C58: ~~ | D58: zusammen | E58: i | F58: 141 | G58: 38.6
A59: 4 | B59: Mathematik, Naturwissenschaften | C59: 7 | D59: C2 und entspr. Besoldungsgruppe - auf Zeit - | E59: m | F59: 2 | G59: 40
A60: 4 | B60: Mathematik, Naturwissenschaften | C60: 7 | D60: C2 und entspr. Besoldungsgruppe - auf Zeit - | E60: i | F60: 2 | G60: 40
A61: 4 | B61: Mathematik, Naturwissenschaften | C61: 9 | D61: W3 | E61: m | F61: 52 | G61: 42
A62: 4 | B62: Mathematik, Naturwissenschaften | C62: 9 | D62: W3 | E62: w | F62: 7 | G62: 41.3
A63: 4 | B63: Mathematik, Naturwissenschaften | C63: 9 | D63: W3 | E63: i | F63: 59 | G63: 41.9
A64: 4 | B64: Mathematik, Naturwissenschaften | C64: 11 | D64: W2 | E64: m | F64: 50 | G64: 39
A65: 4 | B65: Mathematik, Naturwissenschaften | C65: 11 | D65: W2 | E65: w | F65: 21 | G65: 40.4
A66: 4 | B66: Mathematik, Naturwissenschaften | C66: 11 | D66: W2 | E66: i | F66: 71 | G66: 39.5
A67: 4 | B67: Mathematik, Naturwissenschaften | C67: 13 | D67: Juniorprofessoren, W1, AT | E67: m | F67: 19 | G67: 35.3
A68: 4 | B68: Mathematik, Naturwissenschaften | C68: 13 | D68: Juniorprofessoren, W1, AT | E68: w | F68: 6 | G68: 35.7
A69: 4 | B69: Mathematik, Naturwissenschaften | C69: 13 | D69: Juniorprofessoren, W1, AT | E69: i | F69: 25 | G69: 35.4
A70: 4 | B70: Mathematik, Naturwissenschaften | C70: ~~ | D70: zusammen | E70: m | F70: 123 | G70: 39.7
A71: 4 | B71: Mathematik, Naturwissenschaften | C71: ~~ | D71: zusammen | E71: w | F71: 34 | G71: 39.8
A72: 4 | B72: Mathematik, Naturwissenschaften | C72: ~~ | D72: zusammen | E72: i | F72: 157 | G72: 39.7
A73: 5 | B73: Humanmedizin/Gesundheitswissenschaften | C73: 5 | D73: C2 und entspr. Besoldungsgruppe - auf Dauer - | E73: m | F73: 9 | G73: .
A74: 5 | B74: Humanmedizin/Gesundheitswissenschaften | C74: 5 | D74: C2 und entspr. Besoldungsgruppe - auf Dauer - | E74: w | F74: 1 | G74: .
A75: 5 | B75: Humanmedizin/Gesundheitswissenschaften | C75: 5 | D75: C2 und entspr. Besoldungsgruppe - auf Dauer - | E75: i | F75: 10 | G75: 42.5
A76: 5 | B76: Humanmedizin/Gesundheitswissenschaften | C76: 7 | D76: C2 und entspr. Besoldungsgruppe - auf Zeit - | E76: m | F76: 10 | G76: 41.8
A77: 5 | B77: Humanmedizin/Gesundheitswissenschaften | C77: 7 | D77: C2 und entspr. Besoldungsgruppe - auf Zeit - | E77: w | F77: 4 | G77: 39.8
A78: 5 | B78: Humanmedizin/Gesundheitswissenschaften | C78: 7 | D78: C2 und entspr. Besoldungsgruppe - auf Zeit - | E78: i | F78: 14 | G78: 41.2
A79: 5 | B79: Humanmedizin/Gesundheitswissenschaften | C79: 9 | D79: W3 | E79: m | F79: 21 | G79: 44
A80: 5 | B80: Humanmedizin/Gesundheitswissenschaften | C80: 9 | D80: W3 | E80: w | F80: 3 | G80: 46.7
A81: 5 | B81: Humanmedizin/Gesundheitswissenschaften | C81: 9 | D81: W3 | E81: i | F81: 24 | G81: 44.3
A82: 5 | B82: Humanmedizin/Gesundheitswissenschaften | C82: 11 | D82: W2 | E82: m | F82: 31 | G82: 42.8
A83: 5 | B83: Humanmedizin/Gesundheitswissenschaften | C83: 11 | D83: W2 | E83: w | F83: 14 | G83: 40.4
